Workbook

Sheet Cover
C2: CitiPower
C3: Revised proposal 2026-31
C5: NC switchboard and relay
C6: Model number: | D6: 3.4.08
C8: 2025-12-01
A40: =_xlfn.SHEETS() -> 18
A41: 2025-05-12

Sheet Summary
A1: =bus -> CitiPower
A2: =proj -> NC switchboard and relay replacement
A3: SUMMARY
A5: RESULTS
G7: PV of costs | H7: PV of benefits | I7: NPV
C8: Option | G8: =output_dollars -> 2026-06-30 | H8: =output_dollars -> 2026-06-30 | I8: =output_dollars -> 2026-06-30
C9: =options -> Option 1 (base case) | D9: =INDEX(Assumptions!$E$14:$E$18, MATCH(C9, Assumptions!$C$14:$C$18,0)) -> No change to existing practices | G9: =IF(Data!$C9, "", INDEX(Consol!$F$15:$F$82, MATCH($C9&G$7, Consol!$D$15:$D$82,0))/mill_conv) -> 0 | H9: =IF(Data!$C9, "", INDEX(Consol!$F$15:$F$82, MATCH($C9&H$7, Consol!$D$15:$D$82,0))/mill_conv) -> 0 | I9: =IF(Data!$C9, "", INDEX(Consol!$F$15:$F$82, MATCH($C9&I$7, Consol!$D$15:$D$82,0))/mill_conv) -> 0
C10: Option 2 | D10: =INDEX(Assumptions!$E$14:$E$18, MATCH(C10, Assumptions!$C$14:$C$18,0)) -> Combined replacement of SWBD and relays completed in 2029-30 | G10: =IF(Data!$C10, "", INDEX(Consol!$F$15:$F$82, MATCH($C10&G$7, Consol!$D$15:$D$82,0))/mill_conv) -> -4.788056645 | H10: =IF(Data!$C10, "", INDEX(Consol!$F$15:$F$82, MATCH($C10&H$7, Consol!$D$15:$D$82,0))/mill_conv) -> 8.063059202 | I10: =IF(Data!$C10, "", INDEX(Consol!$F$15:$F$82, MATCH($C10&I$7, Consol!$D$15:$D$82,0))/mill_conv) -> 3.275002557
C11: Option 3 | D11: =INDEX(Assumptions!$E$14:$E$18, MATCH(C11, Assumptions!$C$14:$C$18,0)) -> Relay replacement completed in 2029-30 and SWBD replacement completed in 2034-35 | G11: =IF(Data!$C11, "", INDEX(Consol!$F$15:$F$82, MATCH($C11&G$7, Consol!$D$15:$D$82,0))/mill_conv) -> -4.500511277 | H11: =IF(Data!$C11, "", INDEX(Consol!$F$15:$F$82, MATCH($C11&H$7, Consol!$D$15:$D$82,0))/mill_conv) -> 5.539526318 | I11: =IF(Data!$C11, "", INDEX(Consol!$F$15:$F$82, MATCH($C11&I$7, Consol!$D$15:$D$82,0))/mill_conv) -> 1.039015041
C12: Option 4 | D12: =INDEX(Assumptions!$E$14:$E$18, MATCH(C12, Assumptions!$C$14:$C$18,0)) -> Retrofit vacuum CB in 2028-29 and combined SWBD and relay replacement in 2038-39 | G12: =IF(Data!$C12, "", INDEX(Consol!$F$15:$F$82, MATCH($C12&G$7, Consol!$D$15:$D$82,0))/mill_conv) -> -2.97694351 | H12: =IF(Data!$C12, "", INDEX(Consol!$F$15:$F$82, MATCH($C12&H$7, Consol!$D$15:$D$82,0))/mill_conv) -> 4.799462188 | I12: =IF(Data!$C12, "", INDEX(Consol!$F$15:$F$82, MATCH($C12&I$7, Consol!$D$15:$D$82,0))/mill_conv) -> 1.822518679
C13: Option 5 | D13: =INDEX(Assumptions!$E$14:$E$18, MATCH(C13, Assumptions!$C$14:$C$18,0)) -> Retrofit vacuum CB and replace relays in 2028-29 and SWBD replacement in 2038-39 | G13: =IF(Data!$C13, "", INDEX(Consol!$F$15:$F$82, MATCH($C13&G$7, Consol!$D$15:$D$82,0))/mill_conv) -> -4.656522983 | H13: =IF(Data!$C13, "", INDEX(Consol!$F$15:$F$82, MATCH($C13&H$7, Consol!$D$15:$D$82,0))/mill_conv) -> 4.820776106 | I13: =IF(Data!$C13, "", INDEX(Consol!$F$15:$F$82, MATCH($C13&I$7, Consol!$D$15:$D$82,0))/mill_conv) -> 0.1642531228
G16: NPV
C17: Preferred option: | G17: =output_dollars -> 2026-06-30
C18: =INDEX($C$9:$C$13,MATCH(G18, $I$9:$I$13,0)) -> Option 2 | D18: =INDEX($D$9:$D$13,MATCH(G18, $I$9:$I$13,0)) -> Combined replacement of SWBD and relays completed in 2029-30 | G18: =_xlfn.MAXIFS(I9:I13, IF(compliance, Data!$F$9:$F$13, Data!$C$9:$C$13),FALSE) -> 3.275002557
A23: PREFERRED OPTION
C25: Preferred Option
C26: =C18 -> Option 2
C29: Expenditure forecast | D29: =output_dollars -> 2026-06-30 | F29: =Assumptions!K89 -> 2026-27 | G29: =Assumptions!L89 -> 2027-28 | H29: =Assumptions!M89 -> 2028-29 | I29: =Assumptions!N89 -> 2029-30 | J29: =Assumptions!O89 -> 2030-31 | L29: Total
C30: Capital expenditure | F30: =-INDEX(Consol!$I$15:$Q$82,MATCH($C$26&$C30,Consol!$D$15:$D$82,0), MATCH(F$29, Consol!$I$9:$Q$9,0))/mill_conv -> 0 | G30: =-INDEX(Consol!$I$15:$Q$82,MATCH($C$26&$C30,Consol!$D$15:$D$82,0), MATCH(G$29, Consol!$I$9:$Q$9,0))/mill_conv -> 0 | H30: =-INDEX(Consol!$I$15:$Q$82,MATCH($C$26&$C30,Consol!$D$15:$D$82,0), MATCH(H$29, Consol!$I$9:$Q$9,0))/mill_conv -> 2.67049611 | I30: =-INDEX(Consol!$I$15:$Q$82,MATCH($C$26&$C30,Consol!$D$15:$D$82,0), MATCH(I$29, Consol!$I$9:$Q$9,0))/mill_conv -> 5.340992219 | J30: =-INDEX(Consol!$I$15:$Q$82,MATCH($C$26&$C30,Consol!$D$15:$D$82,0), MATCH(J$29, Consol!$I$9:$Q$9,0))/mill_conv -> 0 | L30: =SUM(F30:J30) -> 8.011488329
C31: Operating expenditure | F31: =-INDEX(Consol!$I$15:$Q$82,MATCH($C$26&$C31,Consol!$D$15:$D$82,0), MATCH(F$29, Consol!$I$9:$Q$9,0))/mill_conv -> 0 | G31: =-INDEX(Consol!$I$15:$Q$82,MATCH($C$26&$C31,Consol!$D$15:$D$82,0), MATCH(G$29, Consol!$I$9:$Q$9,0))/mill_conv -> 0 | H31: =-INDEX(Consol!$I$15:$Q$82,MATCH($C$26&$C31,Consol!$D$15:$D$82,0), MATCH(H$29, Consol!$I$9:$Q$9,0))/mill_conv -> 0 | I31: =-INDEX(Consol!$I$15:$Q$82,MATCH($C$26&$C31,Consol!$D$15:$D$82,0), MATCH(I$29, Consol!$I$9:$Q$9,0))/mill_conv -> 0 | J31: =-INDEX(Consol!$I$15:$Q$82,MATCH($C$26&$C31,Consol!$D$15:$D$82,0), MATCH(J$29, Consol!$I$9:$Q$9,0))/mill_conv -> 0 | L31: =SUM(F31:J31) -> 0
A35: CHART
C37: Capex and risk ($M, 2026)
A63: SENSITIVITIES
C66: Sensitivity | D66: =output_dollars -> 2026-06-30 | F66: =Sensitivity_calcs!C89 -> Option 1 (base case) | G66: =Sensitivity_calcs!D89 -> Option 2 | H66: =Sensitivity_calcs!E89 -> Option 3 | I66: =Sensitivity_calcs!F89 -> Option 4 | J66: =Sensitivity_calcs!G89 -> Option 5 | L66: Preferred option
C67: =Sensitivity_calcs!B90 -> None | F67: =Sensitivity_calcs!C90 -> 0 | G67: =Sensitivity_calcs!D90 -> 3.275002557 | H67: =Sensitivity_calcs!E90 -> 1.039015041 | I67: =Sensitivity_calcs!F90 -> 1.822518679 | J67: =Sensitivity_calcs!G90 -> 0.1642531228 | L67: =Sensitivity_calcs!K90 -> Option 2
C68: =Sensitivity_calcs!B91 -> Capex 10% higher | F68: =Sensitivity_calcs!C91 -> 0 | G68: =Sensitivity_calcs!D91 -> 2.796196893 | H68: =Sensitivity_calcs!E91 -> 0.5889639133 | I68: =Sensitivity_calcs!F91 -> 1.524824328 | J68: =Sensitivity_calcs!G91 -> -0.3013991756 | L68: =Sensitivity_calcs!K91 -> Option 2
C69: =Sensitivity_calcs!B92 -> Capex 10% lower | F69: =Sensitivity_calcs!C92 -> 0 | G69: =Sensitivity_calcs!D92 -> 3.753808222 | H69: =Sensitivity_calcs!E92 -> 1.489066169 | I69: =Sensitivity_calcs!F92 -> 2.12021303 | J69: =Sensitivity_calcs!G92 -> 0.6299054211 | L69: =Sensitivity_calcs!K92 -> Option 2
C70: =Sensitivity_calcs!B93 -> Total benefits 10% higher | F70: =Sensitivity_calcs!C93 -> 0 | G70: =Sensitivity_calcs!D93 -> 4.081308477 | H70: =Sensitivity_calcs!E93 -> 1.592967673 | I70: =Sensitivity_calcs!F93 -> 2.302464897 | J70: =Sensitivity_calcs!G93 -> 0.6463307334 | L70: =Sensitivity_calcs!K93 -> Option 2
C71: =Sensitivity_calcs!B94 -> Total benefits 10% lower | F71: =Sensitivity_calcs!C94 -> 0 | G71: =Sensitivity_calcs!D94 -> 2.468696637 | H71: =Sensitivity_calcs!E94 -> 0.4850624092 | I71: =Sensitivity_calcs!F94 -> 1.34257246 | J71: =Sensitivity_calcs!G94 -> -0.3178244879 | L71: =Sensitivity_calcs!K94 -> Option 2
C72: =Sensitivity_calcs!B95 -> Capex 10% higher & Total benefits 10% lower | F72: =Sensitivity_calcs!C95 -> 0 | G72: =Sensitivity_calcs!D95 -> 1.989890972 | H72: =Sensitivity_calcs!E95 -> 0.03501128155 | I72: =Sensitivity_calcs!F95 -> 1.044878109 | J72: =Sensitivity_calcs!G95 -> -0.7834767862 | L72: =Sensitivity_calcs!K95 -> Option 2
C73: =Sensitivity_calcs!B96 -> 0 | F73: =Sensitivity_calcs!C96 ->  | G73: =Sensitivity_calcs!D96 ->  | H73: =Sensitivity_calcs!E96 ->  | I73: =Sensitivity_calcs!F96 ->  | J73: =Sensitivity_calcs!G96 ->  | L73: =Sensitivity_calcs!K96 -> 
C74: =Sensitivity_calcs!B97 -> 0 | F74: =Sensitivity_calcs!C97 ->  | G74: =Sensitivity_calcs!D97 ->  | H74: =Sensitivity_calcs!E97 ->  | I74: =Sensitivity_calcs!F97 ->  | J74: =Sensitivity_calcs!G97 ->  | K74: =IF(C74=0,0, INDEX($F$66:$J$66, MATCH(MAX($F74:$I74),$F74:$I74,0))) -> 0 | L74: =Sensitivity_calcs!K97 -> 
D75: =Sensitivity_calcs!B98 -> 0 | F75: =Sensitivity_calcs!C98 ->  | G75: =Sensitivity_calcs!D98 ->  | H75: =Sensitivity_calcs!E98 ->  | I75: =Sensitivity_calcs!F98 ->  | J75: =Sensitivity_calcs!G98 ->  | L75: =Sensitivity_calcs!K98 -> 
D76: =Sensitivity_calcs!B99 -> 0

Sheet Assumptions
A1: =bus -> CitiPower
A2: =proj -> NC switchboard and relay replacement
A4: Project
C6: Business: | E6: CitiPower
C8: Descripton: | E8: NC switchboard and relay replacement
C10: Date of cost inputs: | E10: December | G10: 2023
C13: Option | E13: Description
C14: =options -> Option 1 (base case) | E14: No change to existing practices
C15: Option 2 | E15: Combined replacement of SWBD and relays completed in 2029-30
C16: Option 3 | E16: Relay replacement completed in 2029-30 and SWBD replacement completed in 2034-35
C17: Option 4 | E17: Retrofit vacuum CB in 2028-29 and combined SWBD and relay replacement in 2038-39
C18: Option 5 | E18: Retrofit vacuum CB and replace relays in 2028-29 and SWBD replacement in 2038-39
C20: Compliance project | E20: No
C22: Period start | E22: 2026-27 | F22: [start]
A25: Timing & WACC
C27: Input dollars | G27: =EOMONTH(DATE(Assumptions!$G$10,INDEX(Data!$K$107:$K$108, MATCH(Assumptions!$E$10, Data!$J$107:$J$108,0)), 1),0) -> 2023-12-31 | H27: [input_dollars]
C28: Pre-tax real WACC | G28: 0.035 | H28: [real_disc]
C29: VCR date | G29: 2024-12-31 | H29: [vcr_date]
C31: Analysis period (years) | G31: 20 | H31: [years]\
C33: Output dollars | G33: 2026-06-30 | H33: [output_dollars]
C34: Other benefits date | G34: 2023-12-31 | H34: [custval_date]
C35: Value of CO2 reductions input date | G35: 2023-06-30
A39: VCR
C41: Enter ZSS code >> | D41: eg. AR | E41: NC | G41: Northcote | H41: 46957.26272 | I41: 2024 VCR ($/MWh)
A45: Risks
B48: SAFETY
C50: Value of statistical life | G50: 5400000 | H50: 2023-06-30
C52: Value of injury | G52: 0 | H52: =input_dollars -> 2023-12-31
C54: =Data!A83 -> Disproportionate factors applied to various bushfire and other risk valuations
C55: =Data!B85 -> Harm to property from network | G55: =Data!F85 -> 1
C56: =Data!B86 -> Harm to property from bushfire | G56: =Data!F86 -> 1
C57: =Data!B87 -> Harm to environment | G57: =Data!F87 -> 1
C58: =Data!B88 -> Safety - Public trespass | G58: =Data!F88 -> 1
C59: =Data!B89 -> Safety - Single fatality or serious injury ^ | G59: =Data!F89 -> 3
C60: =Data!B90 -> Safety from bushfire in HBRA | G60: =Data!F90 -> 3
C61: =Data!B91 -> Safety - Multiple fatality or serious injury ^ | G61: =Data!F91 -> 6
C62: =Data!B92 -> Safety from bushfire (REFCL declared areas) | G62: =Data!F92 -> 6
C63: =Data!B93 -> Safety from bushfire (electric line construction areas) | G63: =Data!F93 -> 10
C66: ^ Public or employee
C69: Incident type | G69: Value | H69: Probability | I69: DF selected | J69: Description/comment
C70: Safety (fatality) | G70: =G50*INDEX(hy_escalation, MATCH(input_dollars,hy_dates,0))/INDEX(hy_escalation, MATCH(H50,hy_dates,0)) -> 5607473.52 | H70: 0 | I70: 0 | J70: 0
C71: Safety (injury) | G71: =G52*INDEX(hy_escalation, MATCH(input_dollars,hy_dates,0))/INDEX(hy_escalation, MATCH(H52,hy_dates,0)) -> 0 | H71: 0 | I71: 0 | J71: 0
B77: UNPLANNED REPLACEMENT/REPAIR
C78: Major failure (replace) | G78: 0 | H78: =input_dollars -> 2023-12-31
C79: Minor failure (repair) | G79: 0 | H79: =input_dollars -> 2023-12-31
C81: Premium for failure | G81: 0.2
A87: Other benefits
B89: ENVIRONMENTAL | K89: 2026-27 | L89: 2027-28 | M89: 2028-29 | N89: 2029-30 | O89: 2030-31 | P89: 2031-32
C90: Value of CO2 reductions | H90: =G35 -> 2023-06-30 | I90: $/kWh | K90: 0.0247304868 | L90: 0.02234074009 | M90: 0.02019632912 | N90: 0.01806294208 | O90: 0.01591339762 | P90: 0.01371506943
B93: CUSTOMER VALUE | G93: Value
C94: =Data!B60 -> Reliability in worst-served areas | G94: 0 | H94: =custval_date -> 2023-12-31 | I94: per MWh
C95: =Data!B61 -> Network resilience | G95: 0 | H95: 2023-12-31 | I95: per MWh
C96: =Data!B62 -> Enabling solar exports | G96: 4220.99537 | H96: 2023-12-31 | I96: per MWh
C97: =Data!B63 -> Aesthetics | G97: 0 | H97: 2023-12-31 | I97: per customer
C98: =Data!B64 -> Customer value of time - residential | G98: 0.5476938068 | H98: 2023-12-31 | I98: per customer minute
C99: =Data!B65 -> Customer value of time - business | G99: 0.5476938068 | H99: 2023-12-31 | I99: per customer minute
C100: =Data!B66 -> Communication | G100: 0 | H100: 2023-12-31 | I100: per customer
C101: =Data!B67 -> Information accessibility | G101: 0 | H101: 2023-12-31 | I101: per customer
A106: Sensitivities
G110: Capex | H110: Total benefits
B111: 1 | C111: =IF(G111=0, "", G$110&" "&ABS($G111)*100&"%"&IF($G111>0, " higher", " lower"))&IF(AND(G111<>0, H111<>0), " & ", "")&IF(H111=0, "", H$110&" "&ABS($H111)*100&"%"&IF($H111>0, " higher", " lower")) -> Capex 10% higher | G111: 0.1 | H111: 0
B112: 2 | C112: =IF(G112=0, "", G$110&" "&ABS($G112)*100&"%"&IF($G112>0, " higher", " lower"))&IF(AND(G112<>0, H112<>0), " & ", "")&IF(H112=0, "", H$110&" "&ABS($H112)*100&"%"&IF($H112>0, " higher", " lower")) -> Capex 10% lower | G112: -0.1 | H112: 0
B113: 3 | C113: =IF(G113=0, "", G$110&" "&ABS($G113)*100&"%"&IF($G113>0, " higher", " lower"))&IF(AND(G113<>0, H113<>0), " & ", "")&IF(H113=0, "", H$110&" "&ABS($H113)*100&"%"&IF($H113>0, " higher", " lower")) -> Total benefits 10% higher | G113: 0 | H113: 0.1
B114: 4 | C114: =IF(G114=0, "", G$110&" "&ABS($G114)*100&"%"&IF($G114>0, " higher", " lower"))&IF(AND(G114<>0, H114<>0), " & ", "")&IF(H114=0, "", H$110&" "&ABS($H114)*100&"%"&IF($H114>0, " higher", " lower")) -> Total benefits 10% lower | G114: 0 | H114: -0.1
B115: 5 | C115: =IF(G115=0, "", G$110&" "&ABS($G115)*100&"%"&IF($G115>0, " higher", " lower"))&IF(AND(G115<>0, H115<>0), " & ", "")&IF(H115=0, "", H$110&" "&ABS($H115)*100&"%"&IF($H115>0, " higher", " lower")) -> Capex 10% higher & Total benefits 10% lower | G115: 0.1 | H115: -0.1

Sheet Option1 (base case)
A1: =bus -> CitiPower
A2: =proj -> NC switchboard and relay replacement
A3: OPTION 1 (base case)
A6: Count | H6: 0 | I6: =H6+1 -> 1 | J6: 2 | K6: 3 | L6: 4 | M6: 5 | N6: 6 | O6: 7 | P6: 8 | Q6: 9 | R6: 10 | S6: 11 | T6: 12 | U6: 13 | V6: 14 | W6: 15 | X6: 16 | Y6: 17 | Z6: 18 | AA6: 19 | AB6: 20 | AC6: 21 | AD6: 22 | AE6: 23 | AF6: 24 | AG6: 25
A7: Value of CO2 reductions | G7: $/MWh | I7: =IF(ISBLANK(Assumptions!K90), H7,Assumptions!K90*thous_conv) -> 24.7304868 | J7: =IF(ISBLANK(Assumptions!L90), I7,Assumptions!L90*thous_conv) -> 22.34074009 | K7: =IF(ISBLANK(Assumptions!M90), J7,Assumptions!M90*thous_conv) -> 20.19632912 | L7: =IF(ISBLANK(Assumptions!N90), K7,Assumptions!N90*thous_conv) -> 18.06294208 | M7: =IF(ISBLANK(Assumptions!O90), L7,Assumptions!O90*thous_conv) -> 15.91339762 | N7: =IF(ISBLANK(Assumptions!P90), M7,Assumptions!P90*thous_conv) -> 13.71506943 | O7: =IF(ISBLANK(Assumptions!Q90), N7,Assumptions!Q90*thous_conv) -> 13.71506943 | P7: =IF(ISBLANK(Assumptions!R90), O7,Assumptions!R90*thous_conv) -> 13.71506943 | Q7: =IF(ISBLANK(Assumptions!S90), P7,Assumptions!S90*thous_conv) -> 13.71506943 | R7: =IF(ISBLANK(Assumptions!T90), Q7,Assumptions!T90*thous_conv) -> 13.71506943 | S7: =IF(ISBLANK(Assumptions!U90), R7,Assumptions!U90*thous_conv) -> 13.71506943 | T7: =IF(ISBLANK(Assumptions!V90), S7,Assumptions!V90*thous_conv) -> 13.71506943 | U7: =IF(ISBLANK(Assumptions!W90), T7,Assumptions!W90*thous_conv) -> 13.71506943 | V7: =IF(ISBLANK(Assumptions!X90), U7,Assumptions!X90*thous_conv) -> 13.71506943 | W7: =IF(ISBLANK(Assumptions!Y90), V7,Assumptions!Y90*thous_conv) -> 13.71506943 | X7: =IF(ISBLANK(Assumptions!Z90), W7,Assumptions!Z90*thous_conv) -> 13.71506943 | Y7: =IF(ISBLANK(Assumptions!AA90), X7,Assumptions!AA90*thous_conv) -> 13.71506943 | Z7: =IF(ISBLANK(Assumptions!AB90), Y7,Assumptions!AB90*thous_conv) -> 13.71506943 | AA7: =IF(ISBLANK(Assumptions!AC90), Z7,Assumptions!AC90*thous_conv) -> 13.71506943 | AB7: =IF(ISBLANK(Assumptions!AD90), AA7,Assumptions!AD90*thous_conv) -> 13.71506943 | AC7: =IF(ISBLANK(Assumptions!AE90), AB7,Assumptions!AE90*thous_conv) -> 13.71506943 | AD7: =IF(ISBLANK(Assumptions!AF90), AC7,Assumptions!AF90*thous_conv) -> 13.71506943 | AE7: =IF(ISBLANK(Assumptions!AG90), AD7,Assumptions!AG90*thous_conv) -> 13.71506943 | AF7: =IF(ISBLANK(Assumptions!AH90), AE7,Assumptions!AH90*thous_conv) -> 13.71506943 | AG7: =IF(ISBLANK(Assumptions!AI90), AF7,Assumptions!AI90*thous_conv) -> 13.71506943
G9: Units | H9: =DATE(LEFT(I9,4), 6,30) -> 2026-06-30 | I9: 2026-27 | J9: =LEFT(I9,4)+1&"-"&RIGHT(I9,2)+1 -> 2027-28 | K9: 2028-29 | L9: 2029-30 | M9: 2030-31 | N9: 2031-32 | O9: 2032-33 | P9: 2033-34 | Q9: 2034-35 | R9: 2035-36 | S9: 2036-37 | T9: 2037-38 | U9: 2038-39 | V9: 2039-40 | W9: 2040-41 | X9: 2041-42 | Y9: 2042-43 | Z9: 2043-44 | AA9: 2044-45 | AB9: 2045-46 | AC9: 2046-47 | AD9: 2047-48 | AE9: 2048-49 | AF9: 2049-50 | AG9: 2050-51
A11: INVESTMENT & OPERATING COST
C13: Capex | E13: Asset life (yrs)
C14: < Enter description > | E14: 0 | G14: =input_dollars -> 2023-12-31 | I14: 0 | J14: 0 | K14: 0 | L14: 0 | M14: 0 | N14: 0 | O14: 0 | P14: 0 | Q14: 0 | R14: 0 | S14: 0 | T14: 0 | U14: 0 | V14: 0 | W14: 0 | X14: 0 | Y14: 0 | Z14: 0 | AA14: 0 | AB14: 0 | AC14: 0 | AD14: 0 | AE14: 0 | AF14: 0 | AG14: 0
C15: < Enter description > | E15: 0 | G15: =input_dollars -> 2023-12-31 | I15: 0 | J15: 0 | K15: 0 | L15: 0 | M15: 0 | N15: 0 | O15: 0 | P15: 0 | Q15: 0 | R15: 0 | S15: 0 | T15: 0 | U15: 0 | V15: 0 | W15: 0 | X15: 0 | Y15: 0 | Z15: 0 | AA15: 0 | AB15: 0 | AC15: 0 | AD15: 0 | AE15: 0 | AF15: 0 | AG15: 0
C16: < Enter description > | E16: 0 | G16: =input_dollars -> 2023-12-31 | I16: 0 | J16: 0 | K16: 0 | L16: 0 | M16: 0 | N16: 0 | O16: 0 | P16: 0 | Q16: 0 | R16: 0 | S16: 0 | T16: 0 | U16: 0 | V16: 0 | W16: 0 | X16: 0 | Y16: 0 | Z16: 0 | AA16: 0 | AB16: 0 | AC16: 0 | AD16: 0 | AE16: 0 | AF16: 0 | AG16: 0
C17: Capital expenditure | G17: =input_dollars -> 2023-12-31 | I17: =SUM(I14:I16) -> 0 | J17: 0 | K17: 0 | L17: 0 | M17: 0 | N17: 0 | O17: 0 | P17: 0 | Q17: 0 | R17: 0 | S17: 0 | T17: 0 | U17: 0 | V17: 0 | W17: 0 | X17: 0 | Y17: 0 | Z17: 0 | AA17: 0 | AB17: 0 | AC17: =SUM(AC14:AC16) -> 0 | AD17: =SUM(AD14:AD16) -> 0 | AE17: =SUM(AE14:AE16) -> 0 | AF17: =SUM(AF14:AF16) -> 0 | AG17: =SUM(AG14:AG16) -> 0
C19: Operating expenditure | G19: =input_dollars -> 2023-12-31 | I19: 0 | J19: 0 | K19: 0 | L19: 0 | M19: 0 | N19: 0 | O19: 0 | P19: 0 | Q19: 0 | R19: 0 | S19: 0 | T19: 0 | U19: 0 | V19: 0 | W19: 0 | X19: 0 | Y19: 0 | Z19: 0 | AA19: 0 | AB19: 0 | AC19: 0 | AD19: 0 | AE19: 0 | AF19: 0 | AG19: 0
A22: RISK ASSUMPTIONS
C24: PoF (major) | I24: 0 | J24: 0 | K24: 0 | L24: 0 | M24: 0 | N24: 0 | O24: 0 | P24: 0 | Q24: 0 | R24: 0 | S24: 0 | T24: 0 | U24: 0 | V24: 0 | W24: 0 | X24: 0 | Y24: 0 | Z24: 0 | AA24: 0 | AB24: 0 | AC24: 0 | AD24: 0 | AE24: 0 | AF24: 0 | AG24: 0
C25: PoF (reparable) | I25: 0 | J25: 0 | K25: 0 | L25: 0 | M25: 0 | N25: 0 | O25: 0 | P25: 0 | Q25: 0 | R25: 0 | S25: 0 | T25: 0 | U25: 0 | V25: 0 | W25: 0 | X25: 0 | Y25: 0 | Z25: 0 | AA25: 0 | AB25: 0 | AC25: 0 | AD25: 0 | AE25: 0 | AF25: 0 | AG25: 0
C27: Energy at risk (weighted) | G27: MWh | I27: 0 | J27: 0 | K27: 0 | L27: 0 | M27: 0 | N27: 0 | O27: 0 | P27: 0 | Q27: 0 | R27: 0 | S27: 0 | T27: 0 | U27: 0 | V27: 0 | W27: 0 | X27: 0 | Y27: 0 | Z27: 0 | AA27: 0 | AB27: 0 | AC27: 0 | AD27: 0 | AE27: 0 | AF27: 0 | AG27: 0
C28: Energy at risk value | D28: $/MWh | E28: =Assumptions!H41*vcr_esc -> 44330.65115 | F28: =IF(AND(SUM(I27:AG27)<>0, E28=0), "!", "") ->  | G28: =input_dollars -> 2023-12-31 | I28: =Workings_risks!E28 -> 569702.8583 | J28: =Workings_risks!F28 -> 584295.4116 | K28: =Workings_risks!G28 -> 597160.4076 | L28: =Workings_risks!H28 -> 608980.4018 | M28: =Workings_risks!I28 -> 619880.9247 | N28: =Workings_risks!J28 -> 632395.9591 | O28: =Workings_risks!K28 -> 650090.2234 | P28: =Workings_risks!L28 -> 668624.0298 | Q28: =Workings_risks!M28 -> 681284.5634 | R28: =Workings_risks!N28 -> 685518.8157 | S28: =Workings_risks!O28 -> 690179.5831 | T28: =Workings_risks!P28 -> 695321.6621 | U28: =Workings_risks!Q28 -> 701011.8769 | V28: =Workings_risks!R28 -> 707333.5869 | W28: =Workings_risks!S28 -> 714393.318 | X28: =Workings_risks!T28 -> 722330.5756 | Y28: =Workings_risks!U28 -> 731332.4434 | Z28: =Workings_risks!V28 -> 741655.3797 | AA28: =Workings_risks!W28 -> 751461.9415 | AB28: =Workings_risks!X28 -> 761913.361 | AC28: =Workings_risks!Y28 -> 773408.9417 | AD28: =Workings_risks!Z28 -> 786066.7256 | AE28: =Workings_risks!AA28 -> 799878.2242 | AF28: =Workings_risks!AB28 -> 814853.0754 | AG28: =Workings_risks!AC28 -> 831286.7317
C30: =Workings_risks!D29 -> Safety risk | D30: (after DF) | G30: =input_dollars -> 2023-12-31 | I30: =Workings_risks!E29 -> 1751.436968 | J30: =Workings_risks!F29 -> 1831.844753 | K30: =Workings_risks!G29 -> 1923.856861 | L30: =Workings_risks!H29 -> 2025.770896 | M30: =Workings_risks!I29 -> 2216.356586 | N30: =Workings_risks!J29 -> 2459.200142 | O30: =Workings_risks!K29 -> 2798.263761 | P30: =Workings_risks!L29 -> 3264.515623 | Q30: =Workings_risks!M29 -> 3891.282531 | R30: =Workings_risks!N29 -> 4749.192303 | S30: =Workings_risks!O29 -> 5940.113409 | T30: =Workings_risks!P29 -> 7625.556696 | U30: =Workings_risks!Q29 -> 10029.42506 | V30: =Workings_risks!R29 -> 13481.94571 | W30: =Workings_risks!S29 -> 18482.31742 | X30: =Workings_risks!T29 -> 25774.93247 | Y30: =Workings_risks!U29 -> 36471.68291 | Z30: =Workings_risks!V29 -> 52235.87652 | AA30: =Workings_risks!W29 -> 58134.99531 | AB30: =Workings_risks!X29 -> 62831.40843 | AC30: =Workings_risks!Y29 -> 68271.83388 | AD30: =Workings_risks!Z29 -> 75845.10932 | AE30: =Workings_risks!AA29 -> 82170.50698 | AF30: =Workings_risks!AB29 -> 84113.86752 | AG30: =Workings_risks!AC29 -> 86678.39921
C31: =Workings_risks!D30 -> Unplanned replacement | G31: =input_dollars -> 2023-12-31 | I31: =Workings_risks!E30 -> 46247.31899 | J31: =Workings_risks!F30 -> 48306.07978 | K31: =Workings_risks!G30 -> 50558.40941 | L31: =Workings_risks!H30 -> 53020.10074 | M31: =Workings_risks!I30 -> 55787.828 | N31: =Workings_risks!J30 -> 58846.76191 | O31: =Workings_risks!K30 -> 62273.13198 | P31: =Workings_risks!L30 -> 66126.19671 | Q31: =Workings_risks!M30 -> 70464.33237 | R31: =Workings_risks!N30 -> 75390.5644 | S31: =Workings_risks!O30 -> 81044.92608 | T31: =Workings_risks!P30 -> 87637.2474 | U31: =Workings_risks!Q30 -> 95441.61666 | V31: =Workings_risks!R30 -> 104846.018 | W31: =Workings_risks!S30 -> 116421.2268 | X31: =Workings_risks!T30 -> 130998.997 | Y31: =Workings_risks!U30 -> 149800.4069 | Z31: =Workings_risks!V30 -> 174628.8065 | AA31: =Workings_risks!W30 -> 191022.096 | AB31: =Workings_risks!X30 -> 207525.593 | AC31: =Workings_risks!Y30 -> 225563.2858 | AD31: =Workings_risks!Z30 -> 247468.0107 | AE31: =Workings_risks!AA30 -> 268855.9249 | AF31: =Workings_risks!AB30 -> 285678.3698 | AG31: =Workings_risks!AC30 -> 304685.0649
C32: =Workings_risks!D31 -> Unplanned fault | D32: (after DF) | G32: =input_dollars -> 2023-12-31 | I32: =Workings_risks!E31 -> 508 | J32: =Workings_risks!F31 -> 508 | K32: =Workings_risks!G31 -> 508 | L32: =Workings_risks!H31 -> 508 | M32: =Workings_risks!I31 -> 508 | N32: =Workings_risks!J31 -> 508 | O32: =Workings_risks!K31 -> 508 | P32: =Workings_risks!L31 -> 508 | Q32: =Workings_risks!M31 -> 508 | R32: =Workings_risks!N31 -> 508 | S32: =Workings_risks!O31 -> 508 | T32: =Workings_risks!P31 -> 508 | U32: =Workings_risks!Q31 -> 508 | V32: =Workings_risks!R31 -> 508 | W32: =Workings_risks!S31 -> 508 | X32: =Workings_risks!T31 -> 508 | Y32: =Workings_risks!U31 -> 508 | Z32: =Workings_risks!V31 -> 508 | AA32: =Workings_risks!W31 -> 508 | AB32: =Workings_risks!X31 -> 508 | AC32: =Workings_risks!Y31 -> 508 | AD32: =Workings_risks!Z31 -> 508 | AE32: =Workings_risks!AA31 -> 508 | AF32: =Workings_risks!AB31 -> 508 | AG32: =Workings_risks!AC31 -> 508
C33: =Workings_risks!D32 -> Environmental risk | G33: =input_dollars -> 2023-12-31 | I33: =Workings_risks!E32 -> 160.5056802 | J33: =Workings_risks!F32 -> 168.8105915 | K33: =Workings_risks!G32 -> 178.4725895 | L33: =Workings_risks!H32 -> 189.2251303 | M33: =Workings_risks!I32 -> 212.1287516 | N33: =Workings_risks!J32 -> 242.0251454 | O33: =Workings_risks!K32 -> 285.071896 | P33: =Workings_risks!L32 -> 345.5911637 | Q33: =Workings_risks!M32 -> 428.2320895 | R33: =Workings_risks!N32 -> 542.893423 | S33: =Workings_risks!O32 -> 703.868024 | T33: =Workings_risks!P32 -> 933.8433129 | U33: =Workings_risks!Q32 -> 1264.284893 | V33: =Workings_risks!R32 -> 1741.623032 | W33: =Workings_risks!S32 -> 2436.074357 | X33: =Workings_risks!T32 -> 3452.372884 | Y33: =Workings_risks!U32 -> 4946.990613 | Z33: =Workings_risks!V32 -> 7154.032944 | AA33: =Workings_risks!W32 -> 7971.038969 | AB33: =Workings_risks!X32 -> 8617.497373 | AC33: =Workings_risks!Y32 -> 9367.277253 | AD33: =Workings_risks!Z32 -> 10415.95688 | AE33: =Workings_risks!AA32 -> 11287.03939 | AF33: =Workings_risks!AB32 -> 11538.75456 | AG33: =Workings_risks!AC32 -> 11875.86055
C34: < Other risk - enter description > | G34: =input_dollars -> 2023-12-31
C36: Total risk cost | I36: =SUM(I28:I34) -> 618370.1199 | J36: =SUM(J28:J34) -> 635110.1467 | K36: 650329.1465 | L36: 664723.4986 | M36: 678605.2381 | N36: 694451.9463 | O36: 715954.6911 | P36: 738868.3333 | Q36: 756576.4104 | R36: 766709.4658 | S36: 778376.4906 | T36: 792026.3096 | U36: 808255.2035 | V36: 827911.1737 | W36: 852240.9365 | X36: 883064.8779 | Y36: 923059.5238 | Z36: 976182.0957 | AA36: 1009098.072 | AB36: 1041395.86 | AC36: =SUM(AC28:AC34) -> 1077119.339 | AD36: =SUM(AD28:AD34) -> 1120303.802 | AE36: =SUM(AE28:AE34) -> 1162699.696 | AF36: =SUM(AF28:AF34) -> 1196692.067 | AG36: =SUM(AG28:AG34) -> 1235034.056
A38: OTHER BENEFITS
C41: Reduction in CO2 emissions | G41: MWh | I41: 0 | J41: 0 | K41: 0 | L41: 0 | M41: 0 | N41: 0 | O41: 0 | P41: 0 | Q41: 0 | R41: 0 | S41: 0 | T41: 0 | U41: 0 | V41: 0 | W41: 0 | X41: 0 | Y41: 0 | Z41: 0 | AA41: 0 | AB41: 0 | AC41: 0 | AD41: 0 | AE41: 0 | AF41: 0 | AG41: 0
C42: Value of reduction in CO2 emissions | G42: $ | I42: =I41*I7 -> 0 | J42: 0 | K42: 0 | L42: 0 | M42: 0 | N42: 0 | O42: 0 | P42: 0 | Q42: 0 | R42: 0 | S42: 0 | T42: 0 | U42: 0 | V42: 0 | W42: 0 | X42: 0 | Y42: 0 | Z42: 0 | AA42: 0 | AB42: 0 | AC42: 0 | AD42: 0 | AE42: 0 | AF42: 0 | AG42: 0
C45: Reliability in worst-served areas | D45: $/MWh | E45: =Assumptions!G94 -> 0 | G45: MWh | I45: 0 | J45: 0 | K45: 0 | L45: 0 | M45: 0 | N45: 0 | O45: 0 | P45: 0 | Q45: 0 | R45: 0 | S45: 0 | T45: 0 | U45: 0 | V45: 0 | W45: 0 | X45: 0 | Y45: 0 | Z45: 0 | AA45: 0 | AB45: 0 | AC45: 0 | AD45: 0 | AE45: 0 | AF45: 0 | AG45: 0
C46: Network resilience | D46: $/MWh | E46: =Assumptions!G95 -> 0 | G46: MWh | I46: 0 | J46: 0 | K46: 0 | L46: 0 | M46: 0 | N46: 0 | O46: 0 | P46: 0 | Q46: 0 | R46: 0 | S46: 0 | T46: 0 | U46: 0 | V46: 0 | W46: 0 | X46: 0 | Y46: 0 | Z46: 0 | AA46: 0 | AB46: 0 | AC46: 0 | AD46: 0 | AE46: 0 | AF46: 0 | AG46: 0
C47: Enabling solar exports | D47: $/MWh | E47: =Assumptions!G96 -> 4220.99537 | G47: MWh | I47: 0 | J47: 0 | K47: 0 | L47: 0 | M47: 0 | N47: 0 | O47: 0 | P47: 0 | Q47: 0 | R47: 0 | S47: 0 | T47: 0 | U47: 0 | V47: 0 | W47: 0 | X47: 0 | Y47: 0 | Z47: 0 | AA47: 0 | AB47: 0 | AC47: 0 | AD47: 0 | AE47: 0 | AF47: 0 | AG47: 0
C48: Aesthetics | D48: $/customer | E48: =Assumptions!G97 -> 0 | G48: customers | I48: 0 | J48: 0 | K48: 0 | L48: 0 | M48: 0 | N48: 0 | O48: 0 | P48: 0 | Q48: 0 | R48: 0 | S48: 0 | T48: 0 | U48: 0 | V48: 0 | W48: 0 | X48: 0 | Y48: 0 | Z48: 0 | AA48: 0 | AB48: 0 | AC48: 0 | AD48: 0 | AE48: 0 | AF48: 0 | AG48: 0
C49: Customer value of time (res) | D49: $/customer min | E49: =Assumptions!G98 -> 0.5476938068 | G49: mins | I49: 0 | J49: 0 | K49: 0 | L49: 0 | M49: 0 | N49: 0 | O49: 0 | P49: 0 | Q49: 0 | R49: 0 | S49: 0 | T49: 0 | U49: 0 | V49: 0 | W49: 0 | X49: 0 | Y49: 0 | Z49: 0 | AA49: 0 | AB49: 0 | AC49: 0 | AD49: 0 | AE49: 0 | AF49: 0 | AG49: 0
C50: Customer value of time (bus) | D50: $/customer min | E50: =Assumptions!G99 -> 0.5476938068 | G50: mins | I50: 0 | J50: 0 | K50: 0 | L50: 0 | M50: 0 | N50: 0 | O50: 0 | P50: 0 | Q50: 0 | R50: 0 | S50: 0 | T50: 0 | U50: 0 | V50: 0 | W50: 0 | X50: 0 | Y50: 0 | Z50: 0 | AA50: 0 | AB50: 0 | AC50: 0 | AD50: 0 | AE50: 0 | AF50: 0 | AG50: 0
C51: Communication | D51: $/customer | E51: =Assumptions!G100 -> 0 | G51: customers | I51: 0 | J51: 0 | K51: 0 | L51: 0 | M51: 0 | N51: 0 | O51: 0 | P51: 0 | Q51: 0 | R51: 0 | S51: 0 | T51: 0 | U51: 0 | V51: 0 | W51: 0 | X51: 0 | Y51: 0 | Z51: 0 | AA51: 0 | AB51: 0 | AC51: 0 | AD51: 0 | AE51: 0 | AF51: 0 | AG51: 0
C52: Information accessibility | D52: $/customer | E52: =Assumptions!G101 -> 0 | G52: customers | I52: 0 | J52: 0 | K52: 0 | L52: 0 | M52: 0 | N52: 0 | O52: 0 | P52: 0 | Q52: 0 | R52: 0 | S52: 0 | T52: 0 | U52: 0 | V52: 0 | W52: 0 | X52: 0 | Y52: 0 | Z52: 0 | AA52: 0 | AB52: 0 | AC52: 0 | AD52: 0 | AE52: 0 | AF52: 0 | AG52: 0
C54: Other benefits 1 | G54: =input_dollars -> 2023-12-31 | I54: 0 | J54: 0 | K54: 0 | L54: 0 | M54: 0 | N54: 0 | O54: 0 | P54: 0 | Q54: 0 | R54: 0 | S54: 0 | T54: 0 | U54: 0 | V54: 0 | W54: 0 | X54: 0 | Y54: 0 | Z54: 0 | AA54: 0 | AB54: 0 | AC54: 0 | AD54: 0 | AE54: 0 | AF54: 0 | AG54: 0
C55: Other benefits 2 | G55: =input_dollars -> 2023-12-31 | I55: 0 | J55: 0 | K55: 0 | L55: 0 | M55: 0 | N55: 0 | O55: 0 | P55: 0 | Q55: 0 | R55: 0 | S55: 0 | T55: 0 | U55: 0 | V55: 0 | W55: 0 | X55: 0 | Y55: 0 | Z55: 0 | AA55: 0 | AB55: 0 | AC55: 0 | AD55: 0 | AE55: 0 | AF55: 0 | AG55: 0
C57: Total other benefits | G57: =input_dollars -> 2023-12-31 | I57: =SUMPRODUCT((I$45:I$52)*($E$45:$E$52))+SUM(I54:I55)+I42 -> 0 | J57: =SUMPRODUCT((J$45:J$52)*($E$45:$E$52))+SUM(J54:J55)+J42 -> 0 | K57: =SUMPRODUCT((K$45:K$52)*($E$45:$E$52))+SUM(K54:K55)+K42 -> 0 | L57: =SUMPRODUCT((L$45:L$52)*($E$45:$E$52))+SUM(L54:L55)+L42 -> 0 | M57: =SUMPRODUCT((M$45:M$52)*($E$45:$E$52))+SUM(M54:M55)+M42 -> 0 | N57: =SUMPRODUCT((N$45:N$52)*($E$45:$E$52))+SUM(N54:N55)+N42 -> 0 | O57: =SUMPRODUCT((O$45:O$52)*($E$45:$E$52))+SUM(O54:O55)+O42 -> 0 | P57: =SUMPRODUCT((P$45:P$52)*($E$45:$E$52))+SUM(P54:P55)+P42 -> 0 | Q57: =SUMPRODUCT((Q$45:Q$52)*($E$45:$E$52))+SUM(Q54:Q55)+Q42 -> 0 | R57: =SUMPRODUCT((R$45:R$52)*($E$45:$E$52))+SUM(R54:R55)+R42 -> 0 | S57: =SUMPRODUCT((S$45:S$52)*($E$45:$E$52))+SUM(S54:S55)+S42 -> 0 | T57: =SUMPRODUCT((T$45:T$52)*($E$45:$E$52))+SUM(T54:T55)+T42 -> 0 | U57: =SUMPRODUCT((U$45:U$52)*($E$45:$E$52))+SUM(U54:U55)+U42 -> 0 | V57: =SUMPRODUCT((V$45:V$52)*($E$45:$E$52))+SUM(V54:V55)+V42 -> 0 | W57: =SUMPRODUCT((W$45:W$52)*($E$45:$E$52))+SUM(W54:W55)+W42 -> 0 | X57: =SUMPRODUCT((X$45:X$52)*($E$45:$E$52))+SUM(X54:X55)+X42 -> 0 | Y57: =SUMPRODUCT((Y$45:Y$52)*($E$45:$E$52))+SUM(Y54:Y55)+Y42 -> 0 | Z57: =SUMPRODUCT((Z$45:Z$52)*($E$45:$E$52))+SUM(Z54:Z55)+Z42 -> 0 | AA57: =SUMPRODUCT((AA$45:AA$52)*($E$45:$E$52))+SUM(AA54:AA55)+AA42 -> 0 | AB57: =SUMPRODUCT((AB$45:AB$52)*($E$45:$E$52))+SUM(AB54:AB55)+AB42 -> 0 | AC57: =SUMPRODUCT((AC$45:AC$52)*($E$45:$E$52))+SUM(AC54:AC55)+AC42 -> 0 | AD57: =SUMPRODUCT((AD$45:AD$52)*($E$45:$E$52))+SUM(AD54:AD55)+AD42 -> 0 | AE57: =SUMPRODUCT((AE$45:AE$52)*($E$45:$E$52))+SUM(AE54:AE55)+AE42 -> 0 | AF57: =SUMPRODUCT((AF$45:AF$52)*($E$45:$E$52))+SUM(AF54:AF55)+AF42 -> 0 | AG57: =SUMPRODUCT((AG$45:AG$52)*($E$45:$E$52))+SUM(AG54:AG55)+AG42 -> 0
A60: SUMMARY
C64: Risks mitigated vs base case | G64: =input_dollars -> 2023-12-31
C66: Capital expenditure
C67: =C14 -> < Enter description > | G67: =input_dollars -> 2023-12-31 | I67: =-I14 -> 0 | J67: 0 | K67: 0 | L67: 0 | M67: 0 | N67: 0 | O67: 0 | P67: 0 | Q67: 0 | R67: 0 | S67: 0 | T67: 0 | U67: 0 | V67: 0 | W67: 0 | X67: 0 | Y67: 0 | Z67: 0 | AA67: 0 | AB67: 0 | AC67: 0 | AD67: 0 | AE67: 0 | AF67: 0 | AG67: 0
C68: =C15 -> < Enter description > | G68: =input_dollars -> 2023-12-31 | I68: =-I15 -> 0 | J68: 0 | K68: 0 | L68: 0 | M68: 0 | N68: 0 | O68: 0 | P68: 0 | Q68: 0 | R68: 0 | S68: 0 | T68: 0 | U68: 0 | V68: 0 | W68: 0 | X68: 0 | Y68: 0 | Z68: 0 | AA68: 0 | AB68: 0 | AC68: 0 | AD68: 0 | AE68: 0 | AF68: 0 | AG68: 0
C69: =C16 -> < Enter description > | G69: =input_dollars -> 2023-12-31 | I69: =-I16 -> 0 | J69: 0 | K69: 0 | L69: 0 | M69: 0 | N69: 0 | O69: 0 | P69: 0 | Q69: 0 | R69: 0 | S69: 0 | T69: 0 | U69: 0 | V69: 0 | W69: 0 | X69: 0 | Y69: 0 | Z69: 0 | AA69: 0 | AB69: 0 | AC69: 0 | AD69: 0 | AE69: 0 | AF69: 0 | AG69: 0
C71: Cumulative capex
C72: =C14 -> < Enter description > | G72: =input_dollars -> 2023-12-31 | I72: =SUMPRODUCT(($I67:I67))-SUMPRODUCT(($I67:I67)*($I$6:I$6<=(I$6-$E14))) -> 0 | J72: =SUMPRODUCT(($I67:J67))-SUMPRODUCT(($I67:J67)*($I$6:J$6<=(J$6-$E14))) -> 0 | K72: =SUMPRODUCT(($I67:K67))-SUMPRODUCT(($I67:K67)*($I$6:K$6<=(K$6-$E14))) -> 0 | L72: =SUMPRODUCT(($I67:L67))-SUMPRODUCT(($I67:L67)*($I$6:L$6<=(L$6-$E14))) -> 0 | M72: =SUMPRODUCT(($I67:M67))-SUMPRODUCT(($I67:M67)*($I$6:M$6<=(M$6-$E14))) -> 0 | N72: =SUMPRODUCT(($I67:N67))-SUMPRODUCT(($I67:N67)*($I$6:N$6<=(N$6-$E14))) -> 0 | O72: =SUMPRODUCT(($I67:O67))-SUMPRODUCT(($I67:O67)*($I$6:O$6<=(O$6-$E14))) -> 0 | P72: =SUMPRODUCT(($I67:P67))-SUMPRODUCT(($I67:P67)*($I$6:P$6<=(P$6-$E14))) -> 0 | Q72: =SUMPRODUCT(($I67:Q67))-SUMPRODUCT(($I67:Q67)*($I$6:Q$6<=(Q$6-$E14))) -> 0 | R72: =SUMPRODUCT(($I67:R67))-SUMPRODUCT(($I67:R67)*($I$6:R$6<=(R$6-$E14))) -> 0 | S72: =SUMPRODUCT(($I67:S67))-SUMPRODUCT(($I67:S67)*($I$6:S$6<=(S$6-$E14))) -> 0 | T72: =SUMPRODUCT(($I67:T67))-SUMPRODUCT(($I67:T67)*($I$6:T$6<=(T$6-$E14))) -> 0 | U72: =SUMPRODUCT(($I67:U67))-SUMPRODUCT(($I67:U67)*($I$6:U$6<=(U$6-$E14))) -> 0 | V72: =SUMPRODUCT(($I67:V67))-SUMPRODUCT(($I67:V67)*($I$6:V$6<=(V$6-$E14))) -> 0 | W72: =SUMPRODUCT(($I67:W67))-SUMPRODUCT(($I67:W67)*($I$6:W$6<=(W$6-$E14))) -> 0 | X72: =SUMPRODUCT(($I67:X67))-SUMPRODUCT(($I67:X67)*($I$6:X$6<=(X$6-$E14))) -> 0 | Y72: =SUMPRODUCT(($I67:Y67))-SUMPRODUCT(($I67:Y67)*($I$6:Y$6<=(Y$6-$E14))) -> 0 | Z72: =SUMPRODUCT(($I67:Z67))-SUMPRODUCT(($I67:Z67)*($I$6:Z$6<=(Z$6-$E14))) -> 0 | AA72: =SUMPRODUCT(($I67:AA67))-SUMPRODUCT(($I67:AA67)*($I$6:AA$6<=(AA$6-$E14))) -> 0 | AB72: =SUMPRODUCT(($I67:AB67))-SUMPRODUCT(($I67:AB67)*($I$6:AB$6<=(AB$6-$E14))) -> 0 | AC72: =SUMPRODUCT(($I67:AC67))-SUMPRODUCT(($I67:AC67)*($I$6:AC$6<=(AC$6-$E14))) -> 0 | AD72: =SUMPRODUCT(($I67:AD67))-SUMPRODUCT(($I67:AD67)*($I$6:AD$6<=(AD$6-$E14))) -> 0 | AE72: =SUMPRODUCT(($I67:AE67))-SUMPRODUCT(($I67:AE67)*($I$6:AE$6<=(AE$6-$E14))) -> 0 | AF72: =SUMPRODUCT(($I67:AF67))-SUMPRODUCT(($I67:AF67)*($I$6:AF$6<=(AF$6-$E14))) -> 0 | AG72: =SUMPRODUCT(($I67:AG67))-SUMPRODUCT(($I67:AG67)*($I$6:AG$6<=(AG$6-$E14))) -> 0
C73: =C15 -> < Enter description > | G73: =input_dollars -> 2023-12-31 | I73: =SUMPRODUCT(($I68:I68))-SUMPRODUCT(($I68:I68)*($I$6:I$6<=(I$6-$E15))) -> 0 | J73: =SUMPRODUCT(($I68:J68))-SUMPRODUCT(($I68:J68)*($I$6:J$6<=(J$6-$E15))) -> 0 | K73: =SUMPRODUCT(($I68:K68))-SUMPRODUCT(($I68:K68)*($I$6:K$6<=(K$6-$E15))) -> 0 | L73: =SUMPRODUCT(($I68:L68))-SUMPRODUCT(($I68:L68)*($I$6:L$6<=(L$6-$E15))) -> 0 | M73: =SUMPRODUCT(($I68:M68))-SUMPRODUCT(($I68:M68)*($I$6:M$6<=(M$6-$E15))) -> 0 | N73: =SUMPRODUCT(($I68:N68))-SUMPRODUCT(($I68:N68)*($I$6:N$6<=(N$6-$E15))) -> 0 | O73: =SUMPRODUCT(($I68:O68))-SUMPRODUCT(($I68:O68)*($I$6:O$6<=(O$6-$E15))) -> 0 | P73: =SUMPRODUCT(($I68:P68))-SUMPRODUCT(($I68:P68)*($I$6:P$6<=(P$6-$E15))) -> 0 | Q73: =SUMPRODUCT(($I68:Q68))-SUMPRODUCT(($I68:Q68)*($I$6:Q$6<=(Q$6-$E15))) -> 0 | R73: =SUMPRODUCT(($I68:R68))-SUMPRODUCT(($I68:R68)*($I$6:R$6<=(R$6-$E15))) -> 0 | S73: =SUMPRODUCT(($I68:S68))-SUMPRODUCT(($I68:S68)*($I$6:S$6<=(S$6-$E15))) -> 0 | T73: =SUMPRODUCT(($I68:T68))-SUMPRODUCT(($I68:T68)*($I$6:T$6<=(T$6-$E15))) -> 0 | U73: =SUMPRODUCT(($I68:U68))-SUMPRODUCT(($I68:U68)*($I$6:U$6<=(U$6-$E15))) -> 0 | V73: =SUMPRODUCT(($I68:V68))-SUMPRODUCT(($I68:V68)*($I$6:V$6<=(V$6-$E15))) -> 0 | W73: =SUMPRODUCT(($I68:W68))-SUMPRODUCT(($I68:W68)*($I$6:W$6<=(W$6-$E15))) -> 0 | X73: =SUMPRODUCT(($I68:X68))-SUMPRODUCT(($I68:X68)*($I$6:X$6<=(X$6-$E15))) -> 0 | Y73: =SUMPRODUCT(($I68:Y68))-SUMPRODUCT(($I68:Y68)*($I$6:Y$6<=(Y$6-$E15))) -> 0 | Z73: =SUMPRODUCT(($I68:Z68))-SUMPRODUCT(($I68:Z68)*($I$6:Z$6<=(Z$6-$E15))) -> 0 | AA73: =SUMPRODUCT(($I68:AA68))-SUMPRODUCT(($I68:AA68)*($I$6:AA$6<=(AA$6-$E15))) -> 0 | AB73: =SUMPRODUCT(($I68:AB68))-SUMPRODUCT(($I68:AB68)*($I$6:AB$6<=(AB$6-$E15))) -> 0 | AC73: =SUMPRODUCT(($I68:AC68))-SUMPRODUCT(($I68:AC68)*($I$6:AC$6<=(AC$6-$E15))) -> 0 | AD73: =SUMPRODUCT(($I68:AD68))-SUMPRODUCT(($I68:AD68)*($I$6:AD$6<=(AD$6-$E15))) -> 0 | AE73: =SUMPRODUCT(($I68:AE68))-SUMPRODUCT(($I68:AE68)*($I$6:AE$6<=(AE$6-$E15))) -> 0 | AF73: =SUMPRODUCT(($I68:AF68))-SUMPRODUCT(($I68:AF68)*($I$6:AF$6<=(AF$6-$E15))) -> 0 | AG73: =SUMPRODUCT(($I68:AG68))-SUMPRODUCT(($I68:AG68)*($I$6:AG$6<=(AG$6-$E15))) -> 0
C74: =C16 -> < Enter description > | G74: =input_dollars -> 2023-12-31 | I74: =SUMPRODUCT(($I69:I69))-SUMPRODUCT(($I69:I69)*($I$6:I$6<=(I$6-$E16))) -> 0 | J74: =SUMPRODUCT(($I69:J69))-SUMPRODUCT(($I69:J69)*($I$6:J$6<=(J$6-$E16))) -> 0 | K74: =SUMPRODUCT(($I69:K69))-SUMPRODUCT(($I69:K69)*($I$6:K$6<=(K$6-$E16))) -> 0 | L74: =SUMPRODUCT(($I69:L69))-SUMPRODUCT(($I69:L69)*($I$6:L$6<=(L$6-$E16))) -> 0 | M74: =SUMPRODUCT(($I69:M69))-SUMPRODUCT(($I69:M69)*($I$6:M$6<=(M$6-$E16))) -> 0 | N74: =SUMPRODUCT(($I69:N69))-SUMPRODUCT(($I69:N69)*($I$6:N$6<=(N$6-$E16))) -> 0 | O74: =SUMPRODUCT(($I69:O69))-SUMPRODUCT(($I69:O69)*($I$6:O$6<=(O$6-$E16))) -> 0 | P74: =SUMPRODUCT(($I69:P69))-SUMPRODUCT(($I69:P69)*($I$6:P$6<=(P$6-$E16))) -> 0 | Q74: =SUMPRODUCT(($I69:Q69))-SUMPRODUCT(($I69:Q69)*($I$6:Q$6<=(Q$6-$E16))) -> 0 | R74: =SUMPRODUCT(($I69:R69))-SUMPRODUCT(($I69:R69)*($I$6:R$6<=(R$6-$E16))) -> 0 | S74: =SUMPRODUCT(($I69:S69))-SUMPRODUCT(($I69:S69)*($I$6:S$6<=(S$6-$E16))) -> 0 | T74: =SUMPRODUCT(($I69:T69))-SUMPRODUCT(($I69:T69)*($I$6:T$6<=(T$6-$E16))) -> 0 | U74: =SUMPRODUCT(($I69:U69))-SUMPRODUCT(($I69:U69)*($I$6:U$6<=(U$6-$E16))) -> 0 | V74: =SUMPRODUCT(($I69:V69))-SUMPRODUCT(($I69:V69)*($I$6:V$6<=(V$6-$E16))) -> 0 | W74: =SUMPRODUCT(($I69:W69))-SUMPRODUCT(($I69:W69)*($I$6:W$6<=(W$6-$E16))) -> 0 | X74: =SUMPRODUCT(($I69:X69))-SUMPRODUCT(($I69:X69)*($I$6:X$6<=(X$6-$E16))) -> 0 | Y74: =SUMPRODUCT(($I69:Y69))-SUMPRODUCT(($I69:Y69)*($I$6:Y$6<=(Y$6-$E16))) -> 0 | Z74: =SUMPRODUCT(($I69:Z69))-SUMPRODUCT(($I69:Z69)*($I$6:Z$6<=(Z$6-$E16))) -> 0 | AA74: =SUMPRODUCT(($I69:AA69))-SUMPRODUCT(($I69:AA69)*($I$6:AA$6<=(AA$6-$E16))) -> 0 | AB74: =SUMPRODUCT(($I69:AB69))-SUMPRODUCT(($I69:AB69)*($I$6:AB$6<=(AB$6-$E16))) -> 0 | AC74: =SUMPRODUCT(($I69:AC69))-SUMPRODUCT(($I69:AC69)*($I$6:AC$6<=(AC$6-$E16))) -> 0 | AD74: =SUMPRODUCT(($I69:AD69))-SUMPRODUCT(($I69:AD69)*($I$6:AD$6<=(AD$6-$E16))) -> 0 | AE74: =SUMPRODUCT(($I69:AE69))-SUMPRODUCT(($I69:AE69)*($I$6:AE$6<=(AE$6-$E16))) -> 0 | AF74: =SUMPRODUCT(($I69:AF69))-SUMPRODUCT(($I69:AF69)*($I$6:AF$6<=(AF$6-$E16))) -> 0 | AG74: =SUMPRODUCT(($I69:AG69))-SUMPRODUCT(($I69:AG69)*($I$6:AG$6<=(AG$6-$E16))) -> 0
C76: Annualised capex
C77: =$C$76&" - "&C14 -> Annualised capex - < Enter description > | G77: =input_dollars -> 2023-12-31 | I77: =IF($E14=0,0,-PMT(real_disc, $E14,H72,)) -> 0 | J77: 0 | K77: 0 | L77: 0 | M77: 0 | N77: 0 | O77: 0 | P77: 0 | Q77: 0 | R77: 0 | S77: 0 | T77: 0 | U77: 0 | V77: 0 | W77: 0 | X77: 0 | Y77: 0 | Z77: 0 | AA77: 0 | AB77: 0 | AC77: 0 | AD77: 0 | AE77: 0 | AF77: 0 | AG77: 0
C78: =$C$76&" - "&C15 -> Annualised capex - < Enter description > | G78: =input_dollars -> 2023-12-31 | I78: =IF($E15=0,0,-PMT(real_disc, $E15,H73,)) -> 0 | J78: 0 | K78: 0 | L78: 0 | M78: 0 | N78: 0 | O78: 0 | P78: 0 | Q78: 0 | R78: 0 | S78: 0 | T78: 0 | U78: 0 | V78: 0 | W78: 0 | X78: 0 | Y78: 0 | Z78: 0 | AA78: 0 | AB78: 0 | AC78: 0 | AD78: 0 | AE78: 0 | AF78: 0 | AG78: 0
C79: =$C$76&" - "&C16 -> Annualised capex - < Enter description > | G79: =input_dollars -> 2023-12-31 | I79: =IF($E16=0,0,-PMT(real_disc, $E16,H74,)) -> 0 | J79: 0 | K79: 0 | L79: 0 | M79: 0 | N79: 0 | O79: 0 | P79: 0 | Q79: 0 | R79: 0 | S79: 0 | T79: 0 | U79: 0 | V79: 0 | W79: 0 | X79: 0 | Y79: 0 | Z79: 0 | AA79: 0 | AB79: 0 | AC79: 0 | AD79: 0 | AE79: 0 | AF79: 0 | AG79: 0
C80: Total annualised capex | G80: =input_dollars -> 2023-12-31 | I80: =SUM(I77:I79) -> 0 | J80: =SUM(J77:J79) -> 0 | K80: 0 | L80: 0 | M80: 0 | N80: 0 | O80: 0 | P80: 0 | Q80: 0 | R80: 0 | S80: 0 | T80: 0 | U80: 0 | V80: 0 | W80: 0 | X80: 0 | Y80: 0 | Z80: 0 | AA80: 0 | AB80: 0 | AC80: =SUM(AC77:AC79) -> 0 | AD80: =SUM(AD77:AD79) -> 0 | AE80: =SUM(AE77:AE79) -> 0 | AF80: =SUM(AF77:AF79) -> 0 | AG80: =SUM(AG77:AG79) -> 0
C82: Annualised capex | G82: =input_dollars -> 2023-12-31 | I82: =I80 -> 0 | J82: =J80 -> 0 | K82: 0 | L82: 0 | M82: 0 | N82: 0 | O82: 0 | P82: 0 | Q82: 0 | R82: 0 | S82: 0 | T82: 0 | U82: 0 | V82: 0 | W82: 0 | X82: 0 | Y82: 0 | Z82: 0 | AA82: 0 | AB82: 0 | AC82: =AC80 -> 0 | AD82: =AD80 -> 0 | AE82: =AE80 -> 0 | AF82: =AF80 -> 0 | AG82: =AG80 -> 0
C83: Operating expenditure | G83: 2023-12-31 | I83: =-I19 -> 0 | J83: 0 | K83: 0 | L83: 0 | M83: 0 | N83: 0 | O83: 0 | P83: 0 | Q83: 0 | R83: 0 | S83: 0 | T83: 0 | U83: 0 | V83: 0 | W83: 0 | X83: 0 | Y83: 0 | Z83: 0 | AA83: 0 | AB83: 0 | AC83: 0 | AD83: 0 | AE83: 0 | AF83: 0 | AG83: 0
C84: Risk mitigated | G84: 2023-12-31 | I84: =I64 -> 0 | J84: =J64 -> 0 | K84: 0 | L84: 0 | M84: 0 | N84: 0 | O84: 0 | P84: 0 | Q84: 0 | R84: 0 | S84: 0 | T84: 0 | U84: 0 | V84: 0 | W84: 0 | X84: 0 | Y84: 0 | Z84: 0 | AA84: 0 | AB84: 0 | AC84: =AC64 -> 0 | AD84: =AD64 -> 0 | AE84: =AE64 -> 0 | AF84: =AF64 -> 0 | AG84: =AG64 -> 0
C85: Other benefits value | G85: 2023-12-31 | I85: =I57 -> 0 | J85: 0 | K85: 0 | L85: 0 | M85: 0 | N85: 0 | O85: 0 | P85: 0 | Q85: 0 | R85: 0 | S85: 0 | T85: 0 | U85: 0 | V85: 0 | W85: 0 | X85: 0 | Y85: 0 | Z85: 0 | AA85: 0 | AB85: 0 | AC85: 0 | AD85: 0 | AE85: 0 | AF85: 0 | AG85: 0
C87: Net benefits | G87: 2023-12-31 | I87: =SUM(I82:I86) -> 0 | J87: 0 | K87: 0 | L87: 0 | M87: 0 | N87: 0 | O87: 0 | P87: 0 | Q87: 0 | R87: 0 | S87: 0 | T87: 0 | U87: 0 | V87: 0 | W87: 0 | X87: 0 | Y87: 0 | Z87: 0 | AA87: 0 | AB87: 0 | AC87: =SUM(AC82:AC86) -> 0 | AD87: =SUM(AD82:AD86) -> 0 | AE87: =SUM(AE82:AE86) -> 0 | AF87: =SUM(AF82:AF86) -> 0 | AG87: =SUM(AG82:AG86) -> 0
A102: SENSITIVITIES
A106: NPV | C106: Net benefits | G106: =PROPER($A$3)&A106 -> Option 1 (Base Case)NPV | I106: =I87 -> 0 | J106: =J87 -> 0 | K106: 0 | L106: 0 | M106: 0 | N106: 0 | O106: 0 | P106: 0 | Q106: 0 | R106: 0 | S106: 0 | T106: 0 | U106: 0 | V106: 0 | W106: 0 | X106: 0 | Y106: 0 | Z106: 0 | AA106: 0 | AB106: 0 | AC106: 0 | AD106: 0 | AE106: 0 | AF106: 0 | AG106: 0
C107: Total annualised capex | I107: =I82 -> 0 | J107: =J82 -> 0 | K107: 0 | L107: 0 | M107: 0 | N107: 0 | O107: 0 | P107: 0 | Q107: 0 | R107: 0 | S107: 0 | T107: 0 | U107: 0 | V107: 0 | W107: 0 | X107: 0 | Y107: 0 | Z107: 0 | AA107: 0 | AB107: 0 | AC107: 0 | AD107: 0 | AE107: 0 | AF107: 0 | AG107: 0
C108: Total benefits | I108: =SUM(I84:I85) -> 0 | J108: =SUM(J84:J85) -> 0 | K108: 0 | L108: 0 | M108: 0 | N108: 0 | O108: 0 | P108: 0 | Q108: 0 | R108: 0 | S108: 0 | T108: 0 | U108: 0 | V108: 0 | W108: 0 | X108: 0 | Y108: 0 | Z108: 0 | AA108: 0 | AB108: 0 | AC108: 0 | AD108: 0 | AE108: 0 | AF108: 0 | AG108: 0
D109: =Assumptions!G110 -> Capex | E109: =Assumptions!H110 -> Total benefits
A110: ="sens"&Assumptions!B111 -> sens1 | C110: =Assumptions!C111 -> Capex 10% higher | D110: =Assumptions!G111 -> 0.1 | E110: =Assumptions!H111 -> 0 | G110: =PROPER($A$3)&A110 -> Option 1 (Base Case)sens1 | I110: =I$106+IF($C110<>0,SUMPRODUCT((I$107:I$108)*TRANSPOSE(($D110:$E110))),0) -> 0 | J110: =J$106+IF($C110<>0,SUMPRODUCT((J$107:J$108)*TRANSPOSE(($D110:$E110))),0) -> 0 | K110: =K$106+IF($C110<>0,SUMPRODUCT((K$107:K$108)*TRANSPOSE(($D110:$E110))),0) -> 0 | L110: =L$106+IF($C110<>0,SUMPRODUCT((L$107:L$108)*TRANSPOSE(($D110:$E110))),0) -> 0 | M110: =M$106+IF($C110<>0,SUMPRODUCT((M$107:M$108)*TRANSPOSE(($D110:$E110))),0) -> 0 | N110: =N$106+IF($C110<>0,SUMPRODUCT((N$107:N$108)*TRANSPOSE(($D110:$E110))),0) -> 0 | O110: =O$106+IF($C110<>0,SUMPRODUCT((O$107:O$108)*TRANSPOSE(($D110:$E110))),0) -> 0 | P110: =P$106+IF($C110<>0,SUMPRODUCT((P$107:P$108)*TRANSPOSE(($D110:$E110))),0) -> 0 | Q110: =Q$106+IF($C110<>0,SUMPRODUCT((Q$107:Q$108)*TRANSPOSE(($D110:$E110))),0) -> 0 | R110: =R$106+IF($C110<>0,SUMPRODUCT((R$107:R$108)*TRANSPOSE(($D110:$E110))),0) -> 0 | S110: =S$106+IF($C110<>0,SUMPRODUCT((S$107:S$108)*TRANSPOSE(($D110:$E110))),0) -> 0 | T110: =T$106+IF($C110<>0,SUMPRODUCT((T$107:T$108)*TRANSPOSE(($D110:$E110))),0) -> 0 | U110: =U$106+IF($C110<>0,SUMPRODUCT((U$107:U$108)*TRANSPOSE(($D110:$E110))),0) -> 0 | V110: =V$106+IF($C110<>0,SUMPRODUCT((V$107:V$108)*TRANSPOSE(($D110:$E110))),0) -> 0 | W110: =W$106+IF($C110<>0,SUMPRODUCT((W$107:W$108)*TRANSPOSE(($D110:$E110))),0) -> 0 | X110: =X$106+IF($C110<>0,SUMPRODUCT((X$107:X$108)*TRANSPOSE(($D110:$E110))),0) -> 0 | Y110: =Y$106+IF($C110<>0,SUMPRODUCT((Y$107:Y$108)*TRANSPOSE(($D110:$E110))),0) -> 0 | Z110: =Z$106+IF($C110<>0,SUMPRODUCT((Z$107:Z$108)*TRANSPOSE(($D110:$E110))),0) -> 0 | AA110: =AA$106+IF($C110<>0,SUMPRODUCT((AA$107:AA$108)*TRANSPOSE(($D110:$E110))),0) -> 0 | AB110: =AB$106+IF($C110<>0,SUMPRODUCT((AB$107:AB$108)*TRANSPOSE(($D110:$E110))),0) -> 0 | AC110: =AC$106+IF($C110<>0,SUMPRODUCT((AC$107:AC$108)*TRANSPOSE(($D110:$E110))),0) -> 0 | AD110: =AD$106+IF($C110<>0,SUMPRODUCT((AD$107:AD$108)*TRANSPOSE(($D110:$E110))),0) -> 0 | AE110: =AE$106+IF($C110<>0,SUMPRODUCT((AE$107:AE$108)*TRANSPOSE(($D110:$E110))),0) -> 0 | AF110: =AF$106+IF($C110<>0,SUMPRODUCT((AF$107:AF$108)*TRANSPOSE(($D110:$E110))),0) -> 0 | AG110: =AG$106+IF($C110<>0,SUMPRODUCT((AG$107:AG$108)*TRANSPOSE(($D110:$E110))),0) -> 0
A111: ="sens"&Assumptions!B112 -> sens2 | C111: =Assumptions!C112 -> Capex 10% lower | D111: =Assumptions!G112 -> -0.1 | E111: =Assumptions!H112 -> 0 | G111: =PROPER($A$3)&A111 -> Option 1 (Base Case)sens2 | I111: =I$106+IF($C111<>0,SUMPRODUCT((I$107:I$108)*TRANSPOSE(($D111:$E111))),0) -> 0 | J111: =J$106+IF($C111<>0,SUMPRODUCT((J$107:J$108)*TRANSPOSE(($D111:$E111))),0) -> 0 | K111: =K$106+IF($C111<>0,SUMPRODUCT((K$107:K$108)*TRANSPOSE(($D111:$E111))),0) -> 0 | L111: =L$106+IF($C111<>0,SUMPRODUCT((L$107:L$108)*TRANSPOSE(($D111:$E111))),0) -> 0 | M111: =M$106+IF($C111<>0,SUMPRODUCT((M$107:M$108)*TRANSPOSE(($D111:$E111))),0) -> 0 | N111: =N$106+IF($C111<>0,SUMPRODUCT((N$107:N$108)*TRANSPOSE(($D111:$E111))),0) -> 0 | O111: =O$106+IF($C111<>0,SUMPRODUCT((O$107:O$108)*TRANSPOSE(($D111:$E111))),0) -> 0 | P111: =P$106+IF($C111<>0,SUMPRODUCT((P$107:P$108)*TRANSPOSE(($D111:$E111))),0) -> 0 | Q111: =Q$106+IF($C111<>0,SUMPRODUCT((Q$107:Q$108)*TRANSPOSE(($D111:$E111))),0) -> 0 | R111: =R$106+IF($C111<>0,SUMPRODUCT((R$107:R$108)*TRANSPOSE(($D111:$E111))),0) -> 0 | S111: =S$106+IF($C111<>0,SUMPRODUCT((S$107:S$108)*TRANSPOSE(($D111:$E111))),0) -> 0 | T111: =T$106+IF($C111<>0,SUMPRODUCT((T$107:T$108)*TRANSPOSE(($D111:$E111))),0) -> 0 | U111: =U$106+IF($C111<>0,SUMPRODUCT((U$107:U$108)*TRANSPOSE(($D111:$E111))),0) -> 0 | V111: =V$106+IF($C111<>0,SUMPRODUCT((V$107:V$108)*TRANSPOSE(($D111:$E111))),0) -> 0 | W111: =W$106+IF($C111<>0,SUMPRODUCT((W$107:W$108)*TRANSPOSE(($D111:$E111))),0) -> 0 | X111: =X$106+IF($C111<>0,SUMPRODUCT((X$107:X$108)*TRANSPOSE(($D111:$E111))),0) -> 0 | Y111: =Y$106+IF($C111<>0,SUMPRODUCT((Y$107:Y$108)*TRANSPOSE(($D111:$E111))),0) -> 0 | Z111: =Z$106+IF($C111<>0,SUMPRODUCT((Z$107:Z$108)*TRANSPOSE(($D111:$E111))),0) -> 0 | AA111: =AA$106+IF($C111<>0,SUMPRODUCT((AA$107:AA$108)*TRANSPOSE(($D111:$E111))),0) -> 0 | AB111: =AB$106+IF($C111<>0,SUMPRODUCT((AB$107:AB$108)*TRANSPOSE(($D111:$E111))),0) -> 0 | AC111: =AC$106+IF($C111<>0,SUMPRODUCT((AC$107:AC$108)*TRANSPOSE(($D111:$E111))),0) -> 0 | AD111: =AD$106+IF($C111<>0,SUMPRODUCT((AD$107:AD$108)*TRANSPOSE(($D111:$E111))),0) -> 0 | AE111: =AE$106+IF($C111<>0,SUMPRODUCT((AE$107:AE$108)*TRANSPOSE(($D111:$E111))),0) -> 0 | AF111: =AF$106+IF($C111<>0,SUMPRODUCT((AF$107:AF$108)*TRANSPOSE(($D111:$E111))),0) -> 0 | AG111: =AG$106+IF($C111<>0,SUMPRODUCT((AG$107:AG$108)*TRANSPOSE(($D111:$E111))),0) -> 0
A112: ="sens"&Assumptions!B113 -> sens3 | C112: =Assumptions!C113 -> Total benefits 10% higher | D112: =Assumptions!G113 -> 0 | E112: =Assumptions!H113 -> 0.1 | G112: Option 1 (Base Case)sens3 | I112: =I$106+IF($C112<>0,SUMPRODUCT((I$107:I$108)*TRANSPOSE(($D112:$E112))),0) -> 0 | J112: =J$106+IF($C112<>0,SUMPRODUCT((J$107:J$108)*TRANSPOSE(($D112:$E112))),0) -> 0 | K112: =K$106+IF($C112<>0,SUMPRODUCT((K$107:K$108)*TRANSPOSE(($D112:$E112))),0) -> 0 | L112: =L$106+IF($C112<>0,SUMPRODUCT((L$107:L$108)*TRANSPOSE(($D112:$E112))),0) -> 0 | M112: =M$106+IF($C112<>0,SUMPRODUCT((M$107:M$108)*TRANSPOSE(($D112:$E112))),0) -> 0 | N112: =N$106+IF($C112<>0,SUMPRODUCT((N$107:N$108)*TRANSPOSE(($D112:$E112))),0) -> 0 | O112: =O$106+IF($C112<>0,SUMPRODUCT((O$107:O$108)*TRANSPOSE(($D112:$E112))),0) -> 0 | P112: =P$106+IF($C112<>0,SUMPRODUCT((P$107:P$108)*TRANSPOSE(($D112:$E112))),0) -> 0 | Q112: =Q$106+IF($C112<>0,SUMPRODUCT((Q$107:Q$108)*TRANSPOSE(($D112:$E112))),0) -> 0 | R112: =R$106+IF($C112<>0,SUMPRODUCT((R$107:R$108)*TRANSPOSE(($D112:$E112))),0) -> 0 | S112: =S$106+IF($C112<>0,SUMPRODUCT((S$107:S$108)*TRANSPOSE(($D112:$E112))),0) -> 0 | T112: =T$106+IF($C112<>0,SUMPRODUCT((T$107:T$108)*TRANSPOSE(($D112:$E112))),0) -> 0 | U112: =U$106+IF($C112<>0,SUMPRODUCT((U$107:U$108)*TRANSPOSE(($D112:$E112))),0) -> 0 | V112: =V$106+IF($C112<>0,SUMPRODUCT((V$107:V$108)*TRANSPOSE(($D112:$E112))),0) -> 0 | W112: =W$106+IF($C112<>0,SUMPRODUCT((W$107:W$108)*TRANSPOSE(($D112:$E112))),0) -> 0 | X112: =X$106+IF($C112<>0,SUMPRODUCT((X$107:X$108)*TRANSPOSE(($D112:$E112))),0) -> 0 | Y112: =Y$106+IF($C112<>0,SUMPRODUCT((Y$107:Y$108)*TRANSPOSE(($D112:$E112))),0) -> 0 | Z112: =Z$106+IF($C112<>0,SUMPRODUCT((Z$107:Z$108)*TRANSPOSE(($D112:$E112))),0) -> 0 | AA112: =AA$106+IF($C112<>0,SUMPRODUCT((AA$107:AA$108)*TRANSPOSE(($D112:$E112))),0) -> 0 | AB112: =AB$106+IF($C112<>0,SUMPRODUCT((AB$107:AB$108)*TRANSPOSE(($D112:$E112))),0) -> 0 | AC112: =AC$106+IF($C112<>0,SUMPRODUCT((AC$107:AC$108)*TRANSPOSE(($D112:$E112))),0) -> 0 | AD112: =AD$106+IF($C112<>0,SUMPRODUCT((AD$107:AD$108)*TRANSPOSE(($D112:$E112))),0) -> 0 | AE112: =AE$106+IF($C112<>0,SUMPRODUCT((AE$107:AE$108)*TRANSPOSE(($D112:$E112))),0) -> 0 | AF112: =AF$106+IF($C112<>0,SUMPRODUCT((AF$107:AF$108)*TRANSPOSE(($D112:$E112))),0) -> 0 | AG112: =AG$106+IF($C112<>0,SUMPRODUCT((AG$107:AG$108)*TRANSPOSE(($D112:$E112))),0) -> 0
A113: ="sens"&Assumptions!B114 -> sens4 | C113: =Assumptions!C114 -> Total benefits 10% lower | D113: =Assumptions!G114 -> 0 | E113: =Assumptions!H114 -> -0.1 | G113: Option 1 (Base Case)sens4 | I113: =I$106+IF($C113<>0,SUMPRODUCT((I$107:I$108)*TRANSPOSE(($D113:$E113))),0) -> 0 | J113: =J$106+IF($C113<>0,SUMPRODUCT((J$107:J$108)*TRANSPOSE(($D113:$E113))),0) -> 0 | K113: =K$106+IF($C113<>0,SUMPRODUCT((K$107:K$108)*TRANSPOSE(($D113:$E113))),0) -> 0 | L113: =L$106+IF($C113<>0,SUMPRODUCT((L$107:L$108)*TRANSPOSE(($D113:$E113))),0) -> 0 | M113: =M$106+IF($C113<>0,SUMPRODUCT((M$107:M$108)*TRANSPOSE(($D113:$E113))),0) -> 0 | N113: =N$106+IF($C113<>0,SUMPRODUCT((N$107:N$108)*TRANSPOSE(($D113:$E113))),0) -> 0 | O113: =O$106+IF($C113<>0,SUMPRODUCT((O$107:O$108)*TRANSPOSE(($D113:$E113))),0) -> 0 | P113: =P$106+IF($C113<>0,SUMPRODUCT((P$107:P$108)*TRANSPOSE(($D113:$E113))),0) -> 0 | Q113: =Q$106+IF($C113<>0,SUMPRODUCT((Q$107:Q$108)*TRANSPOSE(($D113:$E113))),0) -> 0 | R113: =R$106+IF($C113<>0,SUMPRODUCT((R$107:R$108)*TRANSPOSE(($D113:$E113))),0) -> 0 | S113: =S$106+IF($C113<>0,SUMPRODUCT((S$107:S$108)*TRANSPOSE(($D113:$E113))),0) -> 0 | T113: =T$106+IF($C113<>0,SUMPRODUCT((T$107:T$108)*TRANSPOSE(($D113:$E113))),0) -> 0 | U113: =U$106+IF($C113<>0,SUMPRODUCT((U$107:U$108)*TRANSPOSE(($D113:$E113))),0) -> 0 | V113: =V$106+IF($C113<>0,SUMPRODUCT((V$107:V$108)*TRANSPOSE(($D113:$E113))),0) -> 0 | W113: =W$106+IF($C113<>0,SUMPRODUCT((W$107:W$108)*TRANSPOSE(($D113:$E113))),0) -> 0 | X113: =X$106+IF($C113<>0,SUMPRODUCT((X$107:X$108)*TRANSPOSE(($D113:$E113))),0) -> 0 | Y113: =Y$106+IF($C113<>0,SUMPRODUCT((Y$107:Y$108)*TRANSPOSE(($D113:$E113))),0) -> 0 | Z113: =Z$106+IF($C113<>0,SUMPRODUCT((Z$107:Z$108)*TRANSPOSE(($D113:$E113))),0) -> 0 | AA113: =AA$106+IF($C113<>0,SUMPRODUCT((AA$107:AA$108)*TRANSPOSE(($D113:$E113))),0) -> 0 | AB113: =AB$106+IF($C113<>0,SUMPRODUCT((AB$107:AB$108)*TRANSPOSE(($D113:$E113))),0) -> 0 | AC113: =AC$106+IF($C113<>0,SUMPRODUCT((AC$107:AC$108)*TRANSPOSE(($D113:$E113))),0) -> 0 | AD113: =AD$106+IF($C113<>0,SUMPRODUCT((AD$107:AD$108)*TRANSPOSE(($D113:$E113))),0) -> 0 | AE113: =AE$106+IF($C113<>0,SUMPRODUCT((AE$107:AE$108)*TRANSPOSE(($D113:$E113))),0) -> 0 | AF113: =AF$106+IF($C113<>0,SUMPRODUCT((AF$107:AF$108)*TRANSPOSE(($D113:$E113))),0) -> 0 | AG113: =AG$106+IF($C113<>0,SUMPRODUCT((AG$107:AG$108)*TRANSPOSE(($D113:$E113))),0) -> 0
A114: ="sens"&Assumptions!B115 -> sens5 | C114: =Assumptions!C115 -> Capex 10% higher & Total benefits 10% lower | D114: =Assumptions!G115 -> 0.1 | E114: =Assumptions!H115 -> -0.1 | G114: Option 1 (Base Case)sens5 | I114: =I$106+IF($C114<>0,SUMPRODUCT((I$107:I$108)*TRANSPOSE(($D114:$E114))),0) -> 0 | J114: =J$106+IF($C114<>0,SUMPRODUCT((J$107:J$108)*TRANSPOSE(($D114:$E114))),0) -> 0 | K114: =K$106+IF($C114<>0,SUMPRODUCT((K$107:K$108)*TRANSPOSE(($D114:$E114))),0) -> 0 | L114: =L$106+IF($C114<>0,SUMPRODUCT((L$107:L$108)*TRANSPOSE(($D114:$E114))),0) -> 0 | M114: =M$106+IF($C114<>0,SUMPRODUCT((M$107:M$108)*TRANSPOSE(($D114:$E114))),0) -> 0 | N114: =N$106+IF($C114<>0,SUMPRODUCT((N$107:N$108)*TRANSPOSE(($D114:$E114))),0) -> 0 | O114: =O$106+IF($C114<>0,SUMPRODUCT((O$107:O$108)*TRANSPOSE(($D114:$E114))),0) -> 0 | P114: =P$106+IF($C114<>0,SUMPRODUCT((P$107:P$108)*TRANSPOSE(($D114:$E114))),0) -> 0 | Q114: =Q$106+IF($C114<>0,SUMPRODUCT((Q$107:Q$108)*TRANSPOSE(($D114:$E114))),0) -> 0 | R114: =R$106+IF($C114<>0,SUMPRODUCT((R$107:R$108)*TRANSPOSE(($D114:$E114))),0) -> 0 | S114: =S$106+IF($C114<>0,SUMPRODUCT((S$107:S$108)*TRANSPOSE(($D114:$E114))),0) -> 0 | T114: =T$106+IF($C114<>0,SUMPRODUCT((T$107:T$108)*TRANSPOSE(($D114:$E114))),0) -> 0 | U114: =U$106+IF($C114<>0,SUMPRODUCT((U$107:U$108)*TRANSPOSE(($D114:$E114))),0) -> 0 | V114: =V$106+IF($C114<>0,SUMPRODUCT((V$107:V$108)*TRANSPOSE(($D114:$E114))),0) -> 0 | W114: =W$106+IF($C114<>0,SUMPRODUCT((W$107:W$108)*TRANSPOSE(($D114:$E114))),0) -> 0 | X114: =X$106+IF($C114<>0,SUMPRODUCT((X$107:X$108)*TRANSPOSE(($D114:$E114))),0) -> 0 | Y114: =Y$106+IF($C114<>0,SUMPRODUCT((Y$107:Y$108)*TRANSPOSE(($D114:$E114))),0) -> 0 | Z114: =Z$106+IF($C114<>0,SUMPRODUCT((Z$107:Z$108)*TRANSPOSE(($D114:$E114))),0) -> 0 | AA114: =AA$106+IF($C114<>0,SUMPRODUCT((AA$107:AA$108)*TRANSPOSE(($D114:$E114))),0) -> 0 | AB114: =AB$106+IF($C114<>0,SUMPRODUCT((AB$107:AB$108)*TRANSPOSE(($D114:$E114))),0) -> 0 | AC114: =AC$106+IF($C114<>0,SUMPRODUCT((AC$107:AC$108)*TRANSPOSE(($D114:$E114))),0) -> 0 | AD114: =AD$106+IF($C114<>0,SUMPRODUCT((AD$107:AD$108)*TRANSPOSE(($D114:$E114))),0) -> 0 | AE114: =AE$106+IF($C114<>0,SUMPRODUCT((AE$107:AE$108)*TRANSPOSE(($D114:$E114))),0) -> 0 | AF114: =AF$106+IF($C114<>0,SUMPRODUCT((AF$107:AF$108)*TRANSPOSE(($D114:$E114))),0) -> 0 | AG114: =AG$106+IF($C114<>0,SUMPRODUCT((AG$107:AG$108)*TRANSPOSE(($D114:$E114))),0) -> 0
A115: ="sens"&Assumptions!B116 -> sens | C115: =Assumptions!C116 -> 0 | D115: =Assumptions!G116 -> 0 | E115: =Assumptions!H116 -> 0 | G115: Option 1 (Base Case)sens | I115: =I$106+IF($C115<>0,SUMPRODUCT((I$107:I$108)*TRANSPOSE(($D115:$E115))),0) -> 0 | J115: =J$106+IF($C115<>0,SUMPRODUCT((J$107:J$108)*TRANSPOSE(($D115:$E115))),0) -> 0 | K115: =K$106+IF($C115<>0,SUMPRODUCT((K$107:K$108)*TRANSPOSE(($D115:$E115))),0) -> 0 | L115: =L$106+IF($C115<>0,SUMPRODUCT((L$107:L$108)*TRANSPOSE(($D115:$E115))),0) -> 0 | M115: =M$106+IF($C115<>0,SUMPRODUCT((M$107:M$108)*TRANSPOSE(($D115:$E115))),0) -> 0 | N115: =N$106+IF($C115<>0,SUMPRODUCT((N$107:N$108)*TRANSPOSE(($D115:$E115))),0) -> 0 | O115: =O$106+IF($C115<>0,SUMPRODUCT((O$107:O$108)*TRANSPOSE(($D115:$E115))),0) -> 0 | P115: =P$106+IF($C115<>0,SUMPRODUCT((P$107:P$108)*TRANSPOSE(($D115:$E115))),0) -> 0 | Q115: =Q$106+IF($C115<>0,SUMPRODUCT((Q$107:Q$108)*TRANSPOSE(($D115:$E115))),0) -> 0 | R115: =R$106+IF($C115<>0,SUMPRODUCT((R$107:R$108)*TRANSPOSE(($D115:$E115))),0) -> 0 | S115: =S$106+IF($C115<>0,SUMPRODUCT((S$107:S$108)*TRANSPOSE(($D115:$E115))),0) -> 0 | T115: =T$106+IF($C115<>0,SUMPRODUCT((T$107:T$108)*TRANSPOSE(($D115:$E115))),0) -> 0 | U115: =U$106+IF($C115<>0,SUMPRODUCT((U$107:U$108)*TRANSPOSE(($D115:$E115))),0) -> 0 | V115: =V$106+IF($C115<>0,SUMPRODUCT((V$107:V$108)*TRANSPOSE(($D115:$E115))),0) -> 0 | W115: =W$106+IF($C115<>0,SUMPRODUCT((W$107:W$108)*TRANSPOSE(($D115:$E115))),0) -> 0 | X115: =X$106+IF($C115<>0,SUMPRODUCT((X$107:X$108)*TRANSPOSE(($D115:$E115))),0) -> 0 | Y115: =Y$106+IF($C115<>0,SUMPRODUCT((Y$107:Y$108)*TRANSPOSE(($D115:$E115))),0) -> 0 | Z115: =Z$106+IF($C115<>0,SUMPRODUCT((Z$107:Z$108)*TRANSPOSE(($D115:$E115))),0) -> 0 | AA115: =AA$106+IF($C115<>0,SUMPRODUCT((AA$107:AA$108)*TRANSPOSE(($D115:$E115))),0) -> 0 | AB115: =AB$106+IF($C115<>0,SUMPRODUCT((AB$107:AB$108)*TRANSPOSE(($D115:$E115))),0) -> 0 | AC115: =AC$106+IF($C115<>0,SUMPRODUCT((AC$107:AC$108)*TRANSPOSE(($D115:$E115))),0) -> 0 | AD115: =AD$106+IF($C115<>0,SUMPRODUCT((AD$107:AD$108)*TRANSPOSE(($D115:$E115))),0) -> 0 | AE115: =AE$106+IF($C115<>0,SUMPRODUCT((AE$107:AE$108)*TRANSPOSE(($D115:$E115))),0) -> 0 | AF115: =AF$106+IF($C115<>0,SUMPRODUCT((AF$107:AF$108)*TRANSPOSE(($D115:$E115))),0) -> 0 | AG115: =AG$106+IF($C115<>0,SUMPRODUCT((AG$107:AG$108)*TRANSPOSE(($D115:$E115))),0) -> 0
A116: ="sens"&Assumptions!B117 -> sens | C116: =Assumptions!C117 -> 0 | D116: =Assumptions!G117 -> 0 | E116: =Assumptions!H117 -> 0 | G116: Option 1 (Base Case)sens | I116: =I$106+IF($C116<>0,SUMPRODUCT((I$107:I$108)*TRANSPOSE(($D116:$E116))),0) -> 0 | J116: =J$106+IF($C116<>0,SUMPRODUCT((J$107:J$108)*TRANSPOSE(($D116:$E116))),0) -> 0 | K116: =K$106+IF($C116<>0,SUMPRODUCT((K$107:K$108)*TRANSPOSE(($D116:$E116))),0) -> 0 | L116: =L$106+IF($C116<>0,SUMPRODUCT((L$107:L$108)*TRANSPOSE(($D116:$E116))),0) -> 0 | M116: =M$106+IF($C116<>0,SUMPRODUCT((M$107:M$108)*TRANSPOSE(($D116:$E116))),0) -> 0 | N116: =N$106+IF($C116<>0,SUMPRODUCT((N$107:N$108)*TRANSPOSE(($D116:$E116))),0) -> 0 | O116: =O$106+IF($C116<>0,SUMPRODUCT((O$107:O$108)*TRANSPOSE(($D116:$E116))),0) -> 0 | P116: =P$106+IF($C116<>0,SUMPRODUCT((P$107:P$108)*TRANSPOSE(($D116:$E116))),0) -> 0 | Q116: =Q$106+IF($C116<>0,SUMPRODUCT((Q$107:Q$108)*TRANSPOSE(($D116:$E116))),0) -> 0 | R116: =R$106+IF($C116<>0,SUMPRODUCT((R$107:R$108)*TRANSPOSE(($D116:$E116))),0) -> 0 | S116: =S$106+IF($C116<>0,SUMPRODUCT((S$107:S$108)*TRANSPOSE(($D116:$E116))),0) -> 0 | T116: =T$106+IF($C116<>0,SUMPRODUCT((T$107:T$108)*TRANSPOSE(($D116:$E116))),0) -> 0 | U116: =U$106+IF($C116<>0,SUMPRODUCT((U$107:U$108)*TRANSPOSE(($D116:$E116))),0) -> 0 | V116: =V$106+IF($C116<>0,SUMPRODUCT((V$107:V$108)*TRANSPOSE(($D116:$E116))),0) -> 0 | W116: =W$106+IF($C116<>0,SUMPRODUCT((W$107:W$108)*TRANSPOSE(($D116:$E116))),0) -> 0 | X116: =X$106+IF($C116<>0,SUMPRODUCT((X$107:X$108)*TRANSPOSE(($D116:$E116))),0) -> 0 | Y116: =Y$106+IF($C116<>0,SUMPRODUCT((Y$107:Y$108)*TRANSPOSE(($D116:$E116))),0) -> 0 | Z116: =Z$106+IF($C116<>0,SUMPRODUCT((Z$107:Z$108)*TRANSPOSE(($D116:$E116))),0) -> 0 | AA116: =AA$106+IF($C116<>0,SUMPRODUCT((AA$107:AA$108)*TRANSPOSE(($D116:$E116))),0) -> 0 | AB116: =AB$106+IF($C116<>0,SUMPRODUCT((AB$107:AB$108)*TRANSPOSE(($D116:$E116))),0) -> 0 | AC116: =AC$106+IF($C116<>0,SUMPRODUCT((AC$107:AC$108)*TRANSPOSE(($D116:$E116))),0) -> 0 | AD116: =AD$106+IF($C116<>0,SUMPRODUCT((AD$107:AD$108)*TRANSPOSE(($D116:$E116))),0) -> 0 | AE116: =AE$106+IF($C116<>0,SUMPRODUCT((AE$107:AE$108)*TRANSPOSE(($D116:$E116))),0) -> 0 | AF116: =AF$106+IF($C116<>0,SUMPRODUCT((AF$107:AF$108)*TRANSPOSE(($D116:$E116))),0) -> 0 | AG116: =AG$106+IF($C116<>0,SUMPRODUCT((AG$107:AG$108)*TRANSPOSE(($D116:$E116))),0) -> 0
A117: ="sens"&Assumptions!B118 -> sens | C117: =Assumptions!C118 -> 0 | D117: =Assumptions!G118 -> 0 | E117: =Assumptions!H118 -> 0 | G117: Option 1 (Base Case)sens | I117: =I$106+IF($C117<>0,SUMPRODUCT((I$107:I$108)*TRANSPOSE(($D117:$E117))),0) -> 0 | J117: =J$106+IF($C117<>0,SUMPRODUCT((J$107:J$108)*TRANSPOSE(($D117:$E117))),0) -> 0 | K117: =K$106+IF($C117<>0,SUMPRODUCT((K$107:K$108)*TRANSPOSE(($D117:$E117))),0) -> 0 | L117: =L$106+IF($C117<>0,SUMPRODUCT((L$107:L$108)*TRANSPOSE(($D117:$E117))),0) -> 0 | M117: =M$106+IF($C117<>0,SUMPRODUCT((M$107:M$108)*TRANSPOSE(($D117:$E117))),0) -> 0 | N117: =N$106+IF($C117<>0,SUMPRODUCT((N$107:N$108)*TRANSPOSE(($D117:$E117))),0) -> 0 | O117: =O$106+IF($C117<>0,SUMPRODUCT((O$107:O$108)*TRANSPOSE(($D117:$E117))),0) -> 0 | P117: =P$106+IF($C117<>0,SUMPRODUCT((P$107:P$108)*TRANSPOSE(($D117:$E117))),0) -> 0 | Q117: =Q$106+IF($C117<>0,SUMPRODUCT((Q$107:Q$108)*TRANSPOSE(($D117:$E117))),0) -> 0 | R117: =R$106+IF($C117<>0,SUMPRODUCT((R$107:R$108)*TRANSPOSE(($D117:$E117))),0) -> 0 | S117: =S$106+IF($C117<>0,SUMPRODUCT((S$107:S$108)*TRANSPOSE(($D117:$E117))),0) -> 0 | T117: =T$106+IF($C117<>0,SUMPRODUCT((T$107:T$108)*TRANSPOSE(($D117:$E117))),0) -> 0 | U117: =U$106+IF($C117<>0,SUMPRODUCT((U$107:U$108)*TRANSPOSE(($D117:$E117))),0) -> 0 | V117: =V$106+IF($C117<>0,SUMPRODUCT((V$107:V$108)*TRANSPOSE(($D117:$E117))),0) -> 0 | W117: =W$106+IF($C117<>0,SUMPRODUCT((W$107:W$108)*TRANSPOSE(($D117:$E117))),0) -> 0 | X117: =X$106+IF($C117<>0,SUMPRODUCT((X$107:X$108)*TRANSPOSE(($D117:$E117))),0) -> 0 | Y117: =Y$106+IF($C117<>0,SUMPRODUCT((Y$107:Y$108)*TRANSPOSE(($D117:$E117))),0) -> 0 | Z117: =Z$106+IF($C117<>0,SUMPRODUCT((Z$107:Z$108)*TRANSPOSE(($D117:$E117))),0) -> 0 | AA117: =AA$106+IF($C117<>0,SUMPRODUCT((AA$107:AA$108)*TRANSPOSE(($D117:$E117))),0) -> 0 | AB117: =AB$106+IF($C117<>0,SUMPRODUCT((AB$107:AB$108)*TRANSPOSE(($D117:$E117))),0) -> 0 | AC117: =AC$106+IF($C117<>0,SUMPRODUCT((AC$107:AC$108)*TRANSPOSE(($D117:$E117))),0) -> 0 | AD117: =AD$106+IF($C117<>0,SUMPRODUCT((AD$107:AD$108)*TRANSPOSE(($D117:$E117))),0) -> 0 | AE117: =AE$106+IF($C117<>0,SUMPRODUCT((AE$107:AE$108)*TRANSPOSE(($D117:$E117))),0) -> 0 | AF117: =AF$106+IF($C117<>0,SUMPRODUCT((AF$107:AF$108)*TRANSPOSE(($D117:$E117))),0) -> 0 | AG117: =AG$106+IF($C117<>0,SUMPRODUCT((AG$107:AG$108)*TRANSPOSE(($D117:$E117))),0) -> 0

Sheet Option2
A1: =bus -> CitiPower
A2: =proj -> NC switchboard and relay replacement
A3: OPTION 2 | C3: =INDEX(Assumptions!$E$14:$E$18, MATCH(A3,_xlfn.ANCHORARRAY( Assumptions!$C$14),0)) -> Combined replacement of SWBD and relays completed in 2029-30
A4: =(INDEX(Data!$D$9:$D$13, MATCH(A3, options,0))) -> 
A6: ='Option1 (base case)'!A6 -> Count | I6: ='Option1 (base case)'!I6 -> 1 | J6: ='Option1 (base case)'!J6 -> 2 | K6: ='Option1 (base case)'!K6 -> 3 | L6: ='Option1 (base case)'!L6 -> 4 | M6: ='Option1 (base case)'!M6 -> 5 | N6: ='Option1 (base case)'!N6 -> 6 | O6: ='Option1 (base case)'!O6 -> 7 | P6: ='Option1 (base case)'!P6 -> 8 | Q6: ='Option1 (base case)'!Q6 -> 9 | R6: ='Option1 (base case)'!R6 -> 10 | S6: ='Option1 (base case)'!S6 -> 11 | T6: ='Option1 (base case)'!T6 -> 12 | U6: ='Option1 (base case)'!U6 -> 13 | V6: ='Option1 (base case)'!V6 -> 14 | W6: ='Option1 (base case)'!W6 -> 15 | X6: ='Option1 (base case)'!X6 -> 16 | Y6: ='Option1 (base case)'!Y6 -> 17 | Z6: ='Option1 (base case)'!Z6 -> 18 | AA6: ='Option1 (base case)'!AA6 -> 19 | AB6: ='Option1 (base case)'!AB6 -> 20 | AC6: ='Option1 (base case)'!AC6 -> 21 | AD6: ='Option1 (base case)'!AD6 -> 22 | AE6: ='Option1 (base case)'!AE6 -> 23 | AF6: ='Option1 (base case)'!AF6 -> 24 | AG6: ='Option1 (base case)'!AG6 -> 25
A7: ='Option1 (base case)'!A7 -> Value of CO2 reductions | G7: $/MWh | I7: ='Option1 (base case)'!I7 -> 24.7304868 | J7: ='Option1 (base case)'!J7 -> 22.34074009 | K7: ='Option1 (base case)'!K7 -> 20.19632912 | L7: ='Option1 (base case)'!L7 -> 18.06294208 | M7: ='Option1 (base case)'!M7 -> 15.91339762 | N7: ='Option1 (base case)'!N7 -> 13.71506943 | O7: ='Option1 (base case)'!O7 -> 13.71506943 | P7: ='Option1 (base case)'!P7 -> 13.71506943 | Q7: ='Option1 (base case)'!Q7 -> 13.71506943 | R7: ='Option1 (base case)'!R7 -> 13.71506943 | S7: ='Option1 (base case)'!S7 -> 13.71506943 | T7: ='Option1 (base case)'!T7 -> 13.71506943 | U7: ='Option1 (base case)'!U7 -> 13.71506943 | V7: ='Option1 (base case)'!V7 -> 13.71506943 | W7: ='Option1 (base case)'!W7 -> 13.71506943 | X7: ='Option1 (base case)'!X7 -> 13.71506943 | Y7: ='Option1 (base case)'!Y7 -> 13.71506943 | Z7: ='Option1 (base case)'!Z7 -> 13.71506943 | AA7: ='Option1 (base case)'!AA7 -> 13.71506943 | AB7: ='Option1 (base case)'!AB7 -> 13.71506943 | AC7: ='Option1 (base case)'!AC7 -> 13.71506943 | AD7: ='Option1 (base case)'!AD7 -> 13.71506943 | AE7: ='Option1 (base case)'!AE7 -> 13.71506943 | AF7: ='Option1 (base case)'!AF7 -> 13.71506943 | AG7: ='Option1 (base case)'!AG7 -> 13.71506943
G9: Units | I9: ='Option1 (base case)'!I9 -> 2026-27 | J9: ='Option1 (base case)'!J9 -> 2027-28 | K9: ='Option1 (base case)'!K9 -> 2028-29 | L9: ='Option1 (base case)'!L9 -> 2029-30 | M9: ='Option1 (base case)'!M9 -> 2030-31 | N9: ='Option1 (base case)'!N9 -> 2031-32 | O9: ='Option1 (base case)'!O9 -> 2032-33 | P9: ='Option1 (base case)'!P9 -> 2033-34 | Q9: ='Option1 (base case)'!Q9 -> 2034-35 | R9: ='Option1 (base case)'!R9 -> 2035-36 | S9: ='Option1 (base case)'!S9 -> 2036-37 | T9: ='Option1 (base case)'!T9 -> 2037-38 | U9: ='Option1 (base case)'!U9 -> 2038-39 | V9: ='Option1 (base case)'!V9 -> 2039-40 | W9: ='Option1 (base case)'!W9 -> 2040-41 | X9: ='Option1 (base case)'!X9 -> 2041-42 | Y9: ='Option1 (base case)'!Y9 -> 2042-43 | Z9: ='Option1 (base case)'!Z9 -> 2043-44 | AA9: ='Option1 (base case)'!AA9 -> 2044-45 | AB9: ='Option1 (base case)'!AB9 -> 2045-46 | AC9: ='Option1 (base case)'!AC9 -> 2046-47 | AD9: ='Option1 (base case)'!AD9 -> 2047-48 | AE9: ='Option1 (base case)'!AE9 -> 2048-49 | AF9: ='Option1 (base case)'!AF9 -> 2049-50 | AG9: ='Option1 (base case)'!AG9 -> 2050-51
A11: INVESTMENT & OPERATING COST
C13: Capex | E13: Asset life (yrs)
C14: Switchboard | E14: 50 | G14: =input_dollars -> 2023-12-31 | I14: =Workings_costs!E22 -> 0 | J14: =Workings_costs!F22 -> 0 | K14: =Workings_costs!G22 -> 1447820.424 | L14: =Workings_costs!H22 -> 2895640.847 | M14: =Workings_costs!I22 -> 0 | N14: =Workings_costs!J22 -> 0 | O14: =Workings_costs!K22 -> 0 | P14: =Workings_costs!L22 -> 0 | Q14: =Workings_costs!M22 -> 0 | R14: =Workings_costs!N22 -> 0 | S14: =Workings_costs!O22 -> 0 | T14: =Workings_costs!P22 -> 0 | U14: =Workings_costs!Q22 -> 0 | V14: =Workings_costs!R22 -> 0 | W14: =Workings_costs!S22 -> 0 | X14: =Workings_costs!T22 -> 0 | Y14: =Workings_costs!U22 -> 0 | Z14: =Workings_costs!V22 -> 0 | AA14: =Workings_costs!W22 -> 0 | AB14: =Workings_costs!X22 -> 0 | AC14: =Workings_costs!Y22 -> 0 | AD14: =Workings_costs!Z22 -> 0 | AE14: =Workings_costs!AA22 -> 0 | AF14: =Workings_costs!AB22 -> 0 | AG14: =Workings_costs!AC22 -> 0
C15: Relays | E15: 25 | G15: =input_dollars -> 2023-12-31 | I15: =Workings_costs!E23 -> 0 | J15: =Workings_costs!F23 -> 0 | K15: =Workings_costs!G23 -> 965213.6157 | L15: =Workings_costs!H23 -> 1930427.231 | M15: =Workings_costs!I23 -> 0 | N15: =Workings_costs!J23 -> 0 | O15: =Workings_costs!K23 -> 0 | P15: =Workings_costs!L23 -> 0 | Q15: =Workings_costs!M23 -> 0 | R15: =Workings_costs!N23 -> 0 | S15: =Workings_costs!O23 -> 0 | T15: =Workings_costs!P23 -> 0 | U15: =Workings_costs!Q23 -> 0 | V15: =Workings_costs!R23 -> 0 | W15: =Workings_costs!S23 -> 0 | X15: =Workings_costs!T23 -> 0 | Y15: =Workings_costs!U23 -> 0 | Z15: =Workings_costs!V23 -> 0 | AA15: =Workings_costs!W23 -> 0 | AB15: =Workings_costs!X23 -> 0 | AC15: =Workings_costs!Y23 -> 0 | AD15: =Workings_costs!Z23 -> 0 | AE15: =Workings_costs!AA23 -> 0 | AF15: =Workings_costs!AB23 -> 0 | AG15: =Workings_costs!AC23 -> 0
E16: 0 | G16: =input_dollars -> 2023-12-31 | I16: 0 | J16: 0 | K16: 0 | L16: 0 | M16: 0 | N16: 0 | O16: 0 | P16: 0 | Q16: 0 | R16: 0 | S16: 0 | T16: 0 | U16: 0 | V16: 0 | W16: 0 | X16: 0 | Y16: 0 | Z16: 0 | AA16: 0 | AB16: 0 | AC16: 0 | AD16: 0 | AE16: 0 | AF16: 0 | AG16: 0
C17: Capital expenditure | G17: =input_dollars -> 2023-12-31 | I17: =SUM(I14:I16) -> 0 | J17: 0 | K17: 2413034.039 | L17: 4826068.079 | M17: 0 | N17: 0 | O17: 0 | P17: 0 | Q17: 0 | R17: =SUM(R14:R16) -> 0 | S17: 0 | T17: 0 | U17: 0 | V17: 0 | W17: 0 | X17: 0 | Y17: 0 | Z17: 0 | AA17: 0 | AB17: 0 | AC17: 0 | AD17: 0 | AE17: 0 | AF17: 0 | AG17: 0
C19: Operating expenditure | G19: =input_dollars -> 2023-12-31 | I19: 0 | J19: 0 | K19: 0 | L19: 0 | M19: 0 | N19: 0 | O19: 0 | P19: 0 | Q19: 0 | R19: 0 | S19: 0 | T19: 0 | U19: 0 | V19: 0 | W19: 0 | X19: 0 | Y19: 0 | Z19: 0 | AA19: 0 | AB19: 0 | AC19: 0 | AD19: 0 | AE19: 0 | AF19: 0 | AG19: 0
A22: RISK ASSUMPTIONS
C24: PoF (major) | I24: 0 | J24: 0 | K24: 0 | L24: 0 | M24: 0 | N24: 0 | O24: 0 | P24: 0 | Q24: 0 | R24: 0 | S24: 0 | T24: 0 | U24: 0 | V24: 0 | W24: 0 | X24: 0 | Y24: 0 | Z24: 0 | AA24: 0 | AB24: 0 | AC24: 0 | AD24: 0 | AE24: 0 | AF24: 0 | AG24: 0
C25: PoF (reparable) | I25: 0 | J25: 0 | K25: 0 | L25: 0 | M25: 0 | N25: 0 | O25: 0 | P25: 0 | Q25: 0 | R25: 0 | S25: 0 | T25: 0 | U25: 0 | V25: 0 | W25: 0 | X25: 0 | Y25: 0 | Z25: 0 | AA25: 0 | AB25: 0 | AC25: 0 | AD25: 0 | AE25: 0 | AF25: 0 | AG25: 0
C27: Energy at risk (weighted) | G27: MWh | I27: 0 | J27: 0 | K27: 0 | L27: 0 | M27: 0 | N27: 0 | O27: 0 | P27: 0 | Q27: 0 | R27: 0 | S27: 0 | T27: 0 | U27: 0 | V27: 0 | W27: 0 | X27: 0 | Y27: 0 | Z27: 0 | AA27: 0 | AB27: 0 | AC27: 0 | AD27: 0 | AE27: 0 | AF27: 0 | AG27: 0
C28: Energy at risk value | D28: $/MWh | E28: =Assumptions!H41*vcr_esc -> 44330.65115 | F28: =IF(AND(SUM(I27:AG27)<>0, E28=0), "!", "") ->  | G28: =input_dollars -> 2023-12-31 | I28: =Workings_risks!E55 -> 569702.8583 | J28: =Workings_risks!F55 -> 584295.4116 | K28: =Workings_risks!G55 -> 597160.4076 | L28: =Workings_risks!H55 -> 608980.4018 | M28: =Workings_risks!I55 -> 91509.16653 | N28: =Workings_risks!J55 -> 95371.35527 | O28: =Workings_risks!K55 -> 99991.61704 | P28: =Workings_risks!L55 -> 104962.0266 | Q28: =Workings_risks!M55 -> 109640.5423 | R28: =Workings_risks!N55 -> 113801.1689 | S28: =Workings_risks!O55 -> 118353.8983 | T28: =Workings_risks!P55 -> 123336.8652 | U28: =Workings_risks!Q55 -> 128791.9946 | V28: =Workings_risks!R55 -> 134765.3842 | W28: =Workings_risks!S55 -> 141307.7268 | X28: =Workings_risks!T55 -> 148474.7751 | Y28: =Workings_risks!U55 -> 156327.8553 | Z28: =Workings_risks!V55 -> 164934.4323 | AA28: =Workings_risks!W55 -> 174368.7343 | AB28: =Workings_risks!X55 -> 184712.4086 | AC28: =Workings_risks!Y55 -> 196055.2414 | AD28: =Workings_risks!Z55 -> 208502.9822 | AE28: =Workings_risks!AA55 -> 222164.3567 | AF28: =Workings_risks!AB55 -> 237157.58 | AG28: =Workings_risks!AC55 -> 253616.5691
C30: =Workings_risks!D56 -> Safety risk | D30: (after DF) | G30: =input_dollars -> 2023-12-31 | I30: =Workings_risks!E56 -> 1751.436968 | J30: =Workings_risks!F56 -> 1831.844753 | K30: =Workings_risks!G56 -> 1923.856861 | L30: =Workings_risks!H56 -> 2025.770896 | M30: =Workings_risks!I56 -> 1792.231449 | N30: =Workings_risks!J56 -> 1906.118104 | O30: =Workings_risks!K56 -> 2030.701541 | P30: =Workings_risks!L56 -> 2171.217069 | Q30: =Workings_risks!M56 -> 2328.92448 | R30: =Workings_risks!N56 -> 2505.1633 | S30: =Workings_risks!O56 -> 2703.726917 | T30: =Workings_risks!P56 -> 2935.693858 | U30: =Workings_risks!Q56 -> 3208.55557 | V30: =Workings_risks!R56 -> 3532.120919 | W30: =Workings_risks!S56 -> 3924.881351 | X30: =Workings_risks!T56 -> 4414.817535 | Y30: =Workings_risks!U56 -> 5044.762884 | Z30: =Workings_risks!V56 -> 5880.883558 | AA30: =Workings_risks!W56 -> 7026.106236 | AB30: =Workings_risks!X56 -> 8312.665405 | AC30: =Workings_risks!Y56 -> 8921.121897 | AD30: =Workings_risks!Z56 -> 9722.498108 | AE30: =Workings_risks!AA56 -> 10746.67198 | AF30: =Workings_risks!AB56 -> 12017.08844 | AG30: =Workings_risks!AC56 -> 13618.85637
C31: =Workings_risks!D57 -> Unplanned replacement | G31: =input_dollars -> 2023-12-31 | I31: =Workings_risks!E57 -> 46247.31899 | J31: =Workings_risks!F57 -> 48306.07978 | K31: =Workings_risks!G57 -> 50558.40941 | L31: =Workings_risks!H57 -> 53020.10074 | M31: =Workings_risks!I57 -> 36145.4345 | N31: =Workings_risks!J57 -> 39077.60931 | O31: =Workings_risks!K57 -> 42283.23094 | P31: =Workings_risks!L57 -> 45796.4661 | Q31: =Workings_risks!M57 -> 49646.54689 | R31: =Workings_risks!N57 -> 53865.51572 | S31: =Workings_risks!O57 -> 58492.88511 | T31: =Workings_risks!P57 -> 63584.8681 | U31: =Workings_risks!Q57 -> 69194.596 | V31: =Workings_risks!R57 -> 75383.39787 | W31: =Workings_risks!S57 -> 82232.96899 | X31: =Workings_risks!T57 -> 89847.29983 | Y31: =Workings_risks!U57 -> 98363.0781 | Z31: =Workings_risks!V57 -> 107965.9052 | AA31: =Workings_risks!W57 -> 118915.7195 | AB31: =Workings_risks!X57 -> 130978.6974 | AC31: =Workings_risks!Y57 -> 142723.2029 | AD31: =Workings_risks!Z57 -> 155790.3101 | AE31: =Workings_risks!AA57 -> 170338.6431 | AF31: =Workings_risks!AB57 -> 186539.0378 | AG31: =Workings_risks!AC57 -> 204654.2335
C32: =Workings_risks!D58 -> Unplanned fault | D32: (after DF) | G32: =input_dollars -> 2023-12-31 | I32: =Workings_risks!E58 -> 508 | J32: =Workings_risks!F58 -> 508 | K32: =Workings_risks!G58 -> 508 | L32: =Workings_risks!H58 -> 508 | M32: =Workings_risks!I58 -> 50.8 | N32: =Workings_risks!J58 -> 50.8 | O32: =Workings_risks!K58 -> 50.8 | P32: =Workings_risks!L58 -> 50.8 | Q32: =Workings_risks!M58 -> 50.8 | R32: =Workings_risks!N58 -> 50.8 | S32: =Workings_risks!O58 -> 50.8 | T32: =Workings_risks!P58 -> 50.8 | U32: =Workings_risks!Q58 -> 50.8 | V32: =Workings_risks!R58 -> 50.8 | W32: =Workings_risks!S58 -> 50.8 | X32: =Workings_risks!T58 -> 50.8 | Y32: =Workings_risks!U58 -> 50.8 | Z32: =Workings_risks!V58 -> 50.8 | AA32: =Workings_risks!W58 -> 50.8 | AB32: =Workings_risks!X58 -> 50.8 | AC32: =Workings_risks!Y58 -> 50.8 | AD32: =Workings_risks!Z58 -> 50.8 | AE32: =Workings_risks!AA58 -> 50.8 | AF32: =Workings_risks!AB58 -> 50.8 | AG32: =Workings_risks!AC58 -> 50.8
C33: =Workings_risks!D59 -> Environmental risk | G33: =input_dollars -> 2023-12-31 | I33: =Workings_risks!E59 -> 160.5056802 | J33: =Workings_risks!F59 -> 168.8105915 | K33: =Workings_risks!G59 -> 178.4725895 | L33: =Workings_risks!H59 -> 189.2251303 | M33: =Workings_risks!I59 -> 198.2346102 | N33: =Workings_risks!J59 -> 209.9739792 | O33: =Workings_risks!K59 -> 222.8193279 | P33: =Workings_risks!L59 -> 237.4698054 | Q33: =Workings_risks!M59 -> 254.0603982 | R33: =Workings_risks!N59 -> 272.7331188 | S33: =Workings_risks!O59 -> 293.9712065 | T33: =Workings_risks!P59 -> 319.2796258 | U33: =Workings_risks!Q59 -> 349.6521225 | V33: =Workings_risks!R59 -> 386.4028854 | W33: =Workings_risks!S59 -> 432.063079 | X33: =Workings_risks!T59 -> 490.4938417 | Y33: =Workings_risks!U59 -> 567.6414951 | Z33: =Workings_risks!V59 -> 672.7319341 | AA33: =Workings_risks!W59 -> 820.1622999 | AB33: =Workings_risks!X59 -> 986.1656201 | AC33: =Workings_risks!Y59 -> 1055.111734 | AD33: =Workings_risks!Z59 -> 1149.6131 | AE33: =Workings_risks!AA59 -> 1273.719773 | AF33: =Workings_risks!AB59 -> 1430.560709 | AG33: =Workings_risks!AC59 -> 1631.933794
C34: < Other risk - enter description > | G34: =input_dollars -> 2023-12-31 | I34: 0 | J34: 0 | K34: 0 | L34: 0 | M34: 0 | N34: 0 | O34: 0 | P34: 0 | Q34: 0 | R34: 0 | S34: 0 | T34: 0 | U34: 0 | V34: 0 | W34: 0 | X34: 0 | Y34: 0 | Z34: 0 | AA34: 0 | AB34: 0 | AC34: 0 | AD34: 0 | AE34: 0 | AF34: 0 | AG34: 0
C36: Total risk cost | I36: =SUM(I28:I34) -> 618370.1199 | J36: =SUM(J28:J34) -> 635110.1467 | K36: 650329.1465 | L36: 664723.4986 | M36: 129695.8671 | N36: 136615.8567 | O36: 144579.1689 | P36: 153217.9796 | Q36: 161920.8741 | R36: 170495.381 | S36: 179895.2815 | T36: 190227.5068 | U36: 201595.5983 | V36: 214118.1059 | W36: 227948.4402 | X36: 243278.1863 | Y36: 260354.1378 | Z36: 279504.753 | AA36: 301181.5223 | AB36: 325040.7371 | AC36: 348805.4779 | AD36: 375216.2035 | AE36: 404574.1916 | AF36: 437195.0669 | AG36: 473572.3928
A38: OTHER BENEFITS
C41: Reduction in CO2 emissions | G41: MWh | I41: 0 | J41: 0 | K41: 0 | L41: 0 | M41: 0 | N41: 0 | O41: 0 | P41: 0 | Q41: 0 | R41: 0 | S41: 0 | T41: 0 | U41: 0 | V41: 0 | W41: 0 | X41: 0 | Y41: 0 | Z41: 0 | AA41: 0 | AB41: 0 | AC41: 0 | AD41: 0 | AE41: 0 | AF41: 0 | AG41: 0
C42: Value of reduction in CO2 emissions | G42: $ | I42: =I41*I7 -> 0 | J42: 0 | K42: 0 | L42: 0 | M42: 0 | N42: 0 | O42: 0 | P42: 0 | Q42: 0 | R42: 0 | S42: 0 | T42: 0 | U42: 0 | V42: 0 | W42: 0 | X42: 0 | Y42: 0 | Z42: 0 | AA42: 0 | AB42: 0 | AC42: 0 | AD42: 0 | AE42: 0 | AF42: 0 | AG42: 0
C45: Reliability in worst-served areas | D45: $/MWh | E45: =Assumptions!G94 -> 0 | G45: MWh | I45: 0 | J45: 0 | K45: 0 | L45: 0 | M45: 0 | N45: 0 | O45: 0 | P45: 0 | Q45: 0 | R45: 0 | S45: 0 | T45: 0 | U45: 0 | V45: 0 | W45: 0 | X45: 0 | Y45: 0 | Z45: 0 | AA45: 0 | AB45: 0 | AC45: 0 | AD45: 0 | AE45: 0 | AF45: 0 | AG45: 0
C46: Network resilience | D46: $/MWh | E46: =Assumptions!G95 -> 0 | G46: MWh | I46: 0 | J46: 0 | K46: 0 | L46: 0 | M46: 0 | N46: 0 | O46: 0 | P46: 0 | Q46: 0 | R46: 0 | S46: 0 | T46: 0 | U46: 0 | V46: 0 | W46: 0 | X46: 0 | Y46: 0 | Z46: 0 | AA46: 0 | AB46: 0 | AC46: 0 | AD46: 0 | AE46: 0 | AF46: 0 | AG46: 0
C47: Enabling solar exports | D47: $/MWh | E47: =Assumptions!G96 -> 4220.99537 | G47: MWh | I47: 0 | J47: 0 | K47: 0 | L47: 0 | M47: 0 | N47: 0 | O47: 0 | P47: 0 | Q47: 0 | R47: 0 | S47: 0 | T47: 0 | U47: 0 | V47: 0 | W47: 0 | X47: 0 | Y47: 0 | Z47: 0 | AA47: 0 | AB47: 0 | AC47: 0 | AD47: 0 | AE47: 0 | AF47: 0 | AG47: 0
C48: Aesthetics | D48: $/customer | E48: =Assumptions!G97 -> 0 | G48: customers | I48: 0 | J48: 0 | K48: 0 | L48: 0 | M48: 0 | N48: 0 | O48: 0 | P48: 0 | Q48: 0 | R48: 0 | S48: 0 | T48: 0 | U48: 0 | V48: 0 | W48: 0 | X48: 0 | Y48: 0 | Z48: 0 | AA48: 0 | AB48: 0 | AC48: 0 | AD48: 0 | AE48: 0 | AF48: 0 | AG48: 0
C49: Customer value of time - residential | D49: $/customer min | E49: =Assumptions!G98 -> 0.5476938068 | G49: mins | I49: 0 | J49: 0 | K49: 0 | L49: 0 | M49: 0 | N49: 0 | O49: 0 | P49: 0 | Q49: 0 | R49: 0 | S49: 0 | T49: 0 | U49: 0 | V49: 0 | W49: 0 | X49: 0 | Y49: 0 | Z49: 0 | AA49: 0 | AB49: 0 | AC49: 0 | AD49: 0 | AE49: 0 | AF49: 0 | AG49: 0
C50: Customer value of time - business | D50: $/customer min | E50: =Assumptions!G99 -> 0.5476938068 | G50: mins | I50: 0 | J50: 0 | K50: 0 | L50: 0 | M50: 0 | N50: 0 | O50: 0 | P50: 0 | Q50: 0 | R50: 0 | S50: 0 | T50: 0 | U50: 0 | V50: 0 | W50: 0 | X50: 0 | Y50: 0 | Z50: 0 | AA50: 0 | AB50: 0 | AC50: 0 | AD50: 0 | AE50: 0 | AF50: 0 | AG50: 0
C51: Communication | D51: $/customer | E51: =Assumptions!G100 -> 0 | G51: customers | I51: 0 | J51: 0 | K51: 0 | L51: 0 | M51: 0 | N51: 0 | O51: 0 | P51: 0 | Q51: 0 | R51: 0 | S51: 0 | T51: 0 | U51: 0 | V51: 0 | W51: 0 | X51: 0 | Y51: 0 | Z51: 0 | AA51: 0 | AB51: 0 | AC51: 0 | AD51: 0 | AE51: 0 | AF51: 0 | AG51: 0
C52: Information accessibility | D52: $/customer | E52: =Assumptions!G101 -> 0 | G52: customers | I52: 0 | J52: 0 | K52: 0 | L52: 0 | M52: 0 | N52: 0 | O52: 0 | P52: 0 | Q52: 0 | R52: 0 | S52: 0 | T52: 0 | U52: 0 | V52: 0 | W52: 0 | X52: 0 | Y52: 0 | Z52: 0 | AA52: 0 | AB52: 0 | AC52: 0 | AD52: 0 | AE52: 0 | AF52: 0 | AG52: 0
C54: Opex saving | G54: =input_dollars -> 2023-12-31 | I54: =Workings_costs!E15-Workings_costs!E30 -> 0 | J54: =Workings_costs!F15-Workings_costs!F30 -> 0 | K54: =Workings_costs!G15-Workings_costs!G30 -> 0 | L54: =Workings_costs!H15-Workings_costs!H30 -> 0 | M54: =Workings_costs!I15-Workings_costs!I30 -> 0 | N54: =Workings_costs!J15-Workings_costs!J30 -> 0 | O54: =Workings_costs!K15-Workings_costs!K30 -> 0 | P54: =Workings_costs!L15-Workings_costs!L30 -> 0 | Q54: =Workings_costs!M15-Workings_costs!M30 -> 0 | R54: =Workings_costs!N15-Workings_costs!N30 -> 0 | S54: =Workings_costs!O15-Workings_costs!O30 -> 0 | T54: =Workings_costs!P15-Workings_costs!P30 -> 0 | U54: =Workings_costs!Q15-Workings_costs!Q30 -> 0 | V54: =Workings_costs!R15-Workings_costs!R30 -> 0 | W54: =Workings_costs!S15-Workings_costs!S30 -> 0 | X54: =Workings_costs!T15-Workings_costs!T30 -> 0 | Y54: =Workings_costs!U15-Workings_costs!U30 -> 0 | Z54: =Workings_costs!V15-Workings_costs!V30 -> 0 | AA54: =Workings_costs!W15-Workings_costs!W30 -> 0 | AB54: =Workings_costs!X15-Workings_costs!X30 -> 0 | AC54: =Workings_costs!Y15-Workings_costs!Y30 -> 0 | AD54: =Workings_costs!Z15-Workings_costs!Z30 -> 0 | AE54: =Workings_costs!AA15-Workings_costs!AA30 -> 0 | AF54: =Workings_costs!AB15-Workings_costs!AB30 -> 0 | AG54: =Workings_costs!AC15-Workings_costs!AC30 -> 0
C55: Other benefits 2 | G55: =input_dollars -> 2023-12-31 | I55: 0 | J55: 0 | K55: 0 | L55: 0 | M55: 0 | N55: 0 | O55: 0 | P55: 0 | Q55: 0 | R55: 0 | S55: 0 | T55: 0 | U55: 0 | V55: 0 | W55: 0 | X55: 0 | Y55: 0 | Z55: 0 | AA55: 0 | AB55: 0 | AC55: 0 | AD55: 0 | AE55: 0 | AF55: 0 | AG55: 0
C57: Total other benefits | G57: =input_dollars -> 2023-12-31 | I57: =SUMPRODUCT((I$45:I$52)*($E$45:$E$52))+SUM(I54:I55)+I42 -> 0 | J57: =SUMPRODUCT((J$45:J$52)*($E$45:$E$52))+SUM(J54:J55)+J42 -> 0 | K57: =SUMPRODUCT((K$45:K$52)*($E$45:$E$52))+SUM(K54:K55)+K42 -> 0 | L57: =SUMPRODUCT((L$45:L$52)*($E$45:$E$52))+SUM(L54:L55)+L42 -> 0 | M57: =SUMPRODUCT((M$45:M$52)*($E$45:$E$52))+SUM(M54:M55)+M42 -> 0 | N57: =SUMPRODUCT((N$45:N$52)*($E$45:$E$52))+SUM(N54:N55)+N42 -> 0 | O57: =SUMPRODUCT((O$45:O$52)*($E$45:$E$52))+SUM(O54:O55)+O42 -> 0 | P57: =SUMPRODUCT((P$45:P$52)*($E$45:$E$52))+SUM(P54:P55)+P42 -> 0 | Q57: =SUMPRODUCT((Q$45:Q$52)*($E$45:$E$52))+SUM(Q54:Q55)+Q42 -> 0 | R57: =SUMPRODUCT((R$45:R$52)*($E$45:$E$52))+SUM(R54:R55)+R42 -> 0 | S57: =SUMPRODUCT((S$45:S$52)*($E$45:$E$52))+SUM(S54:S55)+S42 -> 0 | T57: =SUMPRODUCT((T$45:T$52)*($E$45:$E$52))+SUM(T54:T55)+T42 -> 0 | U57: =SUMPRODUCT((U$45:U$52)*($E$45:$E$52))+SUM(U54:U55)+U42 -> 0 | V57: =SUMPRODUCT((V$45:V$52)*($E$45:$E$52))+SUM(V54:V55)+V42 -> 0 | W57: =SUMPRODUCT((W$45:W$52)*($E$45:$E$52))+SUM(W54:W55)+W42 -> 0 | X57: =SUMPRODUCT((X$45:X$52)*($E$45:$E$52))+SUM(X54:X55)+X42 -> 0 | Y57: =SUMPRODUCT((Y$45:Y$52)*($E$45:$E$52))+SUM(Y54:Y55)+Y42 -> 0 | Z57: =SUMPRODUCT((Z$45:Z$52)*($E$45:$E$52))+SUM(Z54:Z55)+Z42 -> 0 | AA57: =SUMPRODUCT((AA$45:AA$52)*($E$45:$E$52))+SUM(AA54:AA55)+AA42 -> 0 | AB57: =SUMPRODUCT((AB$45:AB$52)*($E$45:$E$52))+SUM(AB54:AB55)+AB42 -> 0 | AC57: =SUMPRODUCT((AC$45:AC$52)*($E$45:$E$52))+SUM(AC54:AC55)+AC42 -> 0 | AD57: =SUMPRODUCT((AD$45:AD$52)*($E$45:$E$52))+SUM(AD54:AD55)+AD42 -> 0 | AE57: =SUMPRODUCT((AE$45:AE$52)*($E$45:$E$52))+SUM(AE54:AE55)+AE42 -> 0 | AF57: =SUMPRODUCT((AF$45:AF$52)*($E$45:$E$52))+SUM(AF54:AF55)+AF42 -> 0 | AG57: =SUMPRODUCT((AG$45:AG$52)*($E$45:$E$52))+SUM(AG54:AG55)+AG42 -> 0
A60: SUMMARY
C64: ='Option1 (base case)'!C64 -> Risks mitigated vs base case | G64: =input_dollars -> 2023-12-31 | I64: =(1-INDEX(Data!$C$9:$C$13, MATCH($A$3, options,0)))*('Option1 (base case)'!I36-I36) -> 0 | J64: =(1-INDEX(Data!$C$9:$C$13, MATCH($A$3, options,0)))*('Option1 (base case)'!J36-J36) -> 0 | K64: =(1-INDEX(Data!$C$9:$C$13, MATCH($A$3, options,0)))*('Option1 (base case)'!K36-K36) -> 0 | L64: =(1-INDEX(Data!$C$9:$C$13, MATCH($A$3, options,0)))*('Option1 (base case)'!L36-L36) -> 0 | M64: =(1-INDEX(Data!$C$9:$C$13, MATCH($A$3, options,0)))*('Option1 (base case)'!M36-M36) -> 548909.371 | N64: =(1-INDEX(Data!$C$9:$C$13, MATCH($A$3, options,0)))*('Option1 (base case)'!N36-N36) -> 557836.0896 | O64: =(1-INDEX(Data!$C$9:$C$13, MATCH($A$3, options,0)))*('Option1 (base case)'!O36-O36) -> 571375.5222 | P64: =(1-INDEX(Data!$C$9:$C$13, MATCH($A$3, options,0)))*('Option1 (base case)'!P36-P36) -> 585650.3537 | Q64: =(1-INDEX(Data!$C$9:$C$13, MATCH($A$3, options,0)))*('Option1 (base case)'!Q36-Q36) -> 594655.5363 | R64: =(1-INDEX(Data!$C$9:$C$13, MATCH($A$3, options,0)))*('Option1 (base case)'!R36-R36) -> 596214.0848 | S64: =(1-INDEX(Data!$C$9:$C$13, MATCH($A$3, options,0)))*('Option1 (base case)'!S36-S36) -> 598481.2091 | T64: =(1-INDEX(Data!$C$9:$C$13, MATCH($A$3, options,0)))*('Option1 (base case)'!T36-T36) -> 601798.8028 | U64: =(1-INDEX(Data!$C$9:$C$13, MATCH($A$3, options,0)))*('Option1 (base case)'!U36-U36) -> 606659.6052 | V64: =(1-INDEX(Data!$C$9:$C$13, MATCH($A$3, options,0)))*('Option1 (base case)'!V36-V36) -> 613793.0679 | W64: =(1-INDEX(Data!$C$9:$C$13, MATCH($A$3, options,0)))*('Option1 (base case)'!W36-W36) -> 624292.4963 | X64: =(1-INDEX(Data!$C$9:$C$13, MATCH($A$3, options,0)))*('Option1 (base case)'!X36-X36) -> 639786.6915 | Y64: =(1-INDEX(Data!$C$9:$C$13, MATCH($A$3, options,0)))*('Option1 (base case)'!Y36-Y36) -> 662705.386 | Z64: =(1-INDEX(Data!$C$9:$C$13, MATCH($A$3, options,0)))*('Option1 (base case)'!Z36-Z36) -> 696677.3427 | AA64: =(1-INDEX(Data!$C$9:$C$13, MATCH($A$3, options,0)))*('Option1 (base case)'!AA36-AA36) -> 707916.5495 | AB64: =(1-INDEX(Data!$C$9:$C$13, MATCH($A$3, options,0)))*('Option1 (base case)'!AB36-AB36) -> 716355.1226 | AC64: =(1-INDEX(Data!$C$9:$C$13, MATCH($A$3, options,0)))*('Option1 (base case)'!AC36-AC36) -> 728313.8607 | AD64: =(1-INDEX(Data!$C$9:$C$13, MATCH($A$3, options,0)))*('Option1 (base case)'!AD36-AD36) -> 745087.599 | AE64: =(1-INDEX(Data!$C$9:$C$13, MATCH($A$3, options,0)))*('Option1 (base case)'!AE36-AE36) -> 758125.5039 | AF64: =(1-INDEX(Data!$C$9:$C$13, MATCH($A$3, options,0)))*('Option1 (base case)'!AF36-AF36) -> 759497.0004 | AG64: =(1-INDEX(Data!$C$9:$C$13, MATCH($A$3, options,0)))*('Option1 (base case)'!AG36-AG36) -> 761461.6636
C66: Capital expenditure
C67: =C14 -> Switchboard | G67: =input_dollars -> 2023-12-31 | I67: =-I14 -> 0 | J67: 0 | K67: -1447820.424 | L67: -2895640.847 | M67: 0 | N67: 0 | O67: 0 | P67: 0 | Q67: 0 | R67: 0 | S67: 0 | T67: 0 | U67: 0 | V67: 0 | W67: 0 | X67: 0 | Y67: 0 | Z67: 0 | AA67: 0 | AB67: 0 | AC67: 0 | AD67: 0 | AE67: 0 | AF67: 0 | AG67: 0
C68: =C15 -> Relays | G68: =input_dollars -> 2023-12-31 | I68: =-I15 -> 0 | J68: 0 | K68: -965213.6157 | L68: -1930427.231 | M68: 0 | N68: 0 | O68: 0 | P68: 0 | Q68: 0 | R68: 0 | S68: 0 | T68: 0 | U68: 0 | V68: 0 | W68: 0 | X68: 0 | Y68: 0 | Z68: 0 | AA68: 0 | AB68: 0 | AC68: 0 | AD68: 0 | AE68: 0 | AF68: 0 | AG68: 0
C69: =C16 -> 0 | G69: =input_dollars -> 2023-12-31 | I69: =-I16 -> 0 | J69: 0 | K69: 0 | L69: 0 | M69: 0 | N69: 0 | O69: 0 | P69: 0 | Q69: 0 | R69: 0 | S69: 0 | T69: 0 | U69: 0 | V69: 0 | W69: 0 | X69: 0 | Y69: 0 | Z69: 0 | AA69: 0 | AB69: 0 | AC69: 0 | AD69: 0 | AE69: 0 | AF69: 0 | AG69: 0
C71: Cumulative capex
C72: =C14 -> Switchboard | G72: =input_dollars -> 2023-12-31 | I72: =SUMPRODUCT(($I67:I67))-SUMPRODUCT(($I67:I67)*($I$6:I$6<=(I$6-$E14))) -> 0 | J72: =SUMPRODUCT(($I67:J67))-SUMPRODUCT(($I67:J67)*($I$6:J$6<=(J$6-$E14))) -> 0 | K72: =SUMPRODUCT(($I67:K67))-SUMPRODUCT(($I67:K67)*($I$6:K$6<=(K$6-$E14))) -> -1447820.424 | L72: =SUMPRODUCT(($I67:L67))-SUMPRODUCT(($I67:L67)*($I$6:L$6<=(L$6-$E14))) -> -4343461.271 | M72: =SUMPRODUCT(($I67:M67))-SUMPRODUCT(($I67:M67)*($I$6:M$6<=(M$6-$E14))) -> -4343461.271 | N72: =SUMPRODUCT(($I67:N67))-SUMPRODUCT(($I67:N67)*($I$6:N$6<=(N$6-$E14))) -> -4343461.271 | O72: =SUMPRODUCT(($I67:O67))-SUMPRODUCT(($I67:O67)*($I$6:O$6<=(O$6-$E14))) -> -4343461.271 | P72: =SUMPRODUCT(($I67:P67))-SUMPRODUCT(($I67:P67)*($I$6:P$6<=(P$6-$E14))) -> -4343461.271 | Q72: =SUMPRODUCT(($I67:Q67))-SUMPRODUCT(($I67:Q67)*($I$6:Q$6<=(Q$6-$E14))) -> -4343461.271 | R72: =SUMPRODUCT(($I67:R67))-SUMPRODUCT(($I67:R67)*($I$6:R$6<=(R$6-$E14))) -> -4343461.271 | S72: =SUMPRODUCT(($I67:S67))-SUMPRODUCT(($I67:S67)*($I$6:S$6<=(S$6-$E14))) -> -4343461.271 | T72: =SUMPRODUCT(($I67:T67))-SUMPRODUCT(($I67:T67)*($I$6:T$6<=(T$6-$E14))) -> -4343461.271 | U72: =SUMPRODUCT(($I67:U67))-SUMPRODUCT(($I67:U67)*($I$6:U$6<=(U$6-$E14))) -> -4343461.271 | V72: =SUMPRODUCT(($I67:V67))-SUMPRODUCT(($I67:V67)*($I$6:V$6<=(V$6-$E14))) -> -4343461.271 | W72: =SUMPRODUCT(($I67:W67))-SUMPRODUCT(($I67:W67)*($I$6:W$6<=(W$6-$E14))) -> -4343461.271 | X72: =SUMPRODUCT(($I67:X67))-SUMPRODUCT(($I67:X67)*($I$6:X$6<=(X$6-$E14))) -> -4343461.271 | Y72: =SUMPRODUCT(($I67:Y67))-SUMPRODUCT(($I67:Y67)*($I$6:Y$6<=(Y$6-$E14))) -> -4343461.271 | Z72: =SUMPRODUCT(($I67:Z67))-SUMPRODUCT(($I67:Z67)*($I$6:Z$6<=(Z$6-$E14))) -> -4343461.271 | AA72: =SUMPRODUCT(($I67:AA67))-SUMPRODUCT(($I67:AA67)*($I$6:AA$6<=(AA$6-$E14))) -> -4343461.271 | AB72: =SUMPRODUCT(($I67:AB67))-SUMPRODUCT(($I67:AB67)*($I$6:AB$6<=(AB$6-$E14))) -> -4343461.271 | AC72: =SUMPRODUCT(($I67:AC67))-SUMPRODUCT(($I67:AC67)*($I$6:AC$6<=(AC$6-$E14))) -> -4343461.271 | AD72: =SUMPRODUCT(($I67:AD67))-SUMPRODUCT(($I67:AD67)*($I$6:AD$6<=(AD$6-$E14))) -> -4343461.271 | AE72: =SUMPRODUCT(($I67:AE67))-SUMPRODUCT(($I67:AE67)*($I$6:AE$6<=(AE$6-$E14))) -> -4343461.271 | AF72: =SUMPRODUCT(($I67:AF67))-SUMPRODUCT(($I67:AF67)*($I$6:AF$6<=(AF$6-$E14))) -> -4343461.271 | AG72: =SUMPRODUCT(($I67:AG67))-SUMPRODUCT(($I67:AG67)*($I$6:AG$6<=(AG$6-$E14))) -> -4343461.271
C73: =C15 -> Relays | G73: =input_dollars -> 2023-12-31 | I73: =SUMPRODUCT(($I68:I68))-SUMPRODUCT(($I68:I68)*($I$6:I$6<=(I$6-$E15))) -> 0 | J73: =SUMPRODUCT(($I68:J68))-SUMPRODUCT(($I68:J68)*($I$6:J$6<=(J$6-$E15))) -> 0 | K73: =SUMPRODUCT(($I68:K68))-SUMPRODUCT(($I68:K68)*($I$6:K$6<=(K$6-$E15))) -> -965213.6157 | L73: =SUMPRODUCT(($I68:L68))-SUMPRODUCT(($I68:L68)*($I$6:L$6<=(L$6-$E15))) -> -2895640.847 | M73: =SUMPRODUCT(($I68:M68))-SUMPRODUCT(($I68:M68)*($I$6:M$6<=(M$6-$E15))) -> -2895640.847 | N73: =SUMPRODUCT(($I68:N68))-SUMPRODUCT(($I68:N68)*($I$6:N$6<=(N$6-$E15))) -> -2895640.847 | O73: =SUMPRODUCT(($I68:O68))-SUMPRODUCT(($I68:O68)*($I$6:O$6<=(O$6-$E15))) -> -2895640.847 | P73: =SUMPRODUCT(($I68:P68))-SUMPRODUCT(($I68:P68)*($I$6:P$6<=(P$6-$E15))) -> -2895640.847 | Q73: =SUMPRODUCT(($I68:Q68))-SUMPRODUCT(($I68:Q68)*($I$6:Q$6<=(Q$6-$E15))) -> -2895640.847 | R73: =SUMPRODUCT(($I68:R68))-SUMPRODUCT(($I68:R68)*($I$6:R$6<=(R$6-$E15))) -> -2895640.847 | S73: =SUMPRODUCT(($I68:S68))-SUMPRODUCT(($I68:S68)*($I$6:S$6<=(S$6-$E15))) -> -2895640.847 | T73: =SUMPRODUCT(($I68:T68))-SUMPRODUCT(($I68:T68)*($I$6:T$6<=(T$6-$E15))) -> -2895640.847 | U73: =SUMPRODUCT(($I68:U68))-SUMPRODUCT(($I68:U68)*($I$6:U$6<=(U$6-$E15))) -> -2895640.847 | V73: =SUMPRODUCT(($I68:V68))-SUMPRODUCT(($I68:V68)*($I$6:V$6<=(V$6-$E15))) -> -2895640.847 | W73: =SUMPRODUCT(($I68:W68))-SUMPRODUCT(($I68:W68)*($I$6:W$6<=(W$6-$E15))) -> -2895640.847 | X73: =SUMPRODUCT(($I68:X68))-SUMPRODUCT(($I68:X68)*($I$6:X$6<=(X$6-$E15))) -> -2895640.847 | Y73: =SUMPRODUCT(($I68:Y68))-SUMPRODUCT(($I68:Y68)*($I$6:Y$6<=(Y$6-$E15))) -> -2895640.847 | Z73: =SUMPRODUCT(($I68:Z68))-SUMPRODUCT(($I68:Z68)*($I$6:Z$6<=(Z$6-$E15))) -> -2895640.847 | AA73: =SUMPRODUCT(($I68:AA68))-SUMPRODUCT(($I68:AA68)*($I$6:AA$6<=(AA$6-$E15))) -> -2895640.847 | AB73: =SUMPRODUCT(($I68:AB68))-SUMPRODUCT(($I68:AB68)*($I$6:AB$6<=(AB$6-$E15))) -> -2895640.847 | AC73: =SUMPRODUCT(($I68:AC68))-SUMPRODUCT(($I68:AC68)*($I$6:AC$6<=(AC$6-$E15))) -> -2895640.847 | AD73: =SUMPRODUCT(($I68:AD68))-SUMPRODUCT(($I68:AD68)*($I$6:AD$6<=(AD$6-$E15))) -> -2895640.847 | AE73: =SUMPRODUCT(($I68:AE68))-SUMPRODUCT(($I68:AE68)*($I$6:AE$6<=(AE$6-$E15))) -> -2895640.847 | AF73: =SUMPRODUCT(($I68:AF68))-SUMPRODUCT(($I68:AF68)*($I$6:AF$6<=(AF$6-$E15))) -> -2895640.847 | AG73: =SUMPRODUCT(($I68:AG68))-SUMPRODUCT(($I68:AG68)*($I$6:AG$6<=(AG$6-$E15))) -> -2895640.847
C74: =C16 -> 0 | G74: =input_dollars -> 2023-12-31 | I74: =SUMPRODUCT(($I69:I69))-SUMPRODUCT(($I69:I69)*($I$6:I$6<=(I$6-$E16))) -> 0 | J74: =SUMPRODUCT(($I69:J69))-SUMPRODUCT(($I69:J69)*($I$6:J$6<=(J$6-$E16))) -> 0 | K74: =SUMPRODUCT(($I69:K69))-SUMPRODUCT(($I69:K69)*($I$6:K$6<=(K$6-$E16))) -> 0 | L74: =SUMPRODUCT(($I69:L69))-SUMPRODUCT(($I69:L69)*($I$6:L$6<=(L$6-$E16))) -> 0 | M74: =SUMPRODUCT(($I69:M69))-SUMPRODUCT(($I69:M69)*($I$6:M$6<=(M$6-$E16))) -> 0 | N74: =SUMPRODUCT(($I69:N69))-SUMPRODUCT(($I69:N69)*($I$6:N$6<=(N$6-$E16))) -> 0 | O74: =SUMPRODUCT(($I69:O69))-SUMPRODUCT(($I69:O69)*($I$6:O$6<=(O$6-$E16))) -> 0 | P74: =SUMPRODUCT(($I69:P69))-SUMPRODUCT(($I69:P69)*($I$6:P$6<=(P$6-$E16))) -> 0 | Q74: =SUMPRODUCT(($I69:Q69))-SUMPRODUCT(($I69:Q69)*($I$6:Q$6<=(Q$6-$E16))) -> 0 | R74: =SUMPRODUCT(($I69:R69))-SUMPRODUCT(($I69:R69)*($I$6:R$6<=(R$6-$E16))) -> 0 | S74: =SUMPRODUCT(($I69:S69))-SUMPRODUCT(($I69:S69)*($I$6:S$6<=(S$6-$E16))) -> 0 | T74: =SUMPRODUCT(($I69:T69))-SUMPRODUCT(($I69:T69)*($I$6:T$6<=(T$6-$E16))) -> 0 | U74: =SUMPRODUCT(($I69:U69))-SUMPRODUCT(($I69:U69)*($I$6:U$6<=(U$6-$E16))) -> 0 | V74: =SUMPRODUCT(($I69:V69))-SUMPRODUCT(($I69:V69)*($I$6:V$6<=(V$6-$E16))) -> 0 | W74: =SUMPRODUCT(($I69:W69))-SUMPRODUCT(($I69:W69)*($I$6:W$6<=(W$6-$E16))) -> 0 | X74: =SUMPRODUCT(($I69:X69))-SUMPRODUCT(($I69:X69)*($I$6:X$6<=(X$6-$E16))) -> 0 | Y74: =SUMPRODUCT(($I69:Y69))-SUMPRODUCT(($I69:Y69)*($I$6:Y$6<=(Y$6-$E16))) -> 0 | Z74: =SUMPRODUCT(($I69:Z69))-SUMPRODUCT(($I69:Z69)*($I$6:Z$6<=(Z$6-$E16))) -> 0 | AA74: =SUMPRODUCT(($I69:AA69))-SUMPRODUCT(($I69:AA69)*($I$6:AA$6<=(AA$6-$E16))) -> 0 | AB74: =SUMPRODUCT(($I69:AB69))-SUMPRODUCT(($I69:AB69)*($I$6:AB$6<=(AB$6-$E16))) -> 0 | AC74: =SUMPRODUCT(($I69:AC69))-SUMPRODUCT(($I69:AC69)*($I$6:AC$6<=(AC$6-$E16))) -> 0 | AD74: =SUMPRODUCT(($I69:AD69))-SUMPRODUCT(($I69:AD69)*($I$6:AD$6<=(AD$6-$E16))) -> 0 | AE74: =SUMPRODUCT(($I69:AE69))-SUMPRODUCT(($I69:AE69)*($I$6:AE$6<=(AE$6-$E16))) -> 0 | AF74: =SUMPRODUCT(($I69:AF69))-SUMPRODUCT(($I69:AF69)*($I$6:AF$6<=(AF$6-$E16))) -> 0 | AG74: =SUMPRODUCT(($I69:AG69))-SUMPRODUCT(($I69:AG69)*($I$6:AG$6<=(AG$6-$E16))) -> 0
C76: Annualised capex
C77: =$C$76&" - "&C14 -> Annualised capex - Switchboard | G77: =input_dollars -> 2023-12-31 | I77: =IF($E14=0,0,-PMT(real_disc, $E14,H72,)) -> 0 | J77: 0 | K77: 0 | L77: -61725.95545 | M77: -185177.8663 | N77: -185177.8663 | O77: -185177.8663 | P77: -185177.8663 | Q77: -185177.8663 | R77: -185177.8663 | S77: -185177.8663 | T77: -185177.8663 | U77: -185177.8663 | V77: -185177.8663 | W77: -185177.8663 | X77: -185177.8663 | Y77: -185177.8663 | Z77: -185177.8663 | AA77: -185177.8663 | AB77: -185177.8663 | AC77: -185177.8663 | AD77: -185177.8663 | AE77: -185177.8663 | AF77: -185177.8663 | AG77: -185177.8663
C78: =$C$76&" - "&C15 -> Annualised capex - Relays | G78: =input_dollars -> 2023-12-31 | I78: =IF($E15=0,0,-PMT(real_disc, $E15,H73,)) -> 0 | J78: 0 | K78: 0 | L78: -58563.4051 | M78: -175690.2153 | N78: -175690.2153 | O78: -175690.2153 | P78: -175690.2153 | Q78: -175690.2153 | R78: -175690.2153 | S78: -175690.2153 | T78: -175690.2153 | U78: -175690.2153 | V78: -175690.2153 | W78: -175690.2153 | X78: -175690.2153 | Y78: -175690.2153 | Z78: -175690.2153 | AA78: -175690.2153 | AB78: -175690.2153 | AC78: -175690.2153 | AD78: -175690.2153 | AE78: -175690.2153 | AF78: -175690.2153 | AG78: -175690.2153
C79: =$C$76&" - "&C16 -> Annualised capex - | G79: =input_dollars -> 2023-12-31 | I79: =IF($E16=0,0,-PMT(real_disc, $E16,H74,)) -> 0 | J79: 0 | K79: 0 | L79: 0 | M79: 0 | N79: 0 | O79: 0 | P79: 0 | Q79: 0 | R79: 0 | S79: 0 | T79: 0 | U79: 0 | V79: 0 | W79: 0 | X79: 0 | Y79: 0 | Z79: 0 | AA79: 0 | AB79: 0 | AC79: 0 | AD79: 0 | AE79: 0 | AF79: 0 | AG79: 0
C80: Total annualised capex | G80: =input_dollars -> 2023-12-31 | I80: =SUM(I77:I79) -> 0 | J80: =SUM(J77:J79) -> 0 | K80: 0 | L80: -120289.3605 | M80: -360868.0816 | N80: -360868.0816 | O80: -360868.0816 | P80: -360868.0816 | Q80: -360868.0816 | R80: -360868.0816 | S80: -360868.0816 | T80: -360868.0816 | U80: -360868.0816 | V80: -360868.0816 | W80: -360868.0816 | X80: -360868.0816 | Y80: -360868.0816 | Z80: -360868.0816 | AA80: -360868.0816 | AB80: -360868.0816 | AC80: =SUM(AC77:AC79) -> -360868.0816 | AD80: =SUM(AD77:AD79) -> -360868.0816 | AE80: =SUM(AE77:AE79) -> -360868.0816 | AF80: =SUM(AF77:AF79) -> -360868.0816 | AG80: =SUM(AG77:AG79) -> -360868.0816
C82: Annualised capex | G82: =input_dollars -> 2023-12-31 | I82: =I80 -> 0 | J82: =J80 -> 0 | K82: 0 | L82: -120289.3605 | M82: -360868.0816 | N82: -360868.0816 | O82: -360868.0816 | P82: -360868.0816 | Q82: -360868.0816 | R82: -360868.0816 | S82: -360868.0816 | T82: -360868.0816 | U82: -360868.0816 | V82: -360868.0816 | W82: -360868.0816 | X82: -360868.0816 | Y82: -360868.0816 | Z82: -360868.0816 | AA82: -360868.0816 | AB82: -360868.0816 | AC82: =AC80 -> -360868.0816 | AD82: =AD80 -> -360868.0816 | AE82: =AE80 -> -360868.0816 | AF82: =AF80 -> -360868.0816 | AG82: =AG80 -> -360868.0816
C83: Operating expenditure | G83: 2023-12-31 | I83: =-I19 -> 0 | J83: 0 | K83: 0 | L83: 0 | M83: 0 | N83: 0 | O83: 0 | P83: 0 | Q83: 0 | R83: 0 | S83: 0 | T83: 0 | U83: 0 | V83: 0 | W83: 0 | X83: 0 | Y83: 0 | Z83: 0 | AA83: 0 | AB83: 0 | AC83: 0 | AD83: 0 | AE83: 0 | AF83: 0 | AG83: 0
C84: Risk mitigated | G84: 2023-12-31 | I84: =I64 -> 0 | J84: =J64 -> 0 | K84: 0 | L84: 0 | M84: 548909.371 | N84: 557836.0896 | O84: 571375.5222 | P84: 585650.3537 | Q84: 594655.5363 | R84: 596214.0848 | S84: 598481.2091 | T84: 601798.8028 | U84: 606659.6052 | V84: 613793.0679 | W84: 624292.4963 | X84: 639786.6915 | Y84: 662705.386 | Z84: 696677.3427 | AA84: 707916.5495 | AB84: 716355.1226 | AC84: =AC64 -> 728313.8607 | AD84: =AD64 -> 745087.599 | AE84: =AE64 -> 758125.5039 | AF84: =AF64 -> 759497.0004 | AG84: =AG64 -> 761461.6636
C85: Other benefits value | G85: 2023-12-31 | I85: =I57 -> 0 | J85: 0 | K85: 0 | L85: 0 | M85: 0 | N85: 0 | O85: 0 | P85: 0 | Q85: 0 | R85: 0 | S85: 0 | T85: 0 | U85: 0 | V85: 0 | W85: 0 | X85: 0 | Y85: 0 | Z85: 0 | AA85: 0 | AB85: 0 | AC85: 0 | AD85: 0 | AE85: 0 | AF85: 0 | AG85: 0
C87: Net benefits | G87: 2023-12-31 | I87: =SUM(I82:I86) -> 0 | J87: 0 | K87: 0 | L87: -120289.3605 | M87: 188041.2894 | N87: 196968.008 | O87: 210507.4406 | P87: 224782.2721 | Q87: 233787.4547 | R87: 235346.0031 | S87: 237613.1274 | T87: 240930.7211 | U87: 245791.5236 | V87: 252924.9862 | W87: 263424.4147 | X87: 278918.6099 | Y87: 301837.3043 | Z87: 335809.261 | AA87: 347048.4678 | AB87: 355487.041 | AC87: =SUM(AC82:AC86) -> 367445.779 | AD87: =SUM(AD82:AD86) -> 384219.5174 | AE87: =SUM(AE82:AE86) -> 397257.4222 | AF87: =SUM(AF82:AF86) -> 398628.9188 | AG87: =SUM(AG82:AG86) -> 400593.582
C90: First capex year | G90: =IF(SUM($I17:$AG17)=0,0,(INDEX(I$6:AG$6,MATCH(TRUE,INDEX($I17:$AG17<>0,),0)))) -> 3
C92: First year | G92: =IF(_xlfn.MINIFS($G$90:$G$91, $G$90:$G$91, ">"&0)=0, $A$4, _xlfn.MINIFS($G$90:$G$91, $G$90:$G$91, ">"&0)) -> 3
A102: SENSITIVITIES
A106: NPV | C106: Net benefits | G106: =PROPER($A$3)&A106 -> Option 2NPV | I106: =I87 -> 0 | J106: =J87 -> 0 | K106: 0 | L106: -120289.3605 | M106: 188041.2894 | N106: 196968.008 | O106: 210507.4406 | P106: 224782.2721 | Q106: 233787.4547 | R106: 235346.0031 | S106: 237613.1274 | T106: 240930.7211 | U106: 245791.5236 | V106: 252924.9862 | W106: 263424.4147 | X106: 278918.6099 | Y106: 301837.3043 | Z106: 335809.261 | AA106: 347048.4678 | AB106: 355487.041 | AC106: 367445.779 | AD106: 384219.5174 | AE106: 397257.4222 | AF106: 398628.9188 | AG106: 400593.582
C107: Total annualised capex | I107: =I82 -> 0 | J107: =J82 -> 0 | K107: 0 | L107: -120289.3605 | M107: -360868.0816 | N107: -360868.0816 | O107: -360868.0816 | P107: -360868.0816 | Q107: -360868.0816 | R107: -360868.0816 | S107: -360868.0816 | T107: -360868.0816 | U107: -360868.0816 | V107: -360868.0816 | W107: -360868.0816 | X107: -360868.0816 | Y107: -360868.0816 | Z107: -360868.0816 | AA107: -360868.0816 | AB107: -360868.0816 | AC107: -360868.0816 | AD107: -360868.0816 | AE107: -360868.0816 | AF107: -360868.0816 | AG107: -360868.0816
C108: Total benefits | I108: =SUM(I84:I85) -> 0 | J108: =SUM(J84:J85) -> 0 | K108: 0 | L108: 0 | M108: 548909.371 | N108: 557836.0896 | O108: 571375.5222 | P108: 585650.3537 | Q108: 594655.5363 | R108: 596214.0848 | S108: 598481.2091 | T108: 601798.8028 | U108: 606659.6052 | V108: 613793.0679 | W108: 624292.4963 | X108: 639786.6915 | Y108: 662705.386 | Z108: 696677.3427 | AA108: 707916.5495 | AB108: 716355.1226 | AC108: 728313.8607 | AD108: 745087.599 | AE108: 758125.5039 | AF108: 759497.0004 | AG108: 761461.6636
D109: =Assumptions!G110 -> Capex | E109: =Assumptions!H110 -> Total benefits
A110: ="sens"&Assumptions!B111 -> sens1 | C110: =Assumptions!C111 -> Capex 10% higher | D110: =Assumptions!G111 -> 0.1 | E110: =Assumptions!H111 -> 0 | G110: =PROPER($A$3)&A110 -> Option 2sens1 | I110: =I$106+IF($C110<>0,SUMPRODUCT((I$107:I$108)*TRANSPOSE(($D110:$E110))),0) -> 0 | J110: =J$106+IF($C110<>0,SUMPRODUCT((J$107:J$108)*TRANSPOSE(($D110:$E110))),0) -> 0 | K110: =K$106+IF($C110<>0,SUMPRODUCT((K$107:K$108)*TRANSPOSE(($D110:$E110))),0) -> 0 | L110: =L$106+IF($C110<>0,SUMPRODUCT((L$107:L$108)*TRANSPOSE(($D110:$E110))),0) -> -132318.2966 | M110: =M$106+IF($C110<>0,SUMPRODUCT((M$107:M$108)*TRANSPOSE(($D110:$E110))),0) -> 151954.4812 | N110: =N$106+IF($C110<>0,SUMPRODUCT((N$107:N$108)*TRANSPOSE(($D110:$E110))),0) -> 160881.1998 | O110: =O$106+IF($C110<>0,SUMPRODUCT((O$107:O$108)*TRANSPOSE(($D110:$E110))),0) -> 174420.6324 | P110: =P$106+IF($C110<>0,SUMPRODUCT((P$107:P$108)*TRANSPOSE(($D110:$E110))),0) -> 188695.4639 | Q110: =Q$106+IF($C110<>0,SUMPRODUCT((Q$107:Q$108)*TRANSPOSE(($D110:$E110))),0) -> 197700.6465 | R110: =R$106+IF($C110<>0,SUMPRODUCT((R$107:R$108)*TRANSPOSE(($D110:$E110))),0) -> 199259.195 | S110: =S$106+IF($C110<>0,SUMPRODUCT((S$107:S$108)*TRANSPOSE(($D110:$E110))),0) -> 201526.3193 | T110: =T$106+IF($C110<>0,SUMPRODUCT((T$107:T$108)*TRANSPOSE(($D110:$E110))),0) -> 204843.913 | U110: =U$106+IF($C110<>0,SUMPRODUCT((U$107:U$108)*TRANSPOSE(($D110:$E110))),0) -> 209704.7154 | V110: =V$106+IF($C110<>0,SUMPRODUCT((V$107:V$108)*TRANSPOSE(($D110:$E110))),0) -> 216838.1781 | W110: =W$106+IF($C110<>0,SUMPRODUCT((W$107:W$108)*TRANSPOSE(($D110:$E110))),0) -> 227337.6065 | X110: =X$106+IF($C110<>0,SUMPRODUCT((X$107:X$108)*TRANSPOSE(($D110:$E110))),0) -> 242831.8017 | Y110: =Y$106+IF($C110<>0,SUMPRODUCT((Y$107:Y$108)*TRANSPOSE(($D110:$E110))),0) -> 265750.4962 | Z110: =Z$106+IF($C110<>0,SUMPRODUCT((Z$107:Z$108)*TRANSPOSE(($D110:$E110))),0) -> 299722.4529 | AA110: =AA$106+IF($C110<>0,SUMPRODUCT((AA$107:AA$108)*TRANSPOSE(($D110:$E110))),0) -> 310961.6597 | AB110: =AB$106+IF($C110<>0,SUMPRODUCT((AB$107:AB$108)*TRANSPOSE(($D110:$E110))),0) -> 319400.2328 | AC110: =AC$106+IF($C110<>0,SUMPRODUCT((AC$107:AC$108)*TRANSPOSE(($D110:$E110))),0) -> 331358.9709 | AD110: =AD$106+IF($C110<>0,SUMPRODUCT((AD$107:AD$108)*TRANSPOSE(($D110:$E110))),0) -> 348132.7092 | AE110: =AE$106+IF($C110<>0,SUMPRODUCT((AE$107:AE$108)*TRANSPOSE(($D110:$E110))),0) -> 361170.6141 | AF110: =AF$106+IF($C110<>0,SUMPRODUCT((AF$107:AF$108)*TRANSPOSE(($D110:$E110))),0) -> 362542.1106 | AG110: =AG$106+IF($C110<>0,SUMPRODUCT((AG$107:AG$108)*TRANSPOSE(($D110:$E110))),0) -> 364506.7738
A111: ="sens"&Assumptions!B112 -> sens2 | C111: =Assumptions!C112 -> Capex 10% lower | D111: =Assumptions!G112 -> -0.1 | E111: =Assumptions!H112 -> 0 | G111: =PROPER($A$3)&A111 -> Option 2sens2 | I111: =I$106+IF($C111<>0,SUMPRODUCT((I$107:I$108)*TRANSPOSE(($D111:$E111))),0) -> 0 | J111: =J$106+IF($C111<>0,SUMPRODUCT((J$107:J$108)*TRANSPOSE(($D111:$E111))),0) -> 0 | K111: =K$106+IF($C111<>0,SUMPRODUCT((K$107:K$108)*TRANSPOSE(($D111:$E111))),0) -> 0 | L111: =L$106+IF($C111<>0,SUMPRODUCT((L$107:L$108)*TRANSPOSE(($D111:$E111))),0) -> -108260.4245 | M111: =M$106+IF($C111<>0,SUMPRODUCT((M$107:M$108)*TRANSPOSE(($D111:$E111))),0) -> 224128.0975 | N111: =N$106+IF($C111<>0,SUMPRODUCT((N$107:N$108)*TRANSPOSE(($D111:$E111))),0) -> 233054.8161 | O111: =O$106+IF($C111<>0,SUMPRODUCT((O$107:O$108)*TRANSPOSE(($D111:$E111))),0) -> 246594.2487 | P111: =P$106+IF($C111<>0,SUMPRODUCT((P$107:P$108)*TRANSPOSE(($D111:$E111))),0) -> 260869.0802 | Q111: =Q$106+IF($C111<>0,SUMPRODUCT((Q$107:Q$108)*TRANSPOSE(($D111:$E111))),0) -> 269874.2629 | R111: =R$106+IF($C111<>0,SUMPRODUCT((R$107:R$108)*TRANSPOSE(($D111:$E111))),0) -> 271432.8113 | S111: =S$106+IF($C111<>0,SUMPRODUCT((S$107:S$108)*TRANSPOSE(($D111:$E111))),0) -> 273699.9356 | T111: =T$106+IF($C111<>0,SUMPRODUCT((T$107:T$108)*TRANSPOSE(($D111:$E111))),0) -> 277017.5293 | U111: =U$106+IF($C111<>0,SUMPRODUCT((U$107:U$108)*TRANSPOSE(($D111:$E111))),0) -> 281878.3318 | V111: =V$106+IF($C111<>0,SUMPRODUCT((V$107:V$108)*TRANSPOSE(($D111:$E111))),0) -> 289011.7944 | W111: =W$106+IF($C111<>0,SUMPRODUCT((W$107:W$108)*TRANSPOSE(($D111:$E111))),0) -> 299511.2229 | X111: =X$106+IF($C111<>0,SUMPRODUCT((X$107:X$108)*TRANSPOSE(($D111:$E111))),0) -> 315005.4181 | Y111: =Y$106+IF($C111<>0,SUMPRODUCT((Y$107:Y$108)*TRANSPOSE(($D111:$E111))),0) -> 337924.1125 | Z111: =Z$106+IF($C111<>0,SUMPRODUCT((Z$107:Z$108)*TRANSPOSE(($D111:$E111))),0) -> 371896.0692 | AA111: =AA$106+IF($C111<>0,SUMPRODUCT((AA$107:AA$108)*TRANSPOSE(($D111:$E111))),0) -> 383135.276 | AB111: =AB$106+IF($C111<>0,SUMPRODUCT((AB$107:AB$108)*TRANSPOSE(($D111:$E111))),0) -> 391573.8492 | AC111: =AC$106+IF($C111<>0,SUMPRODUCT((AC$107:AC$108)*TRANSPOSE(($D111:$E111))),0) -> 403532.5872 | AD111: =AD$106+IF($C111<>0,SUMPRODUCT((AD$107:AD$108)*TRANSPOSE(($D111:$E111))),0) -> 420306.3255 | AE111: =AE$106+IF($C111<>0,SUMPRODUCT((AE$107:AE$108)*TRANSPOSE(($D111:$E111))),0) -> 433344.2304 | AF111: =AF$106+IF($C111<>0,SUMPRODUCT((AF$107:AF$108)*TRANSPOSE(($D111:$E111))),0) -> 434715.7269 | AG111: =AG$106+IF($C111<>0,SUMPRODUCT((AG$107:AG$108)*TRANSPOSE(($D111:$E111))),0) -> 436680.3901
A112: ="sens"&Assumptions!B113 -> sens3 | C112: =Assumptions!C113 -> Total benefits 10% higher | D112: =Assumptions!G113 -> 0 | E112: =Assumptions!H113 -> 0.1 | G112: Option 2sens3 | I112: =I$106+IF($C112<>0,SUMPRODUCT((I$107:I$108)*TRANSPOSE(($D112:$E112))),0) -> 0 | J112: =J$106+IF($C112<>0,SUMPRODUCT((J$107:J$108)*TRANSPOSE(($D112:$E112))),0) -> 0 | K112: =K$106+IF($C112<>0,SUMPRODUCT((K$107:K$108)*TRANSPOSE(($D112:$E112))),0) -> 0 | L112: =L$106+IF($C112<>0,SUMPRODUCT((L$107:L$108)*TRANSPOSE(($D112:$E112))),0) -> -120289.3605 | M112: =M$106+IF($C112<>0,SUMPRODUCT((M$107:M$108)*TRANSPOSE(($D112:$E112))),0) -> 242932.2265 | N112: =N$106+IF($C112<>0,SUMPRODUCT((N$107:N$108)*TRANSPOSE(($D112:$E112))),0) -> 252751.6169 | O112: =O$106+IF($C112<>0,SUMPRODUCT((O$107:O$108)*TRANSPOSE(($D112:$E112))),0) -> 267644.9928 | P112: =P$106+IF($C112<>0,SUMPRODUCT((P$107:P$108)*TRANSPOSE(($D112:$E112))),0) -> 283347.3074 | Q112: =Q$106+IF($C112<>0,SUMPRODUCT((Q$107:Q$108)*TRANSPOSE(($D112:$E112))),0) -> 293253.0083 | R112: =R$106+IF($C112<>0,SUMPRODUCT((R$107:R$108)*TRANSPOSE(($D112:$E112))),0) -> 294967.4116 | S112: =S$106+IF($C112<>0,SUMPRODUCT((S$107:S$108)*TRANSPOSE(($D112:$E112))),0) -> 297461.2483 | T112: =T$106+IF($C112<>0,SUMPRODUCT((T$107:T$108)*TRANSPOSE(($D112:$E112))),0) -> 301110.6014 | U112: =U$106+IF($C112<>0,SUMPRODUCT((U$107:U$108)*TRANSPOSE(($D112:$E112))),0) -> 306457.4841 | V112: =V$106+IF($C112<>0,SUMPRODUCT((V$107:V$108)*TRANSPOSE(($D112:$E112))),0) -> 314304.293 | W112: =W$106+IF($C112<>0,SUMPRODUCT((W$107:W$108)*TRANSPOSE(($D112:$E112))),0) -> 325853.6643 | X112: =X$106+IF($C112<>0,SUMPRODUCT((X$107:X$108)*TRANSPOSE(($D112:$E112))),0) -> 342897.2791 | Y112: =Y$106+IF($C112<>0,SUMPRODUCT((Y$107:Y$108)*TRANSPOSE(($D112:$E112))),0) -> 368107.8429 | Z112: =Z$106+IF($C112<>0,SUMPRODUCT((Z$107:Z$108)*TRANSPOSE(($D112:$E112))),0) -> 405476.9953 | AA112: =AA$106+IF($C112<>0,SUMPRODUCT((AA$107:AA$108)*TRANSPOSE(($D112:$E112))),0) -> 417840.1228 | AB112: =AB$106+IF($C112<>0,SUMPRODUCT((AB$107:AB$108)*TRANSPOSE(($D112:$E112))),0) -> 427122.5533 | AC112: =AC$106+IF($C112<>0,SUMPRODUCT((AC$107:AC$108)*TRANSPOSE(($D112:$E112))),0) -> 440277.1651 | AD112: =AD$106+IF($C112<>0,SUMPRODUCT((AD$107:AD$108)*TRANSPOSE(($D112:$E112))),0) -> 458728.2773 | AE112: =AE$106+IF($C112<>0,SUMPRODUCT((AE$107:AE$108)*TRANSPOSE(($D112:$E112))),0) -> 473069.9726 | AF112: =AF$106+IF($C112<>0,SUMPRODUCT((AF$107:AF$108)*TRANSPOSE(($D112:$E112))),0) -> 474578.6188 | AG112: =AG$106+IF($C112<>0,SUMPRODUCT((AG$107:AG$108)*TRANSPOSE(($D112:$E112))),0) -> 476739.7483
A113: ="sens"&Assumptions!B114 -> sens4 | C113: =Assumptions!C114 -> Total benefits 10% lower | D113: =Assumptions!G114 -> 0 | E113: =Assumptions!H114 -> -0.1 | G113: Option 2sens4 | I113: =I$106+IF($C113<>0,SUMPRODUCT((I$107:I$108)*TRANSPOSE(($D113:$E113))),0) -> 0 | J113: =J$106+IF($C113<>0,SUMPRODUCT((J$107:J$108)*TRANSPOSE(($D113:$E113))),0) -> 0 | K113: =K$106+IF($C113<>0,SUMPRODUCT((K$107:K$108)*TRANSPOSE(($D113:$E113))),0) -> 0 | L113: =L$106+IF($C113<>0,SUMPRODUCT((L$107:L$108)*TRANSPOSE(($D113:$E113))),0) -> -120289.3605 | M113: =M$106+IF($C113<>0,SUMPRODUCT((M$107:M$108)*TRANSPOSE(($D113:$E113))),0) -> 133150.3523 | N113: =N$106+IF($C113<>0,SUMPRODUCT((N$107:N$108)*TRANSPOSE(($D113:$E113))),0) -> 141184.399 | O113: =O$106+IF($C113<>0,SUMPRODUCT((O$107:O$108)*TRANSPOSE(($D113:$E113))),0) -> 153369.8884 | P113: =P$106+IF($C113<>0,SUMPRODUCT((P$107:P$108)*TRANSPOSE(($D113:$E113))),0) -> 166217.2367 | Q113: =Q$106+IF($C113<>0,SUMPRODUCT((Q$107:Q$108)*TRANSPOSE(($D113:$E113))),0) -> 174321.9011 | R113: =R$106+IF($C113<>0,SUMPRODUCT((R$107:R$108)*TRANSPOSE(($D113:$E113))),0) -> 175724.5946 | S113: =S$106+IF($C113<>0,SUMPRODUCT((S$107:S$108)*TRANSPOSE(($D113:$E113))),0) -> 177765.0065 | T113: =T$106+IF($C113<>0,SUMPRODUCT((T$107:T$108)*TRANSPOSE(($D113:$E113))),0) -> 180750.8408 | U113: =U$106+IF($C113<>0,SUMPRODUCT((U$107:U$108)*TRANSPOSE(($D113:$E113))),0) -> 185125.5631 | V113: =V$106+IF($C113<>0,SUMPRODUCT((V$107:V$108)*TRANSPOSE(($D113:$E113))),0) -> 191545.6794 | W113: =W$106+IF($C113<>0,SUMPRODUCT((W$107:W$108)*TRANSPOSE(($D113:$E113))),0) -> 200995.1651 | X113: =X$106+IF($C113<>0,SUMPRODUCT((X$107:X$108)*TRANSPOSE(($D113:$E113))),0) -> 214939.9408 | Y113: =Y$106+IF($C113<>0,SUMPRODUCT((Y$107:Y$108)*TRANSPOSE(($D113:$E113))),0) -> 235566.7657 | Z113: =Z$106+IF($C113<>0,SUMPRODUCT((Z$107:Z$108)*TRANSPOSE(($D113:$E113))),0) -> 266141.5268 | AA113: =AA$106+IF($C113<>0,SUMPRODUCT((AA$107:AA$108)*TRANSPOSE(($D113:$E113))),0) -> 276256.8129 | AB113: =AB$106+IF($C113<>0,SUMPRODUCT((AB$107:AB$108)*TRANSPOSE(($D113:$E113))),0) -> 283851.5287 | AC113: =AC$106+IF($C113<>0,SUMPRODUCT((AC$107:AC$108)*TRANSPOSE(($D113:$E113))),0) -> 294614.393 | AD113: =AD$106+IF($C113<>0,SUMPRODUCT((AD$107:AD$108)*TRANSPOSE(($D113:$E113))),0) -> 309710.7575 | AE113: =AE$106+IF($C113<>0,SUMPRODUCT((AE$107:AE$108)*TRANSPOSE(($D113:$E113))),0) -> 321444.8718 | AF113: =AF$106+IF($C113<>0,SUMPRODUCT((AF$107:AF$108)*TRANSPOSE(($D113:$E113))),0) -> 322679.2187 | AG113: =AG$106+IF($C113<>0,SUMPRODUCT((AG$107:AG$108)*TRANSPOSE(($D113:$E113))),0) -> 324447.4156
A114: ="sens"&Assumptions!B115 -> sens5 | C114: =Assumptions!C115 -> Capex 10% higher & Total benefits 10% lower | D114: =Assumptions!G115 -> 0.1 | E114: =Assumptions!H115 -> -0.1 | G114: Option 2sens5 | I114: =I$106+IF($C114<>0,SUMPRODUCT((I$107:I$108)*TRANSPOSE(($D114:$E114))),0) -> 0 | J114: =J$106+IF($C114<>0,SUMPRODUCT((J$107:J$108)*TRANSPOSE(($D114:$E114))),0) -> 0 | K114: =K$106+IF($C114<>0,SUMPRODUCT((K$107:K$108)*TRANSPOSE(($D114:$E114))),0) -> 0 | L114: =L$106+IF($C114<>0,SUMPRODUCT((L$107:L$108)*TRANSPOSE(($D114:$E114))),0) -> -132318.2966 | M114: =M$106+IF($C114<>0,SUMPRODUCT((M$107:M$108)*TRANSPOSE(($D114:$E114))),0) -> 97063.5441 | N114: =N$106+IF($C114<>0,SUMPRODUCT((N$107:N$108)*TRANSPOSE(($D114:$E114))),0) -> 105097.5909 | O114: =O$106+IF($C114<>0,SUMPRODUCT((O$107:O$108)*TRANSPOSE(($D114:$E114))),0) -> 117283.0802 | P114: =P$106+IF($C114<>0,SUMPRODUCT((P$107:P$108)*TRANSPOSE(($D114:$E114))),0) -> 130130.4285 | Q114: =Q$106+IF($C114<>0,SUMPRODUCT((Q$107:Q$108)*TRANSPOSE(($D114:$E114))),0) -> 138235.0929 | R114: =R$106+IF($C114<>0,SUMPRODUCT((R$107:R$108)*TRANSPOSE(($D114:$E114))),0) -> 139637.7865 | S114: =S$106+IF($C114<>0,SUMPRODUCT((S$107:S$108)*TRANSPOSE(($D114:$E114))),0) -> 141678.1984 | T114: =T$106+IF($C114<>0,SUMPRODUCT((T$107:T$108)*TRANSPOSE(($D114:$E114))),0) -> 144664.0327 | U114: =U$106+IF($C114<>0,SUMPRODUCT((U$107:U$108)*TRANSPOSE(($D114:$E114))),0) -> 149038.7549 | V114: =V$106+IF($C114<>0,SUMPRODUCT((V$107:V$108)*TRANSPOSE(($D114:$E114))),0) -> 155458.8713 | W114: =W$106+IF($C114<>0,SUMPRODUCT((W$107:W$108)*TRANSPOSE(($D114:$E114))),0) -> 164908.3569 | X114: =X$106+IF($C114<>0,SUMPRODUCT((X$107:X$108)*TRANSPOSE(($D114:$E114))),0) -> 178853.1326 | Y114: =Y$106+IF($C114<>0,SUMPRODUCT((Y$107:Y$108)*TRANSPOSE(($D114:$E114))),0) -> 199479.9576 | Z114: =Z$106+IF($C114<>0,SUMPRODUCT((Z$107:Z$108)*TRANSPOSE(($D114:$E114))),0) -> 230054.7186 | AA114: =AA$106+IF($C114<>0,SUMPRODUCT((AA$107:AA$108)*TRANSPOSE(($D114:$E114))),0) -> 240170.0047 | AB114: =AB$106+IF($C114<>0,SUMPRODUCT((AB$107:AB$108)*TRANSPOSE(($D114:$E114))),0) -> 247764.7206 | AC114: =AC$106+IF($C114<>0,SUMPRODUCT((AC$107:AC$108)*TRANSPOSE(($D114:$E114))),0) -> 258527.5848 | AD114: =AD$106+IF($C114<>0,SUMPRODUCT((AD$107:AD$108)*TRANSPOSE(($D114:$E114))),0) -> 273623.9493 | AE114: =AE$106+IF($C114<>0,SUMPRODUCT((AE$107:AE$108)*TRANSPOSE(($D114:$E114))),0) -> 285358.0637 | AF114: =AF$106+IF($C114<>0,SUMPRODUCT((AF$107:AF$108)*TRANSPOSE(($D114:$E114))),0) -> 286592.4106 | AG114: =AG$106+IF($C114<>0,SUMPRODUCT((AG$107:AG$108)*TRANSPOSE(($D114:$E114))),0) -> 288360.6074
A115: ="sens"&Assumptions!B116 -> sens | C115: =Assumptions!C116 -> 0 | D115: =Assumptions!G116 -> 0 | E115: =Assumptions!H116 -> 0 | G115: Option 2sens | I115: =I$106+IF($C115<>0,SUMPRODUCT((I$107:I$108)*TRANSPOSE(($D115:$E115))),0) -> 0 | J115: =J$106+IF($C115<>0,SUMPRODUCT((J$107:J$108)*TRANSPOSE(($D115:$E115))),0) -> 0 | K115: =K$106+IF($C115<>0,SUMPRODUCT((K$107:K$108)*TRANSPOSE(($D115:$E115))),0) -> 0 | L115: =L$106+IF($C115<>0,SUMPRODUCT((L$107:L$108)*TRANSPOSE(($D115:$E115))),0) -> -120289.3605 | M115: =M$106+IF($C115<>0,SUMPRODUCT((M$107:M$108)*TRANSPOSE(($D115:$E115))),0) -> 188041.2894 | N115: =N$106+IF($C115<>0,SUMPRODUCT((N$107:N$108)*TRANSPOSE(($D115:$E115))),0) -> 196968.008 | O115: =O$106+IF($C115<>0,SUMPRODUCT((O$107:O$108)*TRANSPOSE(($D115:$E115))),0) -> 210507.4406 | P115: =P$106+IF($C115<>0,SUMPRODUCT((P$107:P$108)*TRANSPOSE(($D115:$E115))),0) -> 224782.2721 | Q115: =Q$106+IF($C115<>0,SUMPRODUCT((Q$107:Q$108)*TRANSPOSE(($D115:$E115))),0) -> 233787.4547 | R115: =R$106+IF($C115<>0,SUMPRODUCT((R$107:R$108)*TRANSPOSE(($D115:$E115))),0) -> 235346.0031 | S115: =S$106+IF($C115<>0,SUMPRODUCT((S$107:S$108)*TRANSPOSE(($D115:$E115))),0) -> 237613.1274 | T115: =T$106+IF($C115<>0,SUMPRODUCT((T$107:T$108)*TRANSPOSE(($D115:$E115))),0) -> 240930.7211 | U115: =U$106+IF($C115<>0,SUMPRODUCT((U$107:U$108)*TRANSPOSE(($D115:$E115))),0) -> 245791.5236 | V115: =V$106+IF($C115<>0,SUMPRODUCT((V$107:V$108)*TRANSPOSE(($D115:$E115))),0) -> 252924.9862 | W115: =W$106+IF($C115<>0,SUMPRODUCT((W$107:W$108)*TRANSPOSE(($D115:$E115))),0) -> 263424.4147 | X115: =X$106+IF($C115<>0,SUMPRODUCT((X$107:X$108)*TRANSPOSE(($D115:$E115))),0) -> 278918.6099 | Y115: =Y$106+IF($C115<>0,SUMPRODUCT((Y$107:Y$108)*TRANSPOSE(($D115:$E115))),0) -> 301837.3043 | Z115: =Z$106+IF($C115<>0,SUMPRODUCT((Z$107:Z$108)*TRANSPOSE(($D115:$E115))),0) -> 335809.261 | AA115: =AA$106+IF($C115<>0,SUMPRODUCT((AA$107:AA$108)*TRANSPOSE(($D115:$E115))),0) -> 347048.4678 | AB115: =AB$106+IF($C115<>0,SUMPRODUCT((AB$107:AB$108)*TRANSPOSE(($D115:$E115))),0) -> 355487.041 | AC115: =AC$106+IF($C115<>0,SUMPRODUCT((AC$107:AC$108)*TRANSPOSE(($D115:$E115))),0) -> 367445.779 | AD115: =AD$106+IF($C115<>0,SUMPRODUCT((AD$107:AD$108)*TRANSPOSE(($D115:$E115))),0) -> 384219.5174 | AE115: =AE$106+IF($C115<>0,SUMPRODUCT((AE$107:AE$108)*TRANSPOSE(($D115:$E115))),0) -> 397257.4222 | AF115: =AF$106+IF($C115<>0,SUMPRODUCT((AF$107:AF$108)*TRANSPOSE(($D115:$E115))),0) -> 398628.9188 | AG115: =AG$106+IF($C115<>0,SUMPRODUCT((AG$107:AG$108)*TRANSPOSE(($D115:$E115))),0) -> 400593.582
A116: ="sens"&Assumptions!B117 -> sens | C116: =Assumptions!C117 -> 0 | D116: =Assumptions!G117 -> 0 | E116: =Assumptions!H117 -> 0 | G116: Option 2sens | I116: =I$106+IF($C116<>0,SUMPRODUCT((I$107:I$108)*TRANSPOSE(($D116:$E116))),0) -> 0 | J116: =J$106+IF($C116<>0,SUMPRODUCT((J$107:J$108)*TRANSPOSE(($D116:$E116))),0) -> 0 | K116: =K$106+IF($C116<>0,SUMPRODUCT((K$107:K$108)*TRANSPOSE(($D116:$E116))),0) -> 0 | L116: =L$106+IF($C116<>0,SUMPRODUCT((L$107:L$108)*TRANSPOSE(($D116:$E116))),0) -> -120289.3605 | M116: =M$106+IF($C116<>0,SUMPRODUCT((M$107:M$108)*TRANSPOSE(($D116:$E116))),0) -> 188041.2894 | N116: =N$106+IF($C116<>0,SUMPRODUCT((N$107:N$108)*TRANSPOSE(($D116:$E116))),0) -> 196968.008 | O116: =O$106+IF($C116<>0,SUMPRODUCT((O$107:O$108)*TRANSPOSE(($D116:$E116))),0) -> 210507.4406 | P116: =P$106+IF($C116<>0,SUMPRODUCT((P$107:P$108)*TRANSPOSE(($D116:$E116))),0) -> 224782.2721 | Q116: =Q$106+IF($C116<>0,SUMPRODUCT((Q$107:Q$108)*TRANSPOSE(($D116:$E116))),0) -> 233787.4547 | R116: =R$106+IF($C116<>0,SUMPRODUCT((R$107:R$108)*TRANSPOSE(($D116:$E116))),0) -> 235346.0031 | S116: =S$106+IF($C116<>0,SUMPRODUCT((S$107:S$108)*TRANSPOSE(($D116:$E116))),0) -> 237613.1274 | T116: =T$106+IF($C116<>0,SUMPRODUCT((T$107:T$108)*TRANSPOSE(($D116:$E116))),0) -> 240930.7211 | U116: =U$106+IF($C116<>0,SUMPRODUCT((U$107:U$108)*TRANSPOSE(($D116:$E116))),0) -> 245791.5236 | V116: =V$106+IF($C116<>0,SUMPRODUCT((V$107:V$108)*TRANSPOSE(($D116:$E116))),0) -> 252924.9862 | W116: =W$106+IF($C116<>0,SUMPRODUCT((W$107:W$108)*TRANSPOSE(($D116:$E116))),0) -> 263424.4147 | X116: =X$106+IF($C116<>0,SUMPRODUCT((X$107:X$108)*TRANSPOSE(($D116:$E116))),0) -> 278918.6099 | Y116: =Y$106+IF($C116<>0,SUMPRODUCT((Y$107:Y$108)*TRANSPOSE(($D116:$E116))),0) -> 301837.3043 | Z116: =Z$106+IF($C116<>0,SUMPRODUCT((Z$107:Z$108)*TRANSPOSE(($D116:$E116))),0) -> 335809.261 | AA116: =AA$106+IF($C116<>0,SUMPRODUCT((AA$107:AA$108)*TRANSPOSE(($D116:$E116))),0) -> 347048.4678 | AB116: =AB$106+IF($C116<>0,SUMPRODUCT((AB$107:AB$108)*TRANSPOSE(($D116:$E116))),0) -> 355487.041 | AC116: =AC$106+IF($C116<>0,SUMPRODUCT((AC$107:AC$108)*TRANSPOSE(($D116:$E116))),0) -> 367445.779 | AD116: =AD$106+IF($C116<>0,SUMPRODUCT((AD$107:AD$108)*TRANSPOSE(($D116:$E116))),0) -> 384219.5174 | AE116: =AE$106+IF($C116<>0,SUMPRODUCT((AE$107:AE$108)*TRANSPOSE(($D116:$E116))),0) -> 397257.4222 | AF116: =AF$106+IF($C116<>0,SUMPRODUCT((AF$107:AF$108)*TRANSPOSE(($D116:$E116))),0) -> 398628.9188 | AG116: =AG$106+IF($C116<>0,SUMPRODUCT((AG$107:AG$108)*TRANSPOSE(($D116:$E116))),0) -> 400593.582
A117: ="sens"&Assumptions!B118 -> sens | C117: =Assumptions!C118 -> 0 | D117: =Assumptions!G118 -> 0 | E117: =Assumptions!H118 -> 0 | G117: Option 2sens | I117: =I$106+IF($C117<>0,SUMPRODUCT((I$107:I$108)*TRANSPOSE(($D117:$E117))),0) -> 0 | J117: =J$106+IF($C117<>0,SUMPRODUCT((J$107:J$108)*TRANSPOSE(($D117:$E117))),0) -> 0 | K117: =K$106+IF($C117<>0,SUMPRODUCT((K$107:K$108)*TRANSPOSE(($D117:$E117))),0) -> 0 | L117: =L$106+IF($C117<>0,SUMPRODUCT((L$107:L$108)*TRANSPOSE(($D117:$E117))),0) -> -120289.3605 | M117: =M$106+IF($C117<>0,SUMPRODUCT((M$107:M$108)*TRANSPOSE(($D117:$E117))),0) -> 188041.2894 | N117: =N$106+IF($C117<>0,SUMPRODUCT((N$107:N$108)*TRANSPOSE(($D117:$E117))),0) -> 196968.008 | O117: =O$106+IF($C117<>0,SUMPRODUCT((O$107:O$108)*TRANSPOSE(($D117:$E117))),0) -> 210507.4406 | P117: =P$106+IF($C117<>0,SUMPRODUCT((P$107:P$108)*TRANSPOSE(($D117:$E117))),0) -> 224782.2721 | Q117: =Q$106+IF($C117<>0,SUMPRODUCT((Q$107:Q$108)*TRANSPOSE(($D117:$E117))),0) -> 233787.4547 | R117: =R$106+IF($C117<>0,SUMPRODUCT((R$107:R$108)*TRANSPOSE(($D117:$E117))),0) -> 235346.0031 | S117: =S$106+IF($C117<>0,SUMPRODUCT((S$107:S$108)*TRANSPOSE(($D117:$E117))),0) -> 237613.1274 | T117: =T$106+IF($C117<>0,SUMPRODUCT((T$107:T$108)*TRANSPOSE(($D117:$E117))),0) -> 240930.7211 | U117: =U$106+IF($C117<>0,SUMPRODUCT((U$107:U$108)*TRANSPOSE(($D117:$E117))),0) -> 245791.5236 | V117: =V$106+IF($C117<>0,SUMPRODUCT((V$107:V$108)*TRANSPOSE(($D117:$E117))),0) -> 252924.9862 | W117: =W$106+IF($C117<>0,SUMPRODUCT((W$107:W$108)*TRANSPOSE(($D117:$E117))),0) -> 263424.4147 | X117: =X$106+IF($C117<>0,SUMPRODUCT((X$107:X$108)*TRANSPOSE(($D117:$E117))),0) -> 278918.6099 | Y117: =Y$106+IF($C117<>0,SUMPRODUCT((Y$107:Y$108)*TRANSPOSE(($D117:$E117))),0) -> 301837.3043 | Z117: =Z$106+IF($C117<>0,SUMPRODUCT((Z$107:Z$108)*TRANSPOSE(($D117:$E117))),0) -> 335809.261 | AA117: =AA$106+IF($C117<>0,SUMPRODUCT((AA$107:AA$108)*TRANSPOSE(($D117:$E117))),0) -> 347048.4678 | AB117: =AB$106+IF($C117<>0,SUMPRODUCT((AB$107:AB$108)*TRANSPOSE(($D117:$E117))),0) -> 355487.041 | AC117: =AC$106+IF($C117<>0,SUMPRODUCT((AC$107:AC$108)*TRANSPOSE(($D117:$E117))),0) -> 367445.779 | AD117: =AD$106+IF($C117<>0,SUMPRODUCT((AD$107:AD$108)*TRANSPOSE(($D117:$E117))),0) -> 384219.5174 | AE117: =AE$106+IF($C117<>0,SUMPRODUCT((AE$107:AE$108)*TRANSPOSE(($D117:$E117))),0) -> 397257.4222 | AF117: =AF$106+IF($C117<>0,SUMPRODUCT((AF$107:AF$108)*TRANSPOSE(($D117:$E117))),0) -> 398628.9188 | AG117: =AG$106+IF($C117<>0,SUMPRODUCT((AG$107:AG$108)*TRANSPOSE(($D117:$E117))),0) -> 400593.582

Sheet Option3
A1: =bus -> CitiPower
A2: =proj -> NC switchboard and relay replacement
A3: OPTION 3 | C3: =INDEX(Assumptions!$E$14:$E$18, MATCH(A3,_xlfn.ANCHORARRAY( Assumptions!$C$14),0)) -> Relay replacement completed in 2029-30 and SWBD replacement completed in 2034-35
A4: =(INDEX(Data!$D$9:$D$13, MATCH(A3, options,0))) -> 
A6: ='Option1 (base case)'!A6 -> Count | I6: ='Option1 (base case)'!I6 -> 1 | J6: ='Option1 (base case)'!J6 -> 2 | K6: ='Option1 (base case)'!K6 -> 3 | L6: ='Option1 (base case)'!L6 -> 4 | M6: ='Option1 (base case)'!M6 -> 5 | N6: ='Option1 (base case)'!N6 -> 6 | O6: ='Option1 (base case)'!O6 -> 7 | P6: ='Option1 (base case)'!P6 -> 8 | Q6: ='Option1 (base case)'!Q6 -> 9 | R6: ='Option1 (base case)'!R6 -> 10 | S6: ='Option1 (base case)'!S6 -> 11 | T6: ='Option1 (base case)'!T6 -> 12 | U6: ='Option1 (base case)'!U6 -> 13 | V6: ='Option1 (base case)'!V6 -> 14 | W6: ='Option1 (base case)'!W6 -> 15 | X6: ='Option1 (base case)'!X6 -> 16 | Y6: ='Option1 (base case)'!Y6 -> 17 | Z6: ='Option1 (base case)'!Z6 -> 18 | AA6: ='Option1 (base case)'!AA6 -> 19 | AB6: ='Option1 (base case)'!AB6 -> 20 | AC6: ='Option1 (base case)'!AC6 -> 21 | AD6: ='Option1 (base case)'!AD6 -> 22 | AE6: ='Option1 (base case)'!AE6 -> 23 | AF6: ='Option1 (base case)'!AF6 -> 24 | AG6: ='Option1 (base case)'!AG6 -> 25
A7: ='Option1 (base case)'!A7 -> Value of CO2 reductions | G7: $/MWh | I7: ='Option1 (base case)'!I7 -> 24.7304868 | J7: ='Option1 (base case)'!J7 -> 22.34074009 | K7: ='Option1 (base case)'!K7 -> 20.19632912 | L7: ='Option1 (base case)'!L7 -> 18.06294208 | M7: ='Option1 (base case)'!M7 -> 15.91339762 | N7: ='Option1 (base case)'!N7 -> 13.71506943 | O7: ='Option1 (base case)'!O7 -> 13.71506943 | P7: ='Option1 (base case)'!P7 -> 13.71506943 | Q7: ='Option1 (base case)'!Q7 -> 13.71506943 | R7: ='Option1 (base case)'!R7 -> 13.71506943 | S7: ='Option1 (base case)'!S7 -> 13.71506943 | T7: ='Option1 (base case)'!T7 -> 13.71506943 | U7: ='Option1 (base case)'!U7 -> 13.71506943 | V7: ='Option1 (base case)'!V7 -> 13.71506943 | W7: ='Option1 (base case)'!W7 -> 13.71506943 | X7: ='Option1 (base case)'!X7 -> 13.71506943 | Y7: ='Option1 (base case)'!Y7 -> 13.71506943 | Z7: ='Option1 (base case)'!Z7 -> 13.71506943 | AA7: ='Option1 (base case)'!AA7 -> 13.71506943 | AB7: ='Option1 (base case)'!AB7 -> 13.71506943 | AC7: ='Option1 (base case)'!AC7 -> 13.71506943 | AD7: ='Option1 (base case)'!AD7 -> 13.71506943 | AE7: ='Option1 (base case)'!AE7 -> 13.71506943 | AF7: ='Option1 (base case)'!AF7 -> 13.71506943 | AG7: ='Option1 (base case)'!AG7 -> 13.71506943
G9: Units | I9: ='Option1 (base case)'!I9 -> 2026-27 | J9: ='Option1 (base case)'!J9 -> 2027-28 | K9: ='Option1 (base case)'!K9 -> 2028-29 | L9: ='Option1 (base case)'!L9 -> 2029-30 | M9: ='Option1 (base case)'!M9 -> 2030-31 | N9: ='Option1 (base case)'!N9 -> 2031-32 | O9: ='Option1 (base case)'!O9 -> 2032-33 | P9: ='Option1 (base case)'!P9 -> 2033-34 | Q9: ='Option1 (base case)'!Q9 -> 2034-35 | R9: ='Option1 (base case)'!R9 -> 2035-36 | S9: ='Option1 (base case)'!S9 -> 2036-37 | T9: ='Option1 (base case)'!T9 -> 2037-38 | U9: ='Option1 (base case)'!U9 -> 2038-39 | V9: ='Option1 (base case)'!V9 -> 2039-40 | W9: ='Option1 (base case)'!W9 -> 2040-41 | X9: ='Option1 (base case)'!X9 -> 2041-42 | Y9: ='Option1 (base case)'!Y9 -> 2042-43 | Z9: ='Option1 (base case)'!Z9 -> 2043-44 | AA9: ='Option1 (base case)'!AA9 -> 2044-45 | AB9: ='Option1 (base case)'!AB9 -> 2045-46 | AC9: ='Option1 (base case)'!AC9 -> 2046-47 | AD9: ='Option1 (base case)'!AD9 -> 2047-48 | AE9: ='Option1 (base case)'!AE9 -> 2048-49 | AF9: ='Option1 (base case)'!AF9 -> 2049-50 | AG9: ='Option1 (base case)'!AG9 -> 2050-51
A11: INVESTMENT & OPERATING COST
C13: Capex | E13: Asset life (yrs)
C14: Switchboard | E14: 50 | G14: =input_dollars -> 2023-12-31 | I14: =Workings_costs!E38 -> 0 | J14: =Workings_costs!F38 -> 0 | K14: =Workings_costs!G38 -> 0 | L14: =Workings_costs!H38 -> 0 | M14: =Workings_costs!I38 -> 0 | N14: =Workings_costs!J38 -> 0 | O14: =Workings_costs!K38 -> 0 | P14: =Workings_costs!L38 -> 1930427.231 | Q14: =Workings_costs!M38 -> 3860854.463 | R14: =Workings_costs!N38 -> 0 | S14: =Workings_costs!O38 -> 0 | T14: =Workings_costs!P38 -> 0 | U14: =Workings_costs!Q38 -> 0 | V14: =Workings_costs!R38 -> 0 | W14: =Workings_costs!S38 -> 0 | X14: =Workings_costs!T38 -> 0 | Y14: =Workings_costs!U38 -> 0 | Z14: =Workings_costs!V38 -> 0 | AA14: =Workings_costs!W38 -> 0 | AB14: =Workings_costs!X38 -> 0 | AC14: =Workings_costs!Y38 -> 0 | AD14: =Workings_costs!Z38 -> 0 | AE14: =Workings_costs!AA38 -> 0 | AF14: =Workings_costs!AB38 -> 0 | AG14: =Workings_costs!AC38 -> 0
C15: Relays | E15: 25 | G15: =input_dollars -> 2023-12-31 | I15: =Workings_costs!E39 -> 0 | J15: =Workings_costs!F39 -> 0 | K15: =Workings_costs!G39 -> 965213.6157 | L15: =Workings_costs!H39 -> 1930427.231 | M15: =Workings_costs!I39 -> 0 | N15: =Workings_costs!J39 -> 0 | O15: =Workings_costs!K39 -> 0 | P15: =Workings_costs!L39 -> 0 | Q15: =Workings_costs!M39 -> 0 | R15: =Workings_costs!N39 -> 0 | S15: =Workings_costs!O39 -> 0 | T15: =Workings_costs!P39 -> 0 | U15: =Workings_costs!Q39 -> 0 | V15: =Workings_costs!R39 -> 0 | W15: =Workings_costs!S39 -> 0 | X15: =Workings_costs!T39 -> 0 | Y15: =Workings_costs!U39 -> 0 | Z15: =Workings_costs!V39 -> 0 | AA15: =Workings_costs!W39 -> 0 | AB15: =Workings_costs!X39 -> 0 | AC15: =Workings_costs!Y39 -> 0 | AD15: =Workings_costs!Z39 -> 0 | AE15: =Workings_costs!AA39 -> 0 | AF15: =Workings_costs!AB39 -> 0 | AG15: =Workings_costs!AC39 -> 0
E16: 0 | G16: =input_dollars -> 2023-12-31 | I16: 0 | J16: 0 | K16: 0 | L16: 0 | M16: 0 | N16: 0 | O16: 0 | P16: 0 | Q16: 0 | R16: 0 | S16: 0 | T16: 0 | U16: 0 | V16: 0 | W16: 0 | X16: 0 | Y16: 0 | Z16: 0 | AA16: 0 | AB16: 0 | AC16: 0 | AD16: 0 | AE16: 0 | AF16: 0 | AG16: 0
C17: Capital expenditure | G17: =input_dollars -> 2023-12-31 | I17: =SUM(I14:I16) -> 0 | J17: 0 | K17: 965213.6157 | L17: 1930427.231 | M17: 0 | N17: 0 | O17: 0 | P17: 1930427.231 | Q17: 3860854.463 | R17: =SUM(R14:R16) -> 0 | S17: 0 | T17: 0 | U17: 0 | V17: 0 | W17: 0 | X17: 0 | Y17: 0 | Z17: 0 | AA17: 0 | AB17: 0 | AC17: =SUM(AC14:AC16) -> 0 | AD17: =SUM(AD14:AD16) -> 0 | AE17: =SUM(AE14:AE16) -> 0 | AF17: =SUM(AF14:AF16) -> 0 | AG17: =SUM(AG14:AG16) -> 0
C19: Operating expenditure | G19: =input_dollars -> 2023-12-31 | I19: 0 | J19: 0 | K19: 0 | L19: 0 | M19: 0 | N19: 0 | O19: 0 | P19: 0 | Q19: 0 | R19: 0 | S19: 0 | T19: 0 | U19: 0 | V19: 0 | W19: 0 | X19: 0 | Y19: 0 | Z19: 0 | AA19: 0 | AB19: 0 | AC19: 0 | AD19: 0 | AE19: 0 | AF19: 0 | AG19: 0
A22: RISK ASSUMPTIONS
C24: PoF (major) | I24: 0 | J24: 0 | K24: 0 | L24: 0 | M24: 0 | N24: 0 | O24: 0 | P24: 0 | Q24: 0 | R24: 0 | S24: 0 | T24: 0 | U24: 0 | V24: 0 | W24: 0 | X24: 0 | Y24: 0 | Z24: 0 | AA24: 0 | AB24: 0 | AC24: 0 | AD24: 0 | AE24: 0 | AF24: 0 | AG24: 0
C25: PoF (reparable) | I25: 0 | J25: 0 | K25: 0 | L25: 0 | M25: 0 | N25: 0 | O25: 0 | P25: 0 | Q25: 0 | R25: 0 | S25: 0 | T25: 0 | U25: 0 | V25: 0 | W25: 0 | X25: 0 | Y25: 0 | Z25: 0 | AA25: 0 | AB25: 0 | AC25: 0 | AD25: 0 | AE25: 0 | AF25: 0 | AG25: 0
C27: Energy at risk (weighted) | G27: MWh | I27: 0 | J27: 0 | K27: 0 | L27: 0 | M27: 0 | N27: 0 | O27: 0 | P27: 0 | Q27: 0 | R27: 0 | S27: 0 | T27: 0 | U27: 0 | V27: 0 | W27: 0 | X27: 0 | Y27: 0 | Z27: 0 | AA27: 0 | AB27: 0 | AC27: 0 | AD27: 0 | AE27: 0 | AF27: 0 | AG27: 0
C28: Energy at risk value | D28: $/MWh | E28: =Assumptions!H41*vcr_esc -> 44330.65115 | F28: =IF(AND(SUM(I27:AG27)<>0, E28=0), "!", "") ->  | G28: =input_dollars -> 2023-12-31 | I28: =Workings_risks!E81 -> 569702.8583 | J28: =Workings_risks!F81 -> 584295.4116 | K28: =Workings_risks!G81 -> 597160.4076 | L28: =Workings_risks!H81 -> 608980.4018 | M28: =Workings_risks!I81 -> 619870.3511 | N28: =Workings_risks!J81 -> 632369.794 | O28: =Workings_risks!K81 -> 650040.564 | P28: =Workings_risks!L81 -> 668539.7361 | Q28: =Workings_risks!M81 -> 681149.8889 | R28: =Workings_risks!N81 -> 113801.1689 | S28: =Workings_risks!O81 -> 118353.8983 | T28: =Workings_risks!P81 -> 123336.8652 | U28: =Workings_risks!Q81 -> 128791.9946 | V28: =Workings_risks!R81 -> 134765.3842 | W28: =Workings_risks!S81 -> 141307.7268 | X28: =Workings_risks!T81 -> 148474.7751 | Y28: =Workings_risks!U81 -> 156327.8553 | Z28: =Workings_risks!V81 -> 164934.4323 | AA28: =Workings_risks!W81 -> 174368.7343 | AB28: =Workings_risks!X81 -> 184712.4086 | AC28: =Workings_risks!Y81 -> 196055.2414 | AD28: =Workings_risks!Z81 -> 208502.9822 | AE28: =Workings_risks!AA81 -> 222164.3567 | AF28: =Workings_risks!AB81 -> 237157.58 | AG28: =Workings_risks!AC81 -> 253616.5691
C30: =Workings_risks!D56 -> Safety risk | D30: (after DF) | G30: =input_dollars -> 2023-12-31 | I30: =Workings_risks!E82 -> 1751.436968 | J30: =Workings_risks!F82 -> 1831.844753 | K30: =Workings_risks!G82 -> 1923.856861 | L30: =Workings_risks!H82 -> 2025.770896 | M30: =Workings_risks!I82 -> 2117.68865 | N30: =Workings_risks!J82 -> 2231.575304 | O30: =Workings_risks!K82 -> 2356.158741 | P30: =Workings_risks!L82 -> 2496.67427 | Q30: =Workings_risks!M82 -> 2654.381681 | R30: =Workings_risks!N82 -> 2505.1633 | S30: =Workings_risks!O82 -> 2703.726917 | T30: =Workings_risks!P82 -> 2935.693858 | U30: =Workings_risks!Q82 -> 3208.55557 | V30: =Workings_risks!R82 -> 3532.120919 | W30: =Workings_risks!S82 -> 3924.881351 | X30: =Workings_risks!T82 -> 4414.817535 | Y30: =Workings_risks!U82 -> 5044.762884 | Z30: =Workings_risks!V82 -> 5880.883558 | AA30: =Workings_risks!W82 -> 7026.106236 | AB30: =Workings_risks!X82 -> 8312.665405 | AC30: =Workings_risks!Y82 -> 8921.121897 | AD30: =Workings_risks!Z82 -> 9722.498108 | AE30: =Workings_risks!AA82 -> 10746.67198 | AF30: =Workings_risks!AB82 -> 12017.08844 | AG30: =Workings_risks!AC82 -> 13618.85637
C31: =Workings_risks!D57 -> Unplanned replacement | G31: =input_dollars -> 2023-12-31 | I31: =Workings_risks!E83 -> 46247.31899 | J31: =Workings_risks!F83 -> 48306.07978 | K31: =Workings_risks!G83 -> 50558.40941 | L31: =Workings_risks!H83 -> 53020.10074 | M31: =Workings_risks!I83 -> 55691.0099 | N31: =Workings_risks!J83 -> 58623.18471 | O31: =Workings_risks!K83 -> 61828.80634 | P31: =Workings_risks!L83 -> 65342.0415 | Q31: =Workings_risks!M83 -> 69192.12229 | R31: =Workings_risks!N83 -> 53865.51572 | S31: =Workings_risks!O83 -> 58492.88511 | T31: =Workings_risks!P83 -> 63584.8681 | U31: =Workings_risks!Q83 -> 69194.596 | V31: =Workings_risks!R83 -> 75383.39787 | W31: =Workings_risks!S83 -> 82232.96899 | X31: =Workings_risks!T83 -> 89847.29983 | Y31: =Workings_risks!U83 -> 98363.0781 | Z31: =Workings_risks!V83 -> 107965.9052 | AA31: =Workings_risks!W83 -> 118915.7195 | AB31: =Workings_risks!X83 -> 130978.6974 | AC31: =Workings_risks!Y83 -> 142723.2029 | AD31: =Workings_risks!Z83 -> 155790.3101 | AE31: =Workings_risks!AA83 -> 170338.6431 | AF31: =Workings_risks!AB83 -> 186539.0378 | AG31: =Workings_risks!AC83 -> 204654.2335
C32: =Workings_risks!D58 -> Unplanned fault | G32: =input_dollars -> 2023-12-31 | I32: =Workings_risks!E84 -> 508 | J32: =Workings_risks!F84 -> 508 | K32: =Workings_risks!G84 -> 508 | L32: =Workings_risks!H84 -> 508 | M32: =Workings_risks!I84 -> 508 | N32: =Workings_risks!J84 -> 508 | O32: =Workings_risks!K84 -> 508 | P32: =Workings_risks!L84 -> 508 | Q32: =Workings_risks!M84 -> 508 | R32: =Workings_risks!N84 -> 50.8 | S32: =Workings_risks!O84 -> 50.8 | T32: =Workings_risks!P84 -> 50.8 | U32: =Workings_risks!Q84 -> 50.8 | V32: =Workings_risks!R84 -> 50.8 | W32: =Workings_risks!S84 -> 50.8 | X32: =Workings_risks!T84 -> 50.8 | Y32: =Workings_risks!U84 -> 50.8 | Z32: =Workings_risks!V84 -> 50.8 | AA32: =Workings_risks!W84 -> 50.8 | AB32: =Workings_risks!X84 -> 50.8 | AC32: =Workings_risks!Y84 -> 50.8 | AD32: =Workings_risks!Z84 -> 50.8 | AE32: =Workings_risks!AA84 -> 50.8 | AF32: =Workings_risks!AB84 -> 50.8 | AG32: =Workings_risks!AC84 -> 50.8
C33: =Workings_risks!D59 -> Environmental risk | G33: =input_dollars -> 2023-12-31 | I33: =Workings_risks!E85 -> 160.5056802 | J33: =Workings_risks!F85 -> 168.8105915 | K33: =Workings_risks!G85 -> 178.4725895 | L33: =Workings_risks!H85 -> 189.2251303 | M33: =Workings_risks!I85 -> 198.2346102 | N33: =Workings_risks!J85 -> 209.9739792 | O33: =Workings_risks!K85 -> 222.8193279 | P33: =Workings_risks!L85 -> 237.4698054 | Q33: =Workings_risks!M85 -> 254.0603982 | R33: =Workings_risks!N85 -> 272.7331188 | S33: =Workings_risks!O85 -> 293.9712065 | T33: =Workings_risks!P85 -> 319.2796258 | U33: =Workings_risks!Q85 -> 349.6521225 | V33: =Workings_risks!R85 -> 386.4028854 | W33: =Workings_risks!S85 -> 432.063079 | X33: =Workings_risks!T85 -> 490.4938417 | Y33: =Workings_risks!U85 -> 567.6414951 | Z33: =Workings_risks!V85 -> 672.7319341 | AA33: =Workings_risks!W85 -> 820.1622999 | AB33: =Workings_risks!X85 -> 986.1656201 | AC33: =Workings_risks!Y85 -> 1055.111734 | AD33: =Workings_risks!Z85 -> 1149.6131 | AE33: =Workings_risks!AA85 -> 1273.719773 | AF33: =Workings_risks!AB85 -> 1430.560709 | AG33: =Workings_risks!AC85 -> 1631.933794
C34: < Other risk - enter description > | G34: =input_dollars -> 2023-12-31 | I34: 0 | J34: 0 | K34: 0 | L34: 0 | M34: 0 | N34: 0 | O34: 0 | P34: 0 | Q34: 0 | R34: 0 | S34: 0 | T34: 0 | U34: 0 | V34: 0 | W34: 0 | X34: 0 | Y34: 0 | Z34: 0 | AA34: 0 | AB34: 0 | AC34: 0 | AD34: 0 | AE34: 0 | AF34: 0 | AG34: 0
C36: Total risk cost | I36: =SUM(I28:I34) -> 618370.1199 | J36: =SUM(J28:J34) -> 635110.1467 | K36: 650329.1465 | L36: 664723.4986 | M36: 678385.2842 | N36: 693942.528 | O36: 714956.3484 | P36: 737123.9217 | Q36: 753758.4533 | R36: 170495.381 | S36: 179895.2815 | T36: 190227.5068 | U36: 201595.5983 | V36: 214118.1059 | W36: 227948.4402 | X36: 243278.1863 | Y36: 260354.1378 | Z36: 279504.753 | AA36: 301181.5223 | AB36: 325040.7371 | AC36: =SUM(AC28:AC34) -> 348805.4779 | AD36: =SUM(AD28:AD34) -> 375216.2035 | AE36: =SUM(AE28:AE34) -> 404574.1916 | AF36: =SUM(AF28:AF34) -> 437195.0669 | AG36: =SUM(AG28:AG34) -> 473572.3928
A38: OTHER BENEFITS
C41: Reduction in CO2 emissions | G41: MWh | I41: 0 | J41: 0 | K41: 0 | L41: 0 | M41: 0 | N41: 0 | O41: 0 | P41: 0 | Q41: 0 | R41: 0 | S41: 0 | T41: 0 | U41: 0 | V41: 0 | W41: 0 | X41: 0 | Y41: 0 | Z41: 0 | AA41: 0 | AB41: 0 | AC41: 0 | AD41: 0 | AE41: 0 | AF41: 0 | AG41: 0
C42: Value of reduction in CO2 emissions | G42: $ | I42: =I41*I7 -> 0 | J42: 0 | K42: 0 | L42: 0 | M42: 0 | N42: 0 | O42: 0 | P42: 0 | Q42: 0 | R42: 0 | S42: 0 | T42: 0 | U42: 0 | V42: 0 | W42: 0 | X42: 0 | Y42: 0 | Z42: 0 | AA42: 0 | AB42: 0 | AC42: 0 | AD42: 0 | AE42: 0 | AF42: 0 | AG42: 0
C45: Reliability in worst-served areas | D45: $/MWh | E45: =Assumptions!G94 -> 0 | G45: MWh | I45: 0 | J45: 0 | K45: 0 | L45: 0 | M45: 0 | N45: 0 | O45: 0 | P45: 0 | Q45: 0 | R45: 0 | S45: 0 | T45: 0 | U45: 0 | V45: 0 | W45: 0 | X45: 0 | Y45: 0 | Z45: 0 | AA45: 0 | AB45: 0 | AC45: 0 | AD45: 0 | AE45: 0 | AF45: 0 | AG45: 0
C46: Network resilience | D46: $/MWh | E46: =Assumptions!G95 -> 0 | G46: MWh | I46: 0 | J46: 0 | K46: 0 | L46: 0 | M46: 0 | N46: 0 | O46: 0 | P46: 0 | Q46: 0 | R46: 0 | S46: 0 | T46: 0 | U46: 0 | V46: 0 | W46: 0 | X46: 0 | Y46: 0 | Z46: 0 | AA46: 0 | AB46: 0 | AC46: 0 | AD46: 0 | AE46: 0 | AF46: 0 | AG46: 0
C47: Enabling solar exports | D47: $/MWh | E47: =Assumptions!G96 -> 4220.99537 | G47: MWh | I47: 0 | J47: 0 | K47: 0 | L47: 0 | M47: 0 | N47: 0 | O47: 0 | P47: 0 | Q47: 0 | R47: 0 | S47: 0 | T47: 0 | U47: 0 | V47: 0 | W47: 0 | X47: 0 | Y47: 0 | Z47: 0 | AA47: 0 | AB47: 0 | AC47: 0 | AD47: 0 | AE47: 0 | AF47: 0 | AG47: 0
C48: Aesthetics | D48: $/customer | E48: =Assumptions!G97 -> 0 | G48: customers | I48: 0 | J48: 0 | K48: 0 | L48: 0 | M48: 0 | N48: 0 | O48: 0 | P48: 0 | Q48: 0 | R48: 0 | S48: 0 | T48: 0 | U48: 0 | V48: 0 | W48: 0 | X48: 0 | Y48: 0 | Z48: 0 | AA48: 0 | AB48: 0 | AC48: 0 | AD48: 0 | AE48: 0 | AF48: 0 | AG48: 0
C49: Customer value of time (res) | D49: $/customer min | E49: =Assumptions!G98 -> 0.5476938068 | G49: mins | I49: 0 | J49: 0 | K49: 0 | L49: 0 | M49: 0 | N49: 0 | O49: 0 | P49: 0 | Q49: 0 | R49: 0 | S49: 0 | T49: 0 | U49: 0 | V49: 0 | W49: 0 | X49: 0 | Y49: 0 | Z49: 0 | AA49: 0 | AB49: 0 | AC49: 0 | AD49: 0 | AE49: 0 | AF49: 0 | AG49: 0
C50: Customer value of time (bus) | D50: $/customer min | E50: =Assumptions!G99 -> 0.5476938068 | G50: mins | I50: 0 | J50: 0 | K50: 0 | L50: 0 | M50: 0 | N50: 0 | O50: 0 | P50: 0 | Q50: 0 | R50: 0 | S50: 0 | T50: 0 | U50: 0 | V50: 0 | W50: 0 | X50: 0 | Y50: 0 | Z50: 0 | AA50: 0 | AB50: 0 | AC50: 0 | AD50: 0 | AE50: 0 | AF50: 0 | AG50: 0
C51: Communication | D51: $/customer | E51: =Assumptions!G100 -> 0 | G51: customers | I51: 0 | J51: 0 | K51: 0 | L51: 0 | M51: 0 | N51: 0 | O51: 0 | P51: 0 | Q51: 0 | R51: 0 | S51: 0 | T51: 0 | U51: 0 | V51: 0 | W51: 0 | X51: 0 | Y51: 0 | Z51: 0 | AA51: 0 | AB51: 0 | AC51: 0 | AD51: 0 | AE51: 0 | AF51: 0 | AG51: 0
C52: Information accessibility | D52: $/customer | E52: =Assumptions!G101 -> 0 | G52: customers | I52: 0 | J52: 0 | K52: 0 | L52: 0 | M52: 0 | N52: 0 | O52: 0 | P52: 0 | Q52: 0 | R52: 0 | S52: 0 | T52: 0 | U52: 0 | V52: 0 | W52: 0 | X52: 0 | Y52: 0 | Z52: 0 | AA52: 0 | AB52: 0 | AC52: 0 | AD52: 0 | AE52: 0 | AF52: 0 | AG52: 0
C54: Opex saving | G54: =input_dollars -> 2023-12-31 | I54: =Workings_costs!E15-Workings_costs!E46 -> 0 | J54: =Workings_costs!F15-Workings_costs!F46 -> 0 | K54: =Workings_costs!G15-Workings_costs!G46 -> 0 | L54: =Workings_costs!H15-Workings_costs!H46 -> 0 | M54: =Workings_costs!I15-Workings_costs!I46 -> 0 | N54: =Workings_costs!J15-Workings_costs!J46 -> 0 | O54: =Workings_costs!K15-Workings_costs!K46 -> 0 | P54: =Workings_costs!L15-Workings_costs!L46 -> 0 | Q54: =Workings_costs!M15-Workings_costs!M46 -> 0 | R54: =Workings_costs!N15-Workings_costs!N46 -> 0 | S54: =Workings_costs!O15-Workings_costs!O46 -> 0 | T54: =Workings_costs!P15-Workings_costs!P46 -> 0 | U54: =Workings_costs!Q15-Workings_costs!Q46 -> 0 | V54: =Workings_costs!R15-Workings_costs!R46 -> 0 | W54: =Workings_costs!S15-Workings_costs!S46 -> 0 | X54: =Workings_costs!T15-Workings_costs!T46 -> 0 | Y54: =Workings_costs!U15-Workings_costs!U46 -> 0 | Z54: =Workings_costs!V15-Workings_costs!V46 -> 0 | AA54: =Workings_costs!W15-Workings_costs!W46 -> 0 | AB54: =Workings_costs!X15-Workings_costs!X46 -> 0 | AC54: =Workings_costs!Y15-Workings_costs!Y46 -> 0 | AD54: =Workings_costs!Z15-Workings_costs!Z46 -> 0 | AE54: =Workings_costs!AA15-Workings_costs!AA46 -> 0 | AF54: =Workings_costs!AB15-Workings_costs!AB46 -> 0 | AG54: =Workings_costs!AC15-Workings_costs!AC46 -> 0
C55: Other benefits 2 | G55: =input_dollars -> 2023-12-31 | I55: 0 | J55: 0 | K55: 0 | L55: 0 | M55: 0 | N55: 0 | O55: 0 | P55: 0 | Q55: 0 | R55: 0 | S55: 0 | T55: 0 | U55: 0 | V55: 0 | W55: 0 | X55: 0 | Y55: 0 | Z55: 0 | AA55: 0 | AB55: 0 | AC55: 0 | AD55: 0 | AE55: 0 | AF55: 0 | AG55: 0
C57: Total other benefits | G57: =input_dollars -> 2023-12-31 | I57: =SUMPRODUCT((I$45:I$52)*($E$45:$E$52))+SUM(I54:I55)+I42 -> 0 | J57: =SUMPRODUCT((J$45:J$52)*($E$45:$E$52))+SUM(J54:J55)+J42 -> 0 | K57: =SUMPRODUCT((K$45:K$52)*($E$45:$E$52))+SUM(K54:K55)+K42 -> 0 | L57: =SUMPRODUCT((L$45:L$52)*($E$45:$E$52))+SUM(L54:L55)+L42 -> 0 | M57: =SUMPRODUCT((M$45:M$52)*($E$45:$E$52))+SUM(M54:M55)+M42 -> 0 | N57: =SUMPRODUCT((N$45:N$52)*($E$45:$E$52))+SUM(N54:N55)+N42 -> 0 | O57: =SUMPRODUCT((O$45:O$52)*($E$45:$E$52))+SUM(O54:O55)+O42 -> 0 | P57: =SUMPRODUCT((P$45:P$52)*($E$45:$E$52))+SUM(P54:P55)+P42 -> 0 | Q57: =SUMPRODUCT((Q$45:Q$52)*($E$45:$E$52))+SUM(Q54:Q55)+Q42 -> 0 | R57: =SUMPRODUCT((R$45:R$52)*($E$45:$E$52))+SUM(R54:R55)+R42 -> 0 | S57: =SUMPRODUCT((S$45:S$52)*($E$45:$E$52))+SUM(S54:S55)+S42 -> 0 | T57: =SUMPRODUCT((T$45:T$52)*($E$45:$E$52))+SUM(T54:T55)+T42 -> 0 | U57: =SUMPRODUCT((U$45:U$52)*($E$45:$E$52))+SUM(U54:U55)+U42 -> 0 | V57: =SUMPRODUCT((V$45:V$52)*($E$45:$E$52))+SUM(V54:V55)+V42 -> 0 | W57: =SUMPRODUCT((W$45:W$52)*($E$45:$E$52))+SUM(W54:W55)+W42 -> 0 | X57: =SUMPRODUCT((X$45:X$52)*($E$45:$E$52))+SUM(X54:X55)+X42 -> 0 | Y57: =SUMPRODUCT((Y$45:Y$52)*($E$45:$E$52))+SUM(Y54:Y55)+Y42 -> 0 | Z57: =SUMPRODUCT((Z$45:Z$52)*($E$45:$E$52))+SUM(Z54:Z55)+Z42 -> 0 | AA57: =SUMPRODUCT((AA$45:AA$52)*($E$45:$E$52))+SUM(AA54:AA55)+AA42 -> 0 | AB57: =SUMPRODUCT((AB$45:AB$52)*($E$45:$E$52))+SUM(AB54:AB55)+AB42 -> 0 | AC57: =SUMPRODUCT((AC$45:AC$52)*($E$45:$E$52))+SUM(AC54:AC55)+AC42 -> 0 | AD57: =SUMPRODUCT((AD$45:AD$52)*($E$45:$E$52))+SUM(AD54:AD55)+AD42 -> 0 | AE57: =SUMPRODUCT((AE$45:AE$52)*($E$45:$E$52))+SUM(AE54:AE55)+AE42 -> 0 | AF57: =SUMPRODUCT((AF$45:AF$52)*($E$45:$E$52))+SUM(AF54:AF55)+AF42 -> 0 | AG57: =SUMPRODUCT((AG$45:AG$52)*($E$45:$E$52))+SUM(AG54:AG55)+AG42 -> 0
A60: SUMMARY
C64: ='Option1 (base case)'!C64 -> Risks mitigated vs base case | G64: =input_dollars -> 2023-12-31 | I64: =(1-INDEX(Data!$C$9:$C$13, MATCH($A$3, options,0)))*('Option1 (base case)'!I36-I36) -> 0 | J64: =(1-INDEX(Data!$C$9:$C$13, MATCH($A$3, options,0)))*('Option1 (base case)'!J36-J36) -> 0 | K64: =(1-INDEX(Data!$C$9:$C$13, MATCH($A$3, options,0)))*('Option1 (base case)'!K36-K36) -> 0 | L64: =(1-INDEX(Data!$C$9:$C$13, MATCH($A$3, options,0)))*('Option1 (base case)'!L36-L36) -> 0 | M64: =(1-INDEX(Data!$C$9:$C$13, MATCH($A$3, options,0)))*('Option1 (base case)'!M36-M36) -> 219.9538663 | N64: =(1-INDEX(Data!$C$9:$C$13, MATCH($A$3, options,0)))*('Option1 (base case)'!N36-N36) -> 509.4182723 | O64: =(1-INDEX(Data!$C$9:$C$13, MATCH($A$3, options,0)))*('Option1 (base case)'!O36-O36) -> 998.3426349 | P64: =(1-INDEX(Data!$C$9:$C$13, MATCH($A$3, options,0)))*('Option1 (base case)'!P36-P36) -> 1744.411656 | Q64: =(1-INDEX(Data!$C$9:$C$13, MATCH($A$3, options,0)))*('Option1 (base case)'!Q36-Q36) -> 2817.957096 | R64: =(1-INDEX(Data!$C$9:$C$13, MATCH($A$3, options,0)))*('Option1 (base case)'!R36-R36) -> 596214.0848 | S64: =(1-INDEX(Data!$C$9:$C$13, MATCH($A$3, options,0)))*('Option1 (base case)'!S36-S36) -> 598481.2091 | T64: =(1-INDEX(Data!$C$9:$C$13, MATCH($A$3, options,0)))*('Option1 (base case)'!T36-T36) -> 601798.8028 | U64: =(1-INDEX(Data!$C$9:$C$13, MATCH($A$3, options,0)))*('Option1 (base case)'!U36-U36) -> 606659.6052 | V64: =(1-INDEX(Data!$C$9:$C$13, MATCH($A$3, options,0)))*('Option1 (base case)'!V36-V36) -> 613793.0679 | W64: =(1-INDEX(Data!$C$9:$C$13, MATCH($A$3, options,0)))*('Option1 (base case)'!W36-W36) -> 624292.4963 | X64: =(1-INDEX(Data!$C$9:$C$13, MATCH($A$3, options,0)))*('Option1 (base case)'!X36-X36) -> 639786.6915 | Y64: =(1-INDEX(Data!$C$9:$C$13, MATCH($A$3, options,0)))*('Option1 (base case)'!Y36-Y36) -> 662705.386 | Z64: =(1-INDEX(Data!$C$9:$C$13, MATCH($A$3, options,0)))*('Option1 (base case)'!Z36-Z36) -> 696677.3427 | AA64: =(1-INDEX(Data!$C$9:$C$13, MATCH($A$3, options,0)))*('Option1 (base case)'!AA36-AA36) -> 707916.5495 | AB64: =(1-INDEX(Data!$C$9:$C$13, MATCH($A$3, options,0)))*('Option1 (base case)'!AB36-AB36) -> 716355.1226 | AC64: =(1-INDEX(Data!$C$9:$C$13, MATCH($A$3, options,0)))*('Option1 (base case)'!AC36-AC36) -> 728313.8607 | AD64: =(1-INDEX(Data!$C$9:$C$13, MATCH($A$3, options,0)))*('Option1 (base case)'!AD36-AD36) -> 745087.599 | AE64: =(1-INDEX(Data!$C$9:$C$13, MATCH($A$3, options,0)))*('Option1 (base case)'!AE36-AE36) -> 758125.5039 | AF64: =(1-INDEX(Data!$C$9:$C$13, MATCH($A$3, options,0)))*('Option1 (base case)'!AF36-AF36) -> 759497.0004 | AG64: =(1-INDEX(Data!$C$9:$C$13, MATCH($A$3, options,0)))*('Option1 (base case)'!AG36-AG36) -> 761461.6636
C66: Capital expenditure
C67: =C14 -> Switchboard | G67: =input_dollars -> 2023-12-31 | I67: =-I14 -> 0 | J67: 0 | K67: 0 | L67: 0 | M67: 0 | N67: 0 | O67: 0 | P67: -1930427.231 | Q67: -3860854.463 | R67: 0 | S67: 0 | T67: 0 | U67: 0 | V67: 0 | W67: 0 | X67: 0 | Y67: 0 | Z67: 0 | AA67: 0 | AB67: 0 | AC67: 0 | AD67: 0 | AE67: 0 | AF67: 0 | AG67: 0
C68: =C15 -> Relays | G68: =input_dollars -> 2023-12-31 | I68: =-I15 -> 0 | J68: 0 | K68: -965213.6157 | L68: -1930427.231 | M68: 0 | N68: 0 | O68: 0 | P68: 0 | Q68: 0 | R68: 0 | S68: 0 | T68: 0 | U68: 0 | V68: 0 | W68: 0 | X68: 0 | Y68: 0 | Z68: 0 | AA68: 0 | AB68: 0 | AC68: 0 | AD68: 0 | AE68: 0 | AF68: 0 | AG68: 0
C69: =C16 -> 0 | G69: =input_dollars -> 2023-12-31 | I69: =-I16 -> 0 | J69: 0 | K69: 0 | L69: 0 | M69: 0 | N69: 0 | O69: 0 | P69: 0 | Q69: 0 | R69: 0 | S69: 0 | T69: 0 | U69: 0 | V69: 0 | W69: 0 | X69: 0 | Y69: 0 | Z69: 0 | AA69: 0 | AB69: 0 | AC69: 0 | AD69: 0 | AE69: 0 | AF69: 0 | AG69: 0
C71: Cumulative capex
C72: =C14 -> Switchboard | G72: =input_dollars -> 2023-12-31 | I72: =SUMPRODUCT(($I67:I67))-SUMPRODUCT(($I67:I67)*($I$6:I$6<=(I$6-$E14))) -> 0 | J72: =SUMPRODUCT(($I67:J67))-SUMPRODUCT(($I67:J67)*($I$6:J$6<=(J$6-$E14))) -> 0 | K72: =SUMPRODUCT(($I67:K67))-SUMPRODUCT(($I67:K67)*($I$6:K$6<=(K$6-$E14))) -> 0 | L72: =SUMPRODUCT(($I67:L67))-SUMPRODUCT(($I67:L67)*($I$6:L$6<=(L$6-$E14))) -> 0 | M72: =SUMPRODUCT(($I67:M67))-SUMPRODUCT(($I67:M67)*($I$6:M$6<=(M$6-$E14))) -> 0 | N72: =SUMPRODUCT(($I67:N67))-SUMPRODUCT(($I67:N67)*($I$6:N$6<=(N$6-$E14))) -> 0 | O72: =SUMPRODUCT(($I67:O67))-SUMPRODUCT(($I67:O67)*($I$6:O$6<=(O$6-$E14))) -> 0 | P72: =SUMPRODUCT(($I67:P67))-SUMPRODUCT(($I67:P67)*($I$6:P$6<=(P$6-$E14))) -> -1930427.231 | Q72: =SUMPRODUCT(($I67:Q67))-SUMPRODUCT(($I67:Q67)*($I$6:Q$6<=(Q$6-$E14))) -> -5791281.694 | R72: =SUMPRODUCT(($I67:R67))-SUMPRODUCT(($I67:R67)*($I$6:R$6<=(R$6-$E14))) -> -5791281.694 | S72: =SUMPRODUCT(($I67:S67))-SUMPRODUCT(($I67:S67)*($I$6:S$6<=(S$6-$E14))) -> -5791281.694 | T72: =SUMPRODUCT(($I67:T67))-SUMPRODUCT(($I67:T67)*($I$6:T$6<=(T$6-$E14))) -> -5791281.694 | U72: =SUMPRODUCT(($I67:U67))-SUMPRODUCT(($I67:U67)*($I$6:U$6<=(U$6-$E14))) -> -5791281.694 | V72: =SUMPRODUCT(($I67:V67))-SUMPRODUCT(($I67:V67)*($I$6:V$6<=(V$6-$E14))) -> -5791281.694 | W72: =SUMPRODUCT(($I67:W67))-SUMPRODUCT(($I67:W67)*($I$6:W$6<=(W$6-$E14))) -> -5791281.694 | X72: =SUMPRODUCT(($I67:X67))-SUMPRODUCT(($I67:X67)*($I$6:X$6<=(X$6-$E14))) -> -5791281.694 | Y72: =SUMPRODUCT(($I67:Y67))-SUMPRODUCT(($I67:Y67)*($I$6:Y$6<=(Y$6-$E14))) -> -5791281.694 | Z72: =SUMPRODUCT(($I67:Z67))-SUMPRODUCT(($I67:Z67)*($I$6:Z$6<=(Z$6-$E14))) -> -5791281.694 | AA72: =SUMPRODUCT(($I67:AA67))-SUMPRODUCT(($I67:AA67)*($I$6:AA$6<=(AA$6-$E14))) -> -5791281.694 | AB72: =SUMPRODUCT(($I67:AB67))-SUMPRODUCT(($I67:AB67)*($I$6:AB$6<=(AB$6-$E14))) -> -5791281.694 | AC72: =SUMPRODUCT(($I67:AC67))-SUMPRODUCT(($I67:AC67)*($I$6:AC$6<=(AC$6-$E14))) -> -5791281.694 | AD72: =SUMPRODUCT(($I67:AD67))-SUMPRODUCT(($I67:AD67)*($I$6:AD$6<=(AD$6-$E14))) -> -5791281.694 | AE72: =SUMPRODUCT(($I67:AE67))-SUMPRODUCT(($I67:AE67)*($I$6:AE$6<=(AE$6-$E14))) -> -5791281.694 | AF72: =SUMPRODUCT(($I67:AF67))-SUMPRODUCT(($I67:AF67)*($I$6:AF$6<=(AF$6-$E14))) -> -5791281.694 | AG72: =SUMPRODUCT(($I67:AG67))-SUMPRODUCT(($I67:AG67)*($I$6:AG$6<=(AG$6-$E14))) -> -5791281.694
C73: =C15 -> Relays | G73: =input_dollars -> 2023-12-31 | I73: =SUMPRODUCT(($I68:I68))-SUMPRODUCT(($I68:I68)*($I$6:I$6<=(I$6-$E15))) -> 0 | J73: =SUMPRODUCT(($I68:J68))-SUMPRODUCT(($I68:J68)*($I$6:J$6<=(J$6-$E15))) -> 0 | K73: =SUMPRODUCT(($I68:K68))-SUMPRODUCT(($I68:K68)*($I$6:K$6<=(K$6-$E15))) -> -965213.6157 | L73: =SUMPRODUCT(($I68:L68))-SUMPRODUCT(($I68:L68)*($I$6:L$6<=(L$6-$E15))) -> -2895640.847 | M73: =SUMPRODUCT(($I68:M68))-SUMPRODUCT(($I68:M68)*($I$6:M$6<=(M$6-$E15))) -> -2895640.847 | N73: =SUMPRODUCT(($I68:N68))-SUMPRODUCT(($I68:N68)*($I$6:N$6<=(N$6-$E15))) -> -2895640.847 | O73: =SUMPRODUCT(($I68:O68))-SUMPRODUCT(($I68:O68)*($I$6:O$6<=(O$6-$E15))) -> -2895640.847 | P73: =SUMPRODUCT(($I68:P68))-SUMPRODUCT(($I68:P68)*($I$6:P$6<=(P$6-$E15))) -> -2895640.847 | Q73: =SUMPRODUCT(($I68:Q68))-SUMPRODUCT(($I68:Q68)*($I$6:Q$6<=(Q$6-$E15))) -> -2895640.847 | R73: =SUMPRODUCT(($I68:R68))-SUMPRODUCT(($I68:R68)*($I$6:R$6<=(R$6-$E15))) -> -2895640.847 | S73: =SUMPRODUCT(($I68:S68))-SUMPRODUCT(($I68:S68)*($I$6:S$6<=(S$6-$E15))) -> -2895640.847 | T73: =SUMPRODUCT(($I68:T68))-SUMPRODUCT(($I68:T68)*($I$6:T$6<=(T$6-$E15))) -> -2895640.847 | U73: =SUMPRODUCT(($I68:U68))-SUMPRODUCT(($I68:U68)*($I$6:U$6<=(U$6-$E15))) -> -2895640.847 | V73: =SUMPRODUCT(($I68:V68))-SUMPRODUCT(($I68:V68)*($I$6:V$6<=(V$6-$E15))) -> -2895640.847 | W73: =SUMPRODUCT(($I68:W68))-SUMPRODUCT(($I68:W68)*($I$6:W$6<=(W$6-$E15))) -> -2895640.847 | X73: =SUMPRODUCT(($I68:X68))-SUMPRODUCT(($I68:X68)*($I$6:X$6<=(X$6-$E15))) -> -2895640.847 | Y73: =SUMPRODUCT(($I68:Y68))-SUMPRODUCT(($I68:Y68)*($I$6:Y$6<=(Y$6-$E15))) -> -2895640.847 | Z73: =SUMPRODUCT(($I68:Z68))-SUMPRODUCT(($I68:Z68)*($I$6:Z$6<=(Z$6-$E15))) -> -2895640.847 | AA73: =SUMPRODUCT(($I68:AA68))-SUMPRODUCT(($I68:AA68)*($I$6:AA$6<=(AA$6-$E15))) -> -2895640.847 | AB73: =SUMPRODUCT(($I68:AB68))-SUMPRODUCT(($I68:AB68)*($I$6:AB$6<=(AB$6-$E15))) -> -2895640.847 | AC73: =SUMPRODUCT(($I68:AC68))-SUMPRODUCT(($I68:AC68)*($I$6:AC$6<=(AC$6-$E15))) -> -2895640.847 | AD73: =SUMPRODUCT(($I68:AD68))-SUMPRODUCT(($I68:AD68)*($I$6:AD$6<=(AD$6-$E15))) -> -2895640.847 | AE73: =SUMPRODUCT(($I68:AE68))-SUMPRODUCT(($I68:AE68)*($I$6:AE$6<=(AE$6-$E15))) -> -2895640.847 | AF73: =SUMPRODUCT(($I68:AF68))-SUMPRODUCT(($I68:AF68)*($I$6:AF$6<=(AF$6-$E15))) -> -2895640.847 | AG73: =SUMPRODUCT(($I68:AG68))-SUMPRODUCT(($I68:AG68)*($I$6:AG$6<=(AG$6-$E15))) -> -2895640.847
C74: =C16 -> 0 | G74: =input_dollars -> 2023-12-31 | I74: =SUMPRODUCT(($I69:I69))-SUMPRODUCT(($I69:I69)*($I$6:I$6<=(I$6-$E16))) -> 0 | J74: =SUMPRODUCT(($I69:J69))-SUMPRODUCT(($I69:J69)*($I$6:J$6<=(J$6-$E16))) -> 0 | K74: =SUMPRODUCT(($I69:K69))-SUMPRODUCT(($I69:K69)*($I$6:K$6<=(K$6-$E16))) -> 0 | L74: =SUMPRODUCT(($I69:L69))-SUMPRODUCT(($I69:L69)*($I$6:L$6<=(L$6-$E16))) -> 0 | M74: =SUMPRODUCT(($I69:M69))-SUMPRODUCT(($I69:M69)*($I$6:M$6<=(M$6-$E16))) -> 0 | N74: =SUMPRODUCT(($I69:N69))-SUMPRODUCT(($I69:N69)*($I$6:N$6<=(N$6-$E16))) -> 0 | O74: =SUMPRODUCT(($I69:O69))-SUMPRODUCT(($I69:O69)*($I$6:O$6<=(O$6-$E16))) -> 0 | P74: =SUMPRODUCT(($I69:P69))-SUMPRODUCT(($I69:P69)*($I$6:P$6<=(P$6-$E16))) -> 0 | Q74: =SUMPRODUCT(($I69:Q69))-SUMPRODUCT(($I69:Q69)*($I$6:Q$6<=(Q$6-$E16))) -> 0 | R74: =SUMPRODUCT(($I69:R69))-SUMPRODUCT(($I69:R69)*($I$6:R$6<=(R$6-$E16))) -> 0 | S74: =SUMPRODUCT(($I69:S69))-SUMPRODUCT(($I69:S69)*($I$6:S$6<=(S$6-$E16))) -> 0 | T74: =SUMPRODUCT(($I69:T69))-SUMPRODUCT(($I69:T69)*($I$6:T$6<=(T$6-$E16))) -> 0 | U74: =SUMPRODUCT(($I69:U69))-SUMPRODUCT(($I69:U69)*($I$6:U$6<=(U$6-$E16))) -> 0 | V74: =SUMPRODUCT(($I69:V69))-SUMPRODUCT(($I69:V69)*($I$6:V$6<=(V$6-$E16))) -> 0 | W74: =SUMPRODUCT(($I69:W69))-SUMPRODUCT(($I69:W69)*($I$6:W$6<=(W$6-$E16))) -> 0 | X74: =SUMPRODUCT(($I69:X69))-SUMPRODUCT(($I69:X69)*($I$6:X$6<=(X$6-$E16))) -> 0 | Y74: =SUMPRODUCT(($I69:Y69))-SUMPRODUCT(($I69:Y69)*($I$6:Y$6<=(Y$6-$E16))) -> 0 | Z74: =SUMPRODUCT(($I69:Z69))-SUMPRODUCT(($I69:Z69)*($I$6:Z$6<=(Z$6-$E16))) -> 0 | AA74: =SUMPRODUCT(($I69:AA69))-SUMPRODUCT(($I69:AA69)*($I$6:AA$6<=(AA$6-$E16))) -> 0 | AB74: =SUMPRODUCT(($I69:AB69))-SUMPRODUCT(($I69:AB69)*($I$6:AB$6<=(AB$6-$E16))) -> 0 | AC74: =SUMPRODUCT(($I69:AC69))-SUMPRODUCT(($I69:AC69)*($I$6:AC$6<=(AC$6-$E16))) -> 0 | AD74: =SUMPRODUCT(($I69:AD69))-SUMPRODUCT(($I69:AD69)*($I$6:AD$6<=(AD$6-$E16))) -> 0 | AE74: =SUMPRODUCT(($I69:AE69))-SUMPRODUCT(($I69:AE69)*($I$6:AE$6<=(AE$6-$E16))) -> 0 | AF74: =SUMPRODUCT(($I69:AF69))-SUMPRODUCT(($I69:AF69)*($I$6:AF$6<=(AF$6-$E16))) -> 0 | AG74: =SUMPRODUCT(($I69:AG69))-SUMPRODUCT(($I69:AG69)*($I$6:AG$6<=(AG$6-$E16))) -> 0
C76: Annualised capex
C77: =$C$76&" - "&C14 -> Annualised capex - Switchboard | G77: =input_dollars -> 2023-12-31 | I77: =IF($E14=0,0,-PMT(real_disc, $E14,H72,)) -> 0 | J77: 0 | K77: 0 | L77: 0 | M77: 0 | N77: 0 | O77: 0 | P77: 0 | Q77: -82301.27393 | R77: -246903.8218 | S77: -246903.8218 | T77: -246903.8218 | U77: -246903.8218 | V77: -246903.8218 | W77: -246903.8218 | X77: -246903.8218 | Y77: -246903.8218 | Z77: -246903.8218 | AA77: -246903.8218 | AB77: -246903.8218 | AC77: -246903.8218 | AD77: -246903.8218 | AE77: -246903.8218 | AF77: -246903.8218 | AG77: -246903.8218
C78: =$C$76&" - "&C15 -> Annualised capex - Relays | G78: =input_dollars -> 2023-12-31 | I78: =IF($E15=0,0,-PMT(real_disc, $E15,H73,)) -> 0 | J78: 0 | K78: 0 | L78: -58563.4051 | M78: -175690.2153 | N78: -175690.2153 | O78: -175690.2153 | P78: -175690.2153 | Q78: -175690.2153 | R78: -175690.2153 | S78: -175690.2153 | T78: -175690.2153 | U78: -175690.2153 | V78: -175690.2153 | W78: -175690.2153 | X78: -175690.2153 | Y78: -175690.2153 | Z78: -175690.2153 | AA78: -175690.2153 | AB78: -175690.2153 | AC78: -175690.2153 | AD78: -175690.2153 | AE78: -175690.2153 | AF78: -175690.2153 | AG78: -175690.2153
C79: =$C$76&" - "&C16 -> Annualised capex - | G79: =input_dollars -> 2023-12-31 | I79: =IF($E16=0,0,-PMT(real_disc, $E16,H74,)) -> 0 | J79: 0 | K79: 0 | L79: 0 | M79: 0 | N79: 0 | O79: 0 | P79: 0 | Q79: 0 | R79: 0 | S79: 0 | T79: 0 | U79: 0 | V79: 0 | W79: 0 | X79: 0 | Y79: 0 | Z79: 0 | AA79: 0 | AB79: 0 | AC79: 0 | AD79: 0 | AE79: 0 | AF79: 0 | AG79: 0
C80: Total annualised capex | G80: =input_dollars -> 2023-12-31 | I80: =SUM(I77:I79) -> 0 | J80: =SUM(J77:J79) -> 0 | K80: 0 | L80: -58563.4051 | M80: -175690.2153 | N80: -175690.2153 | O80: -175690.2153 | P80: -175690.2153 | Q80: -257991.4892 | R80: -422594.0371 | S80: -422594.0371 | T80: -422594.0371 | U80: -422594.0371 | V80: -422594.0371 | W80: -422594.0371 | X80: -422594.0371 | Y80: -422594.0371 | Z80: -422594.0371 | AA80: -422594.0371 | AB80: -422594.0371 | AC80: =SUM(AC77:AC79) -> -422594.0371 | AD80: =SUM(AD77:AD79) -> -422594.0371 | AE80: =SUM(AE77:AE79) -> -422594.0371 | AF80: =SUM(AF77:AF79) -> -422594.0371 | AG80: =SUM(AG77:AG79) -> -422594.0371
C82: Annualised capex | G82: =input_dollars -> 2023-12-31 | I82: =I80 -> 0 | J82: =J80 -> 0 | K82: 0 | L82: -58563.4051 | M82: -175690.2153 | N82: -175690.2153 | O82: -175690.2153 | P82: -175690.2153 | Q82: -257991.4892 | R82: -422594.0371 | S82: -422594.0371 | T82: -422594.0371 | U82: -422594.0371 | V82: -422594.0371 | W82: -422594.0371 | X82: -422594.0371 | Y82: -422594.0371 | Z82: -422594.0371 | AA82: -422594.0371 | AB82: -422594.0371 | AC82: =AC80 -> -422594.0371 | AD82: =AD80 -> -422594.0371 | AE82: =AE80 -> -422594.0371 | AF82: =AF80 -> -422594.0371 | AG82: =AG80 -> -422594.0371
C83: Operating expenditure | G83: 2023-12-31 | I83: =-I19 -> 0 | J83: 0 | K83: 0 | L83: 0 | M83: 0 | N83: 0 | O83: 0 | P83: 0 | Q83: 0 | R83: 0 | S83: 0 | T83: 0 | U83: 0 | V83: 0 | W83: 0 | X83: 0 | Y83: 0 | Z83: 0 | AA83: 0 | AB83: 0 | AC83: 0 | AD83: 0 | AE83: 0 | AF83: 0 | AG83: 0
C84: Risk mitigated | G84: 2023-12-31 | I84: =I64 -> 0 | J84: 0 | K84: 0 | L84: 0 | M84: 219.9538663 | N84: 509.4182723 | O84: 998.3426349 | P84: 1744.411656 | Q84: 2817.957096 | R84: 596214.0848 | S84: 598481.2091 | T84: 601798.8028 | U84: 606659.6052 | V84: 613793.0679 | W84: 624292.4963 | X84: 639786.6915 | Y84: 662705.386 | Z84: 696677.3427 | AA84: 707916.5495 | AB84: 716355.1226 | AC84: 728313.8607 | AD84: 745087.599 | AE84: 758125.5039 | AF84: 759497.0004 | AG84: 761461.6636
C85: Other benefits value | G85: 2023-12-31 | I85: =I57 -> 0 | J85: 0 | K85: 0 | L85: 0 | M85: 0 | N85: 0 | O85: 0 | P85: 0 | Q85: 0 | R85: 0 | S85: 0 | T85: 0 | U85: 0 | V85: 0 | W85: 0 | X85: 0 | Y85: 0 | Z85: 0 | AA85: 0 | AB85: 0 | AC85: 0 | AD85: 0 | AE85: 0 | AF85: 0 | AG85: 0
C87: Net benefits | G87: 2023-12-31 | I87: =SUM(I82:I86) -> 0 | J87: 0 | K87: 0 | L87: -58563.4051 | M87: -175470.2614 | N87: -175180.797 | O87: -174691.8727 | P87: -173945.8036 | Q87: -255173.5321 | R87: 173620.0477 | S87: 175887.172 | T87: 179204.7657 | U87: 184065.5681 | V87: 191199.0308 | W87: 201698.4593 | X87: 217192.6545 | Y87: 240111.3489 | Z87: 274083.3056 | AA87: 285322.5124 | AB87: 293761.0856 | AC87: =SUM(AC82:AC86) -> 305719.8236 | AD87: =SUM(AD82:AD86) -> 322493.5619 | AE87: =SUM(AE82:AE86) -> 335531.4668 | AF87: =SUM(AF82:AF86) -> 336902.9633 | AG87: =SUM(AG82:AG86) -> 338867.6265
C90: First capex year | G90: =IF(SUM($I17:$AG17)=0,0,(INDEX(I$6:AG$6,MATCH(TRUE,INDEX($I17:$AG17<>0,),0)))) -> 3
C92: First year | G92: =IF(_xlfn.MINIFS($G$90:$G$91, $G$90:$G$91, ">"&0)=0, $A$4, _xlfn.MINIFS($G$90:$G$91, $G$90:$G$91, ">"&0)) -> 3
A102: SENSITIVITIES
A106: NPV | C106: Net benefits | G106: =PROPER($A$3)&A106 -> Option 3NPV | I106: =I87 -> 0 | J106: =J87 -> 0 | K106: 0 | L106: -58563.4051 | M106: -175470.2614 | N106: -175180.797 | O106: -174691.8727 | P106: -173945.8036 | Q106: -255173.5321 | R106: 173620.0477 | S106: 175887.172 | T106: 179204.7657 | U106: 184065.5681 | V106: 191199.0308 | W106: 201698.4593 | X106: 217192.6545 | Y106: 240111.3489 | Z106: 274083.3056 | AA106: 285322.5124 | AB106: 293761.0856 | AC106: 305719.8236 | AD106: 322493.5619 | AE106: 335531.4668 | AF106: 336902.9633 | AG106: 338867.6265
C107: Total annualised capex | I107: =I82 -> 0 | J107: =J82 -> 0 | K107: 0 | L107: -58563.4051 | M107: -175690.2153 | N107: -175690.2153 | O107: -175690.2153 | P107: -175690.2153 | Q107: -257991.4892 | R107: -422594.0371 | S107: -422594.0371 | T107: -422594.0371 | U107: -422594.0371 | V107: -422594.0371 | W107: -422594.0371 | X107: -422594.0371 | Y107: -422594.0371 | Z107: -422594.0371 | AA107: -422594.0371 | AB107: -422594.0371 | AC107: -422594.0371 | AD107: -422594.0371 | AE107: -422594.0371 | AF107: -422594.0371 | AG107: -422594.0371
C108: Total benefits | I108: =SUM(I84:I85) -> 0 | J108: =SUM(J84:J85) -> 0 | K108: 0 | L108: 0 | M108: 219.9538663 | N108: 509.4182723 | O108: 998.3426349 | P108: 1744.411656 | Q108: 2817.957096 | R108: 596214.0848 | S108: 598481.2091 | T108: 601798.8028 | U108: 606659.6052 | V108: 613793.0679 | W108: 624292.4963 | X108: 639786.6915 | Y108: 662705.386 | Z108: 696677.3427 | AA108: 707916.5495 | AB108: 716355.1226 | AC108: 728313.8607 | AD108: 745087.599 | AE108: 758125.5039 | AF108: 759497.0004 | AG108: 761461.6636
D109: =Assumptions!G110 -> Capex | E109: =Assumptions!H110 -> Total benefits
A110: ="sens"&Assumptions!B111 -> sens1 | C110: =Assumptions!C111 -> Capex 10% higher | D110: =Assumptions!G111 -> 0.1 | E110: =Assumptions!H111 -> 0 | G110: =PROPER($A$3)&A110 -> Option 3sens1 | I110: =I$106+IF($C110<>0,SUMPRODUCT((I$107:I$108)*TRANSPOSE(($D110:$E110))),0) -> 0 | J110: =J$106+IF($C110<>0,SUMPRODUCT((J$107:J$108)*TRANSPOSE(($D110:$E110))),0) -> 0 | K110: =K$106+IF($C110<>0,SUMPRODUCT((K$107:K$108)*TRANSPOSE(($D110:$E110))),0) -> 0 | L110: =L$106+IF($C110<>0,SUMPRODUCT((L$107:L$108)*TRANSPOSE(($D110:$E110))),0) -> -64419.74561 | M110: =M$106+IF($C110<>0,SUMPRODUCT((M$107:M$108)*TRANSPOSE(($D110:$E110))),0) -> -193039.283 | N110: =N$106+IF($C110<>0,SUMPRODUCT((N$107:N$108)*TRANSPOSE(($D110:$E110))),0) -> -192749.8186 | O110: =O$106+IF($C110<>0,SUMPRODUCT((O$107:O$108)*TRANSPOSE(($D110:$E110))),0) -> -192260.8942 | P110: =P$106+IF($C110<>0,SUMPRODUCT((P$107:P$108)*TRANSPOSE(($D110:$E110))),0) -> -191514.8252 | Q110: =Q$106+IF($C110<>0,SUMPRODUCT((Q$107:Q$108)*TRANSPOSE(($D110:$E110))),0) -> -280972.6811 | R110: =R$106+IF($C110<>0,SUMPRODUCT((R$107:R$108)*TRANSPOSE(($D110:$E110))),0) -> 131360.644 | S110: =S$106+IF($C110<>0,SUMPRODUCT((S$107:S$108)*TRANSPOSE(($D110:$E110))),0) -> 133627.7683 | T110: =T$106+IF($C110<>0,SUMPRODUCT((T$107:T$108)*TRANSPOSE(($D110:$E110))),0) -> 136945.362 | U110: =U$106+IF($C110<>0,SUMPRODUCT((U$107:U$108)*TRANSPOSE(($D110:$E110))),0) -> 141806.1644 | V110: =V$106+IF($C110<>0,SUMPRODUCT((V$107:V$108)*TRANSPOSE(($D110:$E110))),0) -> 148939.6271 | W110: =W$106+IF($C110<>0,SUMPRODUCT((W$107:W$108)*TRANSPOSE(($D110:$E110))),0) -> 159439.0555 | X110: =X$106+IF($C110<>0,SUMPRODUCT((X$107:X$108)*TRANSPOSE(($D110:$E110))),0) -> 174933.2508 | Y110: =Y$106+IF($C110<>0,SUMPRODUCT((Y$107:Y$108)*TRANSPOSE(($D110:$E110))),0) -> 197851.9452 | Z110: =Z$106+IF($C110<>0,SUMPRODUCT((Z$107:Z$108)*TRANSPOSE(($D110:$E110))),0) -> 231823.9019 | AA110: =AA$106+IF($C110<>0,SUMPRODUCT((AA$107:AA$108)*TRANSPOSE(($D110:$E110))),0) -> 243063.1087 | AB110: =AB$106+IF($C110<>0,SUMPRODUCT((AB$107:AB$108)*TRANSPOSE(($D110:$E110))),0) -> 251501.6819 | AC110: =AC$106+IF($C110<>0,SUMPRODUCT((AC$107:AC$108)*TRANSPOSE(($D110:$E110))),0) -> 263460.4199 | AD110: =AD$106+IF($C110<>0,SUMPRODUCT((AD$107:AD$108)*TRANSPOSE(($D110:$E110))),0) -> 280234.1582 | AE110: =AE$106+IF($C110<>0,SUMPRODUCT((AE$107:AE$108)*TRANSPOSE(($D110:$E110))),0) -> 293272.0631 | AF110: =AF$106+IF($C110<>0,SUMPRODUCT((AF$107:AF$108)*TRANSPOSE(($D110:$E110))),0) -> 294643.5596 | AG110: =AG$106+IF($C110<>0,SUMPRODUCT((AG$107:AG$108)*TRANSPOSE(($D110:$E110))),0) -> 296608.2228
A111: ="sens"&Assumptions!B112 -> sens2 | C111: =Assumptions!C112 -> Capex 10% lower | D111: =Assumptions!G112 -> -0.1 | E111: =Assumptions!H112 -> 0 | G111: =PROPER($A$3)&A111 -> Option 3sens2 | I111: =I$106+IF($C111<>0,SUMPRODUCT((I$107:I$108)*TRANSPOSE(($D111:$E111))),0) -> 0 | J111: =J$106+IF($C111<>0,SUMPRODUCT((J$107:J$108)*TRANSPOSE(($D111:$E111))),0) -> 0 | K111: =K$106+IF($C111<>0,SUMPRODUCT((K$107:K$108)*TRANSPOSE(($D111:$E111))),0) -> 0 | L111: =L$106+IF($C111<>0,SUMPRODUCT((L$107:L$108)*TRANSPOSE(($D111:$E111))),0) -> -52707.06459 | M111: =M$106+IF($C111<>0,SUMPRODUCT((M$107:M$108)*TRANSPOSE(($D111:$E111))),0) -> -157901.2399 | N111: =N$106+IF($C111<>0,SUMPRODUCT((N$107:N$108)*TRANSPOSE(($D111:$E111))),0) -> -157611.7755 | O111: =O$106+IF($C111<>0,SUMPRODUCT((O$107:O$108)*TRANSPOSE(($D111:$E111))),0) -> -157122.8511 | P111: =P$106+IF($C111<>0,SUMPRODUCT((P$107:P$108)*TRANSPOSE(($D111:$E111))),0) -> -156376.7821 | Q111: =Q$106+IF($C111<>0,SUMPRODUCT((Q$107:Q$108)*TRANSPOSE(($D111:$E111))),0) -> -229374.3832 | R111: =R$106+IF($C111<>0,SUMPRODUCT((R$107:R$108)*TRANSPOSE(($D111:$E111))),0) -> 215879.4514 | S111: =S$106+IF($C111<>0,SUMPRODUCT((S$107:S$108)*TRANSPOSE(($D111:$E111))),0) -> 218146.5757 | T111: =T$106+IF($C111<>0,SUMPRODUCT((T$107:T$108)*TRANSPOSE(($D111:$E111))),0) -> 221464.1694 | U111: =U$106+IF($C111<>0,SUMPRODUCT((U$107:U$108)*TRANSPOSE(($D111:$E111))),0) -> 226324.9719 | V111: =V$106+IF($C111<>0,SUMPRODUCT((V$107:V$108)*TRANSPOSE(($D111:$E111))),0) -> 233458.4345 | W111: =W$106+IF($C111<>0,SUMPRODUCT((W$107:W$108)*TRANSPOSE(($D111:$E111))),0) -> 243957.863 | X111: =X$106+IF($C111<>0,SUMPRODUCT((X$107:X$108)*TRANSPOSE(($D111:$E111))),0) -> 259452.0582 | Y111: =Y$106+IF($C111<>0,SUMPRODUCT((Y$107:Y$108)*TRANSPOSE(($D111:$E111))),0) -> 282370.7526 | Z111: =Z$106+IF($C111<>0,SUMPRODUCT((Z$107:Z$108)*TRANSPOSE(($D111:$E111))),0) -> 316342.7093 | AA111: =AA$106+IF($C111<>0,SUMPRODUCT((AA$107:AA$108)*TRANSPOSE(($D111:$E111))),0) -> 327581.9161 | AB111: =AB$106+IF($C111<>0,SUMPRODUCT((AB$107:AB$108)*TRANSPOSE(($D111:$E111))),0) -> 336020.4893 | AC111: =AC$106+IF($C111<>0,SUMPRODUCT((AC$107:AC$108)*TRANSPOSE(($D111:$E111))),0) -> 347979.2273 | AD111: =AD$106+IF($C111<>0,SUMPRODUCT((AD$107:AD$108)*TRANSPOSE(($D111:$E111))),0) -> 364752.9656 | AE111: =AE$106+IF($C111<>0,SUMPRODUCT((AE$107:AE$108)*TRANSPOSE(($D111:$E111))),0) -> 377790.8705 | AF111: =AF$106+IF($C111<>0,SUMPRODUCT((AF$107:AF$108)*TRANSPOSE(($D111:$E111))),0) -> 379162.367 | AG111: =AG$106+IF($C111<>0,SUMPRODUCT((AG$107:AG$108)*TRANSPOSE(($D111:$E111))),0) -> 381127.0302
A112: ="sens"&Assumptions!B113 -> sens3 | C112: =Assumptions!C113 -> Total benefits 10% higher | D112: =Assumptions!G113 -> 0 | E112: =Assumptions!H113 -> 0.1 | G112: Option 3sens3 | I112: =I$106+IF($C112<>0,SUMPRODUCT((I$107:I$108)*TRANSPOSE(($D112:$E112))),0) -> 0 | J112: =J$106+IF($C112<>0,SUMPRODUCT((J$107:J$108)*TRANSPOSE(($D112:$E112))),0) -> 0 | K112: =K$106+IF($C112<>0,SUMPRODUCT((K$107:K$108)*TRANSPOSE(($D112:$E112))),0) -> 0 | L112: =L$106+IF($C112<>0,SUMPRODUCT((L$107:L$108)*TRANSPOSE(($D112:$E112))),0) -> -58563.4051 | M112: =M$106+IF($C112<>0,SUMPRODUCT((M$107:M$108)*TRANSPOSE(($D112:$E112))),0) -> -175448.266 | N112: =N$106+IF($C112<>0,SUMPRODUCT((N$107:N$108)*TRANSPOSE(($D112:$E112))),0) -> -175129.8552 | O112: =O$106+IF($C112<>0,SUMPRODUCT((O$107:O$108)*TRANSPOSE(($D112:$E112))),0) -> -174592.0384 | P112: =P$106+IF($C112<>0,SUMPRODUCT((P$107:P$108)*TRANSPOSE(($D112:$E112))),0) -> -173771.3625 | Q112: =Q$106+IF($C112<>0,SUMPRODUCT((Q$107:Q$108)*TRANSPOSE(($D112:$E112))),0) -> -254891.7364 | R112: =R$106+IF($C112<>0,SUMPRODUCT((R$107:R$108)*TRANSPOSE(($D112:$E112))),0) -> 233241.4561 | S112: =S$106+IF($C112<>0,SUMPRODUCT((S$107:S$108)*TRANSPOSE(($D112:$E112))),0) -> 235735.2929 | T112: =T$106+IF($C112<>0,SUMPRODUCT((T$107:T$108)*TRANSPOSE(($D112:$E112))),0) -> 239384.646 | U112: =U$106+IF($C112<>0,SUMPRODUCT((U$107:U$108)*TRANSPOSE(($D112:$E112))),0) -> 244731.5287 | V112: =V$106+IF($C112<>0,SUMPRODUCT((V$107:V$108)*TRANSPOSE(($D112:$E112))),0) -> 252578.3376 | W112: =W$106+IF($C112<>0,SUMPRODUCT((W$107:W$108)*TRANSPOSE(($D112:$E112))),0) -> 264127.7089 | X112: =X$106+IF($C112<>0,SUMPRODUCT((X$107:X$108)*TRANSPOSE(($D112:$E112))),0) -> 281171.3236 | Y112: =Y$106+IF($C112<>0,SUMPRODUCT((Y$107:Y$108)*TRANSPOSE(($D112:$E112))),0) -> 306381.8875 | Z112: =Z$106+IF($C112<>0,SUMPRODUCT((Z$107:Z$108)*TRANSPOSE(($D112:$E112))),0) -> 343751.0399 | AA112: =AA$106+IF($C112<>0,SUMPRODUCT((AA$107:AA$108)*TRANSPOSE(($D112:$E112))),0) -> 356114.1673 | AB112: =AB$106+IF($C112<>0,SUMPRODUCT((AB$107:AB$108)*TRANSPOSE(($D112:$E112))),0) -> 365396.5978 | AC112: =AC$106+IF($C112<>0,SUMPRODUCT((AC$107:AC$108)*TRANSPOSE(($D112:$E112))),0) -> 378551.2097 | AD112: =AD$106+IF($C112<>0,SUMPRODUCT((AD$107:AD$108)*TRANSPOSE(($D112:$E112))),0) -> 397002.3218 | AE112: =AE$106+IF($C112<>0,SUMPRODUCT((AE$107:AE$108)*TRANSPOSE(($D112:$E112))),0) -> 411344.0172 | AF112: =AF$106+IF($C112<>0,SUMPRODUCT((AF$107:AF$108)*TRANSPOSE(($D112:$E112))),0) -> 412852.6634 | AG112: =AG$106+IF($C112<>0,SUMPRODUCT((AG$107:AG$108)*TRANSPOSE(($D112:$E112))),0) -> 415013.7929
A113: ="sens"&Assumptions!B114 -> sens4 | C113: =Assumptions!C114 -> Total benefits 10% lower | D113: =Assumptions!G114 -> 0 | E113: =Assumptions!H114 -> -0.1 | G113: Option 3sens4 | I113: =I$106+IF($C113<>0,SUMPRODUCT((I$107:I$108)*TRANSPOSE(($D113:$E113))),0) -> 0 | J113: =J$106+IF($C113<>0,SUMPRODUCT((J$107:J$108)*TRANSPOSE(($D113:$E113))),0) -> 0 | K113: =K$106+IF($C113<>0,SUMPRODUCT((K$107:K$108)*TRANSPOSE(($D113:$E113))),0) -> 0 | L113: =L$106+IF($C113<>0,SUMPRODUCT((L$107:L$108)*TRANSPOSE(($D113:$E113))),0) -> -58563.4051 | M113: =M$106+IF($C113<>0,SUMPRODUCT((M$107:M$108)*TRANSPOSE(($D113:$E113))),0) -> -175492.2568 | N113: =N$106+IF($C113<>0,SUMPRODUCT((N$107:N$108)*TRANSPOSE(($D113:$E113))),0) -> -175231.7389 | O113: =O$106+IF($C113<>0,SUMPRODUCT((O$107:O$108)*TRANSPOSE(($D113:$E113))),0) -> -174791.7069 | P113: =P$106+IF($C113<>0,SUMPRODUCT((P$107:P$108)*TRANSPOSE(($D113:$E113))),0) -> -174120.2448 | Q113: =Q$106+IF($C113<>0,SUMPRODUCT((Q$107:Q$108)*TRANSPOSE(($D113:$E113))),0) -> -255455.3278 | R113: =R$106+IF($C113<>0,SUMPRODUCT((R$107:R$108)*TRANSPOSE(($D113:$E113))),0) -> 113998.6392 | S113: =S$106+IF($C113<>0,SUMPRODUCT((S$107:S$108)*TRANSPOSE(($D113:$E113))),0) -> 116039.0511 | T113: =T$106+IF($C113<>0,SUMPRODUCT((T$107:T$108)*TRANSPOSE(($D113:$E113))),0) -> 119024.8854 | U113: =U$106+IF($C113<>0,SUMPRODUCT((U$107:U$108)*TRANSPOSE(($D113:$E113))),0) -> 123399.6076 | V113: =V$106+IF($C113<>0,SUMPRODUCT((V$107:V$108)*TRANSPOSE(($D113:$E113))),0) -> 129819.724 | W113: =W$106+IF($C113<>0,SUMPRODUCT((W$107:W$108)*TRANSPOSE(($D113:$E113))),0) -> 139269.2096 | X113: =X$106+IF($C113<>0,SUMPRODUCT((X$107:X$108)*TRANSPOSE(($D113:$E113))),0) -> 153213.9853 | Y113: =Y$106+IF($C113<>0,SUMPRODUCT((Y$107:Y$108)*TRANSPOSE(($D113:$E113))),0) -> 173840.8103 | Z113: =Z$106+IF($C113<>0,SUMPRODUCT((Z$107:Z$108)*TRANSPOSE(($D113:$E113))),0) -> 204415.5713 | AA113: =AA$106+IF($C113<>0,SUMPRODUCT((AA$107:AA$108)*TRANSPOSE(($D113:$E113))),0) -> 214530.8574 | AB113: =AB$106+IF($C113<>0,SUMPRODUCT((AB$107:AB$108)*TRANSPOSE(($D113:$E113))),0) -> 222125.5733 | AC113: =AC$106+IF($C113<>0,SUMPRODUCT((AC$107:AC$108)*TRANSPOSE(($D113:$E113))),0) -> 232888.4375 | AD113: =AD$106+IF($C113<>0,SUMPRODUCT((AD$107:AD$108)*TRANSPOSE(($D113:$E113))),0) -> 247984.802 | AE113: =AE$106+IF($C113<>0,SUMPRODUCT((AE$107:AE$108)*TRANSPOSE(($D113:$E113))),0) -> 259718.9164 | AF113: =AF$106+IF($C113<>0,SUMPRODUCT((AF$107:AF$108)*TRANSPOSE(($D113:$E113))),0) -> 260953.2633 | AG113: =AG$106+IF($C113<>0,SUMPRODUCT((AG$107:AG$108)*TRANSPOSE(($D113:$E113))),0) -> 262721.4601
A114: ="sens"&Assumptions!B115 -> sens5 | C114: =Assumptions!C115 -> Capex 10% higher & Total benefits 10% lower | D114: =Assumptions!G115 -> 0.1 | E114: =Assumptions!H115 -> -0.1 | G114: Option 3sens5 | I114: =I$106+IF($C114<>0,SUMPRODUCT((I$107:I$108)*TRANSPOSE(($D114:$E114))),0) -> 0 | J114: =J$106+IF($C114<>0,SUMPRODUCT((J$107:J$108)*TRANSPOSE(($D114:$E114))),0) -> 0 | K114: =K$106+IF($C114<>0,SUMPRODUCT((K$107:K$108)*TRANSPOSE(($D114:$E114))),0) -> 0 | L114: =L$106+IF($C114<>0,SUMPRODUCT((L$107:L$108)*TRANSPOSE(($D114:$E114))),0) -> -64419.74561 | M114: =M$106+IF($C114<>0,SUMPRODUCT((M$107:M$108)*TRANSPOSE(($D114:$E114))),0) -> -193061.2784 | N114: =N$106+IF($C114<>0,SUMPRODUCT((N$107:N$108)*TRANSPOSE(($D114:$E114))),0) -> -192800.7604 | O114: =O$106+IF($C114<>0,SUMPRODUCT((O$107:O$108)*TRANSPOSE(($D114:$E114))),0) -> -192360.7285 | P114: =P$106+IF($C114<>0,SUMPRODUCT((P$107:P$108)*TRANSPOSE(($D114:$E114))),0) -> -191689.2663 | Q114: =Q$106+IF($C114<>0,SUMPRODUCT((Q$107:Q$108)*TRANSPOSE(($D114:$E114))),0) -> -281254.4768 | R114: =R$106+IF($C114<>0,SUMPRODUCT((R$107:R$108)*TRANSPOSE(($D114:$E114))),0) -> 71739.23549 | S114: =S$106+IF($C114<>0,SUMPRODUCT((S$107:S$108)*TRANSPOSE(($D114:$E114))),0) -> 73779.64738 | T114: =T$106+IF($C114<>0,SUMPRODUCT((T$107:T$108)*TRANSPOSE(($D114:$E114))),0) -> 76765.48169 | U114: =U$106+IF($C114<>0,SUMPRODUCT((U$107:U$108)*TRANSPOSE(($D114:$E114))),0) -> 81140.20392 | V114: =V$106+IF($C114<>0,SUMPRODUCT((V$107:V$108)*TRANSPOSE(($D114:$E114))),0) -> 87560.32029 | W114: =W$106+IF($C114<>0,SUMPRODUCT((W$107:W$108)*TRANSPOSE(($D114:$E114))),0) -> 97009.80591 | X114: =X$106+IF($C114<>0,SUMPRODUCT((X$107:X$108)*TRANSPOSE(($D114:$E114))),0) -> 110954.5816 | Y114: =Y$106+IF($C114<>0,SUMPRODUCT((Y$107:Y$108)*TRANSPOSE(($D114:$E114))),0) -> 131581.4066 | Z114: =Z$106+IF($C114<>0,SUMPRODUCT((Z$107:Z$108)*TRANSPOSE(($D114:$E114))),0) -> 162156.1676 | AA114: =AA$106+IF($C114<>0,SUMPRODUCT((AA$107:AA$108)*TRANSPOSE(($D114:$E114))),0) -> 172271.4537 | AB114: =AB$106+IF($C114<>0,SUMPRODUCT((AB$107:AB$108)*TRANSPOSE(($D114:$E114))),0) -> 179866.1696 | AC114: =AC$106+IF($C114<>0,SUMPRODUCT((AC$107:AC$108)*TRANSPOSE(($D114:$E114))),0) -> 190629.0338 | AD114: =AD$106+IF($C114<>0,SUMPRODUCT((AD$107:AD$108)*TRANSPOSE(($D114:$E114))),0) -> 205725.3983 | AE114: =AE$106+IF($C114<>0,SUMPRODUCT((AE$107:AE$108)*TRANSPOSE(($D114:$E114))),0) -> 217459.5127 | AF114: =AF$106+IF($C114<>0,SUMPRODUCT((AF$107:AF$108)*TRANSPOSE(($D114:$E114))),0) -> 218693.8596 | AG114: =AG$106+IF($C114<>0,SUMPRODUCT((AG$107:AG$108)*TRANSPOSE(($D114:$E114))),0) -> 220462.0564
A115: ="sens"&Assumptions!B116 -> sens | C115: =Assumptions!C116 -> 0 | D115: =Assumptions!G116 -> 0 | E115: =Assumptions!H116 -> 0 | G115: Option 3sens | I115: =I$106+IF($C115<>0,SUMPRODUCT((I$107:I$108)*TRANSPOSE(($D115:$E115))),0) -> 0 | J115: =J$106+IF($C115<>0,SUMPRODUCT((J$107:J$108)*TRANSPOSE(($D115:$E115))),0) -> 0 | K115: =K$106+IF($C115<>0,SUMPRODUCT((K$107:K$108)*TRANSPOSE(($D115:$E115))),0) -> 0 | L115: =L$106+IF($C115<>0,SUMPRODUCT((L$107:L$108)*TRANSPOSE(($D115:$E115))),0) -> -58563.4051 | M115: =M$106+IF($C115<>0,SUMPRODUCT((M$107:M$108)*TRANSPOSE(($D115:$E115))),0) -> -175470.2614 | N115: =N$106+IF($C115<>0,SUMPRODUCT((N$107:N$108)*TRANSPOSE(($D115:$E115))),0) -> -175180.797 | O115: =O$106+IF($C115<>0,SUMPRODUCT((O$107:O$108)*TRANSPOSE(($D115:$E115))),0) -> -174691.8727 | P115: =P$106+IF($C115<>0,SUMPRODUCT((P$107:P$108)*TRANSPOSE(($D115:$E115))),0) -> -173945.8036 | Q115: =Q$106+IF($C115<>0,SUMPRODUCT((Q$107:Q$108)*TRANSPOSE(($D115:$E115))),0) -> -255173.5321 | R115: =R$106+IF($C115<>0,SUMPRODUCT((R$107:R$108)*TRANSPOSE(($D115:$E115))),0) -> 173620.0477 | S115: =S$106+IF($C115<>0,SUMPRODUCT((S$107:S$108)*TRANSPOSE(($D115:$E115))),0) -> 175887.172 | T115: =T$106+IF($C115<>0,SUMPRODUCT((T$107:T$108)*TRANSPOSE(($D115:$E115))),0) -> 179204.7657 | U115: =U$106+IF($C115<>0,SUMPRODUCT((U$107:U$108)*TRANSPOSE(($D115:$E115))),0) -> 184065.5681 | V115: =V$106+IF($C115<>0,SUMPRODUCT((V$107:V$108)*TRANSPOSE(($D115:$E115))),0) -> 191199.0308 | W115: =W$106+IF($C115<>0,SUMPRODUCT((W$107:W$108)*TRANSPOSE(($D115:$E115))),0) -> 201698.4593 | X115: =X$106+IF($C115<>0,SUMPRODUCT((X$107:X$108)*TRANSPOSE(($D115:$E115))),0) -> 217192.6545 | Y115: =Y$106+IF($C115<>0,SUMPRODUCT((Y$107:Y$108)*TRANSPOSE(($D115:$E115))),0) -> 240111.3489 | Z115: =Z$106+IF($C115<>0,SUMPRODUCT((Z$107:Z$108)*TRANSPOSE(($D115:$E115))),0) -> 274083.3056 | AA115: =AA$106+IF($C115<>0,SUMPRODUCT((AA$107:AA$108)*TRANSPOSE(($D115:$E115))),0) -> 285322.5124 | AB115: =AB$106+IF($C115<>0,SUMPRODUCT((AB$107:AB$108)*TRANSPOSE(($D115:$E115))),0) -> 293761.0856 | AC115: =AC$106+IF($C115<>0,SUMPRODUCT((AC$107:AC$108)*TRANSPOSE(($D115:$E115))),0) -> 305719.8236 | AD115: =AD$106+IF($C115<>0,SUMPRODUCT((AD$107:AD$108)*TRANSPOSE(($D115:$E115))),0) -> 322493.5619 | AE115: =AE$106+IF($C115<>0,SUMPRODUCT((AE$107:AE$108)*TRANSPOSE(($D115:$E115))),0) -> 335531.4668 | AF115: =AF$106+IF($C115<>0,SUMPRODUCT((AF$107:AF$108)*TRANSPOSE(($D115:$E115))),0) -> 336902.9633 | AG115: =AG$106+IF($C115<>0,SUMPRODUCT((AG$107:AG$108)*TRANSPOSE(($D115:$E115))),0) -> 338867.6265
A116: ="sens"&Assumptions!B117 -> sens | C116: =Assumptions!C117 -> 0 | D116: =Assumptions!G117 -> 0 | E116: =Assumptions!H117 -> 0 | G116: Option 3sens | I116: =I$106+IF($C116<>0,SUMPRODUCT((I$107:I$108)*TRANSPOSE(($D116:$E116))),0) -> 0 | J116: =J$106+IF($C116<>0,SUMPRODUCT((J$107:J$108)*TRANSPOSE(($D116:$E116))),0) -> 0 | K116: =K$106+IF($C116<>0,SUMPRODUCT((K$107:K$108)*TRANSPOSE(($D116:$E116))),0) -> 0 | L116: =L$106+IF($C116<>0,SUMPRODUCT((L$107:L$108)*TRANSPOSE(($D116:$E116))),0) -> -58563.4051 | M116: =M$106+IF($C116<>0,SUMPRODUCT((M$107:M$108)*TRANSPOSE(($D116:$E116))),0) -> -175470.2614 | N116: =N$106+IF($C116<>0,SUMPRODUCT((N$107:N$108)*TRANSPOSE(($D116:$E116))),0) -> -175180.797 | O116: =O$106+IF($C116<>0,SUMPRODUCT((O$107:O$108)*TRANSPOSE(($D116:$E116))),0) -> -174691.8727 | P116: =P$106+IF($C116<>0,SUMPRODUCT((P$107:P$108)*TRANSPOSE(($D116:$E116))),0) -> -173945.8036 | Q116: =Q$106+IF($C116<>0,SUMPRODUCT((Q$107:Q$108)*TRANSPOSE(($D116:$E116))),0) -> -255173.5321 | R116: =R$106+IF($C116<>0,SUMPRODUCT((R$107:R$108)*TRANSPOSE(($D116:$E116))),0) -> 173620.0477 | S116: =S$106+IF($C116<>0,SUMPRODUCT((S$107:S$108)*TRANSPOSE(($D116:$E116))),0) -> 175887.172 | T116: =T$106+IF($C116<>0,SUMPRODUCT((T$107:T$108)*TRANSPOSE(($D116:$E116))),0) -> 179204.7657 | U116: =U$106+IF($C116<>0,SUMPRODUCT((U$107:U$108)*TRANSPOSE(($D116:$E116))),0) -> 184065.5681 | V116: =V$106+IF($C116<>0,SUMPRODUCT((V$107:V$108)*TRANSPOSE(($D116:$E116))),0) -> 191199.0308 | W116: =W$106+IF($C116<>0,SUMPRODUCT((W$107:W$108)*TRANSPOSE(($D116:$E116))),0) -> 201698.4593 | X116: =X$106+IF($C116<>0,SUMPRODUCT((X$107:X$108)*TRANSPOSE(($D116:$E116))),0) -> 217192.6545 | Y116: =Y$106+IF($C116<>0,SUMPRODUCT((Y$107:Y$108)*TRANSPOSE(($D116:$E116))),0) -> 240111.3489 | Z116: =Z$106+IF($C116<>0,SUMPRODUCT((Z$107:Z$108)*TRANSPOSE(($D116:$E116))),0) -> 274083.3056 | AA116: =AA$106+IF($C116<>0,SUMPRODUCT((AA$107:AA$108)*TRANSPOSE(($D116:$E116))),0) -> 285322.5124 | AB116: =AB$106+IF($C116<>0,SUMPRODUCT((AB$107:AB$108)*TRANSPOSE(($D116:$E116))),0) -> 293761.0856 | AC116: =AC$106+IF($C116<>0,SUMPRODUCT((AC$107:AC$108)*TRANSPOSE(($D116:$E116))),0) -> 305719.8236 | AD116: =AD$106+IF($C116<>0,SUMPRODUCT((AD$107:AD$108)*TRANSPOSE(($D116:$E116))),0) -> 322493.5619 | AE116: =AE$106+IF($C116<>0,SUMPRODUCT((AE$107:AE$108)*TRANSPOSE(($D116:$E116))),0) -> 335531.4668 | AF116: =AF$106+IF($C116<>0,SUMPRODUCT((AF$107:AF$108)*TRANSPOSE(($D116:$E116))),0) -> 336902.9633 | AG116: =AG$106+IF($C116<>0,SUMPRODUCT((AG$107:AG$108)*TRANSPOSE(($D116:$E116))),0) -> 338867.6265
A117: ="sens"&Assumptions!B118 -> sens | C117: =Assumptions!C118 -> 0 | D117: =Assumptions!G118 -> 0 | E117: =Assumptions!H118 -> 0 | G117: Option 3sens | I117: =I$106+IF($C117<>0,SUMPRODUCT((I$107:I$108)*TRANSPOSE(($D117:$E117))),0) -> 0 | J117: =J$106+IF($C117<>0,SUMPRODUCT((J$107:J$108)*TRANSPOSE(($D117:$E117))),0) -> 0 | K117: =K$106+IF($C117<>0,SUMPRODUCT((K$107:K$108)*TRANSPOSE(($D117:$E117))),0) -> 0 | L117: =L$106+IF($C117<>0,SUMPRODUCT((L$107:L$108)*TRANSPOSE(($D117:$E117))),0) -> -58563.4051 | M117: =M$106+IF($C117<>0,SUMPRODUCT((M$107:M$108)*TRANSPOSE(($D117:$E117))),0) -> -175470.2614 | N117: =N$106+IF($C117<>0,SUMPRODUCT((N$107:N$108)*TRANSPOSE(($D117:$E117))),0) -> -175180.797 | O117: =O$106+IF($C117<>0,SUMPRODUCT((O$107:O$108)*TRANSPOSE(($D117:$E117))),0) -> -174691.8727 | P117: =P$106+IF($C117<>0,SUMPRODUCT((P$107:P$108)*TRANSPOSE(($D117:$E117))),0) -> -173945.8036 | Q117: =Q$106+IF($C117<>0,SUMPRODUCT((Q$107:Q$108)*TRANSPOSE(($D117:$E117))),0) -> -255173.5321 | R117: =R$106+IF($C117<>0,SUMPRODUCT((R$107:R$108)*TRANSPOSE(($D117:$E117))),0) -> 173620.0477 | S117: =S$106+IF($C117<>0,SUMPRODUCT((S$107:S$108)*TRANSPOSE(($D117:$E117))),0) -> 175887.172 | T117: =T$106+IF($C117<>0,SUMPRODUCT((T$107:T$108)*TRANSPOSE(($D117:$E117))),0) -> 179204.7657 | U117: =U$106+IF($C117<>0,SUMPRODUCT((U$107:U$108)*TRANSPOSE(($D117:$E117))),0) -> 184065.5681 | V117: =V$106+IF($C117<>0,SUMPRODUCT((V$107:V$108)*TRANSPOSE(($D117:$E117))),0) -> 191199.0308 | W117: =W$106+IF($C117<>0,SUMPRODUCT((W$107:W$108)*TRANSPOSE(($D117:$E117))),0) -> 201698.4593 | X117: =X$106+IF($C117<>0,SUMPRODUCT((X$107:X$108)*TRANSPOSE(($D117:$E117))),0) -> 217192.6545 | Y117: =Y$106+IF($C117<>0,SUMPRODUCT((Y$107:Y$108)*TRANSPOSE(($D117:$E117))),0) -> 240111.3489 | Z117: =Z$106+IF($C117<>0,SUMPRODUCT((Z$107:Z$108)*TRANSPOSE(($D117:$E117))),0) -> 274083.3056 | AA117: =AA$106+IF($C117<>0,SUMPRODUCT((AA$107:AA$108)*TRANSPOSE(($D117:$E117))),0) -> 285322.5124 | AB117: =AB$106+IF($C117<>0,SUMPRODUCT((AB$107:AB$108)*TRANSPOSE(($D117:$E117))),0) -> 293761.0856 | AC117: =AC$106+IF($C117<>0,SUMPRODUCT((AC$107:AC$108)*TRANSPOSE(($D117:$E117))),0) -> 305719.8236 | AD117: =AD$106+IF($C117<>0,SUMPRODUCT((AD$107:AD$108)*TRANSPOSE(($D117:$E117))),0) -> 322493.5619 | AE117: =AE$106+IF($C117<>0,SUMPRODUCT((AE$107:AE$108)*TRANSPOSE(($D117:$E117))),0) -> 335531.4668 | AF117: =AF$106+IF($C117<>0,SUMPRODUCT((AF$107:AF$108)*TRANSPOSE(($D117:$E117))),0) -> 336902.9633 | AG117: =AG$106+IF($C117<>0,SUMPRODUCT((AG$107:AG$108)*TRANSPOSE(($D117:$E117))),0) -> 338867.6265

Sheet Option4
A1: =bus -> CitiPower
A2: =proj -> NC switchboard and relay replacement
A3: OPTION 4 | C3: =INDEX(Assumptions!$E$14:$E$18, MATCH(A3,_xlfn.ANCHORARRAY( Assumptions!$C$14),0)) -> Retrofit vacuum CB in 2028-29 and combined SWBD and relay replacement in 2038-39
A4: =(INDEX(Data!$D$9:$D$13, MATCH(A3, options,0))) -> 
A6: ='Option1 (base case)'!A6 -> Count | I6: ='Option1 (base case)'!I6 -> 1 | J6: ='Option1 (base case)'!J6 -> 2 | K6: ='Option1 (base case)'!K6 -> 3 | L6: ='Option1 (base case)'!L6 -> 4 | M6: ='Option1 (base case)'!M6 -> 5 | N6: ='Option1 (base case)'!N6 -> 6 | O6: ='Option1 (base case)'!O6 -> 7 | P6: ='Option1 (base case)'!P6 -> 8 | Q6: ='Option1 (base case)'!Q6 -> 9 | R6: ='Option1 (base case)'!R6 -> 10 | S6: ='Option1 (base case)'!S6 -> 11 | T6: ='Option1 (base case)'!T6 -> 12 | U6: ='Option1 (base case)'!U6 -> 13 | V6: ='Option1 (base case)'!V6 -> 14 | W6: ='Option1 (base case)'!W6 -> 15 | X6: ='Option1 (base case)'!X6 -> 16 | Y6: ='Option1 (base case)'!Y6 -> 17 | Z6: ='Option1 (base case)'!Z6 -> 18 | AA6: ='Option1 (base case)'!AA6 -> 19 | AB6: ='Option1 (base case)'!AB6 -> 20 | AC6: ='Option1 (base case)'!AC6 -> 21 | AD6: ='Option1 (base case)'!AD6 -> 22 | AE6: ='Option1 (base case)'!AE6 -> 23 | AF6: ='Option1 (base case)'!AF6 -> 24 | AG6: ='Option1 (base case)'!AG6 -> 25
A7: ='Option1 (base case)'!A7 -> Value of CO2 reductions | G7: $/MWh | I7: ='Option1 (base case)'!I7 -> 24.7304868 | J7: ='Option1 (base case)'!J7 -> 22.34074009 | K7: ='Option1 (base case)'!K7 -> 20.19632912 | L7: ='Option1 (base case)'!L7 -> 18.06294208 | M7: ='Option1 (base case)'!M7 -> 15.91339762 | N7: ='Option1 (base case)'!N7 -> 13.71506943 | O7: ='Option1 (base case)'!O7 -> 13.71506943 | P7: ='Option1 (base case)'!P7 -> 13.71506943 | Q7: ='Option1 (base case)'!Q7 -> 13.71506943 | R7: ='Option1 (base case)'!R7 -> 13.71506943 | S7: ='Option1 (base case)'!S7 -> 13.71506943 | T7: ='Option1 (base case)'!T7 -> 13.71506943 | U7: ='Option1 (base case)'!U7 -> 13.71506943 | V7: ='Option1 (base case)'!V7 -> 13.71506943 | W7: ='Option1 (base case)'!W7 -> 13.71506943 | X7: ='Option1 (base case)'!X7 -> 13.71506943 | Y7: ='Option1 (base case)'!Y7 -> 13.71506943 | Z7: ='Option1 (base case)'!Z7 -> 13.71506943 | AA7: ='Option1 (base case)'!AA7 -> 13.71506943 | AB7: ='Option1 (base case)'!AB7 -> 13.71506943 | AC7: ='Option1 (base case)'!AC7 -> 13.71506943 | AD7: ='Option1 (base case)'!AD7 -> 13.71506943 | AE7: ='Option1 (base case)'!AE7 -> 13.71506943 | AF7: ='Option1 (base case)'!AF7 -> 13.71506943 | AG7: ='Option1 (base case)'!AG7 -> 13.71506943
G9: Units | I9: ='Option1 (base case)'!I9 -> 2026-27 | J9: ='Option1 (base case)'!J9 -> 2027-28 | K9: ='Option1 (base case)'!K9 -> 2028-29 | L9: ='Option1 (base case)'!L9 -> 2029-30 | M9: ='Option1 (base case)'!M9 -> 2030-31 | N9: ='Option1 (base case)'!N9 -> 2031-32 | O9: ='Option1 (base case)'!O9 -> 2032-33 | P9: ='Option1 (base case)'!P9 -> 2033-34 | Q9: ='Option1 (base case)'!Q9 -> 2034-35 | R9: ='Option1 (base case)'!R9 -> 2035-36 | S9: ='Option1 (base case)'!S9 -> 2036-37 | T9: ='Option1 (base case)'!T9 -> 2037-38 | U9: ='Option1 (base case)'!U9 -> 2038-39 | V9: ='Option1 (base case)'!V9 -> 2039-40 | W9: ='Option1 (base case)'!W9 -> 2040-41 | X9: ='Option1 (base case)'!X9 -> 2041-42 | Y9: ='Option1 (base case)'!Y9 -> 2042-43 | Z9: ='Option1 (base case)'!Z9 -> 2043-44 | AA9: ='Option1 (base case)'!AA9 -> 2044-45 | AB9: ='Option1 (base case)'!AB9 -> 2045-46 | AC9: ='Option1 (base case)'!AC9 -> 2046-47 | AD9: ='Option1 (base case)'!AD9 -> 2047-48 | AE9: ='Option1 (base case)'!AE9 -> 2048-49 | AF9: ='Option1 (base case)'!AF9 -> 2049-50 | AG9: ='Option1 (base case)'!AG9 -> 2050-51
A11: INVESTMENT & OPERATING COST
C13: Capex | E13: Asset life (yrs)
C14: Switchboard | E14: 50 | G14: =input_dollars -> 2023-12-31 | I14: 0 | J14: 0 | K14: 0 | L14: 0 | M14: 0 | N14: 0 | O14: 0 | P14: 0 | Q14: 0 | R14: 0 | S14: 0 | T14: =Workings_costs!P55 -> 1447820.424 | U14: =Workings_costs!Q55 -> 2895640.847 | V14: 0 | W14: 0 | X14: 0 | Y14: 0 | Z14: 0 | AA14: 0 | AB14: 0 | AC14: 0 | AD14: 0 | AE14: 0 | AF14: 0 | AG14: 0
C15: Relays | E15: 25 | G15: =input_dollars -> 2023-12-31 | I15: =Workings_costs!E56 -> 0 | J15: =Workings_costs!F56 -> 0 | K15: =Workings_costs!G56 -> 0 | L15: =Workings_costs!H56 -> 0 | M15: =Workings_costs!I56 -> 0 | N15: =Workings_costs!J56 -> 0 | O15: =Workings_costs!K56 -> 0 | P15: =Workings_costs!L56 -> 0 | Q15: =Workings_costs!M56 -> 0 | R15: =Workings_costs!N56 -> 0 | S15: =Workings_costs!O56 -> 0 | T15: =Workings_costs!P56 -> 965213.6157 | U15: =Workings_costs!Q56 -> 1930427.231 | V15: =Workings_costs!R56 -> 0 | W15: =Workings_costs!S56 -> 0 | X15: =Workings_costs!T56 -> 0 | Y15: =Workings_costs!U56 -> 0 | Z15: =Workings_costs!V56 -> 0 | AA15: =Workings_costs!W56 -> 0 | AB15: =Workings_costs!X56 -> 0 | AC15: =Workings_costs!Y56 -> 0 | AD15: =Workings_costs!Z56 -> 0 | AE15: =Workings_costs!AA56 -> 0 | AF15: =Workings_costs!AB56 -> 0 | AG15: 0
C16: Vaccum CB retrofit | E16: 10 | G16: =input_dollars -> 2023-12-31 | I16: 0 | J16: 0 | K16: =Workings_costs!G55 -> 900000 | L16: 0 | M16: 0 | N16: 0 | O16: 0 | P16: 0 | Q16: 0 | R16: 0 | S16: 0 | T16: 0 | U16: 0 | V16: 0 | W16: 0 | X16: 0 | Y16: 0 | Z16: 0 | AA16: 0 | AB16: 0 | AC16: 0 | AD16: 0 | AE16: 0 | AF16: 0 | AG16: 0
C17: Capital expenditure | G17: =input_dollars -> 2023-12-31 | I17: =SUM(I14:I16) -> 0 | J17: 0 | K17: 900000 | L17: 0 | M17: 0 | N17: 0 | O17: 0 | P17: 0 | Q17: 0 | R17: =SUM(R14:R16) -> 0 | S17: 0 | T17: 2413034.039 | U17: 4826068.079 | V17: 0 | W17: 0 | X17: 0 | Y17: 0 | Z17: 0 | AA17: 0 | AB17: 0 | AC17: 0 | AD17: 0 | AE17: 0 | AF17: 0 | AG17: 0
C19: Operating expenditure | G19: =input_dollars -> 2023-12-31 | I19: 0 | J19: 0 | K19: 0 | L19: 0 | M19: 0 | N19: 0 | O19: 0 | P19: 0 | Q19: 0 | R19: 0 | S19: 0 | T19: 0 | U19: 0 | V19: 0 | W19: 0 | X19: 0 | Y19: 0 | Z19: 0 | AA19: 0 | AB19: 0 | AC19: 0 | AD19: 0 | AE19: 0 | AF19: 0 | AG19: 0
A22: RISK ASSUMPTIONS
C24: PoF (major) | I24: 0 | J24: 0 | K24: 0 | L24: 0 | M24: 0 | N24: 0 | O24: 0 | P24: 0 | Q24: 0 | R24: 0 | S24: 0 | T24: 0 | U24: 0 | V24: 0 | W24: 0 | X24: 0 | Y24: 0 | Z24: 0 | AA24: 0 | AB24: 0 | AC24: 0 | AD24: 0 | AE24: 0 | AF24: 0 | AG24: 0
C25: PoF (reparable) | I25: 0 | J25: 0 | K25: 0 | L25: 0 | M25: 0 | N25: 0 | O25: 0 | P25: 0 | Q25: 0 | R25: 0 | S25: 0 | T25: 0 | U25: 0 | V25: 0 | W25: 0 | X25: 0 | Y25: 0 | Z25: 0 | AA25: 0 | AB25: 0 | AC25: 0 | AD25: 0 | AE25: 0 | AF25: 0 | AG25: 0
C27: Energy at risk (weighted) | G27: MWh | I27: 0 | J27: 0 | K27: 0 | L27: 0 | M27: 0 | N27: 0 | O27: 0 | P27: 0 | Q27: 0 | R27: 0 | S27: 0 | T27: 0 | U27: 0 | V27: 0 | W27: 0 | X27: 0 | Y27: 0 | Z27: 0 | AA27: 0 | AB27: 0 | AC27: 0 | AD27: 0 | AE27: 0 | AF27: 0 | AG27: 0
C28: Energy at risk value | D28: $/MWh | E28: =Assumptions!H41*vcr_esc -> 44330.65115 | F28: =IF(AND(SUM(I27:AG27)<>0, E28=0), "!", "") ->  | G28: =input_dollars -> 2023-12-31 | I28: =Workings_risks!E109 -> 569702.8583 | J28: =Workings_risks!F109 -> 584295.4116 | K28: =Workings_risks!G109 -> 597160.4076 | L28: =Workings_risks!H109 -> 493301.5541 | M28: =Workings_risks!I109 -> 502556.4609 | N28: =Workings_risks!J109 -> 513153.4587 | O28: =Workings_risks!K109 -> 527949.6179 | P28: =Workings_risks!L109 -> 543479.0636 | Q28: =Workings_risks!M109 -> 554378.2098 | R28: =Workings_risks!N109 -> 558612.462 | S28: =Workings_risks!O109 -> 563273.2294 | T28: =Workings_risks!P109 -> 568415.3085 | U28: =Workings_risks!Q109 -> 573394.9876 | V28: =Workings_risks!R109 -> 134765.3842 | W28: =Workings_risks!S109 -> 141307.7268 | X28: =Workings_risks!T109 -> 148474.7751 | Y28: =Workings_risks!U109 -> 156327.8553 | Z28: =Workings_risks!V109 -> 164934.4323 | AA28: =Workings_risks!W109 -> 174368.7343 | AB28: =Workings_risks!X109 -> 184712.4086 | AC28: =Workings_risks!Y109 -> 196055.2414 | AD28: =Workings_risks!Z109 -> 208496.2181 | AE28: =Workings_risks!AA109 -> 222144.2087 | AF28: =Workings_risks!AB109 -> 237119.0599 | AG28: =Workings_risks!AC109 -> 253552.7161
C30: =Workings_risks!D56 -> Safety risk | D30: (after DF) | G30: =input_dollars -> 2023-12-31 | I30: =Workings_risks!E110 -> 1751.436968 | J30: =Workings_risks!F110 -> 1831.844753 | K30: =Workings_risks!G110 -> 1923.856861 | L30: =Workings_risks!H110 -> 1953.447073 | M30: =Workings_risks!I110 -> 2144.032763 | N30: =Workings_risks!J110 -> 2386.87632 | O30: =Workings_risks!K110 -> 2725.939939 | P30: =Workings_risks!L110 -> 3192.191801 | Q30: =Workings_risks!M110 -> 3818.958708 | R30: =Workings_risks!N110 -> 4676.86848 | S30: =Workings_risks!O110 -> 5867.789586 | T30: =Workings_risks!P110 -> 7553.232873 | U30: =Workings_risks!Q110 -> 3461.688948 | V30: =Workings_risks!R110 -> 3532.120919 | W30: =Workings_risks!S110 -> 3924.881351 | X30: =Workings_risks!T110 -> 4414.817535 | Y30: =Workings_risks!U110 -> 5044.762884 | Z30: =Workings_risks!V110 -> 5880.883558 | AA30: =Workings_risks!W110 -> 7026.106236 | AB30: =Workings_risks!X110 -> 8312.665405 | AC30: =Workings_risks!Y110 -> 8921.121897 | AD30: =Workings_risks!Z110 -> 9638.654225 | AE30: =Workings_risks!AA110 -> 10496.9287 | AF30: =Workings_risks!AB110 -> 11539.61613 | AG30: =Workings_risks!AC110 -> 12827.37366
C31: =Workings_risks!D57 -> Unplanned replacement | G31: =input_dollars -> 2023-12-31 | I31: =Workings_risks!E111 -> 46247.31899 | J31: =Workings_risks!F111 -> 48306.07978 | K31: =Workings_risks!G111 -> 50558.40941 | L31: =Workings_risks!H111 -> 48676.63954 | M31: =Workings_risks!I111 -> 51444.3668 | N31: =Workings_risks!J111 -> 54503.30071 | O31: =Workings_risks!K111 -> 57929.67078 | P31: =Workings_risks!L111 -> 61782.73551 | Q31: =Workings_risks!M111 -> 66120.87117 | R31: =Workings_risks!N111 -> 71047.1032 | S31: =Workings_risks!O111 -> 76701.46488 | T31: =Workings_risks!P111 -> 83293.7862 | U31: =Workings_risks!Q111 -> 84396.7102 | V31: =Workings_risks!R111 -> 75383.39787 | W31: =Workings_risks!S111 -> 82232.96899 | X31: =Workings_risks!T111 -> 89847.29983 | Y31: =Workings_risks!U111 -> 98363.0781 | Z31: =Workings_risks!V111 -> 107965.9052 | AA31: =Workings_risks!W111 -> 118915.7195 | AB31: =Workings_risks!X111 -> 130978.6974 | AC31: =Workings_risks!Y111 -> 142723.2029 | AD31: =Workings_risks!Z111 -> 155698.0804 | AE31: =Workings_risks!AA111 -> 170063.9215 | AF31: =Workings_risks!AB111 -> 186013.8106 | AG31: =Workings_risks!AC111 -> 203783.5899
C32: =Workings_risks!D58 -> Unplanned fault | G32: =input_dollars -> 2023-12-31 | I32: =Workings_risks!E112 -> 508 | J32: =Workings_risks!F112 -> 508 | K32: =Workings_risks!G112 -> 508 | L32: =Workings_risks!H112 -> 406.4 | M32: =Workings_risks!I112 -> 406.4 | N32: =Workings_risks!J112 -> 406.4 | O32: =Workings_risks!K112 -> 406.4 | P32: =Workings_risks!L112 -> 406.4 | Q32: =Workings_risks!M112 -> 406.4 | R32: =Workings_risks!N112 -> 406.4 | S32: =Workings_risks!O112 -> 406.4 | T32: =Workings_risks!P112 -> 406.4 | U32: =Workings_risks!Q112 -> 406.4 | V32: =Workings_risks!R112 -> 50.8 | W32: =Workings_risks!S112 -> 50.8 | X32: =Workings_risks!T112 -> 50.8 | Y32: =Workings_risks!U112 -> 50.8 | Z32: =Workings_risks!V112 -> 50.8 | AA32: =Workings_risks!W112 -> 50.8 | AB32: =Workings_risks!X112 -> 50.8 | AC32: =Workings_risks!Y112 -> 50.8 | AD32: =Workings_risks!Z112 -> 50.8 | AE32: =Workings_risks!AA112 -> 50.8 | AF32: =Workings_risks!AB112 -> 50.8 | AG32: =Workings_risks!AC112 -> 50.8
C33: =Workings_risks!D59 -> Environmental risk | G33: =input_dollars -> 2023-12-31 | I33: =Workings_risks!E113 -> 160.5056802 | J33: =Workings_risks!F113 -> 168.8105915 | K33: =Workings_risks!G113 -> 178.4725895 | L33: =Workings_risks!H113 -> 189.2251303 | M33: =Workings_risks!I113 -> 212.1287516 | N33: =Workings_risks!J113 -> 242.0251454 | O33: =Workings_risks!K113 -> 285.071896 | P33: =Workings_risks!L113 -> 345.5911637 | Q33: =Workings_risks!M113 -> 428.2320895 | R33: =Workings_risks!N113 -> 542.893423 | S33: =Workings_risks!O113 -> 703.868024 | T33: =Workings_risks!P113 -> 933.8433129 | U33: =Workings_risks!Q113 -> 349.6521225 | V33: =Workings_risks!R113 -> 386.4028854 | W33: =Workings_risks!S113 -> 432.063079 | X33: =Workings_risks!T113 -> 490.4938417 | Y33: =Workings_risks!U113 -> 567.6414951 | Z33: =Workings_risks!V113 -> 672.7319341 | AA33: =Workings_risks!W113 -> 820.1622999 | AB33: =Workings_risks!X113 -> 986.1656201 | AC33: =Workings_risks!Y113 -> 1055.111734 | AD33: =Workings_risks!Z113 -> 1137.804029 | AE33: =Workings_risks!AA113 -> 1238.544445 | AF33: =Workings_risks!AB113 -> 1363.31067 | AG33: =Workings_risks!AC113 -> 1520.456665
C34: < Other risk - enter description > | G34: =input_dollars -> 2023-12-31 | I34: 0 | J34: 0 | K34: 0 | L34: 0 | M34: 0 | N34: 0 | O34: 0 | P34: 0 | Q34: 0 | R34: 0 | S34: 0 | T34: 0 | U34: 0 | V34: 0 | W34: 0 | X34: 0 | Y34: 0 | Z34: 0 | AA34: 0 | AB34: 0 | AC34: 0 | AD34: 0 | AE34: 0 | AF34: 0 | AG34: 0
C36: Total risk cost | I36: =SUM(I28:I34) -> 618370.1199 | J36: =SUM(J28:J34) -> 635110.1467 | K36: 650329.1465 | L36: 544527.2659 | M36: 556763.3892 | N36: 570692.0609 | O36: 589296.7005 | P36: 609205.9821 | Q36: 625152.6717 | R36: 635285.7271 | S36: 646952.7519 | T36: 660602.5709 | U36: 662009.4388 | V36: 214118.1059 | W36: 227948.4402 | X36: 243278.1863 | Y36: 260354.1378 | Z36: 279504.753 | AA36: 301181.5223 | AB36: 325040.7371 | AC36: 348805.4779 | AD36: 375021.5568 | AE36: 403994.4034 | AF36: 436086.5973 | AG36: 471734.9364
A38: OTHER BENEFITS
C41: Reduction in CO2 emissions | G41: MWh | I41: 0 | J41: 0 | K41: 0 | L41: 0 | M41: 0 | N41: 0 | O41: 0 | P41: 0 | Q41: 0 | R41: 0 | S41: 0 | T41: 0 | U41: 0 | V41: 0 | W41: 0 | X41: 0 | Y41: 0 | Z41: 0 | AA41: 0 | AB41: 0 | AC41: 0 | AD41: 0 | AE41: 0 | AF41: 0 | AG41: 0
C42: Value of reduction in CO2 emissions | G42: $ | I42: =I41*I7 -> 0 | J42: 0 | K42: 0 | L42: 0 | M42: 0 | N42: 0 | O42: 0 | P42: 0 | Q42: 0 | R42: 0 | S42: 0 | T42: 0 | U42: 0 | V42: 0 | W42: 0 | X42: 0 | Y42: 0 | Z42: 0 | AA42: 0 | AB42: 0 | AC42: 0 | AD42: 0 | AE42: 0 | AF42: 0 | AG42: 0
C45: Reliability in worst-served areas | D45: $/MWh | E45: =Assumptions!G94 -> 0 | G45: MWh | I45: 0 | J45: 0 | K45: 0 | L45: 0 | M45: 0 | N45: 0 | O45: 0 | P45: 0 | Q45: 0 | R45: 0 | S45: 0 | T45: 0 | U45: 0 | V45: 0 | W45: 0 | X45: 0 | Y45: 0 | Z45: 0 | AA45: 0 | AB45: 0 | AC45: 0 | AD45: 0 | AE45: 0 | AF45: 0 | AG45: 0
C46: Network resilience | D46: $/MWh | E46: =Assumptions!G95 -> 0 | G46: MWh | I46: 0 | J46: 0 | K46: 0 | L46: 0 | M46: 0 | N46: 0 | O46: 0 | P46: 0 | Q46: 0 | R46: 0 | S46: 0 | T46: 0 | U46: 0 | V46: 0 | W46: 0 | X46: 0 | Y46: 0 | Z46: 0 | AA46: 0 | AB46: 0 | AC46: 0 | AD46: 0 | AE46: 0 | AF46: 0 | AG46: 0
C47: Enabling solar exports | D47: $/MWh | E47: =Assumptions!G96 -> 4220.99537 | G47: MWh | I47: 0 | J47: 0 | K47: 0 | L47: 0 | M47: 0 | N47: 0 | O47: 0 | P47: 0 | Q47: 0 | R47: 0 | S47: 0 | T47: 0 | U47: 0 | V47: 0 | W47: 0 | X47: 0 | Y47: 0 | Z47: 0 | AA47: 0 | AB47: 0 | AC47: 0 | AD47: 0 | AE47: 0 | AF47: 0 | AG47: 0
C48: Aesthetics | D48: $/customer | E48: =Assumptions!G97 -> 0 | G48: customers | I48: 0 | J48: 0 | K48: 0 | L48: 0 | M48: 0 | N48: 0 | O48: 0 | P48: 0 | Q48: 0 | R48: 0 | S48: 0 | T48: 0 | U48: 0 | V48: 0 | W48: 0 | X48: 0 | Y48: 0 | Z48: 0 | AA48: 0 | AB48: 0 | AC48: 0 | AD48: 0 | AE48: 0 | AF48: 0 | AG48: 0
C49: Customer value of time (res) | D49: $/customer min | E49: =Assumptions!G98 -> 0.5476938068 | G49: mins | I49: 0 | J49: 0 | K49: 0 | L49: 0 | M49: 0 | N49: 0 | O49: 0 | P49: 0 | Q49: 0 | R49: 0 | S49: 0 | T49: 0 | U49: 0 | V49: 0 | W49: 0 | X49: 0 | Y49: 0 | Z49: 0 | AA49: 0 | AB49: 0 | AC49: 0 | AD49: 0 | AE49: 0 | AF49: 0 | AG49: 0
C50: Customer value of time (bus) | D50: $/customer min | E50: =Assumptions!G99 -> 0.5476938068 | G50: mins | I50: 0 | J50: 0 | K50: 0 | L50: 0 | M50: 0 | N50: 0 | O50: 0 | P50: 0 | Q50: 0 | R50: 0 | S50: 0 | T50: 0 | U50: 0 | V50: 0 | W50: 0 | X50: 0 | Y50: 0 | Z50: 0 | AA50: 0 | AB50: 0 | AC50: 0 | AD50: 0 | AE50: 0 | AF50: 0 | AG50: 0
C51: Communication | D51: $/customer | E51: =Assumptions!G100 -> 0 | G51: customers | I51: 0 | J51: 0 | K51: 0 | L51: 0 | M51: 0 | N51: 0 | O51: 0 | P51: 0 | Q51: 0 | R51: 0 | S51: 0 | T51: 0 | U51: 0 | V51: 0 | W51: 0 | X51: 0 | Y51: 0 | Z51: 0 | AA51: 0 | AB51: 0 | AC51: 0 | AD51: 0 | AE51: 0 | AF51: 0 | AG51: 0
C52: Information accessibility | D52: $/customer | E52: =Assumptions!G101 -> 0 | G52: customers | I52: 0 | J52: 0 | K52: 0 | L52: 0 | M52: 0 | N52: 0 | O52: 0 | P52: 0 | Q52: 0 | R52: 0 | S52: 0 | T52: 0 | U52: 0 | V52: 0 | W52: 0 | X52: 0 | Y52: 0 | Z52: 0 | AA52: 0 | AB52: 0 | AC52: 0 | AD52: 0 | AE52: 0 | AF52: 0 | AG52: 0
C54: Opex saving | G54: =input_dollars -> 2023-12-31 | I54: 0 | J54: 0 | K54: 0 | L54: 0 | M54: 0 | N54: 0 | O54: 0 | P54: 0 | Q54: 0 | R54: 0 | S54: 0 | T54: 0 | U54: 0 | V54: 0 | W54: 0 | X54: 0 | Y54: 0 | Z54: 0 | AA54: 0 | AB54: 0 | AC54: 0 | AD54: 0 | AE54: 0 | AF54: 0 | AG54: 0
C55: Other benefits 2 | G55: =input_dollars -> 2023-12-31 | I55: 0 | J55: 0 | K55: 0 | L55: 0 | M55: 0 | N55: 0 | O55: 0 | P55: 0 | Q55: 0 | R55: 0 | S55: 0 | T55: 0 | U55: 0 | V55: 0 | W55: 0 | X55: 0 | Y55: 0 | Z55: 0 | AA55: 0 | AB55: 0 | AC55: 0 | AD55: 0 | AE55: 0 | AF55: 0 | AG55: 0
C57: Total other benefits | G57: =input_dollars -> 2023-12-31 | I57: =SUMPRODUCT((I$45:I$52)*($E$45:$E$52))+SUM(I54:I55)+I42 -> 0 | J57: =SUMPRODUCT((J$45:J$52)*($E$45:$E$52))+SUM(J54:J55)+J42 -> 0 | K57: =SUMPRODUCT((K$45:K$52)*($E$45:$E$52))+SUM(K54:K55)+K42 -> 0 | L57: =SUMPRODUCT((L$45:L$52)*($E$45:$E$52))+SUM(L54:L55)+L42 -> 0 | M57: =SUMPRODUCT((M$45:M$52)*($E$45:$E$52))+SUM(M54:M55)+M42 -> 0 | N57: =SUMPRODUCT((N$45:N$52)*($E$45:$E$52))+SUM(N54:N55)+N42 -> 0 | O57: =SUMPRODUCT((O$45:O$52)*($E$45:$E$52))+SUM(O54:O55)+O42 -> 0 | P57: =SUMPRODUCT((P$45:P$52)*($E$45:$E$52))+SUM(P54:P55)+P42 -> 0 | Q57: =SUMPRODUCT((Q$45:Q$52)*($E$45:$E$52))+SUM(Q54:Q55)+Q42 -> 0 | R57: =SUMPRODUCT((R$45:R$52)*($E$45:$E$52))+SUM(R54:R55)+R42 -> 0 | S57: =SUMPRODUCT((S$45:S$52)*($E$45:$E$52))+SUM(S54:S55)+S42 -> 0 | T57: =SUMPRODUCT((T$45:T$52)*($E$45:$E$52))+SUM(T54:T55)+T42 -> 0 | U57: =SUMPRODUCT((U$45:U$52)*($E$45:$E$52))+SUM(U54:U55)+U42 -> 0 | V57: =SUMPRODUCT((V$45:V$52)*($E$45:$E$52))+SUM(V54:V55)+V42 -> 0 | W57: =SUMPRODUCT((W$45:W$52)*($E$45:$E$52))+SUM(W54:W55)+W42 -> 0 | X57: =SUMPRODUCT((X$45:X$52)*($E$45:$E$52))+SUM(X54:X55)+X42 -> 0 | Y57: =SUMPRODUCT((Y$45:Y$52)*($E$45:$E$52))+SUM(Y54:Y55)+Y42 -> 0 | Z57: =SUMPRODUCT((Z$45:Z$52)*($E$45:$E$52))+SUM(Z54:Z55)+Z42 -> 0 | AA57: =SUMPRODUCT((AA$45:AA$52)*($E$45:$E$52))+SUM(AA54:AA55)+AA42 -> 0 | AB57: =SUMPRODUCT((AB$45:AB$52)*($E$45:$E$52))+SUM(AB54:AB55)+AB42 -> 0 | AC57: =SUMPRODUCT((AC$45:AC$52)*($E$45:$E$52))+SUM(AC54:AC55)+AC42 -> 0 | AD57: =SUMPRODUCT((AD$45:AD$52)*($E$45:$E$52))+SUM(AD54:AD55)+AD42 -> 0 | AE57: =SUMPRODUCT((AE$45:AE$52)*($E$45:$E$52))+SUM(AE54:AE55)+AE42 -> 0 | AF57: =SUMPRODUCT((AF$45:AF$52)*($E$45:$E$52))+SUM(AF54:AF55)+AF42 -> 0 | AG57: =SUMPRODUCT((AG$45:AG$52)*($E$45:$E$52))+SUM(AG54:AG55)+AG42 -> 0
A60: SUMMARY
C64: ='Option1 (base case)'!C64 -> Risks mitigated vs base case | G64: =input_dollars -> 2023-12-31 | I64: =(1-INDEX(Data!$C$9:$C$13, MATCH($A$3, options,0)))*('Option1 (base case)'!I36-I36) -> 0 | J64: =(1-INDEX(Data!$C$9:$C$13, MATCH($A$3, options,0)))*('Option1 (base case)'!J36-J36) -> 0 | K64: =(1-INDEX(Data!$C$9:$C$13, MATCH($A$3, options,0)))*('Option1 (base case)'!K36-K36) -> 0 | L64: =(1-INDEX(Data!$C$9:$C$13, MATCH($A$3, options,0)))*('Option1 (base case)'!L36-L36) -> 120196.2327 | M64: =(1-INDEX(Data!$C$9:$C$13, MATCH($A$3, options,0)))*('Option1 (base case)'!M36-M36) -> 121841.8488 | N64: =(1-INDEX(Data!$C$9:$C$13, MATCH($A$3, options,0)))*('Option1 (base case)'!N36-N36) -> 123759.8854 | O64: =(1-INDEX(Data!$C$9:$C$13, MATCH($A$3, options,0)))*('Option1 (base case)'!O36-O36) -> 126657.9906 | P64: =(1-INDEX(Data!$C$9:$C$13, MATCH($A$3, options,0)))*('Option1 (base case)'!P36-P36) -> 129662.3512 | Q64: =(1-INDEX(Data!$C$9:$C$13, MATCH($A$3, options,0)))*('Option1 (base case)'!Q36-Q36) -> 131423.7387 | R64: =(1-INDEX(Data!$C$9:$C$13, MATCH($A$3, options,0)))*('Option1 (base case)'!R36-R36) -> 131423.7387 | S64: =(1-INDEX(Data!$C$9:$C$13, MATCH($A$3, options,0)))*('Option1 (base case)'!S36-S36) -> 131423.7387 | T64: =(1-INDEX(Data!$C$9:$C$13, MATCH($A$3, options,0)))*('Option1 (base case)'!T36-T36) -> 131423.7387 | U64: =(1-INDEX(Data!$C$9:$C$13, MATCH($A$3, options,0)))*('Option1 (base case)'!U36-U36) -> 146245.7647 | V64: =(1-INDEX(Data!$C$9:$C$13, MATCH($A$3, options,0)))*('Option1 (base case)'!V36-V36) -> 613793.0679 | W64: =(1-INDEX(Data!$C$9:$C$13, MATCH($A$3, options,0)))*('Option1 (base case)'!W36-W36) -> 624292.4963 | X64: =(1-INDEX(Data!$C$9:$C$13, MATCH($A$3, options,0)))*('Option1 (base case)'!X36-X36) -> 639786.6915 | Y64: =(1-INDEX(Data!$C$9:$C$13, MATCH($A$3, options,0)))*('Option1 (base case)'!Y36-Y36) -> 662705.386 | Z64: =(1-INDEX(Data!$C$9:$C$13, MATCH($A$3, options,0)))*('Option1 (base case)'!Z36-Z36) -> 696677.3427 | AA64: =(1-INDEX(Data!$C$9:$C$13, MATCH($A$3, options,0)))*('Option1 (base case)'!AA36-AA36) -> 707916.5495 | AB64: =(1-INDEX(Data!$C$9:$C$13, MATCH($A$3, options,0)))*('Option1 (base case)'!AB36-AB36) -> 716355.1226 | AC64: =(1-INDEX(Data!$C$9:$C$13, MATCH($A$3, options,0)))*('Option1 (base case)'!AC36-AC36) -> 728313.8607 | AD64: =(1-INDEX(Data!$C$9:$C$13, MATCH($A$3, options,0)))*('Option1 (base case)'!AD36-AD36) -> 745282.2457 | AE64: =(1-INDEX(Data!$C$9:$C$13, MATCH($A$3, options,0)))*('Option1 (base case)'!AE36-AE36) -> 758705.2921 | AF64: =(1-INDEX(Data!$C$9:$C$13, MATCH($A$3, options,0)))*('Option1 (base case)'!AF36-AF36) -> 760605.4701 | AG64: =(1-INDEX(Data!$C$9:$C$13, MATCH($A$3, options,0)))*('Option1 (base case)'!AG36-AG36) -> 763299.12
C66: Capital expenditure
C67: =C14 -> Switchboard | G67: =input_dollars -> 2023-12-31 | I67: =-I14 -> 0 | J67: 0 | K67: 0 | L67: 0 | M67: 0 | N67: 0 | O67: 0 | P67: 0 | Q67: 0 | R67: 0 | S67: 0 | T67: -1447820.424 | U67: -2895640.847 | V67: 0 | W67: 0 | X67: 0 | Y67: 0 | Z67: 0 | AA67: 0 | AB67: 0 | AC67: 0 | AD67: 0 | AE67: 0 | AF67: 0 | AG67: 0
C68: =C15 -> Relays | G68: =input_dollars -> 2023-12-31 | I68: =-I15 -> 0 | J68: 0 | K68: 0 | L68: 0 | M68: 0 | N68: 0 | O68: 0 | P68: 0 | Q68: 0 | R68: 0 | S68: 0 | T68: -965213.6157 | U68: -1930427.231 | V68: 0 | W68: 0 | X68: 0 | Y68: 0 | Z68: 0 | AA68: 0 | AB68: 0 | AC68: 0 | AD68: 0 | AE68: 0 | AF68: 0 | AG68: 0
C69: =C16 -> Vaccum CB retrofit | G69: =input_dollars -> 2023-12-31 | I69: =-I16 -> 0 | J69: 0 | K69: -900000 | L69: 0 | M69: 0 | N69: 0 | O69: 0 | P69: 0 | Q69: 0 | R69: 0 | S69: 0 | T69: 0 | U69: 0 | V69: 0 | W69: 0 | X69: 0 | Y69: 0 | Z69: 0 | AA69: 0 | AB69: 0 | AC69: 0 | AD69: 0 | AE69: 0 | AF69: 0 | AG69: 0
C71: Cumulative capex
C72: =C14 -> Switchboard | G72: =input_dollars -> 2023-12-31 | I72: =SUMPRODUCT(($I67:I67))-SUMPRODUCT(($I67:I67)*($I$6:I$6<=(I$6-$E14))) -> 0 | J72: =SUMPRODUCT(($I67:J67))-SUMPRODUCT(($I67:J67)*($I$6:J$6<=(J$6-$E14))) -> 0 | K72: =SUMPRODUCT(($I67:K67))-SUMPRODUCT(($I67:K67)*($I$6:K$6<=(K$6-$E14))) -> 0 | L72: =SUMPRODUCT(($I67:L67))-SUMPRODUCT(($I67:L67)*($I$6:L$6<=(L$6-$E14))) -> 0 | M72: =SUMPRODUCT(($I67:M67))-SUMPRODUCT(($I67:M67)*($I$6:M$6<=(M$6-$E14))) -> 0 | N72: =SUMPRODUCT(($I67:N67))-SUMPRODUCT(($I67:N67)*($I$6:N$6<=(N$6-$E14))) -> 0 | O72: =SUMPRODUCT(($I67:O67))-SUMPRODUCT(($I67:O67)*($I$6:O$6<=(O$6-$E14))) -> 0 | P72: =SUMPRODUCT(($I67:P67))-SUMPRODUCT(($I67:P67)*($I$6:P$6<=(P$6-$E14))) -> 0 | Q72: =SUMPRODUCT(($I67:Q67))-SUMPRODUCT(($I67:Q67)*($I$6:Q$6<=(Q$6-$E14))) -> 0 | R72: =SUMPRODUCT(($I67:R67))-SUMPRODUCT(($I67:R67)*($I$6:R$6<=(R$6-$E14))) -> 0 | S72: =SUMPRODUCT(($I67:S67))-SUMPRODUCT(($I67:S67)*($I$6:S$6<=(S$6-$E14))) -> 0 | T72: =SUMPRODUCT(($I67:T67))-SUMPRODUCT(($I67:T67)*($I$6:T$6<=(T$6-$E14))) -> -1447820.424 | U72: =SUMPRODUCT(($I67:U67))-SUMPRODUCT(($I67:U67)*($I$6:U$6<=(U$6-$E14))) -> -4343461.271 | V72: =SUMPRODUCT(($I67:V67))-SUMPRODUCT(($I67:V67)*($I$6:V$6<=(V$6-$E14))) -> -4343461.271 | W72: =SUMPRODUCT(($I67:W67))-SUMPRODUCT(($I67:W67)*($I$6:W$6<=(W$6-$E14))) -> -4343461.271 | X72: =SUMPRODUCT(($I67:X67))-SUMPRODUCT(($I67:X67)*($I$6:X$6<=(X$6-$E14))) -> -4343461.271 | Y72: =SUMPRODUCT(($I67:Y67))-SUMPRODUCT(($I67:Y67)*($I$6:Y$6<=(Y$6-$E14))) -> -4343461.271 | Z72: =SUMPRODUCT(($I67:Z67))-SUMPRODUCT(($I67:Z67)*($I$6:Z$6<=(Z$6-$E14))) -> -4343461.271 | AA72: =SUMPRODUCT(($I67:AA67))-SUMPRODUCT(($I67:AA67)*($I$6:AA$6<=(AA$6-$E14))) -> -4343461.271 | AB72: =SUMPRODUCT(($I67:AB67))-SUMPRODUCT(($I67:AB67)*($I$6:AB$6<=(AB$6-$E14))) -> -4343461.271 | AC72: =SUMPRODUCT(($I67:AC67))-SUMPRODUCT(($I67:AC67)*($I$6:AC$6<=(AC$6-$E14))) -> -4343461.271 | AD72: =SUMPRODUCT(($I67:AD67))-SUMPRODUCT(($I67:AD67)*($I$6:AD$6<=(AD$6-$E14))) -> -4343461.271 | AE72: =SUMPRODUCT(($I67:AE67))-SUMPRODUCT(($I67:AE67)*($I$6:AE$6<=(AE$6-$E14))) -> -4343461.271 | AF72: =SUMPRODUCT(($I67:AF67))-SUMPRODUCT(($I67:AF67)*($I$6:AF$6<=(AF$6-$E14))) -> -4343461.271 | AG72: =SUMPRODUCT(($I67:AG67))-SUMPRODUCT(($I67:AG67)*($I$6:AG$6<=(AG$6-$E14))) -> -4343461.271
C73: =C15 -> Relays | G73: =input_dollars -> 2023-12-31 | I73: =SUMPRODUCT(($I68:I68))-SUMPRODUCT(($I68:I68)*($I$6:I$6<=(I$6-$E15))) -> 0 | J73: =SUMPRODUCT(($I68:J68))-SUMPRODUCT(($I68:J68)*($I$6:J$6<=(J$6-$E15))) -> 0 | K73: =SUMPRODUCT(($I68:K68))-SUMPRODUCT(($I68:K68)*($I$6:K$6<=(K$6-$E15))) -> 0 | L73: =SUMPRODUCT(($I68:L68))-SUMPRODUCT(($I68:L68)*($I$6:L$6<=(L$6-$E15))) -> 0 | M73: =SUMPRODUCT(($I68:M68))-SUMPRODUCT(($I68:M68)*($I$6:M$6<=(M$6-$E15))) -> 0 | N73: =SUMPRODUCT(($I68:N68))-SUMPRODUCT(($I68:N68)*($I$6:N$6<=(N$6-$E15))) -> 0 | O73: =SUMPRODUCT(($I68:O68))-SUMPRODUCT(($I68:O68)*($I$6:O$6<=(O$6-$E15))) -> 0 | P73: =SUMPRODUCT(($I68:P68))-SUMPRODUCT(($I68:P68)*($I$6:P$6<=(P$6-$E15))) -> 0 | Q73: =SUMPRODUCT(($I68:Q68))-SUMPRODUCT(($I68:Q68)*($I$6:Q$6<=(Q$6-$E15))) -> 0 | R73: =SUMPRODUCT(($I68:R68))-SUMPRODUCT(($I68:R68)*($I$6:R$6<=(R$6-$E15))) -> 0 | S73: =SUMPRODUCT(($I68:S68))-SUMPRODUCT(($I68:S68)*($I$6:S$6<=(S$6-$E15))) -> 0 | T73: =SUMPRODUCT(($I68:T68))-SUMPRODUCT(($I68:T68)*($I$6:T$6<=(T$6-$E15))) -> -965213.6157 | U73: =SUMPRODUCT(($I68:U68))-SUMPRODUCT(($I68:U68)*($I$6:U$6<=(U$6-$E15))) -> -2895640.847 | V73: =SUMPRODUCT(($I68:V68))-SUMPRODUCT(($I68:V68)*($I$6:V$6<=(V$6-$E15))) -> -2895640.847 | W73: =SUMPRODUCT(($I68:W68))-SUMPRODUCT(($I68:W68)*($I$6:W$6<=(W$6-$E15))) -> -2895640.847 | X73: =SUMPRODUCT(($I68:X68))-SUMPRODUCT(($I68:X68)*($I$6:X$6<=(X$6-$E15))) -> -2895640.847 | Y73: =SUMPRODUCT(($I68:Y68))-SUMPRODUCT(($I68:Y68)*($I$6:Y$6<=(Y$6-$E15))) -> -2895640.847 | Z73: =SUMPRODUCT(($I68:Z68))-SUMPRODUCT(($I68:Z68)*($I$6:Z$6<=(Z$6-$E15))) -> -2895640.847 | AA73: =SUMPRODUCT(($I68:AA68))-SUMPRODUCT(($I68:AA68)*($I$6:AA$6<=(AA$6-$E15))) -> -2895640.847 | AB73: =SUMPRODUCT(($I68:AB68))-SUMPRODUCT(($I68:AB68)*($I$6:AB$6<=(AB$6-$E15))) -> -2895640.847 | AC73: =SUMPRODUCT(($I68:AC68))-SUMPRODUCT(($I68:AC68)*($I$6:AC$6<=(AC$6-$E15))) -> -2895640.847 | AD73: =SUMPRODUCT(($I68:AD68))-SUMPRODUCT(($I68:AD68)*($I$6:AD$6<=(AD$6-$E15))) -> -2895640.847 | AE73: =SUMPRODUCT(($I68:AE68))-SUMPRODUCT(($I68:AE68)*($I$6:AE$6<=(AE$6-$E15))) -> -2895640.847 | AF73: =SUMPRODUCT(($I68:AF68))-SUMPRODUCT(($I68:AF68)*($I$6:AF$6<=(AF$6-$E15))) -> -2895640.847 | AG73: =SUMPRODUCT(($I68:AG68))-SUMPRODUCT(($I68:AG68)*($I$6:AG$6<=(AG$6-$E15))) -> -2895640.847
C74: =C16 -> Vaccum CB retrofit | G74: =input_dollars -> 2023-12-31 | I74: =SUMPRODUCT(($I69:I69))-SUMPRODUCT(($I69:I69)*($I$6:I$6<=(I$6-$E16))) -> 0 | J74: =SUMPRODUCT(($I69:J69))-SUMPRODUCT(($I69:J69)*($I$6:J$6<=(J$6-$E16))) -> 0 | K74: =SUMPRODUCT(($I69:K69))-SUMPRODUCT(($I69:K69)*($I$6:K$6<=(K$6-$E16))) -> -900000 | L74: =SUMPRODUCT(($I69:L69))-SUMPRODUCT(($I69:L69)*($I$6:L$6<=(L$6-$E16))) -> -900000 | M74: =SUMPRODUCT(($I69:M69))-SUMPRODUCT(($I69:M69)*($I$6:M$6<=(M$6-$E16))) -> -900000 | N74: =SUMPRODUCT(($I69:N69))-SUMPRODUCT(($I69:N69)*($I$6:N$6<=(N$6-$E16))) -> -900000 | O74: =SUMPRODUCT(($I69:O69))-SUMPRODUCT(($I69:O69)*($I$6:O$6<=(O$6-$E16))) -> -900000 | P74: =SUMPRODUCT(($I69:P69))-SUMPRODUCT(($I69:P69)*($I$6:P$6<=(P$6-$E16))) -> -900000 | Q74: =SUMPRODUCT(($I69:Q69))-SUMPRODUCT(($I69:Q69)*($I$6:Q$6<=(Q$6-$E16))) -> -900000 | R74: =SUMPRODUCT(($I69:R69))-SUMPRODUCT(($I69:R69)*($I$6:R$6<=(R$6-$E16))) -> -900000 | S74: =SUMPRODUCT(($I69:S69))-SUMPRODUCT(($I69:S69)*($I$6:S$6<=(S$6-$E16))) -> -900000 | T74: =SUMPRODUCT(($I69:T69))-SUMPRODUCT(($I69:T69)*($I$6:T$6<=(T$6-$E16))) -> -900000 | U74: =SUMPRODUCT(($I69:U69))-SUMPRODUCT(($I69:U69)*($I$6:U$6<=(U$6-$E16))) -> 0 | V74: =SUMPRODUCT(($I69:V69))-SUMPRODUCT(($I69:V69)*($I$6:V$6<=(V$6-$E16))) -> 0 | W74: =SUMPRODUCT(($I69:W69))-SUMPRODUCT(($I69:W69)*($I$6:W$6<=(W$6-$E16))) -> 0 | X74: =SUMPRODUCT(($I69:X69))-SUMPRODUCT(($I69:X69)*($I$6:X$6<=(X$6-$E16))) -> 0 | Y74: =SUMPRODUCT(($I69:Y69))-SUMPRODUCT(($I69:Y69)*($I$6:Y$6<=(Y$6-$E16))) -> 0 | Z74: =SUMPRODUCT(($I69:Z69))-SUMPRODUCT(($I69:Z69)*($I$6:Z$6<=(Z$6-$E16))) -> 0 | AA74: =SUMPRODUCT(($I69:AA69))-SUMPRODUCT(($I69:AA69)*($I$6:AA$6<=(AA$6-$E16))) -> 0 | AB74: =SUMPRODUCT(($I69:AB69))-SUMPRODUCT(($I69:AB69)*($I$6:AB$6<=(AB$6-$E16))) -> 0 | AC74: =SUMPRODUCT(($I69:AC69))-SUMPRODUCT(($I69:AC69)*($I$6:AC$6<=(AC$6-$E16))) -> 0 | AD74: =SUMPRODUCT(($I69:AD69))-SUMPRODUCT(($I69:AD69)*($I$6:AD$6<=(AD$6-$E16))) -> 0 | AE74: =SUMPRODUCT(($I69:AE69))-SUMPRODUCT(($I69:AE69)*($I$6:AE$6<=(AE$6-$E16))) -> 0 | AF74: =SUMPRODUCT(($I69:AF69))-SUMPRODUCT(($I69:AF69)*($I$6:AF$6<=(AF$6-$E16))) -> 0 | AG74: =SUMPRODUCT(($I69:AG69))-SUMPRODUCT(($I69:AG69)*($I$6:AG$6<=(AG$6-$E16))) -> 0
C76: Annualised capex
C77: =$C$76&" - "&C14 -> Annualised capex - Switchboard | G77: =input_dollars -> 2023-12-31 | I77: =IF($E14=0,0,-PMT(real_disc, $E14,H72,)) -> 0 | J77: 0 | K77: 0 | L77: 0 | M77: 0 | N77: 0 | O77: 0 | P77: 0 | Q77: 0 | R77: 0 | S77: 0 | T77: 0 | U77: -61725.95545 | V77: -185177.8663 | W77: -185177.8663 | X77: -185177.8663 | Y77: -185177.8663 | Z77: -185177.8663 | AA77: -185177.8663 | AB77: -185177.8663 | AC77: -185177.8663 | AD77: -185177.8663 | AE77: -185177.8663 | AF77: -185177.8663 | AG77: -185177.8663
C78: =$C$76&" - "&C15 -> Annualised capex - Relays | G78: =input_dollars -> 2023-12-31 | I78: =IF($E15=0,0,-PMT(real_disc, $E15,H73,)) -> 0 | J78: 0 | K78: 0 | L78: 0 | M78: 0 | N78: 0 | O78: 0 | P78: 0 | Q78: 0 | R78: 0 | S78: 0 | T78: 0 | U78: -58563.4051 | V78: -175690.2153 | W78: -175690.2153 | X78: -175690.2153 | Y78: -175690.2153 | Z78: -175690.2153 | AA78: -175690.2153 | AB78: -175690.2153 | AC78: -175690.2153 | AD78: -175690.2153 | AE78: -175690.2153 | AF78: -175690.2153 | AG78: -175690.2153
C79: =$C$76&" - "&C16 -> Annualised capex - Vaccum CB retrofit | G79: =input_dollars -> 2023-12-31 | I79: =IF($E16=0,0,-PMT(real_disc, $E16,H74,)) -> 0 | J79: 0 | K79: 0 | L79: -108217.2311 | M79: -108217.2311 | N79: -108217.2311 | O79: -108217.2311 | P79: -108217.2311 | Q79: -108217.2311 | R79: -108217.2311 | S79: -108217.2311 | T79: -108217.2311 | U79: -108217.2311 | V79: 0 | W79: 0 | X79: 0 | Y79: 0 | Z79: 0 | AA79: 0 | AB79: 0 | AC79: 0 | AD79: 0 | AE79: 0 | AF79: 0 | AG79: 0
C80: Total annualised capex | G80: =input_dollars -> 2023-12-31 | I80: =SUM(I77:I79) -> 0 | J80: =SUM(J77:J79) -> 0 | K80: 0 | L80: -108217.2311 | M80: -108217.2311 | N80: -108217.2311 | O80: -108217.2311 | P80: -108217.2311 | Q80: -108217.2311 | R80: -108217.2311 | S80: -108217.2311 | T80: -108217.2311 | U80: -228506.5916 | V80: -360868.0816 | W80: -360868.0816 | X80: -360868.0816 | Y80: -360868.0816 | Z80: -360868.0816 | AA80: -360868.0816 | AB80: -360868.0816 | AC80: =SUM(AC77:AC79) -> -360868.0816 | AD80: =SUM(AD77:AD79) -> -360868.0816 | AE80: =SUM(AE77:AE79) -> -360868.0816 | AF80: =SUM(AF77:AF79) -> -360868.0816 | AG80: =SUM(AG77:AG79) -> -360868.0816
C82: Annualised capex | G82: =input_dollars -> 2023-12-31 | I82: =I80 -> 0 | J82: =J80 -> 0 | K82: 0 | L82: -108217.2311 | M82: -108217.2311 | N82: -108217.2311 | O82: -108217.2311 | P82: -108217.2311 | Q82: -108217.2311 | R82: -108217.2311 | S82: -108217.2311 | T82: -108217.2311 | U82: -228506.5916 | V82: -360868.0816 | W82: -360868.0816 | X82: -360868.0816 | Y82: -360868.0816 | Z82: -360868.0816 | AA82: -360868.0816 | AB82: -360868.0816 | AC82: =AC80 -> -360868.0816 | AD82: =AD80 -> -360868.0816 | AE82: =AE80 -> -360868.0816 | AF82: =AF80 -> -360868.0816 | AG82: =AG80 -> -360868.0816
C83: Operating expenditure | G83: 2023-12-31 | I83: =-I19 -> 0 | J83: 0 | K83: 0 | L83: 0 | M83: 0 | N83: 0 | O83: 0 | P83: 0 | Q83: 0 | R83: 0 | S83: 0 | T83: 0 | U83: 0 | V83: 0 | W83: 0 | X83: 0 | Y83: 0 | Z83: 0 | AA83: 0 | AB83: 0 | AC83: 0 | AD83: 0 | AE83: 0 | AF83: 0 | AG83: 0
C84: Risk mitigated | G84: 2023-12-31 | I84: =I64 -> 0 | J84: =J64 -> 0 | K84: 0 | L84: 120196.2327 | M84: 121841.8488 | N84: 123759.8854 | O84: 126657.9906 | P84: 129662.3512 | Q84: 131423.7387 | R84: 131423.7387 | S84: 131423.7387 | T84: 131423.7387 | U84: 146245.7647 | V84: 613793.0679 | W84: 624292.4963 | X84: 639786.6915 | Y84: 662705.386 | Z84: 696677.3427 | AA84: 707916.5495 | AB84: 716355.1226 | AC84: =AC64 -> 728313.8607 | AD84: =AD64 -> 745282.2457 | AE84: =AE64 -> 758705.2921 | AF84: =AF64 -> 760605.4701 | AG84: =AG64 -> 763299.12
C85: Other benefits value | G85: 2023-12-31 | I85: =I57 -> 0 | J85: 0 | K85: 0 | L85: 0 | M85: 0 | N85: 0 | O85: 0 | P85: 0 | Q85: 0 | R85: 0 | S85: 0 | T85: 0 | U85: 0 | V85: 0 | W85: 0 | X85: 0 | Y85: 0 | Z85: 0 | AA85: 0 | AB85: 0 | AC85: 0 | AD85: 0 | AE85: 0 | AF85: 0 | AG85: 0
C87: Net benefits | G87: 2023-12-31 | I87: =SUM(I82:I86) -> 0 | J87: 0 | K87: 0 | L87: 11979.0016 | M87: 13624.61777 | N87: 15542.65434 | O87: 18440.7595 | P87: 21445.12016 | Q87: 23206.50759 | R87: 23206.50759 | S87: 23206.50759 | T87: 23206.50759 | U87: -82260.82696 | V87: 252924.9862 | W87: 263424.4147 | X87: 278918.6099 | Y87: 301837.3043 | Z87: 335809.261 | AA87: 347048.4678 | AB87: 355487.041 | AC87: =SUM(AC82:AC86) -> 367445.779 | AD87: =SUM(AD82:AD86) -> 384414.164 | AE87: =SUM(AE82:AE86) -> 397837.2105 | AF87: =SUM(AF82:AF86) -> 399737.3884 | AG87: =SUM(AG82:AG86) -> 402431.0384
C90: First capex year | G90: =IF(SUM($I17:$AG17)=0,0,(INDEX(I$6:AG$6,MATCH(TRUE,INDEX($I17:$AG17<>0,),0)))) -> 3
C92: First year | G92: =IF(_xlfn.MINIFS($G$90:$G$91, $G$90:$G$91, ">"&0)=0, $A$4, _xlfn.MINIFS($G$90:$G$91, $G$90:$G$91, ">"&0)) -> 3
A102: SENSITIVITIES
A106: NPV | C106: Net benefits | G106: =PROPER($A$3)&A106 -> Option 4NPV | I106: =I87 -> 0 | J106: =J87 -> 0 | K106: 0 | L106: 11979.0016 | M106: 13624.61777 | N106: 15542.65434 | O106: 18440.7595 | P106: 21445.12016 | Q106: 23206.50759 | R106: 23206.50759 | S106: 23206.50759 | T106: 23206.50759 | U106: -82260.82696 | V106: 252924.9862 | W106: 263424.4147 | X106: 278918.6099 | Y106: 301837.3043 | Z106: 335809.261 | AA106: 347048.4678 | AB106: 355487.041 | AC106: 367445.779 | AD106: 384414.164 | AE106: 397837.2105 | AF106: 399737.3884 | AG106: 402431.0384
C107: Total annualised capex | I107: =I82 -> 0 | J107: =J82 -> 0 | K107: 0 | L107: -108217.2311 | M107: -108217.2311 | N107: -108217.2311 | O107: -108217.2311 | P107: -108217.2311 | Q107: -108217.2311 | R107: -108217.2311 | S107: -108217.2311 | T107: -108217.2311 | U107: -228506.5916 | V107: -360868.0816 | W107: -360868.0816 | X107: -360868.0816 | Y107: -360868.0816 | Z107: -360868.0816 | AA107: -360868.0816 | AB107: -360868.0816 | AC107: -360868.0816 | AD107: -360868.0816 | AE107: -360868.0816 | AF107: -360868.0816 | AG107: -360868.0816
C108: Total benefits | I108: =SUM(I84:I85) -> 0 | J108: =SUM(J84:J85) -> 0 | K108: 0 | L108: 120196.2327 | M108: 121841.8488 | N108: 123759.8854 | O108: 126657.9906 | P108: 129662.3512 | Q108: 131423.7387 | R108: 131423.7387 | S108: 131423.7387 | T108: 131423.7387 | U108: 146245.7647 | V108: 613793.0679 | W108: 624292.4963 | X108: 639786.6915 | Y108: 662705.386 | Z108: 696677.3427 | AA108: 707916.5495 | AB108: 716355.1226 | AC108: 728313.8607 | AD108: 745282.2457 | AE108: 758705.2921 | AF108: 760605.4701 | AG108: 763299.12
D109: =Assumptions!G110 -> Capex | E109: =Assumptions!H110 -> Total benefits
A110: ="sens"&Assumptions!B111 -> sens1 | C110: =Assumptions!C111 -> Capex 10% higher | D110: =Assumptions!G111 -> 0.1 | E110: =Assumptions!H111 -> 0 | G110: =PROPER($A$3)&A110 -> Option 4sens1 | I110: =I$106+IF($C110<>0,SUMPRODUCT((I$107:I$108)*TRANSPOSE(($D110:$E110))),0) -> 0 | J110: =J$106+IF($C110<>0,SUMPRODUCT((J$107:J$108)*TRANSPOSE(($D110:$E110))),0) -> 0 | K110: =K$106+IF($C110<>0,SUMPRODUCT((K$107:K$108)*TRANSPOSE(($D110:$E110))),0) -> 0 | L110: =L$106+IF($C110<>0,SUMPRODUCT((L$107:L$108)*TRANSPOSE(($D110:$E110))),0) -> 1157.278493 | M110: =M$106+IF($C110<>0,SUMPRODUCT((M$107:M$108)*TRANSPOSE(($D110:$E110))),0) -> 2802.894659 | N110: =N$106+IF($C110<>0,SUMPRODUCT((N$107:N$108)*TRANSPOSE(($D110:$E110))),0) -> 4720.931228 | O110: =O$106+IF($C110<>0,SUMPRODUCT((O$107:O$108)*TRANSPOSE(($D110:$E110))),0) -> 7619.03639 | P110: =P$106+IF($C110<>0,SUMPRODUCT((P$107:P$108)*TRANSPOSE(($D110:$E110))),0) -> 10623.39705 | Q110: =Q$106+IF($C110<>0,SUMPRODUCT((Q$107:Q$108)*TRANSPOSE(($D110:$E110))),0) -> 12384.78449 | R110: =R$106+IF($C110<>0,SUMPRODUCT((R$107:R$108)*TRANSPOSE(($D110:$E110))),0) -> 12384.78449 | S110: =S$106+IF($C110<>0,SUMPRODUCT((S$107:S$108)*TRANSPOSE(($D110:$E110))),0) -> 12384.78449 | T110: =T$106+IF($C110<>0,SUMPRODUCT((T$107:T$108)*TRANSPOSE(($D110:$E110))),0) -> 12384.78449 | U110: =U$106+IF($C110<>0,SUMPRODUCT((U$107:U$108)*TRANSPOSE(($D110:$E110))),0) -> -105111.4861 | V110: =V$106+IF($C110<>0,SUMPRODUCT((V$107:V$108)*TRANSPOSE(($D110:$E110))),0) -> 216838.1781 | W110: =W$106+IF($C110<>0,SUMPRODUCT((W$107:W$108)*TRANSPOSE(($D110:$E110))),0) -> 227337.6065 | X110: =X$106+IF($C110<>0,SUMPRODUCT((X$107:X$108)*TRANSPOSE(($D110:$E110))),0) -> 242831.8017 | Y110: =Y$106+IF($C110<>0,SUMPRODUCT((Y$107:Y$108)*TRANSPOSE(($D110:$E110))),0) -> 265750.4962 | Z110: =Z$106+IF($C110<>0,SUMPRODUCT((Z$107:Z$108)*TRANSPOSE(($D110:$E110))),0) -> 299722.4529 | AA110: =AA$106+IF($C110<>0,SUMPRODUCT((AA$107:AA$108)*TRANSPOSE(($D110:$E110))),0) -> 310961.6597 | AB110: =AB$106+IF($C110<>0,SUMPRODUCT((AB$107:AB$108)*TRANSPOSE(($D110:$E110))),0) -> 319400.2328 | AC110: =AC$106+IF($C110<>0,SUMPRODUCT((AC$107:AC$108)*TRANSPOSE(($D110:$E110))),0) -> 331358.9709 | AD110: =AD$106+IF($C110<>0,SUMPRODUCT((AD$107:AD$108)*TRANSPOSE(($D110:$E110))),0) -> 348327.3559 | AE110: =AE$106+IF($C110<>0,SUMPRODUCT((AE$107:AE$108)*TRANSPOSE(($D110:$E110))),0) -> 361750.4023 | AF110: =AF$106+IF($C110<>0,SUMPRODUCT((AF$107:AF$108)*TRANSPOSE(($D110:$E110))),0) -> 363650.5803 | AG110: =AG$106+IF($C110<>0,SUMPRODUCT((AG$107:AG$108)*TRANSPOSE(($D110:$E110))),0) -> 366344.2302
A111: ="sens"&Assumptions!B112 -> sens2 | C111: =Assumptions!C112 -> Capex 10% lower | D111: =Assumptions!G112 -> -0.1 | E111: =Assumptions!H112 -> 0 | G111: =PROPER($A$3)&A111 -> Option 4sens2 | I111: =I$106+IF($C111<>0,SUMPRODUCT((I$107:I$108)*TRANSPOSE(($D111:$E111))),0) -> 0 | J111: =J$106+IF($C111<>0,SUMPRODUCT((J$107:J$108)*TRANSPOSE(($D111:$E111))),0) -> 0 | K111: =K$106+IF($C111<>0,SUMPRODUCT((K$107:K$108)*TRANSPOSE(($D111:$E111))),0) -> 0 | L111: =L$106+IF($C111<>0,SUMPRODUCT((L$107:L$108)*TRANSPOSE(($D111:$E111))),0) -> 22800.72471 | M111: =M$106+IF($C111<>0,SUMPRODUCT((M$107:M$108)*TRANSPOSE(($D111:$E111))),0) -> 24446.34088 | N111: =N$106+IF($C111<>0,SUMPRODUCT((N$107:N$108)*TRANSPOSE(($D111:$E111))),0) -> 26364.37744 | O111: =O$106+IF($C111<>0,SUMPRODUCT((O$107:O$108)*TRANSPOSE(($D111:$E111))),0) -> 29262.48261 | P111: =P$106+IF($C111<>0,SUMPRODUCT((P$107:P$108)*TRANSPOSE(($D111:$E111))),0) -> 32266.84326 | Q111: =Q$106+IF($C111<>0,SUMPRODUCT((Q$107:Q$108)*TRANSPOSE(($D111:$E111))),0) -> 34028.2307 | R111: =R$106+IF($C111<>0,SUMPRODUCT((R$107:R$108)*TRANSPOSE(($D111:$E111))),0) -> 34028.2307 | S111: =S$106+IF($C111<>0,SUMPRODUCT((S$107:S$108)*TRANSPOSE(($D111:$E111))),0) -> 34028.2307 | T111: =T$106+IF($C111<>0,SUMPRODUCT((T$107:T$108)*TRANSPOSE(($D111:$E111))),0) -> 34028.2307 | U111: =U$106+IF($C111<>0,SUMPRODUCT((U$107:U$108)*TRANSPOSE(($D111:$E111))),0) -> -59410.1678 | V111: =V$106+IF($C111<>0,SUMPRODUCT((V$107:V$108)*TRANSPOSE(($D111:$E111))),0) -> 289011.7944 | W111: =W$106+IF($C111<>0,SUMPRODUCT((W$107:W$108)*TRANSPOSE(($D111:$E111))),0) -> 299511.2229 | X111: =X$106+IF($C111<>0,SUMPRODUCT((X$107:X$108)*TRANSPOSE(($D111:$E111))),0) -> 315005.4181 | Y111: =Y$106+IF($C111<>0,SUMPRODUCT((Y$107:Y$108)*TRANSPOSE(($D111:$E111))),0) -> 337924.1125 | Z111: =Z$106+IF($C111<>0,SUMPRODUCT((Z$107:Z$108)*TRANSPOSE(($D111:$E111))),0) -> 371896.0692 | AA111: =AA$106+IF($C111<>0,SUMPRODUCT((AA$107:AA$108)*TRANSPOSE(($D111:$E111))),0) -> 383135.276 | AB111: =AB$106+IF($C111<>0,SUMPRODUCT((AB$107:AB$108)*TRANSPOSE(($D111:$E111))),0) -> 391573.8492 | AC111: =AC$106+IF($C111<>0,SUMPRODUCT((AC$107:AC$108)*TRANSPOSE(($D111:$E111))),0) -> 403532.5872 | AD111: =AD$106+IF($C111<>0,SUMPRODUCT((AD$107:AD$108)*TRANSPOSE(($D111:$E111))),0) -> 420500.9722 | AE111: =AE$106+IF($C111<>0,SUMPRODUCT((AE$107:AE$108)*TRANSPOSE(($D111:$E111))),0) -> 433924.0187 | AF111: =AF$106+IF($C111<>0,SUMPRODUCT((AF$107:AF$108)*TRANSPOSE(($D111:$E111))),0) -> 435824.1966 | AG111: =AG$106+IF($C111<>0,SUMPRODUCT((AG$107:AG$108)*TRANSPOSE(($D111:$E111))),0) -> 438517.8465
A112: ="sens"&Assumptions!B113 -> sens3 | C112: =Assumptions!C113 -> Total benefits 10% higher | D112: =Assumptions!G113 -> 0 | E112: =Assumptions!H113 -> 0.1 | G112: Option 4sens3 | I112: =I$106+IF($C112<>0,SUMPRODUCT((I$107:I$108)*TRANSPOSE(($D112:$E112))),0) -> 0 | J112: =J$106+IF($C112<>0,SUMPRODUCT((J$107:J$108)*TRANSPOSE(($D112:$E112))),0) -> 0 | K112: =K$106+IF($C112<>0,SUMPRODUCT((K$107:K$108)*TRANSPOSE(($D112:$E112))),0) -> 0 | L112: =L$106+IF($C112<>0,SUMPRODUCT((L$107:L$108)*TRANSPOSE(($D112:$E112))),0) -> 23998.62487 | M112: =M$106+IF($C112<>0,SUMPRODUCT((M$107:M$108)*TRANSPOSE(($D112:$E112))),0) -> 25808.80265 | N112: =N$106+IF($C112<>0,SUMPRODUCT((N$107:N$108)*TRANSPOSE(($D112:$E112))),0) -> 27918.64288 | O112: =O$106+IF($C112<>0,SUMPRODUCT((O$107:O$108)*TRANSPOSE(($D112:$E112))),0) -> 31106.55856 | P112: =P$106+IF($C112<>0,SUMPRODUCT((P$107:P$108)*TRANSPOSE(($D112:$E112))),0) -> 34411.35528 | Q112: =Q$106+IF($C112<>0,SUMPRODUCT((Q$107:Q$108)*TRANSPOSE(($D112:$E112))),0) -> 36348.88146 | R112: =R$106+IF($C112<>0,SUMPRODUCT((R$107:R$108)*TRANSPOSE(($D112:$E112))),0) -> 36348.88146 | S112: =S$106+IF($C112<>0,SUMPRODUCT((S$107:S$108)*TRANSPOSE(($D112:$E112))),0) -> 36348.88146 | T112: =T$106+IF($C112<>0,SUMPRODUCT((T$107:T$108)*TRANSPOSE(($D112:$E112))),0) -> 36348.88146 | U112: =U$106+IF($C112<>0,SUMPRODUCT((U$107:U$108)*TRANSPOSE(($D112:$E112))),0) -> -67636.25049 | V112: =V$106+IF($C112<>0,SUMPRODUCT((V$107:V$108)*TRANSPOSE(($D112:$E112))),0) -> 314304.293 | W112: =W$106+IF($C112<>0,SUMPRODUCT((W$107:W$108)*TRANSPOSE(($D112:$E112))),0) -> 325853.6643 | X112: =X$106+IF($C112<>0,SUMPRODUCT((X$107:X$108)*TRANSPOSE(($D112:$E112))),0) -> 342897.2791 | Y112: =Y$106+IF($C112<>0,SUMPRODUCT((Y$107:Y$108)*TRANSPOSE(($D112:$E112))),0) -> 368107.8429 | Z112: =Z$106+IF($C112<>0,SUMPRODUCT((Z$107:Z$108)*TRANSPOSE(($D112:$E112))),0) -> 405476.9953 | AA112: =AA$106+IF($C112<>0,SUMPRODUCT((AA$107:AA$108)*TRANSPOSE(($D112:$E112))),0) -> 417840.1228 | AB112: =AB$106+IF($C112<>0,SUMPRODUCT((AB$107:AB$108)*TRANSPOSE(($D112:$E112))),0) -> 427122.5533 | AC112: =AC$106+IF($C112<>0,SUMPRODUCT((AC$107:AC$108)*TRANSPOSE(($D112:$E112))),0) -> 440277.1651 | AD112: =AD$106+IF($C112<>0,SUMPRODUCT((AD$107:AD$108)*TRANSPOSE(($D112:$E112))),0) -> 458942.3886 | AE112: =AE$106+IF($C112<>0,SUMPRODUCT((AE$107:AE$108)*TRANSPOSE(($D112:$E112))),0) -> 473707.7397 | AF112: =AF$106+IF($C112<>0,SUMPRODUCT((AF$107:AF$108)*TRANSPOSE(($D112:$E112))),0) -> 475797.9354 | AG112: =AG$106+IF($C112<>0,SUMPRODUCT((AG$107:AG$108)*TRANSPOSE(($D112:$E112))),0) -> 478760.9504
A113: ="sens"&Assumptions!B114 -> sens4 | C113: =Assumptions!C114 -> Total benefits 10% lower | D113: =Assumptions!G114 -> 0 | E113: =Assumptions!H114 -> -0.1 | G113: Option 4sens4 | I113: =I$106+IF($C113<>0,SUMPRODUCT((I$107:I$108)*TRANSPOSE(($D113:$E113))),0) -> 0 | J113: =J$106+IF($C113<>0,SUMPRODUCT((J$107:J$108)*TRANSPOSE(($D113:$E113))),0) -> 0 | K113: =K$106+IF($C113<>0,SUMPRODUCT((K$107:K$108)*TRANSPOSE(($D113:$E113))),0) -> 0 | L113: =L$106+IF($C113<>0,SUMPRODUCT((L$107:L$108)*TRANSPOSE(($D113:$E113))),0) -> -40.62166689 | M113: =M$106+IF($C113<>0,SUMPRODUCT((M$107:M$108)*TRANSPOSE(($D113:$E113))),0) -> 1440.432882 | N113: =N$106+IF($C113<>0,SUMPRODUCT((N$107:N$108)*TRANSPOSE(($D113:$E113))),0) -> 3166.665795 | O113: =O$106+IF($C113<>0,SUMPRODUCT((O$107:O$108)*TRANSPOSE(($D113:$E113))),0) -> 5774.960441 | P113: =P$106+IF($C113<>0,SUMPRODUCT((P$107:P$108)*TRANSPOSE(($D113:$E113))),0) -> 8478.885033 | Q113: =Q$106+IF($C113<>0,SUMPRODUCT((Q$107:Q$108)*TRANSPOSE(($D113:$E113))),0) -> 10064.13373 | R113: =R$106+IF($C113<>0,SUMPRODUCT((R$107:R$108)*TRANSPOSE(($D113:$E113))),0) -> 10064.13373 | S113: =S$106+IF($C113<>0,SUMPRODUCT((S$107:S$108)*TRANSPOSE(($D113:$E113))),0) -> 10064.13373 | T113: =T$106+IF($C113<>0,SUMPRODUCT((T$107:T$108)*TRANSPOSE(($D113:$E113))),0) -> 10064.13373 | U113: =U$106+IF($C113<>0,SUMPRODUCT((U$107:U$108)*TRANSPOSE(($D113:$E113))),0) -> -96885.40343 | V113: =V$106+IF($C113<>0,SUMPRODUCT((V$107:V$108)*TRANSPOSE(($D113:$E113))),0) -> 191545.6794 | W113: =W$106+IF($C113<>0,SUMPRODUCT((W$107:W$108)*TRANSPOSE(($D113:$E113))),0) -> 200995.1651 | X113: =X$106+IF($C113<>0,SUMPRODUCT((X$107:X$108)*TRANSPOSE(($D113:$E113))),0) -> 214939.9408 | Y113: =Y$106+IF($C113<>0,SUMPRODUCT((Y$107:Y$108)*TRANSPOSE(($D113:$E113))),0) -> 235566.7657 | Z113: =Z$106+IF($C113<>0,SUMPRODUCT((Z$107:Z$108)*TRANSPOSE(($D113:$E113))),0) -> 266141.5268 | AA113: =AA$106+IF($C113<>0,SUMPRODUCT((AA$107:AA$108)*TRANSPOSE(($D113:$E113))),0) -> 276256.8129 | AB113: =AB$106+IF($C113<>0,SUMPRODUCT((AB$107:AB$108)*TRANSPOSE(($D113:$E113))),0) -> 283851.5287 | AC113: =AC$106+IF($C113<>0,SUMPRODUCT((AC$107:AC$108)*TRANSPOSE(($D113:$E113))),0) -> 294614.393 | AD113: =AD$106+IF($C113<>0,SUMPRODUCT((AD$107:AD$108)*TRANSPOSE(($D113:$E113))),0) -> 309885.9395 | AE113: =AE$106+IF($C113<>0,SUMPRODUCT((AE$107:AE$108)*TRANSPOSE(($D113:$E113))),0) -> 321966.6813 | AF113: =AF$106+IF($C113<>0,SUMPRODUCT((AF$107:AF$108)*TRANSPOSE(($D113:$E113))),0) -> 323676.8414 | AG113: =AG$106+IF($C113<>0,SUMPRODUCT((AG$107:AG$108)*TRANSPOSE(($D113:$E113))),0) -> 326101.1264
A114: ="sens"&Assumptions!B115 -> sens5 | C114: =Assumptions!C115 -> Capex 10% higher & Total benefits 10% lower | D114: =Assumptions!G115 -> 0.1 | E114: =Assumptions!H115 -> -0.1 | G114: Option 4sens5 | I114: =I$106+IF($C114<>0,SUMPRODUCT((I$107:I$108)*TRANSPOSE(($D114:$E114))),0) -> 0 | J114: =J$106+IF($C114<>0,SUMPRODUCT((J$107:J$108)*TRANSPOSE(($D114:$E114))),0) -> 0 | K114: =K$106+IF($C114<>0,SUMPRODUCT((K$107:K$108)*TRANSPOSE(($D114:$E114))),0) -> 0 | L114: =L$106+IF($C114<>0,SUMPRODUCT((L$107:L$108)*TRANSPOSE(($D114:$E114))),0) -> -10862.34477 | M114: =M$106+IF($C114<>0,SUMPRODUCT((M$107:M$108)*TRANSPOSE(($D114:$E114))),0) -> -9381.290226 | N114: =N$106+IF($C114<>0,SUMPRODUCT((N$107:N$108)*TRANSPOSE(($D114:$E114))),0) -> -7655.057313 | O114: =O$106+IF($C114<>0,SUMPRODUCT((O$107:O$108)*TRANSPOSE(($D114:$E114))),0) -> -5046.762667 | P114: =P$106+IF($C114<>0,SUMPRODUCT((P$107:P$108)*TRANSPOSE(($D114:$E114))),0) -> -2342.838075 | Q114: =Q$106+IF($C114<>0,SUMPRODUCT((Q$107:Q$108)*TRANSPOSE(($D114:$E114))),0) -> -757.5893814 | R114: =R$106+IF($C114<>0,SUMPRODUCT((R$107:R$108)*TRANSPOSE(($D114:$E114))),0) -> -757.5893814 | S114: =S$106+IF($C114<>0,SUMPRODUCT((S$107:S$108)*TRANSPOSE(($D114:$E114))),0) -> -757.5893814 | T114: =T$106+IF($C114<>0,SUMPRODUCT((T$107:T$108)*TRANSPOSE(($D114:$E114))),0) -> -757.5893814 | U114: =U$106+IF($C114<>0,SUMPRODUCT((U$107:U$108)*TRANSPOSE(($D114:$E114))),0) -> -119736.0626 | V114: =V$106+IF($C114<>0,SUMPRODUCT((V$107:V$108)*TRANSPOSE(($D114:$E114))),0) -> 155458.8713 | W114: =W$106+IF($C114<>0,SUMPRODUCT((W$107:W$108)*TRANSPOSE(($D114:$E114))),0) -> 164908.3569 | X114: =X$106+IF($C114<>0,SUMPRODUCT((X$107:X$108)*TRANSPOSE(($D114:$E114))),0) -> 178853.1326 | Y114: =Y$106+IF($C114<>0,SUMPRODUCT((Y$107:Y$108)*TRANSPOSE(($D114:$E114))),0) -> 199479.9576 | Z114: =Z$106+IF($C114<>0,SUMPRODUCT((Z$107:Z$108)*TRANSPOSE(($D114:$E114))),0) -> 230054.7186 | AA114: =AA$106+IF($C114<>0,SUMPRODUCT((AA$107:AA$108)*TRANSPOSE(($D114:$E114))),0) -> 240170.0047 | AB114: =AB$106+IF($C114<>0,SUMPRODUCT((AB$107:AB$108)*TRANSPOSE(($D114:$E114))),0) -> 247764.7206 | AC114: =AC$106+IF($C114<>0,SUMPRODUCT((AC$107:AC$108)*TRANSPOSE(($D114:$E114))),0) -> 258527.5848 | AD114: =AD$106+IF($C114<>0,SUMPRODUCT((AD$107:AD$108)*TRANSPOSE(($D114:$E114))),0) -> 273799.1313 | AE114: =AE$106+IF($C114<>0,SUMPRODUCT((AE$107:AE$108)*TRANSPOSE(($D114:$E114))),0) -> 285879.8731 | AF114: =AF$106+IF($C114<>0,SUMPRODUCT((AF$107:AF$108)*TRANSPOSE(($D114:$E114))),0) -> 287590.0333 | AG114: =AG$106+IF($C114<>0,SUMPRODUCT((AG$107:AG$108)*TRANSPOSE(($D114:$E114))),0) -> 290014.3182
A115: ="sens"&Assumptions!B116 -> sens | C115: =Assumptions!C116 -> 0 | D115: =Assumptions!G116 -> 0 | E115: =Assumptions!H116 -> 0 | G115: Option 4sens | I115: =I$106+IF($C115<>0,SUMPRODUCT((I$107:I$108)*TRANSPOSE(($D115:$E115))),0) -> 0 | J115: =J$106+IF($C115<>0,SUMPRODUCT((J$107:J$108)*TRANSPOSE(($D115:$E115))),0) -> 0 | K115: =K$106+IF($C115<>0,SUMPRODUCT((K$107:K$108)*TRANSPOSE(($D115:$E115))),0) -> 0 | L115: =L$106+IF($C115<>0,SUMPRODUCT((L$107:L$108)*TRANSPOSE(($D115:$E115))),0) -> 11979.0016 | M115: =M$106+IF($C115<>0,SUMPRODUCT((M$107:M$108)*TRANSPOSE(($D115:$E115))),0) -> 13624.61777 | N115: =N$106+IF($C115<>0,SUMPRODUCT((N$107:N$108)*TRANSPOSE(($D115:$E115))),0) -> 15542.65434 | O115: =O$106+IF($C115<>0,SUMPRODUCT((O$107:O$108)*TRANSPOSE(($D115:$E115))),0) -> 18440.7595 | P115: =P$106+IF($C115<>0,SUMPRODUCT((P$107:P$108)*TRANSPOSE(($D115:$E115))),0) -> 21445.12016 | Q115: =Q$106+IF($C115<>0,SUMPRODUCT((Q$107:Q$108)*TRANSPOSE(($D115:$E115))),0) -> 23206.50759 | R115: =R$106+IF($C115<>0,SUMPRODUCT((R$107:R$108)*TRANSPOSE(($D115:$E115))),0) -> 23206.50759 | S115: =S$106+IF($C115<>0,SUMPRODUCT((S$107:S$108)*TRANSPOSE(($D115:$E115))),0) -> 23206.50759 | T115: =T$106+IF($C115<>0,SUMPRODUCT((T$107:T$108)*TRANSPOSE(($D115:$E115))),0) -> 23206.50759 | U115: =U$106+IF($C115<>0,SUMPRODUCT((U$107:U$108)*TRANSPOSE(($D115:$E115))),0) -> -82260.82696 | V115: =V$106+IF($C115<>0,SUMPRODUCT((V$107:V$108)*TRANSPOSE(($D115:$E115))),0) -> 252924.9862 | W115: =W$106+IF($C115<>0,SUMPRODUCT((W$107:W$108)*TRANSPOSE(($D115:$E115))),0) -> 263424.4147 | X115: =X$106+IF($C115<>0,SUMPRODUCT((X$107:X$108)*TRANSPOSE(($D115:$E115))),0) -> 278918.6099 | Y115: =Y$106+IF($C115<>0,SUMPRODUCT((Y$107:Y$108)*TRANSPOSE(($D115:$E115))),0) -> 301837.3043 | Z115: =Z$106+IF($C115<>0,SUMPRODUCT((Z$107:Z$108)*TRANSPOSE(($D115:$E115))),0) -> 335809.261 | AA115: =AA$106+IF($C115<>0,SUMPRODUCT((AA$107:AA$108)*TRANSPOSE(($D115:$E115))),0) -> 347048.4678 | AB115: =AB$106+IF($C115<>0,SUMPRODUCT((AB$107:AB$108)*TRANSPOSE(($D115:$E115))),0) -> 355487.041 | AC115: =AC$106+IF($C115<>0,SUMPRODUCT((AC$107:AC$108)*TRANSPOSE(($D115:$E115))),0) -> 367445.779 | AD115: =AD$106+IF($C115<>0,SUMPRODUCT((AD$107:AD$108)*TRANSPOSE(($D115:$E115))),0) -> 384414.164 | AE115: =AE$106+IF($C115<>0,SUMPRODUCT((AE$107:AE$108)*TRANSPOSE(($D115:$E115))),0) -> 397837.2105 | AF115: =AF$106+IF($C115<>0,SUMPRODUCT((AF$107:AF$108)*TRANSPOSE(($D115:$E115))),0) -> 399737.3884 | AG115: =AG$106+IF($C115<>0,SUMPRODUCT((AG$107:AG$108)*TRANSPOSE(($D115:$E115))),0) -> 402431.0384
A116: ="sens"&Assumptions!B117 -> sens | C116: =Assumptions!C117 -> 0 | D116: =Assumptions!G117 -> 0 | E116: =Assumptions!H117 -> 0 | G116: Option 4sens | I116: =I$106+IF($C116<>0,SUMPRODUCT((I$107:I$108)*TRANSPOSE(($D116:$E116))),0) -> 0 | J116: =J$106+IF($C116<>0,SUMPRODUCT((J$107:J$108)*TRANSPOSE(($D116:$E116))),0) -> 0 | K116: =K$106+IF($C116<>0,SUMPRODUCT((K$107:K$108)*TRANSPOSE(($D116:$E116))),0) -> 0 | L116: =L$106+IF($C116<>0,SUMPRODUCT((L$107:L$108)*TRANSPOSE(($D116:$E116))),0) -> 11979.0016 | M116: =M$106+IF($C116<>0,SUMPRODUCT((M$107:M$108)*TRANSPOSE(($D116:$E116))),0) -> 13624.61777 | N116: =N$106+IF($C116<>0,SUMPRODUCT((N$107:N$108)*TRANSPOSE(($D116:$E116))),0) -> 15542.65434 | O116: =O$106+IF($C116<>0,SUMPRODUCT((O$107:O$108)*TRANSPOSE(($D116:$E116))),0) -> 18440.7595 | P116: =P$106+IF($C116<>0,SUMPRODUCT((P$107:P$108)*TRANSPOSE(($D116:$E116))),0) -> 21445.12016 | Q116: =Q$106+IF($C116<>0,SUMPRODUCT((Q$107:Q$108)*TRANSPOSE(($D116:$E116))),0) -> 23206.50759 | R116: =R$106+IF($C116<>0,SUMPRODUCT((R$107:R$108)*TRANSPOSE(($D116:$E116))),0) -> 23206.50759 | S116: =S$106+IF($C116<>0,SUMPRODUCT((S$107:S$108)*TRANSPOSE(($D116:$E116))),0) -> 23206.50759 | T116: =T$106+IF($C116<>0,SUMPRODUCT((T$107:T$108)*TRANSPOSE(($D116:$E116))),0) -> 23206.50759 | U116: =U$106+IF($C116<>0,SUMPRODUCT((U$107:U$108)*TRANSPOSE(($D116:$E116))),0) -> -82260.82696 | V116: =V$106+IF($C116<>0,SUMPRODUCT((V$107:V$108)*TRANSPOSE(($D116:$E116))),0) -> 252924.9862 | W116: =W$106+IF($C116<>0,SUMPRODUCT((W$107:W$108)*TRANSPOSE(($D116:$E116))),0) -> 263424.4147 | X116: =X$106+IF($C116<>0,SUMPRODUCT((X$107:X$108)*TRANSPOSE(($D116:$E116))),0) -> 278918.6099 | Y116: =Y$106+IF($C116<>0,SUMPRODUCT((Y$107:Y$108)*TRANSPOSE(($D116:$E116))),0) -> 301837.3043 | Z116: =Z$106+IF($C116<>0,SUMPRODUCT((Z$107:Z$108)*TRANSPOSE(($D116:$E116))),0) -> 335809.261 | AA116: =AA$106+IF($C116<>0,SUMPRODUCT((AA$107:AA$108)*TRANSPOSE(($D116:$E116))),0) -> 347048.4678 | AB116: =AB$106+IF($C116<>0,SUMPRODUCT((AB$107:AB$108)*TRANSPOSE(($D116:$E116))),0) -> 355487.041 | AC116: =AC$106+IF($C116<>0,SUMPRODUCT((AC$107:AC$108)*TRANSPOSE(($D116:$E116))),0) -> 367445.779 | AD116: =AD$106+IF($C116<>0,SUMPRODUCT((AD$107:AD$108)*TRANSPOSE(($D116:$E116))),0) -> 384414.164 | AE116: =AE$106+IF($C116<>0,SUMPRODUCT((AE$107:AE$108)*TRANSPOSE(($D116:$E116))),0) -> 397837.2105 | AF116: =AF$106+IF($C116<>0,SUMPRODUCT((AF$107:AF$108)*TRANSPOSE(($D116:$E116))),0) -> 399737.3884 | AG116: =AG$106+IF($C116<>0,SUMPRODUCT((AG$107:AG$108)*TRANSPOSE(($D116:$E116))),0) -> 402431.0384
A117: ="sens"&Assumptions!B118 -> sens | C117: =Assumptions!C118 -> 0 | D117: =Assumptions!G118 -> 0 | E117: =Assumptions!H118 -> 0 | G117: Option 4sens | I117: =I$106+IF($C117<>0,SUMPRODUCT((I$107:I$108)*TRANSPOSE(($D117:$E117))),0) -> 0 | J117: =J$106+IF($C117<>0,SUMPRODUCT((J$107:J$108)*TRANSPOSE(($D117:$E117))),0) -> 0 | K117: =K$106+IF($C117<>0,SUMPRODUCT((K$107:K$108)*TRANSPOSE(($D117:$E117))),0) -> 0 | L117: =L$106+IF($C117<>0,SUMPRODUCT((L$107:L$108)*TRANSPOSE(($D117:$E117))),0) -> 11979.0016 | M117: =M$106+IF($C117<>0,SUMPRODUCT((M$107:M$108)*TRANSPOSE(($D117:$E117))),0) -> 13624.61777 | N117: =N$106+IF($C117<>0,SUMPRODUCT((N$107:N$108)*TRANSPOSE(($D117:$E117))),0) -> 15542.65434 | O117: =O$106+IF($C117<>0,SUMPRODUCT((O$107:O$108)*TRANSPOSE(($D117:$E117))),0) -> 18440.7595 | P117: =P$106+IF($C117<>0,SUMPRODUCT((P$107:P$108)*TRANSPOSE(($D117:$E117))),0) -> 21445.12016 | Q117: =Q$106+IF($C117<>0,SUMPRODUCT((Q$107:Q$108)*TRANSPOSE(($D117:$E117))),0) -> 23206.50759 | R117: =R$106+IF($C117<>0,SUMPRODUCT((R$107:R$108)*TRANSPOSE(($D117:$E117))),0) -> 23206.50759 | S117: =S$106+IF($C117<>0,SUMPRODUCT((S$107:S$108)*TRANSPOSE(($D117:$E117))),0) -> 23206.50759 | T117: =T$106+IF($C117<>0,SUMPRODUCT((T$107:T$108)*TRANSPOSE(($D117:$E117))),0) -> 23206.50759 | U117: =U$106+IF($C117<>0,SUMPRODUCT((U$107:U$108)*TRANSPOSE(($D117:$E117))),0) -> -82260.82696 | V117: =V$106+IF($C117<>0,SUMPRODUCT((V$107:V$108)*TRANSPOSE(($D117:$E117))),0) -> 252924.9862 | W117: =W$106+IF($C117<>0,SUMPRODUCT((W$107:W$108)*TRANSPOSE(($D117:$E117))),0) -> 263424.4147 | X117: =X$106+IF($C117<>0,SUMPRODUCT((X$107:X$108)*TRANSPOSE(($D117:$E117))),0) -> 278918.6099 | Y117: =Y$106+IF($C117<>0,SUMPRODUCT((Y$107:Y$108)*TRANSPOSE(($D117:$E117))),0) -> 301837.3043 | Z117: =Z$106+IF($C117<>0,SUMPRODUCT((Z$107:Z$108)*TRANSPOSE(($D117:$E117))),0) -> 335809.261 | AA117: =AA$106+IF($C117<>0,SUMPRODUCT((AA$107:AA$108)*TRANSPOSE(($D117:$E117))),0) -> 347048.4678 | AB117: =AB$106+IF($C117<>0,SUMPRODUCT((AB$107:AB$108)*TRANSPOSE(($D117:$E117))),0) -> 355487.041 | AC117: =AC$106+IF($C117<>0,SUMPRODUCT((AC$107:AC$108)*TRANSPOSE(($D117:$E117))),0) -> 367445.779 | AD117: =AD$106+IF($C117<>0,SUMPRODUCT((AD$107:AD$108)*TRANSPOSE(($D117:$E117))),0) -> 384414.164 | AE117: =AE$106+IF($C117<>0,SUMPRODUCT((AE$107:AE$108)*TRANSPOSE(($D117:$E117))),0) -> 397837.2105 | AF117: =AF$106+IF($C117<>0,SUMPRODUCT((AF$107:AF$108)*TRANSPOSE(($D117:$E117))),0) -> 399737.3884 | AG117: =AG$106+IF($C117<>0,SUMPRODUCT((AG$107:AG$108)*TRANSPOSE(($D117:$E117))),0) -> 402431.0384

Sheet Option5
A1: =bus -> CitiPower
A2: =proj -> NC switchboard and relay replacement
A3: OPTION 5 | C3: =INDEX(Assumptions!$E$14:$E$18, MATCH(A3,_xlfn.ANCHORARRAY( Assumptions!$C$14),0)) -> Retrofit vacuum CB and replace relays in 2028-29 and SWBD replacement in 2038-39
A4: =(INDEX(Data!$D$9:$D$13, MATCH(A3, options,0))) -> 
A6: ='Option1 (base case)'!A6 -> Count | I6: ='Option1 (base case)'!I6 -> 1 | J6: ='Option1 (base case)'!J6 -> 2 | K6: ='Option1 (base case)'!K6 -> 3 | L6: ='Option1 (base case)'!L6 -> 4 | M6: ='Option1 (base case)'!M6 -> 5 | N6: ='Option1 (base case)'!N6 -> 6 | O6: ='Option1 (base case)'!O6 -> 7 | P6: ='Option1 (base case)'!P6 -> 8 | Q6: ='Option1 (base case)'!Q6 -> 9 | R6: ='Option1 (base case)'!R6 -> 10 | S6: ='Option1 (base case)'!S6 -> 11 | T6: ='Option1 (base case)'!T6 -> 12 | U6: ='Option1 (base case)'!U6 -> 13 | V6: ='Option1 (base case)'!V6 -> 14 | W6: ='Option1 (base case)'!W6 -> 15 | X6: ='Option1 (base case)'!X6 -> 16 | Y6: ='Option1 (base case)'!Y6 -> 17 | Z6: ='Option1 (base case)'!Z6 -> 18 | AA6: ='Option1 (base case)'!AA6 -> 19 | AB6: ='Option1 (base case)'!AB6 -> 20 | AC6: ='Option1 (base case)'!AC6 -> 21 | AD6: ='Option1 (base case)'!AD6 -> 22 | AE6: ='Option1 (base case)'!AE6 -> 23 | AF6: ='Option1 (base case)'!AF6 -> 24 | AG6: ='Option1 (base case)'!AG6 -> 25
A7: ='Option1 (base case)'!A7 -> Value of CO2 reductions | G7: $/MWh | I7: ='Option1 (base case)'!I7 -> 24.7304868 | J7: ='Option1 (base case)'!J7 -> 22.34074009 | K7: ='Option1 (base case)'!K7 -> 20.19632912 | L7: ='Option1 (base case)'!L7 -> 18.06294208 | M7: ='Option1 (base case)'!M7 -> 15.91339762 | N7: ='Option1 (base case)'!N7 -> 13.71506943 | O7: ='Option1 (base case)'!O7 -> 13.71506943 | P7: ='Option1 (base case)'!P7 -> 13.71506943 | Q7: ='Option1 (base case)'!Q7 -> 13.71506943 | R7: ='Option1 (base case)'!R7 -> 13.71506943 | S7: ='Option1 (base case)'!S7 -> 13.71506943 | T7: ='Option1 (base case)'!T7 -> 13.71506943 | U7: ='Option1 (base case)'!U7 -> 13.71506943 | V7: ='Option1 (base case)'!V7 -> 13.71506943 | W7: ='Option1 (base case)'!W7 -> 13.71506943 | X7: ='Option1 (base case)'!X7 -> 13.71506943 | Y7: ='Option1 (base case)'!Y7 -> 13.71506943 | Z7: ='Option1 (base case)'!Z7 -> 13.71506943 | AA7: ='Option1 (base case)'!AA7 -> 13.71506943 | AB7: ='Option1 (base case)'!AB7 -> 13.71506943 | AC7: ='Option1 (base case)'!AC7 -> 13.71506943 | AD7: ='Option1 (base case)'!AD7 -> 13.71506943 | AE7: ='Option1 (base case)'!AE7 -> 13.71506943 | AF7: ='Option1 (base case)'!AF7 -> 13.71506943 | AG7: ='Option1 (base case)'!AG7 -> 13.71506943
G9: Units | I9: ='Option1 (base case)'!I9 -> 2026-27 | J9: ='Option1 (base case)'!J9 -> 2027-28 | K9: ='Option1 (base case)'!K9 -> 2028-29 | L9: ='Option1 (base case)'!L9 -> 2029-30 | M9: ='Option1 (base case)'!M9 -> 2030-31 | N9: ='Option1 (base case)'!N9 -> 2031-32 | O9: ='Option1 (base case)'!O9 -> 2032-33 | P9: ='Option1 (base case)'!P9 -> 2033-34 | Q9: ='Option1 (base case)'!Q9 -> 2034-35 | R9: ='Option1 (base case)'!R9 -> 2035-36 | S9: ='Option1 (base case)'!S9 -> 2036-37 | T9: ='Option1 (base case)'!T9 -> 2037-38 | U9: ='Option1 (base case)'!U9 -> 2038-39 | V9: ='Option1 (base case)'!V9 -> 2039-40 | W9: ='Option1 (base case)'!W9 -> 2040-41 | X9: ='Option1 (base case)'!X9 -> 2041-42 | Y9: ='Option1 (base case)'!Y9 -> 2042-43 | Z9: ='Option1 (base case)'!Z9 -> 2043-44 | AA9: ='Option1 (base case)'!AA9 -> 2044-45 | AB9: ='Option1 (base case)'!AB9 -> 2045-46 | AC9: ='Option1 (base case)'!AC9 -> 2046-47 | AD9: ='Option1 (base case)'!AD9 -> 2047-48 | AE9: ='Option1 (base case)'!AE9 -> 2048-49 | AF9: ='Option1 (base case)'!AF9 -> 2049-50 | AG9: ='Option1 (base case)'!AG9 -> 2050-51
A11: INVESTMENT & OPERATING COST
C13: Capex | E13: Asset life (yrs)
C14: Switchboard | E14: 50 | G14: =input_dollars -> 2023-12-31 | I14: 0 | J14: 0 | K14: 0 | L14: 0 | M14: 0 | N14: 0 | O14: 0 | P14: 0 | Q14: 0 | R14: 0 | S14: 0 | T14: =Workings_costs!P70 -> 1930427.231 | U14: =Workings_costs!Q70 -> 3860854.463 | V14: 0 | W14: 0 | X14: 0 | Y14: 0 | Z14: 0 | AA14: 0 | AB14: 0 | AC14: 0 | AD14: 0 | AE14: 0 | AF14: 0 | AG14: 0
C15: Relays | E15: 25 | G15: =input_dollars -> 2023-12-31 | I15: =Workings_costs!E71 -> 0 | J15: =Workings_costs!F71 -> 0 | K15: =Workings_costs!G71 -> 965213.6157 | L15: =Workings_costs!H71 -> 1930427.231 | M15: =Workings_costs!I71 -> 0 | N15: =Workings_costs!J71 -> 0 | O15: =Workings_costs!K71 -> 0 | P15: =Workings_costs!L71 -> 0 | Q15: =Workings_costs!M71 -> 0 | R15: =Workings_costs!N71 -> 0 | S15: =Workings_costs!O71 -> 0 | T15: =Workings_costs!P71 -> 0 | U15: =Workings_costs!Q71 -> 0 | V15: =Workings_costs!R71 -> 0 | W15: =Workings_costs!S71 -> 0 | X15: =Workings_costs!T71 -> 0 | Y15: =Workings_costs!U71 -> 0 | Z15: =Workings_costs!V71 -> 0 | AA15: =Workings_costs!W71 -> 0 | AB15: =Workings_costs!X71 -> 0 | AC15: =Workings_costs!Y71 -> 0 | AD15: =Workings_costs!Z71 -> 0 | AE15: =Workings_costs!AA71 -> 0 | AF15: =Workings_costs!AB71 -> 0 | AG15: =Workings_costs!AC71 -> 0
C16: Vaccum CB retrofit | E16: 10 | G16: =input_dollars -> 2023-12-31 | I16: 0 | J16: 0 | K16: =Workings_costs!G70 -> 900000 | L16: 0 | M16: 0 | N16: 0 | O16: 0 | P16: 0 | Q16: 0 | R16: 0 | S16: 0 | T16: 0 | U16: 0 | V16: 0 | W16: 0 | X16: 0 | Y16: 0 | Z16: 0 | AA16: 0 | AB16: 0 | AC16: 0 | AD16: 0 | AE16: 0 | AF16: 0 | AG16: 0
C17: Capital expenditure | G17: =input_dollars -> 2023-12-31 | I17: =SUM(I14:I16) -> 0 | J17: 0 | K17: =SUM(K14:K16) -> 1865213.616 | L17: 1930427.231 | M17: 0 | N17: 0 | O17: 0 | P17: 0 | Q17: 0 | R17: =SUM(R14:R16) -> 0 | S17: 0 | T17: 1930427.231 | U17: 3860854.463 | V17: 0 | W17: 0 | X17: 0 | Y17: 0 | Z17: 0 | AA17: 0 | AB17: 0 | AC17: 0 | AD17: 0 | AE17: 0 | AF17: 0 | AG17: 0
C19: Operating expenditure | G19: =input_dollars -> 2023-12-31 | I19: 0 | J19: 0 | K19: 0 | L19: 0 | M19: 0 | N19: 0 | O19: 0 | P19: 0 | Q19: 0 | R19: 0 | S19: 0 | T19: 0 | U19: 0 | V19: 0 | W19: 0 | X19: 0 | Y19: 0 | Z19: 0 | AA19: 0 | AB19: 0 | AC19: 0 | AD19: 0 | AE19: 0 | AF19: 0 | AG19: 0
A22: RISK ASSUMPTIONS
C24: PoF (major) | I24: 0 | J24: 0 | K24: 0 | L24: 0 | M24: 0 | N24: 0 | O24: 0 | P24: 0 | Q24: 0 | R24: 0 | S24: 0 | T24: 0 | U24: 0 | V24: 0 | W24: 0 | X24: 0 | Y24: 0 | Z24: 0 | AA24: 0 | AB24: 0 | AC24: 0 | AD24: 0 | AE24: 0 | AF24: 0 | AG24: 0
C25: PoF (reparable) | I25: 0 | J25: 0 | K25: 0 | L25: 0 | M25: 0 | N25: 0 | O25: 0 | P25: 0 | Q25: 0 | R25: 0 | S25: 0 | T25: 0 | U25: 0 | V25: 0 | W25: 0 | X25: 0 | Y25: 0 | Z25: 0 | AA25: 0 | AB25: 0 | AC25: 0 | AD25: 0 | AE25: 0 | AF25: 0 | AG25: 0
C27: Energy at risk (weighted) | G27: MWh | I27: 0 | J27: 0 | K27: 0 | L27: 0 | M27: 0 | N27: 0 | O27: 0 | P27: 0 | Q27: 0 | R27: 0 | S27: 0 | T27: 0 | U27: 0 | V27: 0 | W27: 0 | X27: 0 | Y27: 0 | Z27: 0 | AA27: 0 | AB27: 0 | AC27: 0 | AD27: 0 | AE27: 0 | AF27: 0 | AG27: 0
C28: Energy at risk value | D28: $/MWh | E28: =Assumptions!H41*vcr_esc -> 44330.65115 | F28: =IF(AND(SUM(I27:AG27)<>0, E28=0), "!", "") ->  | G28: =input_dollars -> 2023-12-31 | I28: =Workings_risks!E135 -> 569702.8583 | J28: =Workings_risks!F135 -> 584295.4116 | K28: =Workings_risks!G135 -> 597160.4076 | L28: =Workings_risks!H135 -> 493301.5541 | M28: =Workings_risks!I135 -> 502545.8872 | N28: =Workings_risks!J135 -> 513127.2936 | O28: =Workings_risks!K135 -> 527899.9585 | P28: =Workings_risks!L135 -> 543394.7699 | Q28: =Workings_risks!M135 -> 554243.5353 | R28: =Workings_risks!N135 -> 558404.1619 | S28: =Workings_risks!O135 -> 562956.8913 | T28: =Workings_risks!P135 -> 567939.8582 | U28: =Workings_risks!Q135 -> 573394.9876 | V28: =Workings_risks!R135 -> 134765.3842 | W28: =Workings_risks!S135 -> 141307.7268 | X28: =Workings_risks!T135 -> 148474.7751 | Y28: =Workings_risks!U135 -> 156327.8553 | Z28: =Workings_risks!V135 -> 164934.4323 | AA28: =Workings_risks!W135 -> 174368.7343 | AB28: =Workings_risks!X135 -> 184712.4086 | AC28: =Workings_risks!Y135 -> 196055.2414 | AD28: =Workings_risks!Z135 -> 208502.9822 | AE28: =Workings_risks!AA135 -> 222164.3567 | AF28: =Workings_risks!AB135 -> 237157.58 | AG28: =Workings_risks!AC135 -> 253616.5691
C30: =Workings_risks!D56 -> Safety risk | D30: (after DF) | G30: =input_dollars -> 2023-12-31 | I30: =Workings_risks!E136 -> 1751.436968 | J30: =Workings_risks!F136 -> 1831.844753 | K30: =Workings_risks!G136 -> 1923.856861 | L30: =Workings_risks!H136 -> 1953.447073 | M30: =Workings_risks!I136 -> 2045.364828 | N30: =Workings_risks!J136 -> 2159.251482 | O30: =Workings_risks!K136 -> 2283.834919 | P30: =Workings_risks!L136 -> 2424.350447 | Q30: =Workings_risks!M136 -> 2582.057858 | R30: =Workings_risks!N136 -> 2758.296678 | S30: =Workings_risks!O136 -> 2956.860295 | T30: =Workings_risks!P136 -> 3188.827236 | U30: =Workings_risks!Q136 -> 3461.688948 | V30: =Workings_risks!R136 -> 3532.120919 | W30: =Workings_risks!S136 -> 3924.881351 | X30: =Workings_risks!T136 -> 4414.817535 | Y30: =Workings_risks!U136 -> 5044.762884 | Z30: =Workings_risks!V136 -> 5880.883558 | AA30: =Workings_risks!W136 -> 7026.106236 | AB30: =Workings_risks!X136 -> 8312.665405 | AC30: =Workings_risks!Y136 -> 8921.121897 | AD30: =Workings_risks!Z136 -> 9722.498108 | AE30: =Workings_risks!AA136 -> 10746.67198 | AF30: =Workings_risks!AB136 -> 12017.08844 | AG30: =Workings_risks!AC136 -> 13618.85637
C31: =Workings_risks!D57 -> Unplanned replacement | G31: =input_dollars -> 2023-12-31 | I31: =Workings_risks!E137 -> 46247.31899 | J31: =Workings_risks!F137 -> 48306.07978 | K31: =Workings_risks!G137 -> 50558.40941 | L31: =Workings_risks!H137 -> 48676.63954 | M31: =Workings_risks!I137 -> 51347.5487 | N31: =Workings_risks!J137 -> 54279.72351 | O31: =Workings_risks!K137 -> 57485.34514 | P31: =Workings_risks!L137 -> 60998.5803 | Q31: =Workings_risks!M137 -> 64848.66109 | R31: =Workings_risks!N137 -> 69067.62992 | S31: =Workings_risks!O137 -> 73694.99931 | T31: =Workings_risks!P137 -> 78786.9823 | U31: =Workings_risks!Q137 -> 84396.7102 | V31: =Workings_risks!R137 -> 75383.39787 | W31: =Workings_risks!S137 -> 82232.96899 | X31: =Workings_risks!T137 -> 89847.29983 | Y31: =Workings_risks!U137 -> 98363.0781 | Z31: =Workings_risks!V137 -> 107965.9052 | AA31: =Workings_risks!W137 -> 118915.7195 | AB31: =Workings_risks!X137 -> 130978.6974 | AC31: =Workings_risks!Y137 -> 142723.2029 | AD31: =Workings_risks!Z137 -> 155790.3101 | AE31: =Workings_risks!AA137 -> 170338.6431 | AF31: =Workings_risks!AB137 -> 186539.0378 | AG31: =Workings_risks!AC137 -> 204654.2335
C32: =Workings_risks!D58 -> Unplanned fault | G32: =input_dollars -> 2023-12-31 | I32: =Workings_risks!E138 -> 508 | J32: =Workings_risks!F138 -> 508 | K32: =Workings_risks!G138 -> 508 | L32: =Workings_risks!H138 -> 406.4 | M32: =Workings_risks!I138 -> 406.4 | N32: =Workings_risks!J138 -> 406.4 | O32: =Workings_risks!K138 -> 406.4 | P32: =Workings_risks!L138 -> 406.4 | Q32: =Workings_risks!M138 -> 406.4 | R32: =Workings_risks!N138 -> 406.4 | S32: =Workings_risks!O138 -> 406.4 | T32: =Workings_risks!P138 -> 406.4 | U32: =Workings_risks!Q138 -> 406.4 | V32: =Workings_risks!R138 -> 50.8 | W32: =Workings_risks!S138 -> 50.8 | X32: =Workings_risks!T138 -> 50.8 | Y32: =Workings_risks!U138 -> 50.8 | Z32: =Workings_risks!V138 -> 50.8 | AA32: =Workings_risks!W138 -> 50.8 | AB32: =Workings_risks!X138 -> 50.8 | AC32: =Workings_risks!Y138 -> 50.8 | AD32: =Workings_risks!Z138 -> 50.8 | AE32: =Workings_risks!AA138 -> 50.8 | AF32: =Workings_risks!AB138 -> 50.8 | AG32: =Workings_risks!AC138 -> 50.8
C33: =Workings_risks!D59 -> Environmental risk | G33: =input_dollars -> 2023-12-31 | I33: =Workings_risks!E139 -> 160.5056802 | J33: =Workings_risks!F139 -> 168.8105915 | K33: =Workings_risks!G139 -> 178.4725895 | L33: =Workings_risks!H139 -> 189.2251303 | M33: =Workings_risks!I139 -> 198.2346102 | N33: =Workings_risks!J139 -> 209.9739792 | O33: =Workings_risks!K139 -> 222.8193279 | P33: =Workings_risks!L139 -> 237.4698054 | Q33: =Workings_risks!M139 -> 254.0603982 | R33: =Workings_risks!N139 -> 272.7331188 | S33: =Workings_risks!O139 -> 293.9712065 | T33: =Workings_risks!P139 -> 319.2796258 | U33: =Workings_risks!Q139 -> 349.6521225 | V33: =Workings_risks!R139 -> 386.4028854 | W33: =Workings_risks!S139 -> 432.063079 | X33: =Workings_risks!T139 -> 490.4938417 | Y33: =Workings_risks!U139 -> 567.6414951 | Z33: =Workings_risks!V139 -> 672.7319341 | AA33: =Workings_risks!W139 -> 820.1622999 | AB33: =Workings_risks!X139 -> 986.1656201 | AC33: =Workings_risks!Y139 -> 1055.111734 | AD33: =Workings_risks!Z139 -> 1149.6131 | AE33: =Workings_risks!AA139 -> 1273.719773 | AF33: =Workings_risks!AB139 -> 1430.560709 | AG33: =Workings_risks!AC139 -> 1631.933794
C34: < Other risk - enter description > | G34: =input_dollars -> 2023-12-31 | I34: 0 | J34: 0 | K34: 0 | L34: 0 | M34: 0 | N34: 0 | O34: 0 | P34: 0 | Q34: 0 | R34: 0 | S34: 0 | T34: 0 | U34: 0 | V34: 0 | W34: 0 | X34: 0 | Y34: 0 | Z34: 0 | AA34: 0 | AB34: 0 | AC34: 0 | AD34: 0 | AE34: 0 | AF34: 0 | AG34: 0
C36: Total risk cost | I36: =SUM(I28:I34) -> 618370.1199 | J36: =SUM(J28:J34) -> 635110.1467 | K36: 650329.1465 | L36: 544527.2659 | M36: 556543.4354 | N36: 570182.6426 | O36: 588298.3578 | P36: 607461.5704 | Q36: 622334.7146 | R36: 630909.2216 | S36: 640309.1221 | T36: 650641.3474 | U36: 662009.4388 | V36: 214118.1059 | W36: 227948.4402 | X36: 243278.1863 | Y36: 260354.1378 | Z36: 279504.753 | AA36: 301181.5223 | AB36: 325040.7371 | AC36: 348805.4779 | AD36: 375216.2035 | AE36: 404574.1916 | AF36: 437195.0669 | AG36: 473572.3928
A38: OTHER BENEFITS
C41: Reduction in CO2 emissions | G41: MWh | I41: 0 | J41: 0 | K41: 0 | L41: 0 | M41: 0 | N41: 0 | O41: 0 | P41: 0 | Q41: 0 | R41: 0 | S41: 0 | T41: 0 | U41: 0 | V41: 0 | W41: 0 | X41: 0 | Y41: 0 | Z41: 0 | AA41: 0 | AB41: 0 | AC41: 0 | AD41: 0 | AE41: 0 | AF41: 0 | AG41: 0
C42: Value of reduction in CO2 emissions | G42: $ | I42: =I41*I7 -> 0 | J42: 0 | K42: 0 | L42: 0 | M42: 0 | N42: 0 | O42: 0 | P42: 0 | Q42: 0 | R42: 0 | S42: 0 | T42: 0 | U42: 0 | V42: 0 | W42: 0 | X42: 0 | Y42: 0 | Z42: 0 | AA42: 0 | AB42: 0 | AC42: 0 | AD42: 0 | AE42: 0 | AF42: 0 | AG42: 0
C45: Reliability in worst-served areas | D45: $/MWh | E45: =Assumptions!G94 -> 0 | G45: MWh | I45: 0 | J45: 0 | K45: 0 | L45: 0 | M45: 0 | N45: 0 | O45: 0 | P45: 0 | Q45: 0 | R45: 0 | S45: 0 | T45: 0 | U45: 0 | V45: 0 | W45: 0 | X45: 0 | Y45: 0 | Z45: 0 | AA45: 0 | AB45: 0 | AC45: 0 | AD45: 0 | AE45: 0 | AF45: 0 | AG45: 0
C46: Network resilience | D46: $/MWh | E46: =Assumptions!G95 -> 0 | G46: MWh | I46: 0 | J46: 0 | K46: 0 | L46: 0 | M46: 0 | N46: 0 | O46: 0 | P46: 0 | Q46: 0 | R46: 0 | S46: 0 | T46: 0 | U46: 0 | V46: 0 | W46: 0 | X46: 0 | Y46: 0 | Z46: 0 | AA46: 0 | AB46: 0 | AC46: 0 | AD46: 0 | AE46: 0 | AF46: 0 | AG46: 0
C47: Enabling solar exports | D47: $/MWh | E47: =Assumptions!G96 -> 4220.99537 | G47: MWh | I47: 0 | J47: 0 | K47: 0 | L47: 0 | M47: 0 | N47: 0 | O47: 0 | P47: 0 | Q47: 0 | R47: 0 | S47: 0 | T47: 0 | U47: 0 | V47: 0 | W47: 0 | X47: 0 | Y47: 0 | Z47: 0 | AA47: 0 | AB47: 0 | AC47: 0 | AD47: 0 | AE47: 0 | AF47: 0 | AG47: 0
C48: Aesthetics | D48: $/customer | E48: =Assumptions!G97 -> 0 | G48: customers | I48: 0 | J48: 0 | K48: 0 | L48: 0 | M48: 0 | N48: 0 | O48: 0 | P48: 0 | Q48: 0 | R48: 0 | S48: 0 | T48: 0 | U48: 0 | V48: 0 | W48: 0 | X48: 0 | Y48: 0 | Z48: 0 | AA48: 0 | AB48: 0 | AC48: 0 | AD48: 0 | AE48: 0 | AF48: 0 | AG48: 0
C49: Customer value of time (res) | D49: $/customer min | E49: =Assumptions!G98 -> 0.5476938068 | G49: mins | I49: 0 | J49: 0 | K49: 0 | L49: 0 | M49: 0 | N49: 0 | O49: 0 | P49: 0 | Q49: 0 | R49: 0 | S49: 0 | T49: 0 | U49: 0 | V49: 0 | W49: 0 | X49: 0 | Y49: 0 | Z49: 0 | AA49: 0 | AB49: 0 | AC49: 0 | AD49: 0 | AE49: 0 | AF49: 0 | AG49: 0
C50: Customer value of time (bus) | D50: $/customer min | E50: =Assumptions!G99 -> 0.5476938068 | G50: mins | I50: 0 | J50: 0 | K50: 0 | L50: 0 | M50: 0 | N50: 0 | O50: 0 | P50: 0 | Q50: 0 | R50: 0 | S50: 0 | T50: 0 | U50: 0 | V50: 0 | W50: 0 | X50: 0 | Y50: 0 | Z50: 0 | AA50: 0 | AB50: 0 | AC50: 0 | AD50: 0 | AE50: 0 | AF50: 0 | AG50: 0
C51: Communication | D51: $/customer | E51: =Assumptions!G100 -> 0 | G51: customers | I51: 0 | J51: 0 | K51: 0 | L51: 0 | M51: 0 | N51: 0 | O51: 0 | P51: 0 | Q51: 0 | R51: 0 | S51: 0 | T51: 0 | U51: 0 | V51: 0 | W51: 0 | X51: 0 | Y51: 0 | Z51: 0 | AA51: 0 | AB51: 0 | AC51: 0 | AD51: 0 | AE51: 0 | AF51: 0 | AG51: 0
C52: Information accessibility | D52: $/customer | E52: =Assumptions!G101 -> 0 | G52: customers | I52: 0 | J52: 0 | K52: 0 | L52: 0 | M52: 0 | N52: 0 | O52: 0 | P52: 0 | Q52: 0 | R52: 0 | S52: 0 | T52: 0 | U52: 0 | V52: 0 | W52: 0 | X52: 0 | Y52: 0 | Z52: 0 | AA52: 0 | AB52: 0 | AC52: 0 | AD52: 0 | AE52: 0 | AF52: 0 | AG52: 0
C54: Opex saving | G54: =input_dollars -> 2023-12-31 | I54: 0 | J54: 0 | K54: 0 | L54: 0 | M54: 0 | N54: 0 | O54: 0 | P54: 0 | Q54: 0 | R54: 0 | S54: 0 | T54: 0 | U54: 0 | V54: 0 | W54: 0 | X54: 0 | Y54: 0 | Z54: 0 | AA54: 0 | AB54: 0 | AC54: 0 | AD54: 0 | AE54: 0 | AF54: 0 | AG54: 0
C55: Other benefits 2 | G55: =input_dollars -> 2023-12-31 | I55: 0 | J55: 0 | K55: 0 | L55: 0 | M55: 0 | N55: 0 | O55: 0 | P55: 0 | Q55: 0 | R55: 0 | S55: 0 | T55: 0 | U55: 0 | V55: 0 | W55: 0 | X55: 0 | Y55: 0 | Z55: 0 | AA55: 0 | AB55: 0 | AC55: 0 | AD55: 0 | AE55: 0 | AF55: 0 | AG55: 0
C57: Total other benefits | G57: =input_dollars -> 2023-12-31 | I57: =SUMPRODUCT((I$45:I$52)*($E$45:$E$52))+SUM(I54:I55)+I42 -> 0 | J57: =SUMPRODUCT((J$45:J$52)*($E$45:$E$52))+SUM(J54:J55)+J42 -> 0 | K57: =SUMPRODUCT((K$45:K$52)*($E$45:$E$52))+SUM(K54:K55)+K42 -> 0 | L57: =SUMPRODUCT((L$45:L$52)*($E$45:$E$52))+SUM(L54:L55)+L42 -> 0 | M57: =SUMPRODUCT((M$45:M$52)*($E$45:$E$52))+SUM(M54:M55)+M42 -> 0 | N57: =SUMPRODUCT((N$45:N$52)*($E$45:$E$52))+SUM(N54:N55)+N42 -> 0 | O57: =SUMPRODUCT((O$45:O$52)*($E$45:$E$52))+SUM(O54:O55)+O42 -> 0 | P57: =SUMPRODUCT((P$45:P$52)*($E$45:$E$52))+SUM(P54:P55)+P42 -> 0 | Q57: =SUMPRODUCT((Q$45:Q$52)*($E$45:$E$52))+SUM(Q54:Q55)+Q42 -> 0 | R57: =SUMPRODUCT((R$45:R$52)*($E$45:$E$52))+SUM(R54:R55)+R42 -> 0 | S57: =SUMPRODUCT((S$45:S$52)*($E$45:$E$52))+SUM(S54:S55)+S42 -> 0 | T57: =SUMPRODUCT((T$45:T$52)*($E$45:$E$52))+SUM(T54:T55)+T42 -> 0 | U57: =SUMPRODUCT((U$45:U$52)*($E$45:$E$52))+SUM(U54:U55)+U42 -> 0 | V57: =SUMPRODUCT((V$45:V$52)*($E$45:$E$52))+SUM(V54:V55)+V42 -> 0 | W57: =SUMPRODUCT((W$45:W$52)*($E$45:$E$52))+SUM(W54:W55)+W42 -> 0 | X57: =SUMPRODUCT((X$45:X$52)*($E$45:$E$52))+SUM(X54:X55)+X42 -> 0 | Y57: =SUMPRODUCT((Y$45:Y$52)*($E$45:$E$52))+SUM(Y54:Y55)+Y42 -> 0 | Z57: =SUMPRODUCT((Z$45:Z$52)*($E$45:$E$52))+SUM(Z54:Z55)+Z42 -> 0 | AA57: =SUMPRODUCT((AA$45:AA$52)*($E$45:$E$52))+SUM(AA54:AA55)+AA42 -> 0 | AB57: =SUMPRODUCT((AB$45:AB$52)*($E$45:$E$52))+SUM(AB54:AB55)+AB42 -> 0 | AC57: =SUMPRODUCT((AC$45:AC$52)*($E$45:$E$52))+SUM(AC54:AC55)+AC42 -> 0 | AD57: =SUMPRODUCT((AD$45:AD$52)*($E$45:$E$52))+SUM(AD54:AD55)+AD42 -> 0 | AE57: =SUMPRODUCT((AE$45:AE$52)*($E$45:$E$52))+SUM(AE54:AE55)+AE42 -> 0 | AF57: =SUMPRODUCT((AF$45:AF$52)*($E$45:$E$52))+SUM(AF54:AF55)+AF42 -> 0 | AG57: =SUMPRODUCT((AG$45:AG$52)*($E$45:$E$52))+SUM(AG54:AG55)+AG42 -> 0
A60: SUMMARY
C64: ='Option1 (base case)'!C64 -> Risks mitigated vs base case | G64: =input_dollars -> 2023-12-31 | I64: =(1-INDEX(Data!$C$9:$C$13, MATCH($A$3, options,0)))*('Option1 (base case)'!I36-I36) -> 0 | J64: =(1-INDEX(Data!$C$9:$C$13, MATCH($A$3, options,0)))*('Option1 (base case)'!J36-J36) -> 0 | K64: =(1-INDEX(Data!$C$9:$C$13, MATCH($A$3, options,0)))*('Option1 (base case)'!K36-K36) -> 0 | L64: =(1-INDEX(Data!$C$9:$C$13, MATCH($A$3, options,0)))*('Option1 (base case)'!L36-L36) -> 120196.2327 | M64: =(1-INDEX(Data!$C$9:$C$13, MATCH($A$3, options,0)))*('Option1 (base case)'!M36-M36) -> 122061.8027 | N64: =(1-INDEX(Data!$C$9:$C$13, MATCH($A$3, options,0)))*('Option1 (base case)'!N36-N36) -> 124269.3037 | O64: =(1-INDEX(Data!$C$9:$C$13, MATCH($A$3, options,0)))*('Option1 (base case)'!O36-O36) -> 127656.3332 | P64: =(1-INDEX(Data!$C$9:$C$13, MATCH($A$3, options,0)))*('Option1 (base case)'!P36-P36) -> 131406.7629 | Q64: =(1-INDEX(Data!$C$9:$C$13, MATCH($A$3, options,0)))*('Option1 (base case)'!Q36-Q36) -> 134241.6958 | R64: =(1-INDEX(Data!$C$9:$C$13, MATCH($A$3, options,0)))*('Option1 (base case)'!R36-R36) -> 135800.2442 | S64: =(1-INDEX(Data!$C$9:$C$13, MATCH($A$3, options,0)))*('Option1 (base case)'!S36-S36) -> 138067.3685 | T64: =(1-INDEX(Data!$C$9:$C$13, MATCH($A$3, options,0)))*('Option1 (base case)'!T36-T36) -> 141384.9622 | U64: =(1-INDEX(Data!$C$9:$C$13, MATCH($A$3, options,0)))*('Option1 (base case)'!U36-U36) -> 146245.7647 | V64: =(1-INDEX(Data!$C$9:$C$13, MATCH($A$3, options,0)))*('Option1 (base case)'!V36-V36) -> 613793.0679 | W64: =(1-INDEX(Data!$C$9:$C$13, MATCH($A$3, options,0)))*('Option1 (base case)'!W36-W36) -> 624292.4963 | X64: =(1-INDEX(Data!$C$9:$C$13, MATCH($A$3, options,0)))*('Option1 (base case)'!X36-X36) -> 639786.6915 | Y64: =(1-INDEX(Data!$C$9:$C$13, MATCH($A$3, options,0)))*('Option1 (base case)'!Y36-Y36) -> 662705.386 | Z64: =(1-INDEX(Data!$C$9:$C$13, MATCH($A$3, options,0)))*('Option1 (base case)'!Z36-Z36) -> 696677.3427 | AA64: =(1-INDEX(Data!$C$9:$C$13, MATCH($A$3, options,0)))*('Option1 (base case)'!AA36-AA36) -> 707916.5495 | AB64: =(1-INDEX(Data!$C$9:$C$13, MATCH($A$3, options,0)))*('Option1 (base case)'!AB36-AB36) -> 716355.1226 | AC64: =(1-INDEX(Data!$C$9:$C$13, MATCH($A$3, options,0)))*('Option1 (base case)'!AC36-AC36) -> 728313.8607 | AD64: =(1-INDEX(Data!$C$9:$C$13, MATCH($A$3, options,0)))*('Option1 (base case)'!AD36-AD36) -> 745087.599 | AE64: =(1-INDEX(Data!$C$9:$C$13, MATCH($A$3, options,0)))*('Option1 (base case)'!AE36-AE36) -> 758125.5039 | AF64: =(1-INDEX(Data!$C$9:$C$13, MATCH($A$3, options,0)))*('Option1 (base case)'!AF36-AF36) -> 759497.0004 | AG64: =(1-INDEX(Data!$C$9:$C$13, MATCH($A$3, options,0)))*('Option1 (base case)'!AG36-AG36) -> 761461.6636
C66: Capital expenditure
C67: =C14 -> Switchboard | G67: =input_dollars -> 2023-12-31 | I67: =-I14 -> 0 | J67: 0 | K67: 0 | L67: 0 | M67: 0 | N67: 0 | O67: 0 | P67: 0 | Q67: 0 | R67: 0 | S67: 0 | T67: -1930427.231 | U67: -3860854.463 | V67: 0 | W67: 0 | X67: 0 | Y67: 0 | Z67: 0 | AA67: 0 | AB67: 0 | AC67: 0 | AD67: 0 | AE67: 0 | AF67: 0 | AG67: 0
C68: =C15 -> Relays | G68: =input_dollars -> 2023-12-31 | I68: =-I15 -> 0 | J68: 0 | K68: -965213.6157 | L68: -1930427.231 | M68: 0 | N68: 0 | O68: 0 | P68: 0 | Q68: 0 | R68: 0 | S68: 0 | T68: 0 | U68: 0 | V68: 0 | W68: 0 | X68: 0 | Y68: 0 | Z68: 0 | AA68: 0 | AB68: 0 | AC68: 0 | AD68: 0 | AE68: 0 | AF68: 0 | AG68: 0
C69: =C16 -> Vaccum CB retrofit | G69: =input_dollars -> 2023-12-31 | I69: =-I16 -> 0 | J69: 0 | K69: -900000 | L69: 0 | M69: 0 | N69: 0 | O69: 0 | P69: 0 | Q69: 0 | R69: 0 | S69: 0 | T69: 0 | U69: 0 | V69: 0 | W69: 0 | X69: 0 | Y69: 0 | Z69: 0 | AA69: 0 | AB69: 0 | AC69: 0 | AD69: 0 | AE69: 0 | AF69: 0 | AG69: 0
C71: Cumulative capex
C72: =C14 -> Switchboard | G72: =input_dollars -> 2023-12-31 | I72: =SUMPRODUCT(($I67:I67))-SUMPRODUCT(($I67:I67)*($I$6:I$6<=(I$6-$E14))) -> 0 | J72: =SUMPRODUCT(($I67:J67))-SUMPRODUCT(($I67:J67)*($I$6:J$6<=(J$6-$E14))) -> 0 | K72: =SUMPRODUCT(($I67:K67))-SUMPRODUCT(($I67:K67)*($I$6:K$6<=(K$6-$E14))) -> 0 | L72: =SUMPRODUCT(($I67:L67))-SUMPRODUCT(($I67:L67)*($I$6:L$6<=(L$6-$E14))) -> 0 | M72: =SUMPRODUCT(($I67:M67))-SUMPRODUCT(($I67:M67)*($I$6:M$6<=(M$6-$E14))) -> 0 | N72: =SUMPRODUCT(($I67:N67))-SUMPRODUCT(($I67:N67)*($I$6:N$6<=(N$6-$E14))) -> 0 | O72: =SUMPRODUCT(($I67:O67))-SUMPRODUCT(($I67:O67)*($I$6:O$6<=(O$6-$E14))) -> 0 | P72: =SUMPRODUCT(($I67:P67))-SUMPRODUCT(($I67:P67)*($I$6:P$6<=(P$6-$E14))) -> 0 | Q72: =SUMPRODUCT(($I67:Q67))-SUMPRODUCT(($I67:Q67)*($I$6:Q$6<=(Q$6-$E14))) -> 0 | R72: =SUMPRODUCT(($I67:R67))-SUMPRODUCT(($I67:R67)*($I$6:R$6<=(R$6-$E14))) -> 0 | S72: =SUMPRODUCT(($I67:S67))-SUMPRODUCT(($I67:S67)*($I$6:S$6<=(S$6-$E14))) -> 0 | T72: =SUMPRODUCT(($I67:T67))-SUMPRODUCT(($I67:T67)*($I$6:T$6<=(T$6-$E14))) -> -1930427.231 | U72: =SUMPRODUCT(($I67:U67))-SUMPRODUCT(($I67:U67)*($I$6:U$6<=(U$6-$E14))) -> -5791281.694 | V72: =SUMPRODUCT(($I67:V67))-SUMPRODUCT(($I67:V67)*($I$6:V$6<=(V$6-$E14))) -> -5791281.694 | W72: =SUMPRODUCT(($I67:W67))-SUMPRODUCT(($I67:W67)*($I$6:W$6<=(W$6-$E14))) -> -5791281.694 | X72: =SUMPRODUCT(($I67:X67))-SUMPRODUCT(($I67:X67)*($I$6:X$6<=(X$6-$E14))) -> -5791281.694 | Y72: =SUMPRODUCT(($I67:Y67))-SUMPRODUCT(($I67:Y67)*($I$6:Y$6<=(Y$6-$E14))) -> -5791281.694 | Z72: =SUMPRODUCT(($I67:Z67))-SUMPRODUCT(($I67:Z67)*($I$6:Z$6<=(Z$6-$E14))) -> -5791281.694 | AA72: =SUMPRODUCT(($I67:AA67))-SUMPRODUCT(($I67:AA67)*($I$6:AA$6<=(AA$6-$E14))) -> -5791281.694 | AB72: =SUMPRODUCT(($I67:AB67))-SUMPRODUCT(($I67:AB67)*($I$6:AB$6<=(AB$6-$E14))) -> -5791281.694 | AC72: =SUMPRODUCT(($I67:AC67))-SUMPRODUCT(($I67:AC67)*($I$6:AC$6<=(AC$6-$E14))) -> -5791281.694 | AD72: =SUMPRODUCT(($I67:AD67))-SUMPRODUCT(($I67:AD67)*($I$6:AD$6<=(AD$6-$E14))) -> -5791281.694 | AE72: =SUMPRODUCT(($I67:AE67))-SUMPRODUCT(($I67:AE67)*($I$6:AE$6<=(AE$6-$E14))) -> -5791281.694 | AF72: =SUMPRODUCT(($I67:AF67))-SUMPRODUCT(($I67:AF67)*($I$6:AF$6<=(AF$6-$E14))) -> -5791281.694 | AG72: =SUMPRODUCT(($I67:AG67))-SUMPRODUCT(($I67:AG67)*($I$6:AG$6<=(AG$6-$E14))) -> -5791281.694
C73: =C15 -> Relays | G73: =input_dollars -> 2023-12-31 | I73: =SUMPRODUCT(($I68:I68))-SUMPRODUCT(($I68:I68)*($I$6:I$6<=(I$6-$E15))) -> 0 | J73: =SUMPRODUCT(($I68:J68))-SUMPRODUCT(($I68:J68)*($I$6:J$6<=(J$6-$E15))) -> 0 | K73: =SUMPRODUCT(($I68:K68))-SUMPRODUCT(($I68:K68)*($I$6:K$6<=(K$6-$E15))) -> -965213.6157 | L73: =SUMPRODUCT(($I68:L68))-SUMPRODUCT(($I68:L68)*($I$6:L$6<=(L$6-$E15))) -> -2895640.847 | M73: =SUMPRODUCT(($I68:M68))-SUMPRODUCT(($I68:M68)*($I$6:M$6<=(M$6-$E15))) -> -2895640.847 | N73: =SUMPRODUCT(($I68:N68))-SUMPRODUCT(($I68:N68)*($I$6:N$6<=(N$6-$E15))) -> -2895640.847 | O73: =SUMPRODUCT(($I68:O68))-SUMPRODUCT(($I68:O68)*($I$6:O$6<=(O$6-$E15))) -> -2895640.847 | P73: =SUMPRODUCT(($I68:P68))-SUMPRODUCT(($I68:P68)*($I$6:P$6<=(P$6-$E15))) -> -2895640.847 | Q73: =SUMPRODUCT(($I68:Q68))-SUMPRODUCT(($I68:Q68)*($I$6:Q$6<=(Q$6-$E15))) -> -2895640.847 | R73: =SUMPRODUCT(($I68:R68))-SUMPRODUCT(($I68:R68)*($I$6:R$6<=(R$6-$E15))) -> -2895640.847 | S73: =SUMPRODUCT(($I68:S68))-SUMPRODUCT(($I68:S68)*($I$6:S$6<=(S$6-$E15))) -> -2895640.847 | T73: =SUMPRODUCT(($I68:T68))-SUMPRODUCT(($I68:T68)*($I$6:T$6<=(T$6-$E15))) -> -2895640.847 | U73: =SUMPRODUCT(($I68:U68))-SUMPRODUCT(($I68:U68)*($I$6:U$6<=(U$6-$E15))) -> -2895640.847 | V73: =SUMPRODUCT(($I68:V68))-SUMPRODUCT(($I68:V68)*($I$6:V$6<=(V$6-$E15))) -> -2895640.847 | W73: =SUMPRODUCT(($I68:W68))-SUMPRODUCT(($I68:W68)*($I$6:W$6<=(W$6-$E15))) -> -2895640.847 | X73: =SUMPRODUCT(($I68:X68))-SUMPRODUCT(($I68:X68)*($I$6:X$6<=(X$6-$E15))) -> -2895640.847 | Y73: =SUMPRODUCT(($I68:Y68))-SUMPRODUCT(($I68:Y68)*($I$6:Y$6<=(Y$6-$E15))) -> -2895640.847 | Z73: =SUMPRODUCT(($I68:Z68))-SUMPRODUCT(($I68:Z68)*($I$6:Z$6<=(Z$6-$E15))) -> -2895640.847 | AA73: =SUMPRODUCT(($I68:AA68))-SUMPRODUCT(($I68:AA68)*($I$6:AA$6<=(AA$6-$E15))) -> -2895640.847 | AB73: =SUMPRODUCT(($I68:AB68))-SUMPRODUCT(($I68:AB68)*($I$6:AB$6<=(AB$6-$E15))) -> -2895640.847 | AC73: =SUMPRODUCT(($I68:AC68))-SUMPRODUCT(($I68:AC68)*($I$6:AC$6<=(AC$6-$E15))) -> -2895640.847 | AD73: =SUMPRODUCT(($I68:AD68))-SUMPRODUCT(($I68:AD68)*($I$6:AD$6<=(AD$6-$E15))) -> -2895640.847 | AE73: =SUMPRODUCT(($I68:AE68))-SUMPRODUCT(($I68:AE68)*($I$6:AE$6<=(AE$6-$E15))) -> -2895640.847 | AF73: =SUMPRODUCT(($I68:AF68))-SUMPRODUCT(($I68:AF68)*($I$6:AF$6<=(AF$6-$E15))) -> -2895640.847 | AG73: =SUMPRODUCT(($I68:AG68))-SUMPRODUCT(($I68:AG68)*($I$6:AG$6<=(AG$6-$E15))) -> -2895640.847
C74: =C16 -> Vaccum CB retrofit | G74: =input_dollars -> 2023-12-31 | I74: =SUMPRODUCT(($I69:I69))-SUMPRODUCT(($I69:I69)*($I$6:I$6<=(I$6-$E16))) -> 0 | J74: =SUMPRODUCT(($I69:J69))-SUMPRODUCT(($I69:J69)*($I$6:J$6<=(J$6-$E16))) -> 0 | K74: =SUMPRODUCT(($I69:K69))-SUMPRODUCT(($I69:K69)*($I$6:K$6<=(K$6-$E16))) -> -900000 | L74: =SUMPRODUCT(($I69:L69))-SUMPRODUCT(($I69:L69)*($I$6:L$6<=(L$6-$E16))) -> -900000 | M74: =SUMPRODUCT(($I69:M69))-SUMPRODUCT(($I69:M69)*($I$6:M$6<=(M$6-$E16))) -> -900000 | N74: =SUMPRODUCT(($I69:N69))-SUMPRODUCT(($I69:N69)*($I$6:N$6<=(N$6-$E16))) -> -900000 | O74: =SUMPRODUCT(($I69:O69))-SUMPRODUCT(($I69:O69)*($I$6:O$6<=(O$6-$E16))) -> -900000 | P74: =SUMPRODUCT(($I69:P69))-SUMPRODUCT(($I69:P69)*($I$6:P$6<=(P$6-$E16))) -> -900000 | Q74: =SUMPRODUCT(($I69:Q69))-SUMPRODUCT(($I69:Q69)*($I$6:Q$6<=(Q$6-$E16))) -> -900000 | R74: =SUMPRODUCT(($I69:R69))-SUMPRODUCT(($I69:R69)*($I$6:R$6<=(R$6-$E16))) -> -900000 | S74: =SUMPRODUCT(($I69:S69))-SUMPRODUCT(($I69:S69)*($I$6:S$6<=(S$6-$E16))) -> -900000 | T74: =SUMPRODUCT(($I69:T69))-SUMPRODUCT(($I69:T69)*($I$6:T$6<=(T$6-$E16))) -> -900000 | U74: =SUMPRODUCT(($I69:U69))-SUMPRODUCT(($I69:U69)*($I$6:U$6<=(U$6-$E16))) -> 0 | V74: =SUMPRODUCT(($I69:V69))-SUMPRODUCT(($I69:V69)*($I$6:V$6<=(V$6-$E16))) -> 0 | W74: =SUMPRODUCT(($I69:W69))-SUMPRODUCT(($I69:W69)*($I$6:W$6<=(W$6-$E16))) -> 0 | X74: =SUMPRODUCT(($I69:X69))-SUMPRODUCT(($I69:X69)*($I$6:X$6<=(X$6-$E16))) -> 0 | Y74: =SUMPRODUCT(($I69:Y69))-SUMPRODUCT(($I69:Y69)*($I$6:Y$6<=(Y$6-$E16))) -> 0 | Z74: =SUMPRODUCT(($I69:Z69))-SUMPRODUCT(($I69:Z69)*($I$6:Z$6<=(Z$6-$E16))) -> 0 | AA74: =SUMPRODUCT(($I69:AA69))-SUMPRODUCT(($I69:AA69)*($I$6:AA$6<=(AA$6-$E16))) -> 0 | AB74: =SUMPRODUCT(($I69:AB69))-SUMPRODUCT(($I69:AB69)*($I$6:AB$6<=(AB$6-$E16))) -> 0 | AC74: =SUMPRODUCT(($I69:AC69))-SUMPRODUCT(($I69:AC69)*($I$6:AC$6<=(AC$6-$E16))) -> 0 | AD74: =SUMPRODUCT(($I69:AD69))-SUMPRODUCT(($I69:AD69)*($I$6:AD$6<=(AD$6-$E16))) -> 0 | AE74: =SUMPRODUCT(($I69:AE69))-SUMPRODUCT(($I69:AE69)*($I$6:AE$6<=(AE$6-$E16))) -> 0 | AF74: =SUMPRODUCT(($I69:AF69))-SUMPRODUCT(($I69:AF69)*($I$6:AF$6<=(AF$6-$E16))) -> 0 | AG74: =SUMPRODUCT(($I69:AG69))-SUMPRODUCT(($I69:AG69)*($I$6:AG$6<=(AG$6-$E16))) -> 0
C76: Annualised capex
C77: =$C$76&" - "&C14 -> Annualised capex - Switchboard | G77: =input_dollars -> 2023-12-31 | I77: =IF($E14=0,0,-PMT(real_disc, $E14,H72,)) -> 0 | J77: 0 | K77: 0 | L77: 0 | M77: 0 | N77: 0 | O77: 0 | P77: 0 | Q77: 0 | R77: 0 | S77: 0 | T77: 0 | U77: -82301.27393 | V77: -246903.8218 | W77: -246903.8218 | X77: -246903.8218 | Y77: -246903.8218 | Z77: -246903.8218 | AA77: -246903.8218 | AB77: -246903.8218 | AC77: -246903.8218 | AD77: -246903.8218 | AE77: -246903.8218 | AF77: -246903.8218 | AG77: -246903.8218
C78: =$C$76&" - "&C15 -> Annualised capex - Relays | G78: =input_dollars -> 2023-12-31 | I78: =IF($E15=0,0,-PMT(real_disc, $E15,H73,)) -> 0 | J78: 0 | K78: 0 | L78: -58563.4051 | M78: -175690.2153 | N78: -175690.2153 | O78: -175690.2153 | P78: -175690.2153 | Q78: -175690.2153 | R78: -175690.2153 | S78: -175690.2153 | T78: -175690.2153 | U78: -175690.2153 | V78: -175690.2153 | W78: -175690.2153 | X78: -175690.2153 | Y78: -175690.2153 | Z78: -175690.2153 | AA78: -175690.2153 | AB78: -175690.2153 | AC78: -175690.2153 | AD78: -175690.2153 | AE78: -175690.2153 | AF78: -175690.2153 | AG78: -175690.2153
C79: =$C$76&" - "&C16 -> Annualised capex - Vaccum CB retrofit | G79: =input_dollars -> 2023-12-31 | I79: =IF($E16=0,0,-PMT(real_disc, $E16,H74,)) -> 0 | J79: 0 | K79: 0 | L79: -108217.2311 | M79: -108217.2311 | N79: -108217.2311 | O79: -108217.2311 | P79: -108217.2311 | Q79: -108217.2311 | R79: -108217.2311 | S79: -108217.2311 | T79: -108217.2311 | U79: -108217.2311 | V79: 0 | W79: 0 | X79: 0 | Y79: 0 | Z79: 0 | AA79: 0 | AB79: 0 | AC79: 0 | AD79: 0 | AE79: 0 | AF79: 0 | AG79: 0
C80: Total annualised capex | G80: =input_dollars -> 2023-12-31 | I80: =SUM(I77:I79) -> 0 | J80: =SUM(J77:J79) -> 0 | K80: 0 | L80: -166780.6362 | M80: -283907.4464 | N80: -283907.4464 | O80: -283907.4464 | P80: -283907.4464 | Q80: -283907.4464 | R80: -283907.4464 | S80: -283907.4464 | T80: -283907.4464 | U80: -366208.7203 | V80: -422594.0371 | W80: -422594.0371 | X80: -422594.0371 | Y80: -422594.0371 | Z80: -422594.0371 | AA80: -422594.0371 | AB80: -422594.0371 | AC80: =SUM(AC77:AC79) -> -422594.0371 | AD80: =SUM(AD77:AD79) -> -422594.0371 | AE80: =SUM(AE77:AE79) -> -422594.0371 | AF80: =SUM(AF77:AF79) -> -422594.0371 | AG80: =SUM(AG77:AG79) -> -422594.0371
C82: Annualised capex | G82: =input_dollars -> 2023-12-31 | I82: =I80 -> 0 | J82: =J80 -> 0 | K82: 0 | L82: -166780.6362 | M82: -283907.4464 | N82: -283907.4464 | O82: -283907.4464 | P82: -283907.4464 | Q82: -283907.4464 | R82: -283907.4464 | S82: -283907.4464 | T82: -283907.4464 | U82: -366208.7203 | V82: -422594.0371 | W82: -422594.0371 | X82: -422594.0371 | Y82: -422594.0371 | Z82: -422594.0371 | AA82: -422594.0371 | AB82: -422594.0371 | AC82: =AC80 -> -422594.0371 | AD82: =AD80 -> -422594.0371 | AE82: =AE80 -> -422594.0371 | AF82: =AF80 -> -422594.0371 | AG82: =AG80 -> -422594.0371
C83: Operating expenditure | G83: 2023-12-31 | I83: =-I19 -> 0 | J83: 0 | K83: 0 | L83: 0 | M83: 0 | N83: 0 | O83: 0 | P83: 0 | Q83: 0 | R83: 0 | S83: 0 | T83: 0 | U83: 0 | V83: 0 | W83: 0 | X83: 0 | Y83: 0 | Z83: 0 | AA83: 0 | AB83: 0 | AC83: 0 | AD83: 0 | AE83: 0 | AF83: 0 | AG83: 0
C84: Risk mitigated | G84: 2023-12-31 | I84: =I64 -> 0 | J84: =J64 -> 0 | K84: 0 | L84: 120196.2327 | M84: 122061.8027 | N84: 124269.3037 | O84: 127656.3332 | P84: 131406.7629 | Q84: 134241.6958 | R84: 135800.2442 | S84: 138067.3685 | T84: 141384.9622 | U84: 146245.7647 | V84: 613793.0679 | W84: 624292.4963 | X84: 639786.6915 | Y84: 662705.386 | Z84: 696677.3427 | AA84: 707916.5495 | AB84: 716355.1226 | AC84: =AC64 -> 728313.8607 | AD84: =AD64 -> 745087.599 | AE84: =AE64 -> 758125.5039 | AF84: =AF64 -> 759497.0004 | AG84: =AG64 -> 761461.6636
C85: Other benefits value | G85: 2023-12-31 | I85: =I57 -> 0 | J85: 0 | K85: 0 | L85: 0 | M85: 0 | N85: 0 | O85: 0 | P85: 0 | Q85: 0 | R85: 0 | S85: 0 | T85: 0 | U85: 0 | V85: 0 | W85: 0 | X85: 0 | Y85: 0 | Z85: 0 | AA85: 0 | AB85: 0 | AC85: 0 | AD85: 0 | AE85: 0 | AF85: 0 | AG85: 0
C87: Net benefits | G87: 2023-12-31 | I87: =SUM(I82:I86) -> 0 | J87: 0 | K87: 0 | L87: -46584.4035 | M87: -161845.6437 | N87: -159638.1427 | O87: -156251.1132 | P87: -152500.6835 | Q87: -149665.7506 | R87: -148107.2022 | S87: -145840.0779 | T87: -142522.4842 | U87: -219962.9556 | V87: 191199.0308 | W87: 201698.4593 | X87: 217192.6545 | Y87: 240111.3489 | Z87: 274083.3056 | AA87: 285322.5124 | AB87: 293761.0856 | AC87: =SUM(AC82:AC86) -> 305719.8236 | AD87: =SUM(AD82:AD86) -> 322493.5619 | AE87: =SUM(AE82:AE86) -> 335531.4668 | AF87: =SUM(AF82:AF86) -> 336902.9633 | AG87: =SUM(AG82:AG86) -> 338867.6265
C90: First capex year | G90: =IF(SUM($I17:$AG17)=0,0,(INDEX(I$6:AG$6,MATCH(TRUE,INDEX($I17:$AG17<>0,),0)))) -> 3
C92: First year | G92: =IF(_xlfn.MINIFS($G$90:$G$91, $G$90:$G$91, ">"&0)=0, $A$4, _xlfn.MINIFS($G$90:$G$91, $G$90:$G$91, ">"&0)) -> 3
A102: SENSITIVITIES
A106: NPV | C106: Net benefits | G106: =PROPER($A$3)&A106 -> Option 5NPV | I106: =I87 -> 0 | J106: =J87 -> 0 | K106: 0 | L106: -46584.4035 | M106: -161845.6437 | N106: -159638.1427 | O106: -156251.1132 | P106: -152500.6835 | Q106: -149665.7506 | R106: -148107.2022 | S106: -145840.0779 | T106: -142522.4842 | U106: -219962.9556 | V106: 191199.0308 | W106: 201698.4593 | X106: 217192.6545 | Y106: 240111.3489 | Z106: 274083.3056 | AA106: 285322.5124 | AB106: 293761.0856 | AC106: 305719.8236 | AD106: 322493.5619 | AE106: 335531.4668 | AF106: 336902.9633 | AG106: 338867.6265
C107: Total annualised capex | I107: =I82 -> 0 | J107: =J82 -> 0 | K107: 0 | L107: -166780.6362 | M107: -283907.4464 | N107: -283907.4464 | O107: -283907.4464 | P107: -283907.4464 | Q107: -283907.4464 | R107: -283907.4464 | S107: -283907.4464 | T107: -283907.4464 | U107: -366208.7203 | V107: -422594.0371 | W107: -422594.0371 | X107: -422594.0371 | Y107: -422594.0371 | Z107: -422594.0371 | AA107: -422594.0371 | AB107: -422594.0371 | AC107: -422594.0371 | AD107: -422594.0371 | AE107: -422594.0371 | AF107: -422594.0371 | AG107: -422594.0371
C108: Total benefits | I108: =SUM(I84:I85) -> 0 | J108: =SUM(J84:J85) -> 0 | K108: 0 | L108: 120196.2327 | M108: 122061.8027 | N108: 124269.3037 | O108: 127656.3332 | P108: 131406.7629 | Q108: 134241.6958 | R108: 135800.2442 | S108: 138067.3685 | T108: 141384.9622 | U108: 146245.7647 | V108: 613793.0679 | W108: 624292.4963 | X108: 639786.6915 | Y108: 662705.386 | Z108: 696677.3427 | AA108: 707916.5495 | AB108: 716355.1226 | AC108: 728313.8607 | AD108: 745087.599 | AE108: 758125.5039 | AF108: 759497.0004 | AG108: 761461.6636
D109: =Assumptions!G110 -> Capex | E109: =Assumptions!H110 -> Total benefits
A110: ="sens"&Assumptions!B111 -> sens1 | C110: =Assumptions!C111 -> Capex 10% higher | D110: =Assumptions!G111 -> 0.1 | E110: =Assumptions!H111 -> 0 | G110: =PROPER($A$3)&A110 -> Option 5sens1 | I110: =I$106+IF($C110<>0,SUMPRODUCT((I$107:I$108)*TRANSPOSE(($D110:$E110))),0) -> 0 | J110: =J$106+IF($C110<>0,SUMPRODUCT((J$107:J$108)*TRANSPOSE(($D110:$E110))),0) -> 0 | K110: =K$106+IF($C110<>0,SUMPRODUCT((K$107:K$108)*TRANSPOSE(($D110:$E110))),0) -> 0 | L110: =L$106+IF($C110<>0,SUMPRODUCT((L$107:L$108)*TRANSPOSE(($D110:$E110))),0) -> -63262.46712 | M110: =M$106+IF($C110<>0,SUMPRODUCT((M$107:M$108)*TRANSPOSE(($D110:$E110))),0) -> -190236.3883 | N110: =N$106+IF($C110<>0,SUMPRODUCT((N$107:N$108)*TRANSPOSE(($D110:$E110))),0) -> -188028.8873 | O110: =O$106+IF($C110<>0,SUMPRODUCT((O$107:O$108)*TRANSPOSE(($D110:$E110))),0) -> -184641.8578 | P110: =P$106+IF($C110<>0,SUMPRODUCT((P$107:P$108)*TRANSPOSE(($D110:$E110))),0) -> -180891.4281 | Q110: =Q$106+IF($C110<>0,SUMPRODUCT((Q$107:Q$108)*TRANSPOSE(($D110:$E110))),0) -> -178056.4953 | R110: =R$106+IF($C110<>0,SUMPRODUCT((R$107:R$108)*TRANSPOSE(($D110:$E110))),0) -> -176497.9468 | S110: =S$106+IF($C110<>0,SUMPRODUCT((S$107:S$108)*TRANSPOSE(($D110:$E110))),0) -> -174230.8225 | T110: =T$106+IF($C110<>0,SUMPRODUCT((T$107:T$108)*TRANSPOSE(($D110:$E110))),0) -> -170913.2288 | U110: =U$106+IF($C110<>0,SUMPRODUCT((U$107:U$108)*TRANSPOSE(($D110:$E110))),0) -> -256583.8277 | V110: =V$106+IF($C110<>0,SUMPRODUCT((V$107:V$108)*TRANSPOSE(($D110:$E110))),0) -> 148939.6271 | W110: =W$106+IF($C110<>0,SUMPRODUCT((W$107:W$108)*TRANSPOSE(($D110:$E110))),0) -> 159439.0555 | X110: =X$106+IF($C110<>0,SUMPRODUCT((X$107:X$108)*TRANSPOSE(($D110:$E110))),0) -> 174933.2508 | Y110: =Y$106+IF($C110<>0,SUMPRODUCT((Y$107:Y$108)*TRANSPOSE(($D110:$E110))),0) -> 197851.9452 | Z110: =Z$106+IF($C110<>0,SUMPRODUCT((Z$107:Z$108)*TRANSPOSE(($D110:$E110))),0) -> 231823.9019 | AA110: =AA$106+IF($C110<>0,SUMPRODUCT((AA$107:AA$108)*TRANSPOSE(($D110:$E110))),0) -> 243063.1087 | AB110: =AB$106+IF($C110<>0,SUMPRODUCT((AB$107:AB$108)*TRANSPOSE(($D110:$E110))),0) -> 251501.6819 | AC110: =AC$106+IF($C110<>0,SUMPRODUCT((AC$107:AC$108)*TRANSPOSE(($D110:$E110))),0) -> 263460.4199 | AD110: =AD$106+IF($C110<>0,SUMPRODUCT((AD$107:AD$108)*TRANSPOSE(($D110:$E110))),0) -> 280234.1582 | AE110: =AE$106+IF($C110<>0,SUMPRODUCT((AE$107:AE$108)*TRANSPOSE(($D110:$E110))),0) -> 293272.0631 | AF110: =AF$106+IF($C110<>0,SUMPRODUCT((AF$107:AF$108)*TRANSPOSE(($D110:$E110))),0) -> 294643.5596 | AG110: =AG$106+IF($C110<>0,SUMPRODUCT((AG$107:AG$108)*TRANSPOSE(($D110:$E110))),0) -> 296608.2228
A111: ="sens"&Assumptions!B112 -> sens2 | C111: =Assumptions!C112 -> Capex 10% lower | D111: =Assumptions!G112 -> -0.1 | E111: =Assumptions!H112 -> 0 | G111: =PROPER($A$3)&A111 -> Option 5sens2 | I111: =I$106+IF($C111<>0,SUMPRODUCT((I$107:I$108)*TRANSPOSE(($D111:$E111))),0) -> 0 | J111: =J$106+IF($C111<>0,SUMPRODUCT((J$107:J$108)*TRANSPOSE(($D111:$E111))),0) -> 0 | K111: =K$106+IF($C111<>0,SUMPRODUCT((K$107:K$108)*TRANSPOSE(($D111:$E111))),0) -> 0 | L111: =L$106+IF($C111<>0,SUMPRODUCT((L$107:L$108)*TRANSPOSE(($D111:$E111))),0) -> -29906.33988 | M111: =M$106+IF($C111<>0,SUMPRODUCT((M$107:M$108)*TRANSPOSE(($D111:$E111))),0) -> -133454.899 | N111: =N$106+IF($C111<>0,SUMPRODUCT((N$107:N$108)*TRANSPOSE(($D111:$E111))),0) -> -131247.3981 | O111: =O$106+IF($C111<>0,SUMPRODUCT((O$107:O$108)*TRANSPOSE(($D111:$E111))),0) -> -127860.3685 | P111: =P$106+IF($C111<>0,SUMPRODUCT((P$107:P$108)*TRANSPOSE(($D111:$E111))),0) -> -124109.9389 | Q111: =Q$106+IF($C111<>0,SUMPRODUCT((Q$107:Q$108)*TRANSPOSE(($D111:$E111))),0) -> -121275.006 | R111: =R$106+IF($C111<>0,SUMPRODUCT((R$107:R$108)*TRANSPOSE(($D111:$E111))),0) -> -119716.4576 | S111: =S$106+IF($C111<>0,SUMPRODUCT((S$107:S$108)*TRANSPOSE(($D111:$E111))),0) -> -117449.3332 | T111: =T$106+IF($C111<>0,SUMPRODUCT((T$107:T$108)*TRANSPOSE(($D111:$E111))),0) -> -114131.7396 | U111: =U$106+IF($C111<>0,SUMPRODUCT((U$107:U$108)*TRANSPOSE(($D111:$E111))),0) -> -183342.0836 | V111: =V$106+IF($C111<>0,SUMPRODUCT((V$107:V$108)*TRANSPOSE(($D111:$E111))),0) -> 233458.4345 | W111: =W$106+IF($C111<>0,SUMPRODUCT((W$107:W$108)*TRANSPOSE(($D111:$E111))),0) -> 243957.863 | X111: =X$106+IF($C111<>0,SUMPRODUCT((X$107:X$108)*TRANSPOSE(($D111:$E111))),0) -> 259452.0582 | Y111: =Y$106+IF($C111<>0,SUMPRODUCT((Y$107:Y$108)*TRANSPOSE(($D111:$E111))),0) -> 282370.7526 | Z111: =Z$106+IF($C111<>0,SUMPRODUCT((Z$107:Z$108)*TRANSPOSE(($D111:$E111))),0) -> 316342.7093 | AA111: =AA$106+IF($C111<>0,SUMPRODUCT((AA$107:AA$108)*TRANSPOSE(($D111:$E111))),0) -> 327581.9161 | AB111: =AB$106+IF($C111<>0,SUMPRODUCT((AB$107:AB$108)*TRANSPOSE(($D111:$E111))),0) -> 336020.4893 | AC111: =AC$106+IF($C111<>0,SUMPRODUCT((AC$107:AC$108)*TRANSPOSE(($D111:$E111))),0) -> 347979.2273 | AD111: =AD$106+IF($C111<>0,SUMPRODUCT((AD$107:AD$108)*TRANSPOSE(($D111:$E111))),0) -> 364752.9656 | AE111: =AE$106+IF($C111<>0,SUMPRODUCT((AE$107:AE$108)*TRANSPOSE(($D111:$E111))),0) -> 377790.8705 | AF111: =AF$106+IF($C111<>0,SUMPRODUCT((AF$107:AF$108)*TRANSPOSE(($D111:$E111))),0) -> 379162.367 | AG111: =AG$106+IF($C111<>0,SUMPRODUCT((AG$107:AG$108)*TRANSPOSE(($D111:$E111))),0) -> 381127.0302
A112: ="sens"&Assumptions!B113 -> sens3 | C112: =Assumptions!C113 -> Total benefits 10% higher | D112: =Assumptions!G113 -> 0 | E112: =Assumptions!H113 -> 0.1 | G112: Option 5sens3 | I112: =I$106+IF($C112<>0,SUMPRODUCT((I$107:I$108)*TRANSPOSE(($D112:$E112))),0) -> 0 | J112: =J$106+IF($C112<>0,SUMPRODUCT((J$107:J$108)*TRANSPOSE(($D112:$E112))),0) -> 0 | K112: =K$106+IF($C112<>0,SUMPRODUCT((K$107:K$108)*TRANSPOSE(($D112:$E112))),0) -> 0 | L112: =L$106+IF($C112<>0,SUMPRODUCT((L$107:L$108)*TRANSPOSE(($D112:$E112))),0) -> -34564.78023 | M112: =M$106+IF($C112<>0,SUMPRODUCT((M$107:M$108)*TRANSPOSE(($D112:$E112))),0) -> -149639.4634 | N112: =N$106+IF($C112<>0,SUMPRODUCT((N$107:N$108)*TRANSPOSE(($D112:$E112))),0) -> -147211.2123 | O112: =O$106+IF($C112<>0,SUMPRODUCT((O$107:O$108)*TRANSPOSE(($D112:$E112))),0) -> -143485.4798 | P112: =P$106+IF($C112<>0,SUMPRODUCT((P$107:P$108)*TRANSPOSE(($D112:$E112))),0) -> -139360.0072 | Q112: =Q$106+IF($C112<>0,SUMPRODUCT((Q$107:Q$108)*TRANSPOSE(($D112:$E112))),0) -> -136241.581 | R112: =R$106+IF($C112<>0,SUMPRODUCT((R$107:R$108)*TRANSPOSE(($D112:$E112))),0) -> -134527.1778 | S112: =S$106+IF($C112<>0,SUMPRODUCT((S$107:S$108)*TRANSPOSE(($D112:$E112))),0) -> -132033.341 | T112: =T$106+IF($C112<>0,SUMPRODUCT((T$107:T$108)*TRANSPOSE(($D112:$E112))),0) -> -128383.988 | U112: =U$106+IF($C112<>0,SUMPRODUCT((U$107:U$108)*TRANSPOSE(($D112:$E112))),0) -> -205338.3792 | V112: =V$106+IF($C112<>0,SUMPRODUCT((V$107:V$108)*TRANSPOSE(($D112:$E112))),0) -> 252578.3376 | W112: =W$106+IF($C112<>0,SUMPRODUCT((W$107:W$108)*TRANSPOSE(($D112:$E112))),0) -> 264127.7089 | X112: =X$106+IF($C112<>0,SUMPRODUCT((X$107:X$108)*TRANSPOSE(($D112:$E112))),0) -> 281171.3236 | Y112: =Y$106+IF($C112<>0,SUMPRODUCT((Y$107:Y$108)*TRANSPOSE(($D112:$E112))),0) -> 306381.8875 | Z112: =Z$106+IF($C112<>0,SUMPRODUCT((Z$107:Z$108)*TRANSPOSE(($D112:$E112))),0) -> 343751.0399 | AA112: =AA$106+IF($C112<>0,SUMPRODUCT((AA$107:AA$108)*TRANSPOSE(($D112:$E112))),0) -> 356114.1673 | AB112: =AB$106+IF($C112<>0,SUMPRODUCT((AB$107:AB$108)*TRANSPOSE(($D112:$E112))),0) -> 365396.5978 | AC112: =AC$106+IF($C112<>0,SUMPRODUCT((AC$107:AC$108)*TRANSPOSE(($D112:$E112))),0) -> 378551.2097 | AD112: =AD$106+IF($C112<>0,SUMPRODUCT((AD$107:AD$108)*TRANSPOSE(($D112:$E112))),0) -> 397002.3218 | AE112: =AE$106+IF($C112<>0,SUMPRODUCT((AE$107:AE$108)*TRANSPOSE(($D112:$E112))),0) -> 411344.0172 | AF112: =AF$106+IF($C112<>0,SUMPRODUCT((AF$107:AF$108)*TRANSPOSE(($D112:$E112))),0) -> 412852.6634 | AG112: =AG$106+IF($C112<>0,SUMPRODUCT((AG$107:AG$108)*TRANSPOSE(($D112:$E112))),0) -> 415013.7929
A113: ="sens"&Assumptions!B114 -> sens4 | C113: =Assumptions!C114 -> Total benefits 10% lower | D113: =Assumptions!G114 -> 0 | E113: =Assumptions!H114 -> -0.1 | G113: Option 5sens4 | I113: =I$106+IF($C113<>0,SUMPRODUCT((I$107:I$108)*TRANSPOSE(($D113:$E113))),0) -> 0 | J113: =J$106+IF($C113<>0,SUMPRODUCT((J$107:J$108)*TRANSPOSE(($D113:$E113))),0) -> 0 | K113: =K$106+IF($C113<>0,SUMPRODUCT((K$107:K$108)*TRANSPOSE(($D113:$E113))),0) -> 0 | L113: =L$106+IF($C113<>0,SUMPRODUCT((L$107:L$108)*TRANSPOSE(($D113:$E113))),0) -> -58604.02677 | M113: =M$106+IF($C113<>0,SUMPRODUCT((M$107:M$108)*TRANSPOSE(($D113:$E113))),0) -> -174051.8239 | N113: =N$106+IF($C113<>0,SUMPRODUCT((N$107:N$108)*TRANSPOSE(($D113:$E113))),0) -> -172065.0731 | O113: =O$106+IF($C113<>0,SUMPRODUCT((O$107:O$108)*TRANSPOSE(($D113:$E113))),0) -> -169016.7465 | P113: =P$106+IF($C113<>0,SUMPRODUCT((P$107:P$108)*TRANSPOSE(($D113:$E113))),0) -> -165641.3598 | Q113: =Q$106+IF($C113<>0,SUMPRODUCT((Q$107:Q$108)*TRANSPOSE(($D113:$E113))),0) -> -163089.9202 | R113: =R$106+IF($C113<>0,SUMPRODUCT((R$107:R$108)*TRANSPOSE(($D113:$E113))),0) -> -161687.2266 | S113: =S$106+IF($C113<>0,SUMPRODUCT((S$107:S$108)*TRANSPOSE(($D113:$E113))),0) -> -159646.8147 | T113: =T$106+IF($C113<>0,SUMPRODUCT((T$107:T$108)*TRANSPOSE(($D113:$E113))),0) -> -156660.9804 | U113: =U$106+IF($C113<>0,SUMPRODUCT((U$107:U$108)*TRANSPOSE(($D113:$E113))),0) -> -234587.5321 | V113: =V$106+IF($C113<>0,SUMPRODUCT((V$107:V$108)*TRANSPOSE(($D113:$E113))),0) -> 129819.724 | W113: =W$106+IF($C113<>0,SUMPRODUCT((W$107:W$108)*TRANSPOSE(($D113:$E113))),0) -> 139269.2096 | X113: =X$106+IF($C113<>0,SUMPRODUCT((X$107:X$108)*TRANSPOSE(($D113:$E113))),0) -> 153213.9853 | Y113: =Y$106+IF($C113<>0,SUMPRODUCT((Y$107:Y$108)*TRANSPOSE(($D113:$E113))),0) -> 173840.8103 | Z113: =Z$106+IF($C113<>0,SUMPRODUCT((Z$107:Z$108)*TRANSPOSE(($D113:$E113))),0) -> 204415.5713 | AA113: =AA$106+IF($C113<>0,SUMPRODUCT((AA$107:AA$108)*TRANSPOSE(($D113:$E113))),0) -> 214530.8574 | AB113: =AB$106+IF($C113<>0,SUMPRODUCT((AB$107:AB$108)*TRANSPOSE(($D113:$E113))),0) -> 222125.5733 | AC113: =AC$106+IF($C113<>0,SUMPRODUCT((AC$107:AC$108)*TRANSPOSE(($D113:$E113))),0) -> 232888.4375 | AD113: =AD$106+IF($C113<>0,SUMPRODUCT((AD$107:AD$108)*TRANSPOSE(($D113:$E113))),0) -> 247984.802 | AE113: =AE$106+IF($C113<>0,SUMPRODUCT((AE$107:AE$108)*TRANSPOSE(($D113:$E113))),0) -> 259718.9164 | AF113: =AF$106+IF($C113<>0,SUMPRODUCT((AF$107:AF$108)*TRANSPOSE(($D113:$E113))),0) -> 260953.2633 | AG113: =AG$106+IF($C113<>0,SUMPRODUCT((AG$107:AG$108)*TRANSPOSE(($D113:$E113))),0) -> 262721.4601
A114: ="sens"&Assumptions!B115 -> sens5 | C114: =Assumptions!C115 -> Capex 10% higher & Total benefits 10% lower | D114: =Assumptions!G115 -> 0.1 | E114: =Assumptions!H115 -> -0.1 | G114: Option 5sens5 | I114: =I$106+IF($C114<>0,SUMPRODUCT((I$107:I$108)*TRANSPOSE(($D114:$E114))),0) -> 0 | J114: =J$106+IF($C114<>0,SUMPRODUCT((J$107:J$108)*TRANSPOSE(($D114:$E114))),0) -> 0 | K114: =K$106+IF($C114<>0,SUMPRODUCT((K$107:K$108)*TRANSPOSE(($D114:$E114))),0) -> 0 | L114: =L$106+IF($C114<>0,SUMPRODUCT((L$107:L$108)*TRANSPOSE(($D114:$E114))),0) -> -75282.09039 | M114: =M$106+IF($C114<>0,SUMPRODUCT((M$107:M$108)*TRANSPOSE(($D114:$E114))),0) -> -202442.5686 | N114: =N$106+IF($C114<>0,SUMPRODUCT((N$107:N$108)*TRANSPOSE(($D114:$E114))),0) -> -200455.8177 | O114: =O$106+IF($C114<>0,SUMPRODUCT((O$107:O$108)*TRANSPOSE(($D114:$E114))),0) -> -197407.4911 | P114: =P$106+IF($C114<>0,SUMPRODUCT((P$107:P$108)*TRANSPOSE(($D114:$E114))),0) -> -194032.1044 | Q114: =Q$106+IF($C114<>0,SUMPRODUCT((Q$107:Q$108)*TRANSPOSE(($D114:$E114))),0) -> -191480.6648 | R114: =R$106+IF($C114<>0,SUMPRODUCT((R$107:R$108)*TRANSPOSE(($D114:$E114))),0) -> -190077.9713 | S114: =S$106+IF($C114<>0,SUMPRODUCT((S$107:S$108)*TRANSPOSE(($D114:$E114))),0) -> -188037.5594 | T114: =T$106+IF($C114<>0,SUMPRODUCT((T$107:T$108)*TRANSPOSE(($D114:$E114))),0) -> -185051.725 | U114: =U$106+IF($C114<>0,SUMPRODUCT((U$107:U$108)*TRANSPOSE(($D114:$E114))),0) -> -271208.4041 | V114: =V$106+IF($C114<>0,SUMPRODUCT((V$107:V$108)*TRANSPOSE(($D114:$E114))),0) -> 87560.32029 | W114: =W$106+IF($C114<>0,SUMPRODUCT((W$107:W$108)*TRANSPOSE(($D114:$E114))),0) -> 97009.80591 | X114: =X$106+IF($C114<>0,SUMPRODUCT((X$107:X$108)*TRANSPOSE(($D114:$E114))),0) -> 110954.5816 | Y114: =Y$106+IF($C114<>0,SUMPRODUCT((Y$107:Y$108)*TRANSPOSE(($D114:$E114))),0) -> 131581.4066 | Z114: =Z$106+IF($C114<>0,SUMPRODUCT((Z$107:Z$108)*TRANSPOSE(($D114:$E114))),0) -> 162156.1676 | AA114: =AA$106+IF($C114<>0,SUMPRODUCT((AA$107:AA$108)*TRANSPOSE(($D114:$E114))),0) -> 172271.4537 | AB114: =AB$106+IF($C114<>0,SUMPRODUCT((AB$107:AB$108)*TRANSPOSE(($D114:$E114))),0) -> 179866.1696 | AC114: =AC$106+IF($C114<>0,SUMPRODUCT((AC$107:AC$108)*TRANSPOSE(($D114:$E114))),0) -> 190629.0338 | AD114: =AD$106+IF($C114<>0,SUMPRODUCT((AD$107:AD$108)*TRANSPOSE(($D114:$E114))),0) -> 205725.3983 | AE114: =AE$106+IF($C114<>0,SUMPRODUCT((AE$107:AE$108)*TRANSPOSE(($D114:$E114))),0) -> 217459.5127 | AF114: =AF$106+IF($C114<>0,SUMPRODUCT((AF$107:AF$108)*TRANSPOSE(($D114:$E114))),0) -> 218693.8596 | AG114: =AG$106+IF($C114<>0,SUMPRODUCT((AG$107:AG$108)*TRANSPOSE(($D114:$E114))),0) -> 220462.0564
A115: ="sens"&Assumptions!B116 -> sens | C115: =Assumptions!C116 -> 0 | D115: =Assumptions!G116 -> 0 | E115: =Assumptions!H116 -> 0 | G115: Option 5sens | I115: =I$106+IF($C115<>0,SUMPRODUCT((I$107:I$108)*TRANSPOSE(($D115:$E115))),0) -> 0 | J115: =J$106+IF($C115<>0,SUMPRODUCT((J$107:J$108)*TRANSPOSE(($D115:$E115))),0) -> 0 | K115: =K$106+IF($C115<>0,SUMPRODUCT((K$107:K$108)*TRANSPOSE(($D115:$E115))),0) -> 0 | L115: =L$106+IF($C115<>0,SUMPRODUCT((L$107:L$108)*TRANSPOSE(($D115:$E115))),0) -> -46584.4035 | M115: =M$106+IF($C115<>0,SUMPRODUCT((M$107:M$108)*TRANSPOSE(($D115:$E115))),0) -> -161845.6437 | N115: =N$106+IF($C115<>0,SUMPRODUCT((N$107:N$108)*TRANSPOSE(($D115:$E115))),0) -> -159638.1427 | O115: =O$106+IF($C115<>0,SUMPRODUCT((O$107:O$108)*TRANSPOSE(($D115:$E115))),0) -> -156251.1132 | P115: =P$106+IF($C115<>0,SUMPRODUCT((P$107:P$108)*TRANSPOSE(($D115:$E115))),0) -> -152500.6835 | Q115: =Q$106+IF($C115<>0,SUMPRODUCT((Q$107:Q$108)*TRANSPOSE(($D115:$E115))),0) -> -149665.7506 | R115: =R$106+IF($C115<>0,SUMPRODUCT((R$107:R$108)*TRANSPOSE(($D115:$E115))),0) -> -148107.2022 | S115: =S$106+IF($C115<>0,SUMPRODUCT((S$107:S$108)*TRANSPOSE(($D115:$E115))),0) -> -145840.0779 | T115: =T$106+IF($C115<>0,SUMPRODUCT((T$107:T$108)*TRANSPOSE(($D115:$E115))),0) -> -142522.4842 | U115: =U$106+IF($C115<>0,SUMPRODUCT((U$107:U$108)*TRANSPOSE(($D115:$E115))),0) -> -219962.9556 | V115: =V$106+IF($C115<>0,SUMPRODUCT((V$107:V$108)*TRANSPOSE(($D115:$E115))),0) -> 191199.0308 | W115: =W$106+IF($C115<>0,SUMPRODUCT((W$107:W$108)*TRANSPOSE(($D115:$E115))),0) -> 201698.4593 | X115: =X$106+IF($C115<>0,SUMPRODUCT((X$107:X$108)*TRANSPOSE(($D115:$E115))),0) -> 217192.6545 | Y115: =Y$106+IF($C115<>0,SUMPRODUCT((Y$107:Y$108)*TRANSPOSE(($D115:$E115))),0) -> 240111.3489 | Z115: =Z$106+IF($C115<>0,SUMPRODUCT((Z$107:Z$108)*TRANSPOSE(($D115:$E115))),0) -> 274083.3056 | AA115: =AA$106+IF($C115<>0,SUMPRODUCT((AA$107:AA$108)*TRANSPOSE(($D115:$E115))),0) -> 285322.5124 | AB115: =AB$106+IF($C115<>0,SUMPRODUCT((AB$107:AB$108)*TRANSPOSE(($D115:$E115))),0) -> 293761.0856 | AC115: =AC$106+IF($C115<>0,SUMPRODUCT((AC$107:AC$108)*TRANSPOSE(($D115:$E115))),0) -> 305719.8236 | AD115: =AD$106+IF($C115<>0,SUMPRODUCT((AD$107:AD$108)*TRANSPOSE(($D115:$E115))),0) -> 322493.5619 | AE115: =AE$106+IF($C115<>0,SUMPRODUCT((AE$107:AE$108)*TRANSPOSE(($D115:$E115))),0) -> 335531.4668 | AF115: =AF$106+IF($C115<>0,SUMPRODUCT((AF$107:AF$108)*TRANSPOSE(($D115:$E115))),0) -> 336902.9633 | AG115: =AG$106+IF($C115<>0,SUMPRODUCT((AG$107:AG$108)*TRANSPOSE(($D115:$E115))),0) -> 338867.6265
A116: ="sens"&Assumptions!B117 -> sens | C116: =Assumptions!C117 -> 0 | D116: =Assumptions!G117 -> 0 | E116: =Assumptions!H117 -> 0 | G116: Option 5sens | I116: =I$106+IF($C116<>0,SUMPRODUCT((I$107:I$108)*TRANSPOSE(($D116:$E116))),0) -> 0 | J116: =J$106+IF($C116<>0,SUMPRODUCT((J$107:J$108)*TRANSPOSE(($D116:$E116))),0) -> 0 | K116: =K$106+IF($C116<>0,SUMPRODUCT((K$107:K$108)*TRANSPOSE(($D116:$E116))),0) -> 0 | L116: =L$106+IF($C116<>0,SUMPRODUCT((L$107:L$108)*TRANSPOSE(($D116:$E116))),0) -> -46584.4035 | M116: =M$106+IF($C116<>0,SUMPRODUCT((M$107:M$108)*TRANSPOSE(($D116:$E116))),0) -> -161845.6437 | N116: =N$106+IF($C116<>0,SUMPRODUCT((N$107:N$108)*TRANSPOSE(($D116:$E116))),0) -> -159638.1427 | O116: =O$106+IF($C116<>0,SUMPRODUCT((O$107:O$108)*TRANSPOSE(($D116:$E116))),0) -> -156251.1132 | P116: =P$106+IF($C116<>0,SUMPRODUCT((P$107:P$108)*TRANSPOSE(($D116:$E116))),0) -> -152500.6835 | Q116: =Q$106+IF($C116<>0,SUMPRODUCT((Q$107:Q$108)*TRANSPOSE(($D116:$E116))),0) -> -149665.7506 | R116: =R$106+IF($C116<>0,SUMPRODUCT((R$107:R$108)*TRANSPOSE(($D116:$E116))),0) -> -148107.2022 | S116: =S$106+IF($C116<>0,SUMPRODUCT((S$107:S$108)*TRANSPOSE(($D116:$E116))),0) -> -145840.0779 | T116: =T$106+IF($C116<>0,SUMPRODUCT((T$107:T$108)*TRANSPOSE(($D116:$E116))),0) -> -142522.4842 | U116: =U$106+IF($C116<>0,SUMPRODUCT((U$107:U$108)*TRANSPOSE(($D116:$E116))),0) -> -219962.9556 | V116: =V$106+IF($C116<>0,SUMPRODUCT((V$107:V$108)*TRANSPOSE(($D116:$E116))),0) -> 191199.0308 | W116: =W$106+IF($C116<>0,SUMPRODUCT((W$107:W$108)*TRANSPOSE(($D116:$E116))),0) -> 201698.4593 | X116: =X$106+IF($C116<>0,SUMPRODUCT((X$107:X$108)*TRANSPOSE(($D116:$E116))),0) -> 217192.6545 | Y116: =Y$106+IF($C116<>0,SUMPRODUCT((Y$107:Y$108)*TRANSPOSE(($D116:$E116))),0) -> 240111.3489 | Z116: =Z$106+IF($C116<>0,SUMPRODUCT((Z$107:Z$108)*TRANSPOSE(($D116:$E116))),0) -> 274083.3056 | AA116: =AA$106+IF($C116<>0,SUMPRODUCT((AA$107:AA$108)*TRANSPOSE(($D116:$E116))),0) -> 285322.5124 | AB116: =AB$106+IF($C116<>0,SUMPRODUCT((AB$107:AB$108)*TRANSPOSE(($D116:$E116))),0) -> 293761.0856 | AC116: =AC$106+IF($C116<>0,SUMPRODUCT((AC$107:AC$108)*TRANSPOSE(($D116:$E116))),0) -> 305719.8236 | AD116: =AD$106+IF($C116<>0,SUMPRODUCT((AD$107:AD$108)*TRANSPOSE(($D116:$E116))),0) -> 322493.5619 | AE116: =AE$106+IF($C116<>0,SUMPRODUCT((AE$107:AE$108)*TRANSPOSE(($D116:$E116))),0) -> 335531.4668 | AF116: =AF$106+IF($C116<>0,SUMPRODUCT((AF$107:AF$108)*TRANSPOSE(($D116:$E116))),0) -> 336902.9633 | AG116: =AG$106+IF($C116<>0,SUMPRODUCT((AG$107:AG$108)*TRANSPOSE(($D116:$E116))),0) -> 338867.6265
A117: ="sens"&Assumptions!B118 -> sens | C117: =Assumptions!C118 -> 0 | D117: =Assumptions!G118 -> 0 | E117: =Assumptions!H118 -> 0 | G117: Option 5sens | I117: =I$106+IF($C117<>0,SUMPRODUCT((I$107:I$108)*TRANSPOSE(($D117:$E117))),0) -> 0 | J117: =J$106+IF($C117<>0,SUMPRODUCT((J$107:J$108)*TRANSPOSE(($D117:$E117))),0) -> 0 | K117: =K$106+IF($C117<>0,SUMPRODUCT((K$107:K$108)*TRANSPOSE(($D117:$E117))),0) -> 0 | L117: =L$106+IF($C117<>0,SUMPRODUCT((L$107:L$108)*TRANSPOSE(($D117:$E117))),0) -> -46584.4035 | M117: =M$106+IF($C117<>0,SUMPRODUCT((M$107:M$108)*TRANSPOSE(($D117:$E117))),0) -> -161845.6437 | N117: =N$106+IF($C117<>0,SUMPRODUCT((N$107:N$108)*TRANSPOSE(($D117:$E117))),0) -> -159638.1427 | O117: =O$106+IF($C117<>0,SUMPRODUCT((O$107:O$108)*TRANSPOSE(($D117:$E117))),0) -> -156251.1132 | P117: =P$106+IF($C117<>0,SUMPRODUCT((P$107:P$108)*TRANSPOSE(($D117:$E117))),0) -> -152500.6835 | Q117: =Q$106+IF($C117<>0,SUMPRODUCT((Q$107:Q$108)*TRANSPOSE(($D117:$E117))),0) -> -149665.7506 | R117: =R$106+IF($C117<>0,SUMPRODUCT((R$107:R$108)*TRANSPOSE(($D117:$E117))),0) -> -148107.2022 | S117: =S$106+IF($C117<>0,SUMPRODUCT((S$107:S$108)*TRANSPOSE(($D117:$E117))),0) -> -145840.0779 | T117: =T$106+IF($C117<>0,SUMPRODUCT((T$107:T$108)*TRANSPOSE(($D117:$E117))),0) -> -142522.4842 | U117: =U$106+IF($C117<>0,SUMPRODUCT((U$107:U$108)*TRANSPOSE(($D117:$E117))),0) -> -219962.9556 | V117: =V$106+IF($C117<>0,SUMPRODUCT((V$107:V$108)*TRANSPOSE(($D117:$E117))),0) -> 191199.0308 | W117: =W$106+IF($C117<>0,SUMPRODUCT((W$107:W$108)*TRANSPOSE(($D117:$E117))),0) -> 201698.4593 | X117: =X$106+IF($C117<>0,SUMPRODUCT((X$107:X$108)*TRANSPOSE(($D117:$E117))),0) -> 217192.6545 | Y117: =Y$106+IF($C117<>0,SUMPRODUCT((Y$107:Y$108)*TRANSPOSE(($D117:$E117))),0) -> 240111.3489 | Z117: =Z$106+IF($C117<>0,SUMPRODUCT((Z$107:Z$108)*TRANSPOSE(($D117:$E117))),0) -> 274083.3056 | AA117: =AA$106+IF($C117<>0,SUMPRODUCT((AA$107:AA$108)*TRANSPOSE(($D117:$E117))),0) -> 285322.5124 | AB117: =AB$106+IF($C117<>0,SUMPRODUCT((AB$107:AB$108)*TRANSPOSE(($D117:$E117))),0) -> 293761.0856 | AC117: =AC$106+IF($C117<>0,SUMPRODUCT((AC$107:AC$108)*TRANSPOSE(($D117:$E117))),0) -> 305719.8236 | AD117: =AD$106+IF($C117<>0,SUMPRODUCT((AD$107:AD$108)*TRANSPOSE(($D117:$E117))),0) -> 322493.5619 | AE117: =AE$106+IF($C117<>0,SUMPRODUCT((AE$107:AE$108)*TRANSPOSE(($D117:$E117))),0) -> 335531.4668 | AF117: =AF$106+IF($C117<>0,SUMPRODUCT((AF$107:AF$108)*TRANSPOSE(($D117:$E117))),0) -> 336902.9633 | AG117: =AG$106+IF($C117<>0,SUMPRODUCT((AG$107:AG$108)*TRANSPOSE(($D117:$E117))),0) -> 338867.6265

Sheet Consol
A1: =bus -> CitiPower
A2: =proj -> NC switchboard and relay replacement
A3: CONSOLIDATED
A5: Discount factor | H5: =IF(H9=start,1/((1+real_disc)^(1/2)),G5/(1+real_disc)) -> 0 | I5: 0.9829463744 | J5: 0.9497066419 | K5: 0.9175909584 | L5: 0.8865613124 | M5: 0.8565809782 | N5: 0.8276144717 | O5: 0.7996275089 | P5: 0.7725869651 | Q5: 0.7464608358 | R5: 0.7212181989 | S5: 0.6968291777 | T5: 0.6732649059 | U5: 0.6504974937 | V5: 0.6284999939 | W5: 0.6072463709 | X5: 0.5867114695 | Y5: 0.566870985 | Z5: 0.5477014348 | AA5: 0.5291801302 | AB5: 0.51128515 | AC5: 0.493995314 | AD5: 0.4772901584 | AE5: 0.4611499115 | AF5: 0.4455554701 | AG5: 0.4304883769
A6: ='Option1 (base case)'!A6 -> Count | H6: ='Option1 (base case)'!H6 -> 0 | I6: ='Option1 (base case)'!I6 -> 1 | J6: ='Option1 (base case)'!J6 -> 2 | K6: ='Option1 (base case)'!K6 -> 3 | L6: ='Option1 (base case)'!L6 -> 4 | M6: ='Option1 (base case)'!M6 -> 5 | N6: ='Option1 (base case)'!N6 -> 6 | O6: ='Option1 (base case)'!O6 -> 7 | P6: ='Option1 (base case)'!P6 -> 8 | Q6: ='Option1 (base case)'!Q6 -> 9 | R6: ='Option1 (base case)'!R6 -> 10 | S6: ='Option1 (base case)'!S6 -> 11 | T6: ='Option1 (base case)'!T6 -> 12 | U6: ='Option1 (base case)'!U6 -> 13 | V6: ='Option1 (base case)'!V6 -> 14 | W6: ='Option1 (base case)'!W6 -> 15 | X6: ='Option1 (base case)'!X6 -> 16 | Y6: ='Option1 (base case)'!Y6 -> 17 | Z6: ='Option1 (base case)'!Z6 -> 18 | AA6: ='Option1 (base case)'!AA6 -> 19 | AB6: ='Option1 (base case)'!AB6 -> 20 | AC6: ='Option1 (base case)'!AC6 -> 21 | AD6: ='Option1 (base case)'!AD6 -> 22 | AE6: ='Option1 (base case)'!AE6 -> 23 | AF6: ='Option1 (base case)'!AF6 -> 24 | AG6: ='Option1 (base case)'!AG6 -> 25
A7: Analysis period | H7: =H$6<(first_year+years) -> TRUE | I7: TRUE | J7: TRUE | K7: TRUE | L7: TRUE | M7: TRUE | N7: TRUE | O7: TRUE | P7: TRUE | Q7: TRUE | R7: TRUE | S7: TRUE | T7: TRUE | U7: TRUE | V7: TRUE | W7: TRUE | X7: TRUE | Y7: TRUE | Z7: TRUE | AA7: TRUE | AB7: TRUE | AC7: TRUE | AD7: TRUE | AE7: FALSE | AF7: FALSE | AG7: FALSE
H9: ='Option1 (base case)'!H9 -> 2026-06-30 | I9: ='Option1 (base case)'!I9 -> 2026-27 | J9: ='Option1 (base case)'!J9 -> 2027-28 | K9: ='Option1 (base case)'!K9 -> 2028-29 | L9: ='Option1 (base case)'!L9 -> 2029-30 | M9: ='Option1 (base case)'!M9 -> 2030-31 | N9: ='Option1 (base case)'!N9 -> 2031-32 | O9: ='Option1 (base case)'!O9 -> 2032-33 | P9: ='Option1 (base case)'!P9 -> 2033-34 | Q9: ='Option1 (base case)'!Q9 -> 2034-35 | R9: ='Option1 (base case)'!R9 -> 2035-36 | S9: ='Option1 (base case)'!S9 -> 2036-37 | T9: ='Option1 (base case)'!T9 -> 2037-38 | U9: ='Option1 (base case)'!U9 -> 2038-39 | V9: ='Option1 (base case)'!V9 -> 2039-40 | W9: ='Option1 (base case)'!W9 -> 2040-41 | X9: ='Option1 (base case)'!X9 -> 2041-42 | Y9: ='Option1 (base case)'!Y9 -> 2042-43 | Z9: ='Option1 (base case)'!Z9 -> 2043-44 | AA9: ='Option1 (base case)'!AA9 -> 2044-45 | AB9: ='Option1 (base case)'!AB9 -> 2045-46 | AC9: ='Option1 (base case)'!AC9 -> 2046-47 | AD9: ='Option1 (base case)'!AD9 -> 2047-48 | AE9: ='Option1 (base case)'!AE9 -> 2048-49 | AF9: ='Option1 (base case)'!AF9 -> 2049-50 | AG9: ='Option1 (base case)'!AG9 -> 2050-51
A11: COSTS | F11: PV | H11: =IF(H6=$C$4,UPPER($A$4),IF(H6=end, "END", "")) -> 
A14: =A15 -> Option 1 (base case) | C14: Energy at risk value | D14: =A14&C14 -> Option 1 (base case)Energy at risk value | F14: =SUMPRODUCT($H14:$AG14, $H$5:$AG$5) -> 12681338.19 | G14: =output_dollars -> 2026-06-30 | I14: ='Option1 (base case)'!I$28*conv_2026 -> 630488.1083 | J14: ='Option1 (base case)'!J$28*conv_2026 -> 646637.6347 | K14: ='Option1 (base case)'!K$28*conv_2026 -> 660875.2796 | L14: ='Option1 (base case)'!L$28*conv_2026 -> 673956.4247 | M14: ='Option1 (base case)'!M$28*conv_2026 -> 686019.9943 | N14: ='Option1 (base case)'!N$28*conv_2026 -> 699870.3379 | O14: ='Option1 (base case)'!O$28*conv_2026 -> 719452.5168 | P14: ='Option1 (base case)'!P$28*conv_2026 -> 739963.8138 | Q14: ='Option1 (base case)'!Q$28*conv_2026 -> 753975.1809 | R14: ='Option1 (base case)'!R$28*conv_2026 -> 758661.2126 | S14: ='Option1 (base case)'!S$28*conv_2026 -> 763819.2672 | T14: ='Option1 (base case)'!T$28*conv_2026 -> 769509.9876 | U14: ='Option1 (base case)'!U$28*conv_2026 -> 775807.3278 | V14: ='Option1 (base case)'!V$28*conv_2026 -> 782803.5417 | W14: ='Option1 (base case)'!W$28*conv_2026 -> 790616.5207 | X14: ='Option1 (base case)'!X$28*conv_2026 -> 799400.6552 | Y14: ='Option1 (base case)'!Y$28*conv_2026 -> 809362.99 | Z14: ='Option1 (base case)'!Z$28*conv_2026 -> 820787.3465 | AA14: ='Option1 (base case)'!AA$28*conv_2026 -> 831640.2333 | AB14: ='Option1 (base case)'!AB$28*conv_2026 -> 843206.7817 | AC14: ='Option1 (base case)'!AC$28*conv_2026 -> 855928.8996 | AD14: ='Option1 (base case)'!AD$28*conv_2026 -> 869937.2236 | AE14: ='Option1 (base case)'!AE$28*conv_2026 -> 885222.3596 | AF14: ='Option1 (base case)'!AF$28*conv_2026 -> 901794.9737 | AG14: ='Option1 (base case)'!AG$28*conv_2026 -> 919982.0421
A15: =Data!B9 -> Option 1 (base case) | C15: ='Option1 (base case)'!C$66 -> Capital expenditure | D15: Option 1 (base case)Capital expenditure | F15: =SUMPRODUCT($H15:$AG15, $H$5:$AG$5) -> 0 | G15: =output_dollars -> 2026-06-30 | I15: =SUM('Option1 (base case)'!I$67:I$69)*conv_2026 -> 0 | J15: =SUM('Option1 (base case)'!J$67:J$69) -> 0 | K15: =SUM('Option1 (base case)'!K$67:K$69) -> 0 | L15: =SUM('Option1 (base case)'!L$67:L$69) -> 0 | M15: =SUM('Option1 (base case)'!M$67:M$69) -> 0 | N15: =SUM('Option1 (base case)'!N$67:N$69) -> 0 | O15: =SUM('Option1 (base case)'!O$67:O$69) -> 0 | P15: =SUM('Option1 (base case)'!P$67:P$69) -> 0 | Q15: =SUM('Option1 (base case)'!Q$67:Q$69) -> 0 | R15: =SUM('Option1 (base case)'!R$67:R$69) -> 0 | S15: =SUM('Option1 (base case)'!S$67:S$69) -> 0 | T15: =SUM('Option1 (base case)'!T$67:T$69) -> 0 | U15: =SUM('Option1 (base case)'!U$67:U$69) -> 0 | V15: =SUM('Option1 (base case)'!V$67:V$69) -> 0 | W15: =SUM('Option1 (base case)'!W$67:W$69) -> 0 | X15: =SUM('Option1 (base case)'!X$67:X$69) -> 0 | Y15: =SUM('Option1 (base case)'!Y$67:Y$69) -> 0 | Z15: =SUM('Option1 (base case)'!Z$67:Z$69) -> 0 | AA15: =SUM('Option1 (base case)'!AA$67:AA$69) -> 0 | AB15: =SUM('Option1 (base case)'!AB$67:AB$69) -> 0 | AC15: =SUM('Option1 (base case)'!AC$67:AC$69) -> 0 | AD15: =SUM('Option1 (base case)'!AD$67:AD$69) -> 0 | AE15: =SUM('Option1 (base case)'!AE$67:AE$69) -> 0 | AF15: =SUM('Option1 (base case)'!AF$67:AF$69) -> 0 | AG15: =SUM('Option1 (base case)'!AG$67:AG$69) -> 0
A16: =A15 -> Option 1 (base case) | C16: ='Option1 (base case)'!C$36 -> Total risk cost | D16: Option 1 (base case)Total risk cost | F16: =SUMPRODUCT(($H16:$AG16)*($H$5:$AG$5)*($H$7:$AG$7)) -> 13460366.72 | G16: =output_dollars -> 2026-06-30 | I16: ='Option1 (base case)'!I$36*conv_2026 -> 684347.9921 | J16: ='Option1 (base case)'!J$36*conv_2026 -> 702874.1197 | K16: ='Option1 (base case)'!K$36*conv_2026 -> 719716.932 | L16: ='Option1 (base case)'!L$36*conv_2026 -> 735647.1098 | M16: ='Option1 (base case)'!M$36*conv_2026 -> 751009.9811 | N16: ='Option1 (base case)'!N$36*conv_2026 -> 768547.4762 | O16: ='Option1 (base case)'!O$36*conv_2026 -> 792344.4867 | P16: ='Option1 (base case)'!P$36*conv_2026 -> 817702.9323 | Q16: ='Option1 (base case)'!Q$36*conv_2026 -> 837300.3977 | R16: ='Option1 (base case)'!R$36*conv_2026 -> 848514.6137 | S16: ='Option1 (base case)'!S$36*conv_2026 -> 861426.4681 | T16: ='Option1 (base case)'!T$36*conv_2026 -> 876532.6738 | U16: ='Option1 (base case)'!U$36*conv_2026 -> 894493.1325 | V16: ='Option1 (base case)'!V$36*conv_2026 -> 916246.3242 | W16: ='Option1 (base case)'!W$36*conv_2026 -> 943171.9853 | X16: ='Option1 (base case)'!X$36*conv_2026 -> 977284.7306 | Y16: ='Option1 (base case)'!Y$36*conv_2026 -> 1021546.662 | Z16: ='Option1 (base case)'!Z$36*conv_2026 -> 1080337.221 | AA16: ='Option1 (base case)'!AA$36*conv_2026 -> 1116765.214 | AB16: ='Option1 (base case)'!AB$36*conv_2026 -> 1152509.06 | AC16: ='Option1 (base case)'!AC$36*conv_2026 -> 1192044.106 | AD16: ='Option1 (base case)'!AD$36*conv_2026 -> 1239836.197 | AE16: ='Option1 (base case)'!AE$36*conv_2026 -> 1286755.579 | AF16: ='Option1 (base case)'!AF$36*conv_2026 -> 1324374.815 | AG16: ='Option1 (base case)'!AG$36*conv_2026 -> 1366807.757
A17: Option 1 (base case) | D17: Option 1 (base case)
